Workbook

Sheet Dropdown
A1: 24 Hours | B1: 24 Hours | H1: Domain | J1: Category | L1: Sub-Category | N1: Classification
A2: 48 Hours | B2: 48 Hours | H2: English | I2: Arabic | J2: English | K2: Arabic | L2: English | M2: Arabic | N2: English | O2: Arabic
A3: 72 Hours | B3: 72 Hours | H3: Clinical complaints | I3: الشكاوى السريرية | J3: 1. Quality | K3: 1.الجودة | L3: 1.1. Examination | M3: 1.1.الفحص الطبي | N3: 1.1.1. Examination not performed | O3: 1.1.1. لم يتم إجراء الفحص
A4: More than 72 Hours | B4: More than 72 Hours | H4: Relationship complaints | I4: الشكاوى المتعلقة بالعلاقات | J4: 2. Safety | K4: 2.السلامة | L4: 1.2.Patient journey | M4: 1.2.رحلة المريض | N4: 1.1.2. Inadequate/incomplete assessment | O4: 1.1.2. تقييم غير كافٍ/غير مكتمل
A5: Escalated( مصعدة) | B5: Escalated( مصعدة) | H5: Management complaints | I5: الشكاوى الإدارية | J5: 3. Institutional issues | K5: 3.القضايا المؤسسية | L5: 1.3.Quality of Care | M5: 1.3.جودة الرعاية | N5: 1.1.3. Not having enough knowledge regarding the patient condition | O5: 1.1.3. عدم توفر معلومات كافية عن حالة المريض
J6: 4. Accessibility | K6: 4.الوصول | L6: 1.4.Treatment | M6: 1.4.العلاج | N6: 1.1.4. Lab tests not performed | O6: 1.1.4.لم يتم إجراء الفحوصات المخبرية
J7: 5. Communication | K7: 5.التواصل | L7: 1.5.Diagnosis | M7: 1.5.التشخيص | N7: 1.1.5. Diagnostic Imaging not performed | O7: 1.1.5.لم يتم إجراء التصوير التشخيصي
A8: Satisfied | B8: Satisfied | J8: 6. Humanness / Caring | K8: 6.الإنسانية \ الرعاية | L8: 2.1.Medication & Vaccination | M8: 2.1. الأدوية والتطعيمات | N8: 1.1.6.Loss of a patient sample | O8: 1.1.6.فقدان عينة من المريض
A9: Neutral | B9: Neutral | L9: 2.2.Safety Incidents | M9: 2.2. حوادث السلامة | N9: 1.2.1.Miscoordination | O9: 1.2.1.سوء التنسيق
A10: Dissatisfied | B10: Dissatisfied | L10: 2.3.Skills and Conduct | M10: 2.3.المهارات والسلوك | N10: 1.2.2.Patient flow issues | O10: 1.2.2.مشاكل في تدفق المرضى
L11: 3.1.Administrative Policies and Procedures | M11: 3.1.السياسات والإجراءات الإدارية | N11: 1.2.3.Lack of follow up | O11: 1.2.3.عدم المتابعة
L12: 3.2.Environment | M12: 3.2.البيئة | N12: 1.3.1.Substandard clinical/nursing care | O12: 1.3.1.رعاية سريرية/تمريضية دون المستوى المطلوب
L13: 3.3.Safety & Security | M13: 3.3.السلامة والأمن | N13: 1.3.2.No Frequent rounding on patient | O13: 1.3.2.عدم وجود جولات متكررة على المريض
L14: 3.4.Finance and Billing | M14: 3.4..الشؤون المالية والفواتير | N14: 1.3.3.Rough treatment | O14: 1.3.3. معاملة قاسية
L15: 3.5.Staffing | M15: 3.5.التوظيف ( توفير الكادر) | N15: 1.3.4.Insensitive to patient needs | O15: عدم مراعاة احتياجات المريض1.3.4
A16: Hospital | B16: Hospital | L16: 3.6.Resources | M16: 3.6.االموارد | N16: 1.3.5.Rushed, not time to see patients | O16: 1.3.5.التسرع وعدم وجود وقت لرؤية المرضى
A17: Patient | L17: 3.7.Medical records | M17: 3.7.السجلات الطبية | N17: 1.3.6.No assistance from staff in feeding a patient | O17: 1.3.6 عدم مساعدة الموظفين في إطعام المريض
L18: 4.1.Access | M18: 4.1.الوصول | N18: 1.4.1.Treatment plan issues | O18: 1.4.1. مشاكل في خطة العلاج
L19: 4.2.Patient Disposition ( final plan) | M19: 4.2. مصير المريض \ الخطة النهائية او القرار الطبي النهائي للحالة | N19: 1.4.2 Treatment plan not followed | O19: 1.4.2.عدم اتباع خطة العلاج
L20: 4.3.Delays | M20: 4.3.التأخيرات | N20: 1.4.3.Ineffective treatment | O20: 1.4.3. علاج غير فعال
A21: Domain | B21: Clinical complaints | L21: 4.4.Referrals | M21: 4.4.التحويل | N21: 1.4.4.Inadequate pain management | O21: 1.4.4. إدارة غير كافية للألم
A22: Clinical complaints | B22: الشكاوى السريرية | L22: 5.1.Patient-staff communication | M22: 5.1.التواصل بين المريض والموظفين | N22: 1.4.5.Patient Discharged before completing treatment | O22: 1.4.5. خروج المريض قبل إكمال العلاج
A23: Relationship complaints | B23: الشكاوى المتعلقة بالعلاقات | L23: 5.2.Incorrect Information | M23: 5.2.معلومات خاطئة | N23: 1.5.1.Errors in diagnosis | O23: 1.5.1. أخطاء في التشخيص
A24: Management complaints | B24: الشكاوى الإدارية | L24: 6.1.Emotional Support | M24: 6.1.االدعم العاطفي | N24: 1.5.2.Errors in lab results | O24: 1.5.2.أخطاء في نتائج المختبر
L25: 6.2.Assault and Harassment | M25: 6.2.الاعتداء والتحرش | N25: 1.5.3.Errors in diagnostic imaging | O25: 1.5.3. أخطاء في التصوير التشخيصي
L26: 6.3.Confidentiality | M26: 6.3.السرية | N26: 1.5.4.Errors in Pre-marriage lab test | O26: 1.5.4.أخطاء في فحص ما قبل الزواج
A27: Category | L27: 6.4.Consent | M27: 6.4.نموذج موافقه | N27: 2.1.1.Prescribing errors | O27: 2.1.1. أخطاء في وصف الأدوية
A28: 1. Quality | B28: 1.الجودة | N28: 2.1.2.Dispensing errors | O28: 2.1.2. أخطاء في صرف الأدوية
A29: 2. Safety | B29: 2.السلامة | N29: 2.1.3.No medication prescribed | O29: 2.1.3. عدم وصف أي دواء
A30: 3. Institutional issues | B30: 3.القضايا المؤسسية | N30: 2.1.4 Insufficient medication prescribed | O30: 2.1.4 وصف كمية غير كافية من الدواء
A31: 4. Accessibility | B31: 4.الوصول | N31: 2.1.5.Dispensing medication without prescription | O31: 2.1.5 صرف دواء بدون وصفة طبية
A32: 5. Communication | B32: 5.التواصل | N32: 2.1.6.Prescription of expired medication | O32: 2.1.6.وصف دواء منتهي الصلاحية
A33: 6. Humanness / Caring | B33: 6.الإنسانية \ الرعاية | N33: 2.1.7.Prescribing medication without medical examination | O33: 2.1.7 صرف دواء بدون وصفة طبية
N34: 2.1.8.Medication shortages | O34: 2.1.8. نقص في الأدوية
N35: 2.1.9.Refusal to dispense medications | O35: 2.1.9.رفض صرف الأدوية
N36: 2.1.10.Vaccination shortages | O36: 2.1.10. نقص اللقاحات
N37: 2.1.11.Vaccinations timing | O37: 2.1.11. أخطاء في توقيت اللقاحات
N38: 2.1.12.Refusal to vaccinate | O38: 2.1.12. رفض التطعيم
N39: 2.2.1.Equipment failure/malfunction | O39: 2.2.1. عطل/خلل في المعدات
N40: 2.2.2.Medical device failure | O40: 2.2.2. عطل في جهاز طبي
N41: 2.2.3.No patient ID band | O41: 2.2.3. عدم وجود سوار تعريف للمريض
N42: 2.2.4.Wrong treatment | O42: 2.2.4. علاج خاطئ
N43: 2.2.5.Complications resulting from treatment | O43: 2.2.5. مضاعفات ناتجة عن العلاج
N44: 2.2.6.Dietary errors/ Incompatible Diet with the patient's condition | O44: 2.2.6.أخطاء غذائية / نظام غذائي غير متوافق مع حالة المريض
N45: 2.2.7.Patient Fall | O45: 2.2.7. سقوط المريض
N46: 2.2.8.Hospital acquired infection | O46: 2.2.8. عدوى مكتسبة من المستشفى
N47: 2.2.9.Exposure to infected persons/areasا | O47: 2.2.9. التعرض لأشخاص/مناطق مصابة
N48: 2.2.10.Labor and delivery related issues | O48: 2.2.10 مشاكل متعلقة بالولادة
N49: 2.2.11.Wrong surgery | O49: 2.2.11. جراحة خاطئة
N50: 2.2.12.Wrong site surgery | O50: 2.2.12. جراحة في موقع خاطئ
N51: 2.2.13.Surgical complications | O51: 2.2.13. مضاعفات جراحية
N52: 2.2.14.Retained instrument or sponge | O52: 2.2.14. بقاء أداة أو إسفنجة داخل الجسم
N53: 2.2.15.Cancellation of surgery | O53: 2.2.15. إلغاء الجراحة
N54: 2.2.16.Unexpected loss of limb or function | O54: 2.2.16 فقدان غير متوقع لأحد الأطراف أو وظيفتها
N55: 2.2.17.Damaging an organ | O55: 2.2.17. تلف عضو
N56: 2.2.18.Patient death | O56: 2.2.18.وفاة المريض
N57: 2.3.1.Practice without a clinical license | O57: 2.3.1. ممارسة المهنة بدون ترخيص سريري
N58: 2.3.2.Expiration of healthcare provider license | O58: 2.3.2. انتهاء صلاحية ترخيص مقدم الرعاية الصحية
N59: 2.3.3.Inappropriate attendance | O59: 2.3.3. حضور غير مناسب
N60: 2.3.4.Poor hand-hygiene | O60: 2.3.4. سوء نظافة اليدين
N61: 2.3.5.Improper practice of infection control recommendation | O61: 2.3.5. ممارسة غير سليمة لتوصيات مكافحة العدوى
N62: 3.1.1.Paperwork delays | O62: 3.1.1.تأخير في إنجاز الأوراق
N63: 3.1.2.Duty manager not available | O63: 3.1.2. عدم توفر مدير المناوبة
N64: 3.1.3.Facility guidelines compliance | O64: 3.1.3. الامتثال لإرشادات المنشأة
N65: 3.1.4.Required Service not obtained | O65: 3.1.4. عدم الحصول على الخدمة المطلوبة
N66: 3.1.5.Information boards not available | O66: 3.1.5.I عدم توفر لوحات المعلومات
N67: 3.1.6.Prices list not available | O67: 3.1.6. عدم توفر قائمة الأسعار
N68: 3.1.7.Non-compliance with visiting hours policy | O68: 3.1.7. عدم الالتزام بمواعيد الزيارة سياسة غير كافية
N69: 3.1.8.Inadequate reception service | O69: 3.1.8. خدمة استقبال غير كافية
N70: 3.1.9.Inadequate call center service | O70: 3.1.9. خدمة مركز اتصال غير كافية
N71: 3.2.1.Poor environment | O71: 3.2.1. بيئة سيئة
N72: 3.2.2.Poor cleanliness/sanitizing | O72: 3.2.2.نظافة/تعقيم سيئة
N73: 3.2.3.Poor accommodation | O73: 3.2.3. إقامة سيئة
N74: 3.2.4.Poor Food service | O74: 3.2.4. خدمة طعام سيئة
N75: 3.2.5.Noisy Environment | O75: 3.2.5. بيئة صاخبة
N76: 3.2.6.Poor geographical location | O76: 3.2.6. موقع جغرافي سيئ
N77: 3.2.7.Inadequate waiting rooms | O77: 3.2.7. غرف انتظار غير كافية
N78: 3.2.8.Building is not accessible for people with special needs | O78: 3.2.8. المبنى غير مُهيأ لذوي الاحتياجات الخاصة
N79: 3.2.9.Failure of Elevators | O79: 3.2.9.تعطل المصاعد
N80: 3.2.10.Elevators not available | O80: 3.2.10. المصاعد غير متوفرة
N81: 3.2.11.Heating, Ventilation, Air condition (HVAC) Failure | O81: 3.2.11. عطل في التدفئة والتهوية وتكييف الهواء
N82: 3.2.12.Disruption of power supply | O82: 3.2.12. انقطاع التيار الكهربائي
N83: 3.2.13.Water supply issues | O83: 3.2.13. مشاكل في إمدادات المياه
N84: 3.2.14.Water leaks | O84: 3.2.14. تسربات مياه
N85: 3.2.15.Overflow of sewage | O85: 3.2.15. فيضان مياه الصرف الصحي
N86: 3.3.1.No security staff in the building | O86: 3.3.1. ا يوجد أفراد أمن في المبنى
N87: 3.3.2.Poor security response | O87: 3.3.2. استجابة أمنية ضعيفة
N88: 3.3.3.Blocked access to fire fighting equipment | O88: 3.3.3. صعوبة الوصول إلى معدات مكافحة الحرائق
N89: 3.3.4.Fire and safety hazards | O89: 3.3.4. مخاطر الحريق والسلامة
N90: 3.3.5.Exposed electric wiring | O90: 3.3.5. أسلاك كهربائية مكشوفة
N91: 3.3.6.Blocked access to emergency doors | O91: 3.3.6. صعوبة الوصول إلى أبواب الطوارئ
N92: 3.3.7.Smoking policy violation | O92: 3.3.7.مخالفة سياسة التدخين
N93: 3.3.8.Theft and lost | O93: 3.3.8. سرقة وفقدان
N94: 3.3.9.Lack of parking slots | O94: 3.3.9.نقص في مواقف السيارات
N95: 3.3.10.Drop off and pick up points issues | O95: 3.3.10. مشاكل في نقاط التسليم والاستلام
N96: 3.4.1.Pay a fee to open a file | O96: 3.4.1. دفع رسوم لفتح ملف
N97: 3.4.2.Miscalculation | O97: 3.4.2 خطأ في الحساب
N98: 3.4.3.Calculate Additional amount | O98: 3.4.3. حساب مبلغ إضافي
N99: 3.4.4.Reimbursements issues | O99: 3.4.4.مشاكل في التعويضات
N100: 3.4.5.Pricing variations | O100: 3.4.5. اختلافات في الأسعار
N101: 3.4.6.Unnecessary health services | O101: 3.4.6. خدمات صحية غير ضرورية
N102: 3.5.1.Insufficient staffing | O102: 3.5.1. نقص في عدد الموظفين
N103: 3.5.2.Specialty not available | O103: 3.5.2. عدم توفر الخدمات المتخصصة
N104: 3.5.3.Disability specialized staff not available | O104: 3.5.3. عدم توفر موظفين متخصصين في شؤون ذوي الإعاقة متاح
N105: 3.5.4.Staff not wearing badges/ID | O105: 3.5.4. الموظفون لا يرتدون شارات/بطاقات هوية
N106: 3.5.5.Dress code violation | O106: 3.5.5. مخالفة قواعد اللباس
N107: 3.6.1.Medical supply shortage | O107: 3.6.1. نقص في المستلزمات الطبية
N108: 3.6.2.Equipment shortage | O108: 3.6.2. نقص في المعدات
N109: 3.6.3.Wheelchairs shortage | O109: 3.6.3 نقص في الكراسي المتحركة
N110: 3.6.4.Isolation room shortage | O110: 3.6.4. نقص في غرف العزل
N111: 3.6.5.Unavailable Beds | O111: 3.6.5. أسرّة غير متاحة
N112: 3.6.6.Unavailable Pre-marital test | O112: 3.6.6. فحص ما قبل الزواج غير متاح
N113: 3.6.7.Unavailable ambulance | O113: 3.6.7. سيارة إسعاف غير متاحة
N114: 3.6.8.Translation service not available | O114: 3.6.8. خدمة الترجمة غير متاحة
N115: 3.7.1.Patient file issues | O115: 3.7.1. مشاكل في ملفات المرضى
N116: 3.7.2.Incorrect medical records | O116: 3.7.2.سجلات طبية غير صحيحة
N117: 3.7.3.Medical report issues | O117: 3.7.3. مشاكل في التقارير الطبية
N118: 3.7.4.Birth registry issues | O118: 3.7.4. مشاكل في سجل المواليد
N119: 3.7.5.Death registry issues | O119: 3.7.5. مشاكل في سجل الوفيات
N120: 3.7.6.Lab results issues | O120: 3.7.6. مشاكل في نتائج المختبر
N121: 3.7.7.Sick leave issues | O121: 3.7.7. مشاكل في الإجازات المرضية
N122: 4.1.1.Appointment scheduling refusal | O122: 4.1.1. رفض تحديد المواعيد
N123: 4.1.2.Poor availability and scheduling | O123: 4.1.2. ضعف التوافر والجدولة
N124: 4.1.3.Patient admission refusal | O124: 4.1.3. رفض قبول المرضى
N125: 4.1.4.Appointment delay | O125: 4.1.4. تأخير في المواعيد
N126: 4.1.5.Appointment cancellation | O126: 4.1.5. إلغاء المواعيد
N127: 4.1.6.Scheduling far appointment | O127: 4.1.6. تحديد موعد بعيد
N128: 4.1.7.Scheduling errors | O128: 4.1.7 أخطاء في الجدولة
N129: 4.2.1.Random reception of patients | O129: 4.2.1. استقبال عشوائي للمرضى
N130: 4.2.2.Unnecessary admission | O130: 4.2.2. قبول غير ضروري
N131: 4.2.3.Patient detentionا | O131: 4.2.3. احتجاز المرضى
N132: 4.3.1.Delay in admitting patient | O132: 4.3.1. تأخير في قبول المرضى
N133: 4.3.2.Examination delay in emergency | O133: 4.3.2. تأخير في الفحص في قسم الطوارئ
N134: 4.3.3.Examination delay | O134: 4.3.3. تأخير في الفحص
N135: 4.3.4.Diagnosis delay | O135: 4.3.4. تأخير في التشخيص
N136: 4.3.5.Delayed test result | O136: 4.3.5. تأخير في نتائج الاختبارات
N137: 4.3.6.Treatment delay | O137: 4.3.6 تأخير في العلاج
N138: 4.3.7.Surgical intervention delay | O138: 4.3.7. تأخير في التدخل الجراحي
N139: 4.3.8.Vaccinating delay | O139: 4.3.8. تأخير في التطعيم
N140: 4.3.9.Delay in discharging patient | O140: 4.3.9. تأخير في تخريج المرضى
N141: 4.3.10.Delay of releasing deceased body | O141: 4.3.10. تأخير في تسليم جثمان المتوفى رفض الإحالة
N142: 4.4.1.Patient referral refusal | O142: 4.4.1. رفض إحالة المريض
N143: 4.4.2.Delay in patient transfer | O143: 4.4.2.تأخير في نقل المريض
N144: 5.1.1.Miscommunication with Patient | O144: 5.1.1. سوء التواصل مع المريض
N145: 5.1.2.Poor provider-patient communication | O145: 5.1.2. ضعف التواصل بين مقدم الرعاية والمريض
N146: 5.1.3.Not involving patient in clinical decisions | O146: 5.1.3. عدم إشراك المريض في القرارات السريرية
N147: 5.1.4.Failure to clarify patient case to his family | O147: 5.1.4. عدم توضيح حالة المريض لعائلته
N148: 5.2.1.Deficient Information | O148: 5.2.1. نقص المعلومات
N149: 5.2.2.Communication of wrong information | O149: 5.2.2.نقل معلومات خاطئة
N150: 6.1.1.Inadequate emotional support | O150: 6.1.1. عدم كفاية الدعم النفسي
N151: 6.1.2.Neglect | O151: 6.1.2. إهمال
N152: 6.2.1.Inappropriate/aggressive behavior | O152: 6.2.1. سلوك غير لائق/عدواني
N153: 6.2.2.Provider assaulted patient | O153: 6.2.2. اعتداء مقدم الرعاية على المريض
N154: 6.2.3.Molesting a patientا | O154: 6.2.3 التحرش بالمريض
N155: 6.2.4.Discrimination | O155: 6.2.4. تمييز
N156: 6.2.5.No apology to the patient | O156: 6.2.5.عدم تقديم اعتذار للمريض
N157: 6.3.1.Breach of confidentiality | O157: 6.3.1. انتهاك السرية
N158: 6.3.2.Breach of patient privacy | O158: 6.3.2. انتهاك خصوصية المريض
N159: 6.4.1.Consent not explained | O159: 6.4.1. عدم شرح الموافقة
N160: 6.4.2.No/Invalid consent obtained | O160: 6.4.2. عدم الحصول على موافقة/عدم صحة الموافقة

Sheet AUG 2022
B1: No. | C1: رقم الشكوى | D1: رقم الملف | E1: جهة الشكوى | F1: الموقع | G1: القسم الرئيس | H1: القسم الفرعي | I1: تاريخ إستلام الشكوى | J1: المدخل | K1: Time line | L1: إرسال نموذج الشكوى | N1: Employee | O1: تحرير الشكوى | Q1: تفعيل الشكوى | S1: Employee | T1: تم ارسال الشكوى | V1: Employee | W1: الوقت بين التحرير والارسال | X1: First Reminder Sent | Z1: Employee | AA1: الوقت بين اول ايميل والارسال | AB1: Second Reminder Sent | AD1: Employee | AE1: الوقت بين ثاني ايميل والاول | AF1: Escalated | AH1: Employee | AI1: Reason of Escalation | AJ1: الوقت بين التصعيد والارسال | AK1: Closed | AM1: Employee | AN1: الوقت بين الاغلاق والارسال | AO1: تاريخ الرد | AQ1: الوقت بين الرد والارسال | AR1: Resolved | AT1: Employee | AU1: الوقت بين المعالجة و الارسال | AV1: ID | AW1: اسم الشخص المشتكى عليه - ان وجد | AX1: Domain | AY1: Category | AZ1: Sub-Category | BA1: Classification | BB1: محتوى الشكوى (عربي) | BC1: محتوى الشكوى (English) | BD1: Satisfied/Dissatisfied | BE1: The Rightful Side | BF1: Recommendation/Action plan | BJ1: رقم الشكوى | BK1: رقم الملف | BL1: جهة الشكوى | BM1: الموقع | BN1: القسم الرئيس | BO1: القسم الفرعي | BP1: تاريخ إستلام الشكوى | BQ1: المدخل | BR1: Time line | BU1: رقم الشكوى | BV1: رقم الملف | BW1: جهة الشكوى | BX1: الموقع | BY1: القسم الرئيس | BZ1: القسم الفرعي | CA1: تاريخ إستلام الشكوى | CB1: المدخل | CC1: Time line | CF1: رقم الشكوى | CG1: رقم الملف | CH1: جهة الشكوى | CI1: الموقع | CJ1: القسم الرئيس | CK1: القسم الفرعي | CL1: تاريخ إستلام الشكوى | CM1: المدخل | CN1: Time line | CQ1: رقم الشكوى | CR1: رقم الملف | CS1: جهة الشكوى | CT1: الموقع | CU1: القسم الرئيس | CV1: القسم الفرعي | CW1: تاريخ إستلام الشكوى | CX1: المدخل | CY1: Time line
L2: Date | M2: Time | O2: Date | P2: Time | Q2: Date | R2: Time | T2: Date | U2: Time | X2: Date | Y2: Time | AB2: Date | AC2: Time | AF2: Date | AG2: Time | AK2: Date | AL2: Time | AO2: Date | AP2: Time | AR2: Date | AS2: Time
A3: 1 | B3: 1 | C3: 9 | D3: 500164970 | E3: مراجع | F3: العيادات الخارجية | G3: الطبي | H3: قسم الصيدلية | I3: 2022-08-24T19:39:00 | J3: تهاني عبدالله القرني | K3: More than 72 Hours | L3: 2022-08-25 | M3: 11:38:00 | N3: تهاني عبدالله القرني | O3: 2022-10-02 | P3: 11:56:00 | T3: 2022-10-01 | U3: 09:58:00 | V3: تهاني عبدالله القرني | W3: =(U3+T3)-(P3+O3) -> -1.081944444 | AA3: =(Y3+X3)-(U3+T3) -> -44835.41528 | AE3: =(AC3+AB3)-(Y3+X3) -> 0 | AJ3: =(AG3+AF3)-(U3+T3) -> -44835.41528 | AN3: =(AL3+AK3)-(U3+T3) -> -44835.41528 | AO3: 2022-08-29 | AP3: 14:16:00 | AQ3: =(AP3+AO3)-(U3+T3) -> -32.82083333 | AR3: 2022-08-29 | AS3: 14:16:00 | AT3: تهاني عبدالله القرني | AU3: =(AS3+AR3)-(U3+T3) -> -32.82083333 | AW3: MAYADAH | BE3: Patient | BJ3: 17 | BK3: 30148010 | BL3: مجلس الضمان الصحي | BM3: العيادات الخارجية | BN3: الإداري | BO3: قسم الموافقات الطبية | BP3: 2022-08-27T13:26:00 | BQ3: تهاني عبدالله القرني | BR3: More than 72 Hours | BU3: 36 | BV3: 20054560 | BW3: وزارة الصحة | BX3: الطوارئ | BY3: الطبي | BZ3: أطباء الطوارئ | CA3: 2022-08-30T11:30:00 | CB3: تهاني عبدالله القرني | CC3: More than 72 Hours | CF3: 9 | CG3: 500164970 | CH3: مراجع | CI3: العيادات الخارجية | CJ3: الطبي | CK3: قسم الصيدلية | CL3: 2022-08-24T19:39:00 | CM3: تهاني عبدالله القرني | CN3: More than 72 Hours | CQ3: 20 | CR3: 1592808 | CS3: ذوي المراجع | CT3: التنويم | CU3: الطبي | CV3: تنويم الجراحة العامة | CW3: 2022-08-27T19:20:00 | CX3: تهاني عبدالله القرني | CY3: More than 72 Hours
B4: 2 | C4: 16 | D4: 30211922 | E4: مراجع | F4: العيادات الخارجية | G4: الطبي | H4: عيادات العيون | I4: 2022-08-27T11:40:00 | J4: تهاني عبدالله القرني | K4: More than 72 Hours | L4: 2022-08-27 | M4: 11:40:00 | N4: تهاني عبدالله القرني | O4: 2022-08-27 | P4: 11:40:00 | T4: 2022-08-27 | U4: 11:49:00 | V4: تهاني عبدالله القرني | W4: 0.006249999999 | AA4: -44800.49236 | AE4: 0 | AJ4: -44800.49236 | AN4: -44800.49236 | AO4: 2022-09-01 | AP4: 10:36:00 | AQ4: 4.949305556 | AR4: 2022-09-01 | AS4: 10:36:00 | AT4: تهاني عبدالله القرني | AU4: =(AS4+AR4)-(U4+T4) -> 4.949305556 | AX4: Relationship complaints | AY4: 5. Communication | AZ4: 5.1.Patient-staff Communication | BA4: 5.1.1.Miscommunication with Patient | BB4: بتاريخ 23-08-2022م تم حضوري لموعدي في عيادة العيون وتم دفع كشفية الطبيب وعند دخولي للعيادة طلب مني الطبيب بعمل فحص بعد العوده للعيادة والانتهاء من الطبيب طلب مني الطبيب بدفع مبلغ الاجراءات قبل المغادرة حيث لم يتم اخباري بدفع المبلغ قبل عمل الاجراءات ولم اخير في رغبتي بعمل الاجراءات بالاضافة الى يتم ارسال رسائل من قبل التامين بالموافقه على اجراءات في اليوم التالي على الرغم من عدم وجودي في المستشفى . | BC4: On 23-08-2022, I attended my appointment at the eye clinic and paid the doctor's fee. Upon entering the clinic, the doctor asked me to undergo an examination. After returning to the clinic and finishing with the doctor, he asked me to pay the fee for the procedures before leaving. I was not informed about paying the fee before the procedures were carried out, and I was not given a choice in my desire to carry out the procedures. In addition, messages were sent by the insurance approving procedures for the following day, even though I was not at the hospital. | BE4: Patient | BJ4: 18 | BK4: 30188295 | BL4: مجلس الضمان الصحي | BM4: العيادات الخارجية | BN4: الإداري | BO4: قسم الموافقات الطبية | BP4: 2022-08-27T13:53:00 | BQ4: تهاني عبدالله القرني | BR4: More than 72 Hours | BU4: 43 | BV4: 30046059 | BW4: وزارة الصحة | BX4: العيادات الخارجية | BY4: الطبي | BZ4: عيادات النساء والولادة | CA4: 2022-08-31T13:13:00 | CB4: تهاني عبدالله القرني | CC4: More than 72 Hours | CF4: 16 | CG4: 30211922 | CH4: مراجع | CI4: العيادات الخارجية | CJ4: الطبي | CK4: عيادات العيون | CL4: 2022-08-27T11:40:00 | CM4: تهاني عبدالله القرني | CN4: More than 72 Hours | CQ4: 27 | CR4: 30176115 | CS4: ذوي المراجع | CT4: العيادات الخارجية | CU4: الطبي | CV4: عيادات الأطفال | CW4: 2022-08-28T19:05:00 | CX4: امال القحطاني | CY4: 72 Hours
B5: 3 | C5: 17 | D5: 30148010 | E5: مجلس الضمان الصحي | F5: العيادات الخارجية | G5: الإداري | H5: قسم الموافقات الطبية | I5: 2022-08-27T13:26:00 | J5: تهاني عبدالله القرني | K5: More than 72 Hours | L5: 2022-08-27 | M5: 13:26:00 | N5: تهاني عبدالله القرني | O5: 2022-08-27 | P5: 13:26:00 | T5: 2022-08-27 | U5: 13:40:00 | V5: تهاني عبدالله القرني | W5: 0.009722222225 | AA5: -44800.56944 | AE5: 0 | AJ5: -44800.56944 | AN5: -44800.56944 | AO5: 2022-09-06 | AP5: 15:39:00 | AQ5: 10.08263889 | AR5: 2022-09-06 | AS5: 15:39:00 | AT5: تهاني عبدالله القرني | AU5: 10.08263889 | AX5: Relationship complaints | AY5: 5. Communication | AZ5: 5.1.Patient-staff Communication | BA5: 5.1.1.Miscommunication with PatientAX5:BA5 | BB5: تم رفع الموافقات الطبيه لشركة التأمين من اول زيارة ويتم الرفض بسبب ان التأمين غير فعال وبحاجه الى افصاح الحمل لزيارة عيادات النساء والولادة ولم يتم اخبار ي بالرفض وتم اجراء عملية الولاده بعدها تم اخباري بأن التأمين يرفض جميع الموافقات لكامل الزيارات لمدة ستة اشهر وتم رفع مطالبة ماليه بقيمة 15الف مع العلم بأن المستفيد يدفع نسبة التحمل فقط لكل الزيارات السابقه. | BC5: Medical approvals were submitted to the insurance company from the first visit and were rejected because the insurance is not effective and requires disclosure of pregnancy to visit women’s and maternity clinics. I was not informed of the rejection and the delivery was performed. Afterwards, I was informed that the insurance rejects all approvals for all visits for six months and a financial claim of 15,000 was filed, knowing that the beneficiary only pays the deductible for all previous visits. | BE5: Patient | BJ5: 21 | BK5: 1734655 | BL5: مجلس الضمان الصحي | BM5: التنويم | BN5: الطبي | BO5: قسم جراحة السمنة | BP5: 2022-08-27T18:46:00 | BQ5: تهاني عبدالله القرني | BR5: 48 Hours | CF5: 19 | CG5: 30205506 | CH5: مراجع | CI5: العيادات الخارجية | CJ5: الإداري | CK5: عيادات جراحة الأنف وأذن وحنجرة | CL5: 2022-08-27T14:20:00 | CM5: تهاني عبدالله القرني | CN5: 72 Hours
B6: 4 | C6: 18 | D6: 30188295 | E6: مجلس الضمان الصحي | F6: العيادات الخارجية | G6: الإداري | H6: قسم الموافقات الطبية | I6: 2022-08-27T13:53:00 | J6: تهاني عبدالله القرني | K6: More than 72 Hours | L6: 2022-08-27 | M6: 13:53:00 | N6: تهاني عبدالله القرني | O6: 2022-08-27 | P6: 13:53:00 | T6: 2022-08-27 | U6: 14:02:00 | V6: تهاني عبدالله القرني | W6: 0.006249999999 | AA6: -44800.58472 | AE6: 0 | AJ6: -44800.58472 | AN6: -44800.58472 | AO6: 2022-09-12 | AP6: 15:33:00 | AQ6: 16.06319444 | AR6: 2022-09-12 | AS6: 15:33:00 | AT6: تهاني عبدالله القرني | AU6: 16.06319444 | AX6: Relationship complaints | AY6: 5. Communication | AZ6: 5.1.Patient-staff Communication | BA6: 5.1.1.Miscommunication with PatientAX5:BA6 | BB6: تم رفع الموافقات الطبيه لشركة التأمين من اول زيارة وتم رفض الموافقه ولكن لم يتم ابلاغنا بذلك وتم دفع نسبة تحمل فقط ولم يتم ابلاغنا بان زوجتي تحتاج الى افصاح الحمل لزيارة عيادة النساء والولادة وتمت المتابعة في عيادة النساء والولادة لعدة اشهر ويتم قبول الموافقات الطبية على الاجراءات ، بعد ذلك تم ابلاغنا بعد الولادة بدفع المبلغ نقدا لعدم موافقه التامين على اجراء الولادة لعدم وجود تصريح بالافصاح ولم يتم اخبارنا بذلك مسبقا . | BC6: Medical approvals were submitted to the insurance company from the first visit and the approval was rejected, but we were not informed of this. We paid only a percentage of the cost, and we were not informed that my wife needed a pregnancy disclosure to visit the obstetrics and gynecology clinic. Follow-up was done at the obstetrics and gynecology clinic for several months, and medical approvals were accepted for the procedures. After that, we were informed after the birth to pay the amount in cash because the insurance did not approve the birth procedure due to the lack of a disclosure permit, and we were not informed of this beforehand. | BE6: Patient | CF6: 22 | CG6: 30186530 | CH6: مراجع | CI6: العيادات الخارجية | CJ6: الطبي | CK6: عيادات النساء والولادة | CL6: 2022-08-27T19:28:00 | CM6: تهاني عبدالله القرني | CN6: More than 72 Hours
B7: 5 | C7: 19 | D7: 30205506 | E7: مراجع | F7: العيادات الخارجية | G7: الإداري | H7: عيادات جراحة الأنف وأذن وحنجرة | I7: 2022-08-27T14:20:00 | J7: تهاني عبدالله القرني | K7: 72 Hours | L7: 2022-08-27 | M7: 14:10:00 | N7: تهاني عبدالله القرني | O7: 2022-08-27 | P7: 14:20:00 | Q7: 2022-08-28 | R7: 15:14:00 | S7: تهاني عبدالله القرني | T7: 2022-08-28 | U7: 15:14:00 | V7: تهاني عبدالله القرني | W7: 1.0375 | X7: 2022-08-29 | Y7: 11:39:00 | Z7: تهاني عبدالله القرني | AA7: 0.8506944444 | AE7: -44802.48542 | AJ7: -44801.63472 | AN7: -44801.63472 | AO7: 2022-08-31 | AP7: 13:13:00 | AQ7: 2.915972222 | AR7: 2022-08-31 | AS7: 13:13:00 | AT7: تهاني عبدالله القرني | AU7: 2.915972222 | AV7: 6876 | AW7: DR. AHMED KAKAA | AX7: Clinical complaints | AY7: 1. Quality | AZ7: 1.2.Patient journey | BA7: 1.2.2.Patient flow issues | BB7: تم زيارتي للطبيب محمد رحال بتاريخ 06-08-2022م وطلب تحويلي الى الطبيب احمد قعقع وعند ذهابي الى الطبيب احمد قعقع اخبرني بان الطبيب محمد لم يتواصل معه وانi يستطيع ان يستقبل حالتي فطلب مني الذهاب مرة اخرى الى الطبيب محمد ليتواصل معه مما ادى الى استيائي بتنقلي بين العيادتين وعدم خدمتي على اكمل وجهه . | BC7: I visited Dr. Muhammad Rahal on 06-08-2022 and he asked me to be transferred to Dr. Ahmed Qaqa. When I went to Dr. Ahmed Qaqa, he told me that Dr. Muhammad had not contacted him and that he could receive my case. He asked me to go again to Dr. Muhammad so that he could contact him, which led to my dissatisfaction with moving between the two clinics and not being served in the best possible way. | BE7: Patient | CF7: 29 | CG7: 30165071 | CH7: مراجع | CI7: التنويم | CJ7: الطبي | CK7: تنويم النساء والولادة | CL7: 2022-08-28T19:41:00 | CM7: امال القحطاني | CN7: More than 72 Hours
B8: 6 | C8: 21 | D8: 1734655 | E8: مجلس الضمان الصحي | F8: التنويم | G8: الطبي | H8: قسم جراحة السمنة | I8: 2022-08-27T18:46:00 | J8: تهاني عبدالله القرني | K8: 48 Hours | L8: 2022-08-27 | M8: 18:46:00 | N8: تهاني عبدالله القرني | O8: 2022-08-27 | P8: 18:46:00 | T8: 2022-08-27 | U8: 18:59:00 | V8: تهاني عبدالله القرني | W8: 0.009027777778 | AA8: -44800.79097 | AE8: 0 | AJ8: -44800.79097 | AN8: -44800.79097 | AO8: 2022-08-29 | AP8: 14:35:00 | AQ8: 1.816666667 | AR8: 2022-08-29 | AS8: 14:35:00 | AT8: تهاني عبدالله القرني | AU8: 1.816666667 | AX8: Management complaints | AY8: 3. Institutional issues | AZ8: 3.4.Finance and Billing | BA8: 3.4.6.Unnecessary health services | BB8: تم دخولي الى العمليات بتاريخ 13-06-2022م وتم تخديري ولكن لم يتم عمل العملية لحدوث انخفاض في انزيمات الكبد وتم دفع مبلغ ليومين تنويم مسبقا ولم يتم ارجاع المبلغ لي بالاضافة الى ان المستشفى يطالبني بمبلغ 11 الف وانا لم اقم باي اجراء ولم يتم الغاء موافقه العملية من قبل المستشفى . | BC8: I was admitted to the operating room on 13-06-2022 and was anesthetized, but the operation was not performed due to a decrease in liver enzymes. I paid for two days of hospitalization in advance, and the money was not refunded to me. In addition, the hospital is demanding 11,000 from me, and I did not perform any procedure, and the approval for the operation was not canceled by the hospital. | BE8: Patient | CF8: 37 | CG8: 30049056 | CH8: مراجع | CI8: العيادات الخارجية | CJ8: الطبي | CK8: عيادات العيون | CL8: 2022-08-30T13:37:00 | CM8: تهاني عبدالله القرني | CN8: 24 Hours | CQ8: Employee Name | CR8: Number of complaints | CS8: Total Percentage | CT8: 24 Hours | CU8: 48 Hours | CV8: 72 Hours | CW8: More than 72 hours | CX8: Total
B9: 7 | C9: 20 | D9: 1592808 | E9: ذوي المراجع | F9: التنويم | G9: الطبي | H9: تنويم الجراحة العامة | I9: 2022-08-27T19:20:00 | J9: تهاني عبدالله القرني | K9: More than 72 Hours | L9: 2022-08-27 | M9: 17:44:00 | N9: تهاني عبدالله القرني | O9: 2022-08-27 | P9: 19:20:00 | Q9: 2022-08-31 | R9: 12:30:00 | S9: تهاني عبدالله القرني | T9: 2022-08-31 | U9: 12:30:00 | V9: تهاني عبدالله القرني | W9: 3.715277778 | X9: 2022-09-01 | Y9: 10:46:00 | Z9: تهاني عبدالله القرني | AA9: 0.9277777778 | AB9: 2022-09-07 | AC9: 20:25:00 | AD9: تهاني عبدالله القرني | AE9: 6.402083333 | AJ9: -44804.52083 | AN9: -44804.52083 | AO9: 2022-09-12 | AP9: 15:59:00 | AQ9: 12.14513889 | AR9: 2022-09-12 | AS9: 15:59:00 | AT9: تهاني عبدالله القرني | AU9: 12.14513889 | AX9: Clinical complaints | AY9: 1. Quality | AZ9: 1.3.Quality of Care | BA9: 1.3.1.Substandard clinical/nursing care | BB9: تم دخول والدتي للتنويم بتاريخ 24-08-2022 وبطلب من الطبيب محمد منير خان ان تجلس الوالده بعد العملية(تنظيف للركبتان)، تمت الموافقه من التأمين على يوم واحد فقط وتم ابلاغ مكتب التمريض بالدور الثالث بأنه ان لم يتم الموافقه من التأمين على اليوم الثاني نحن على استعداد على الدفع مقابل الليله وتم تزويدهم برقم هاتفي كي يتواصلوا معي ،تم رفض الطلب من قبل التامين وتم الطلب من والدتي بالمغادرة ، وبعد خروج الوالده اتاها الم شديد الزمنا العوده مره اخرى الى الطوارئ واتى الطبيب منير خان واستنكر بشده خروجها وان حالتها تستدعي المكوث ليله اخرى. وبالمقابل لم يصرفوا كامل الادويه التي وصفها الطبيب من جناح التمريض بالدور الثالث مما اضطررنا الى الانتظار ليوم السبت 2022-08-27 | BC9: My mother was admitted on August 24, 2022. At the request of Dr. Muhammad Munir Khan, she needed to stay overnight after her knee surgery (cleaning). Insurance approved coverage for one night only. The nursing office on the third floor was informed that if insurance didn't approve coverage for a second night, we were prepared to pay for the night. They were given my phone number so they could contact me. Insurance refused the request, and my mother was told to leave. After her discharge, she experienced severe pain, forcing us to return to the emergency room. Dr. Munir Khan came and strongly objected to her discharge, stating that her condition required another night. Furthermore, the nursing office on the third floor didn't dispense all the medications prescribed by the doctor, forcing us to wait until Saturday, August 27, 2022. | BE9: Patient | BU9: Employee Name | BV9: Number of complaints | BW9: Total Percentage | BX9: 24 Hours | BY9: 48 Hours | BZ9: 72 Hours | CA9: More than 72 hours | CB9: Total | CQ9: امال القحطاني | CR9: 1 | CS9: =CR9/CR11 -> 50.00% | CV9: 1 | CX9: =CR9 -> 1
B10: 8 | C10: 22 | D10: 30186530 | E10: مراجع | F10: العيادات الخارجية | G10: الطبي | H10: عيادات النساء والولادة | I10: 2022-08-27T19:28:00 | J10: تهاني عبدالله القرني | K10: More than 72 Hours | L10: 2022-08-27 | M10: 19:28:00 | N10: تهاني عبدالله القرني | O10: 2022-08-27 | P10: 19:28:00 | T10: 2022-08-27 | U10: 19:47:00 | V10: تهاني عبدالله القرني | W10: 0.01319444444 | X10: 2022-08-29 | Y10: 11:47:00 | Z10: تهاني عبدالله القرني | AA10: 1.666666667 | AB10: 2022-08-29 | AC10: 11:47:00 | AD10: تهاني عبدالله القرني | AE10: 0 | AJ10: -44800.82431 | AN10: -44800.82431 | AO10: 2022-09-05 | AP10: 18:54:00 | AQ10: 8.963194444 | AR10: 2022-09-05 | AS10: 18:54:00 | AT10: تهاني عبدالله القرني | AU10: 8.963194444 | AV10: 12978 | AW10: DR. MARWA ZAKI | AX10: Management complaints | AY10: 3. Institutional issues | AZ10: 3.4.Finance and Billing | BA10: 3.4.3.Calculate Additional amount | BB10: بتاريخ 21-08-2022م تم حضوري الى عيادة الطبيبة مروى زكي ولكن لم تكن الطبيبه متواجده ولم يتم دخولي للعياده وتم حفظ الكشفية على الرغم من عدم دخولي للعيادة وتم حضوري للعيادة في اليوم التالي 22-08-2022م وعند حضوري للمراجعه بتاريخ 27-08-2022م تم اخباري بعدم استحقاقي للمراجعه لان الكشفيه الاولى تم حفظها على الرغم من عدم دخولي للعيادة . | BC10: On 21-08-2022, I went to Dr. Marwa Zaki’s clinic, but the doctor was not present and I did not enter the clinic. The consultation was saved despite my not entering the clinic. I went to the clinic the following day, 22-08-2022, and when I went for a follow-up on 27-08-2022, I was told that I was not entitled to a follow-up because the first consultation was saved despite my not entering the clinic. | BE10: Patient | BU10: امال القحطاني | BV10: 0 | BW10: =BV10/BV12 -> 0.00% | CB10: =BV10 -> 0 | CQ10: تهاني عبدالله القرني | CR10: 1 | CS10: =CR10/CR11 -> 50.00% | CW10: 1 | CX10: =CR10 -> 1
B11: 9 | C11: 27 | D11: 30176115 | E11: ذوي المراجع | F11: العيادات الخارجية | G11: الطبي | H11: عيادات الأطفال | I11: 2022-08-28T19:05:00 | J11: امال القحطاني | K11: 72 Hours | L11: 2022-08-28 | M11: 18:55:00 | N11: امال القحطاني | O11: 2022-08-28 | P11: 19:05:00 | Q11: 2022-08-29 | R11: 15:07:00 | S11: امال القحطاني | T11: 2022-08-29 | U11: 15:08:00 | V11: تهاني عبدالله القرني | W11: 0.8354166667 | AA11: -44802.63056 | AE11: 0 | AJ11: -44802.63056 | AN11: -44802.63056 | AO11: 2022-08-31 | AP11: 19:29:00 | AQ11: 2.18125 | AR11: 2022-08-31 | AS11: 19:29:00 | AT11: امال القحطاني | AU11: 2.18125 | AV11: 6976 | AW11: Dr. SARI MOHAMMED NASUH DAAS | AX11: Clinical complaints | AY11: 2. Safety | AZ11: 2.1.Medication & Vaccination | BA11: 2.1.2.Dispensing errors | BB11: تم صرف حليب لطفلي قميته الغذائيه اقل من الطبيعي ولفئه معينه من الاطفال ( للعلم تم سؤال الطبيب الحليب وفرقه عن حليب طفلي s26 جولد وابلغني انه لايوجد فرق بينه وبين s26 التيما. | BC11: My child was given milk with a nutritional value lower than normal and for a specific category of children (for your information, I asked the doctor about the milk and its difference from my child’s S26 Gold milk, and he told me that there is no difference between it and S26 Ultima). | BE11: Patient | BU11: تهاني عبدالله القرني | BV11: 2 | BW11: =BV11/BV12 -> 100.00% | CA11: 2 | CB11: =BV11 -> 2 | CQ11: Total | CR11: =SUBTOTAL(9,CR9:CR10) -> 2 | CS11: =CS9+CS10 -> 100% | CT11: =SUBTOTAL(9,CT9:CT10) -> 0 | CU11: =SUBTOTAL(9,CU9:CU10) -> 0 | CV11: =SUBTOTAL(9,CV9:CV10) -> 1 | CW11: =SUBTOTAL(9,CW9:CW10) -> 1 | CX11: =SUM(CT11:CW11) -> 2
B12: 10 | C12: 29 | D12: 30165071 | E12: مراجع | F12: التنويم | G12: الطبي | H12: تنويم النساء والولادة | I12: 2022-08-28T19:41:00 | J12: امال القحطاني | K12: More than 72 Hours | L12: 2022-08-28 | M12: 19:18:00 | N12: امال القحطاني | O12: 2022-08-28 | P12: 19:41:00 | Q12: 2022-08-29 | R12: 15:19:00 | S12: امال القحطاني | T12: 2022-08-29 | U12: 15:19:00 | V12: امال القحطاني | W12: 0.8180555556 | X12: 2022-08-30 | Y12: 20:30:00 | Z12: امال القحطاني | AA12: 1.215972222 | AB12: 2022-08-31 | AC12: 14:23:00 | AD12: امال القحطاني | AE12: 0.7451388889 | AJ12: -44802.63819 | AN12: -44802.63819 | AO12: 2022-09-06 | AP12: 12:03:00 | AQ12: 7.863888889 | AR12: 2022-09-06 | AS12: 12:03:00 | AT12: امال القحطاني | AU12: 7.863888889 | AW12: DR. SAHAR ABDULFATTAH | AX12: Relationship complaints | AY12: 6. Humanness / Caring | AZ12: 6.2.Assault and Harassment | BA12: 6.2.1.Inappropriate/aggressive behavior | BB12: عند القدوم لتنويم النساء والولاده تم حضور الدكتوره دعد نيابه عن الدكتوره ماجده ملك ولوحظ على الدكتوره دعد المعامله السيئه جدا للمريضه والفاظ سيئه وعدم التعامل مع المريضه باريحيه وانسيابيه وطلبت من الاستقبال تغييرها بسبب اسلوبها السيئ مع المريضه والمرافق وتم تغييرها بالدكتوره مروه زكي وتم الاقرار بالولاده الطبيعيه وعندما تم الفحص للرحم وانفتاحه ١٠ س تم اقرار الولاده ( عملية قيصريه ) بناء على قرار الدكتوره مروه على ان الجنين كبير ولايمكن ولاده طبيعي فارجو النظر في موضوعي مع الدكتوره ماجد والدكتوره دعد بسبب عدم عمل سونار في الشهر التاسع وقياس حجم الجنين ليتم اقرار عمليه قيصريه ملاحظه تم مراسلة الدكتوره ماجده ملك عن طريق الواتساب ليتم الاستفسار منها عن موعد الولاده وتم فتح الرساله ولم ترد اكثر من مره. | BC12: Upon arriving for the women's ward and delivery, Dr. Daad was present in place of Dr. Magda Malak. It was noted that Dr. Daad treated the patient very badly, using bad language and not dealing with the patient in a comfortable and smooth manner. I asked the reception to replace her because of her bad attitude towards the patient and the companion, and she was replaced by Dr. Marwa Zaki. A natural birth was approved, and when the cervix was examined and found to be dilated to 10 cm, a cesarean section was approved based on Dr. Marwa's decision that the fetus was too large for a natural birth. I request that you look into my case with Dr. Magda and Dr. Daad because they did not perform an ultrasound in the ninth month and measure the size of the fetus in order to approve a cesarean section. Note: I contacted Dr. Magda Malak via WhatsApp to inquire about the delivery date, and the message was opened but she did not reply more than once. | BE12: Patient | BU12: Total | BV12: =SUBTOTAL(9,BV10:BV11) -> 2 | BW12: =SUBTOTAL(9,BW10:BW11) -> 100% | BX12: =SUM(BX10:BX11) -> 0 | BY12: =SUM(BY10:BY11) -> 0 | BZ12: =SUM(BZ10:BZ11) -> 0 | CA12: =SUM(CA10:CA11) -> 2 | CB12: =SUBTOTAL(9,CB10:CB11) -> 2 | CF12: Employee Name | CG12: Number of complaints | CH12: Total Percentage | CI12: 24 Hours | CJ12: 48 Hours | CK12: 72 Hours | CL12: More than 72 hours | CM12: Total
B13: 11 | C13: 36 | D13: 20054560 | E13: وزارة الصحة | F13: الطوارئ | G13: الطبي | H13: أطباء الطوارئ | I13: 2022-08-30T11:30:00 | J13: تهاني عبدالله القرني | K13: More than 72 Hours | L13: 2022-08-30 | M13: 11:30:00 | N13: تهاني عبدالله القرني | O13: 2022-08-30 | P13: 11:30:00 | T13: 2022-08-30 | U13: 11:38:00 | V13: تهاني عبدالله القرني | W13: 0.005555555559 | X13: 2022-09-01 | Y13: 10:41:00 | Z13: تهاني عبدالله القرني | AA13: 1.960416667 | AB13: 2022-09-03 | AC13: 19:18:00 | AD13: تهاني عبدالله القرني | AE13: 2.359027778 | AJ13: -44803.48472 | AN13: -44803.48472 | AO13: 2022-09-07 | AP13: 20:41:00 | AQ13: 8.377083333 | AR13: 2022-09-07 | AS13: 20:41:00 | AT13: تهاني عبدالله القرني | AU13: 8.377083333 | AX13: Management complaints | AY13: 4. Accessibility | AZ13: 4.3.Delays | BA13: 4.3.3.Examination delay | BB13: تم حضوري بتاريخ 29-06-2022م الى قسم الطوارئ لاصابتي بكورونا تم اخذ العلامات الحيوية وتم انتظاري لفترة طويلة من الساعه 12 الى 11 ولم يقم الطبيب بالكشف علي ومتابعة حالتي مما ادى الى استيائي ومغادرتي المستشفى . | BC13: On 29-06-2022, I went to the emergency department because I had COVID-19. My vital signs were taken, and I waited for a long time, from 12 to 11, but the doctor did not examine me or follow up on my condition, which led to my dissatisfaction and my leaving the hospital. | BE13: Patient | CF13: امال القحطاني | CG13: 1 | CH13: =CG13/CG15 -> 16.67% | CL13: 1 | CM13: =CG13 -> 1
B14: 12 | C14: 37 | D14: 30049056 | E14: مراجع | F14: العيادات الخارجية | G14: الطبي | H14: عيادات العيون | I14: 2022-08-30T13:37:00 | J14: تهاني عبدالله القرني | K14: 24 Hours | L14: 2022-08-30 | M14: 12:38:00 | N14: تهاني عبدالله القرني | O14: 2022-08-30 | P14: 13:37:00 | Q14: 2022-08-31 | R14: 12:46:00 | S14: تهاني عبدالله القرني | T14: 2022-08-31 | U14: 12:46:00 | V14: تهاني عبدالله القرني | W14: 0.9645833333 | AA14: -44804.53194 | AE14: 0 | AJ14: -44804.53194 | AN14: -44804.53194 | AO14: 2022-09-01 | AP14: 10:38:00 | AQ14: 0.9111111111 | AR14: 2022-09-01 | AS14: 10:38:00 | AT14: تهاني عبدالله القرني | AU14: 0.9111111111 | AW14: DR. WAFI ALANAZI | AX14: Management complaints | AY14: 3. Institutional issues | AZ14: 3.4.Finance and Billing | BA14: 3.4.6.Unnecessary health services | BB14: تم حجز موعد بتاريخ 3082022 لدى عيادة الطبيب وافي العنزي ، حيث تم رفع طلب لاجراءات للتأمين قبل دخولي على الطبيب والكشف علي وشرح الاشكاليه التي اواجهها مما ادى الى استيائي والغاء الكشفيه ومغادرتي . | BC14: An appointment was booked on 30/8/2022 at Dr. Wafi Al-Anzi’s clinic, where a request was submitted for insurance procedures before I entered the doctor’s office, and he examined me and explained the problem I was facing, which led to my dissatisfaction, the cancellation of the examination, and my departure. | BE14: Patient | BU14: MOH | BV14: 2 | BW14: =BV14/13 -> 15.38% | CF14: تهاني عبدالله القرني | CG14: 5 | CH14: =CG14/CG15 -> 83.33% | CI14: 1 | CK14: 1 | CL14: 3 | CM14: =CG14 -> 5 | CQ14: Patient Relatives | CR14: 2 | CS14: =CR14/13 -> 15.38%
B15: 13 | C15: 43 | D15: 30046059 | E15: وزارة الصحة | F15: العيادات الخارجية | G15: الطبي | H15: عيادات النساء والولادة | I15: 2022-08-31T13:13:00 | J15: تهاني عبدالله القرني | K15: More than 72 Hours | L15: 2022-08-31 | M15: 13:03:00 | N15: تهاني عبدالله القرني | O15: 2022-08-31 | P15: 13:13:00 | T15: 2022-09-01 | U15: 13:07:00 | V15: تهاني عبدالله القرني | W15: 0.9958333333 | X15: 2022-09-03 | Y15: 19:09:00 | Z15: تهاني عبدالله القرني | AA15: 2.251388889 | AE15: -44807.79792 | AJ15: -44805.54653 | AN15: -44805.54653 | AO15: 2022-09-07 | AP15: 15:25:00 | AQ15: 6.095833333 | AR15: 2022-09-07 | AS15: 15:25:00 | AT15: تهاني عبدالله القرني | AU15: 6.095833333 | AV15: 13454 | AW15: Dr. HAGIR ASIM HUSSEIN | AX15: Clinical complaints | AY15: 1. Quality | AZ15: 1.5.Diagnosis | BA15: 1.5.1.Errors in diagnosis | BB15: تم حضوري بتاريخ 23\8\2022 إلى الدكتوره هاجر وتم إحضار معي نتائج تحاليل وإفادت الدكتوره بأني أعاني من التهاب بول وتم صرف لي مضاد حيوي مع العلم باني حامل وتم طلب اجراء مزرعه وبعد عودتي للنتائج تم إخباري بأني لا أعاني من التهاب البول من ما ادى إلى استيائي باعطائي المضاد قبل التأكد من النتائج . | BC15: On 8/23/2022, I went to Dr. Hajar and brought with me the results of tests. The doctor said that I had a urinary tract infection and prescribed antibiotics for me, knowing that I am pregnant. A culture was requested, and after I returned for the results, I was told that I did not have a urinary tract infection, which led to my dissatisfaction with being given antibiotics before confirming the results. | BE15: Patient | CF15: Total | CG15: =SUBTOTAL(9,CG13:CG14) -> 6 | CH15: =CH13+CH14 -> 100% | CI15: =SUBTOTAL(9,CI13:CI14) -> 1 | CJ15: =SUBTOTAL(9,CJ13:CJ14) -> 0 | CK15: =SUBTOTAL(9,CK13:CK14) -> 1 | CL15: =SUBTOTAL(9,CL13:CL14) -> 4 | CM15: =SUM(CI15:CL15) -> 6
BU16: 24 Hours | BV16: 48 Hours | BW16: 72 Hours | BX16: More than 72 hours | CQ16: 24 Hours | CR16: 48 Hours | CS16: 72 Hours | CT16: More than 72 hours
L17: Employee Name | M17: Number of complaints | N17: Total Percentage | O17: 24 Hours | P17: 48 Hours | Q17: 72 Hours | R17: More than 72 hours | S17: Total | U17: Number of delays in sending the complaint (delay in activation) | W17: Percentage | X17: Activated within two hours | Y17: Percentage | Z17: Total | AF17: الشكاوي المصعدة | AG17: خلال 72 | AH17: مبكرة | AI17: متأخرة | AJ17: الموظف المسؤول | AO17: Medical | AQ17: Average | BD17: Total Complaints | BE17: =B27 -> 13 | BU17: =BX12 -> 0 | BV17: =BY12 -> 0 | BW17: =BZ12 -> 0 | BX17: =CA12 -> 2 | CQ17: =CT11 -> 0 | CR17: =CU11 -> 0 | CS17: =CV11 -> 1 | CT17: =CW11 -> 1
A18: Week 1 | B18: 0 | E18: MOH | F18: 2 | G18: =F18/F22 -> 15.38% | I18: Medical | L18: امال القحطاني | M18: 2 | N18: =M18/M22 -> 15.38% | O18: 0 | P18: 0 | Q18: 1 | R18: 1 | S18: =O19+P19+Q19+R19 -> 100.00% | U18: امال القحطاني | V18: 1 | W18: =V18/V20 -> 16.67% | X18: 0 | Y18: =X18/X20 -> 0.00% | Z18: =X18+V18 -> 1 | AF18: 0 | AJ18: امال القحطاني | AO18: عيادات العيون | AP18: 2 | AQ18: =AVERAGE(AR18:AS18) -> 3.00 | AR18: 5 | AS18: 1 | BD18: Satisfaction Table | BJ18: Employee Name | BK18: Number of complaints | BL18: Total Percentage | BM18: 24 Hours | BN18: 48 Hours | BO18: 72 Hours | BP18: More than 72 hours | BQ18: Total | BU18: =BU17/BV14 -> 0.00% | BV18: =BV17/BV14 -> 0.00% | BW18: =BW17/BV14 -> 0.00% | BX18: =BX17/BV14 -> 100.00% | CF18: Patient | CG18: 6 | CH18: =CG18/13 -> 46.15% | CQ18: =CQ17/CR14 -> 0.00% | CR18: =CR17/CR14 -> 0.00% | CS18: =CS17/CR14 -> 50.00% | CT18: =CT17/CR14 -> 50.00%
A19: Week 2 | B19: 0 | E19: CCHI | F19: 3 | G19: =F19/F22 -> 23.08% | I19: عيادات العيون | J19: 2 | L19: Percentage | O19: =O18/M18 -> 0.00% | P19: =P18/M18 -> 0.00% | Q19: =Q18/M18 -> 50.00% | R19: =R18/M18 -> 50.00% | U19: تهاني القرني | V19: 5 | W19: =V19/V20 -> 83.33% | X19: 6 | Y19: =X19/X20 -> 100.00% | Z19: =V19+X19 -> 11 | AJ19: تهاني عبدالله القرني | AO19: عيادات النساء والولادة | AP19: 2 | AQ19: =AVERAGE(AR19:AS19) -> 7.50 | AR19: 9 | AS19: 6 | BD19: Total Responces | BJ19: امل القحطاني | BK19: 0 | BL19: =BK19/BK21 -> 0.00% | BQ19: =BK19 -> 0
A20: Week 3 | B20: 0 | E20: Patients | F20: 6 | G20: =F20/F22 -> 46.15% | I20: عيادات النساء والولادة | J20: 2 | L20: تهاني القرني | M20: 11 | N20: =M20/M22 -> 84.62% | O20: 1 | P20: 1 | Q20: 1 | R20: 8 | S20: =O21+P21+Q21+R21 -> 100.00% | U20: Total | V20: =SUM(V18:V19) -> 6 | W20: =W18+W19 -> 100.00% | X20: =X18+X19 -> 6 | Y20: =Y18+Y19 -> 100.00% | Z20: =Z18+Z19 -> 12 | AO20: أطباء الطوارئ | AP20: 1 | AQ20: =AVERAGE(AR20:AS20) -> 8.00 | AR20: 8 | BD20: Escalated Without Response | BJ20: تهاني عبدالله القرني | BK20: 3 | BL20: =BK20/BK21 -> 100.00% | BN20: 1 | BP20: 2 | BQ20: 3 | BU20: In-Patient | BW20: =BV20/BV23 -> 0.00% | CF20: 24 Hours | CG20: 48 Hours | CH20: 72 Hours | CI20: More than 72 hours
A21: Week 4 | B21: 1 | E21: Patient relatives | F21: 2 | G21: =F21/F22 -> 15.38% | I21: أطباء الطوارئ | J21: 1 | L21: Percentage | O21: =O20/M20 -> 9.09% | P21: =P20/M20 -> 9.09% | Q21: =Q20/M20 -> 9.09% | R21: =R20/M20 -> 72.73% | Z21: =Y20+W20 -> 200.00% | AO21: تنويم الجراحة العامة | AP21: 1 | AQ21: 12.00 | AR21: 12 | BD21: Closed Without Response | BJ21: Total | BK21: =SUBTOTAL(9,BK19:BK20) -> 3 | BL21: 100% | BM21: 0 | BN21: 1 | BO21: 0 | BP21: 2 | BQ21: 3 | BU21: Out-Patient | BV21: 1 | BW21: =BV21/BV23 -> 50.00% | CF21: =CI15 -> 1 | CG21: =CJ15 -> 0 | CH21: =CK15 -> 1 | CI21: =CL15 -> 4 | CQ21: In-Patient | CR21: 1 | CS21: =CR21/CR24 -> 50.00%
A22: Week 5 | B22: 12 | E22: Total | F22: =F18+F19+F20+F21 -> 13 | G22: =G18+G19+G20+G21 -> 100.00% | I22: تنويم الجراحة العامة | J22: 1 | L22: Total | M22: =SUM(M18:M21) -> 13 | N22: =N18+N20 -> 100.00% | O22: =O18+O20 -> 1 | P22: =P18+P20 -> 1 | Q22: =Q18+Q20 -> 2 | R22: =R18+R20 -> 9 | S22: =O23+P23+Q23+R23 -> 100.00% | AO22: تنويم النساء والولادة | AP22: 1 | AQ22: 8.00 | AR22: 8 | BD22: Satisfied | BU22: ER | BV22: 1 | BW22: =BV22/BV23 -> 50.00% | CF22: =CF21/CG18 -> 16.67% | CG22: =CG21/CG18 -> 0.00% | CH22: =CH21/CG18 -> 16.67% | CI22: =CI21/CG18 -> 66.67% | CQ22: Out-Patient | CR22: 1 | CS22: =CR22/CR24 -> 50.00%
A23: Total | B23: =SUM(B18:B22) -> 13 | E23: In-Patient | F23: 3 | G23: =F23/F26 -> 23.08% | I23: تنويم النساء والولادة | J23: 1 | O23: =O22/M22 -> 7.69% | P23: =P22/M22 -> 7.69% | Q23: =Q22/M22 -> 15.38% | R23: =R22/M22 -> 69.23% | AO23: عيادات الأطفال | AP23: 1 | AQ23: 2.00 | AR23: 2 | BD23: Neutral | BU23: Total | BV23: =BV20+BV21+BV22 -> 2 | BW23: =SUM(BW20:BW22) -> 100% | CQ23: ER | CS23: =CR23/CR24 -> 0.00%
E24: Out-Patient | F24: 9 | G24: =F24/F26 -> 69.23% | I24: عيادات الأطفال | J24: 1 | AF24: الشكاوي المغلقة | AG24: خلال 72 | AH24: مبكرة | AI24: متأخرة | AJ24: الموظف المسؤول | AO24: قسم الصيدلية | AP24: 1 | AQ24: closed | AR24: closed | BD24: Dissatisfied | BJ24: CCHI | BK24: 3 | BL24: =BK24/13 -> 23.08% | BU24: Medical | BV24: 2 | BW24: =BV24/BV27 -> 100.00% | CF24: In-Patient | CG24: 1 | CH24: =CG24/CG27 -> 16.67% | CQ24: Total | CR24: =CR21+CR22+CR23 -> 2 | CS24: =SUM(CS21:CS23) -> 100%
A25: 1st Half | B25: 0 | E25: ER | F25: 1 | G25: =F25/F26 -> 7.69% | I25: قسم الصيدلية | J25: 1 | AF25: 0 | AJ25: امال القحطاني | AO25: قسم جراحة السمنة | AP25: 1 | AQ25: 2.00 | AR25: 2 | BD25: No Response | BU25: Admin | BW25: =BV25/BV27 -> 0.00% | CF25: Out-Patient | CG25: 5 | CH25: =CG25/CG27 -> 83.33% | CQ25: Medical | CR25: 2 | CS25: =CR25/CR29 -> 100.00%
A26: 2nd Half | B26: 13 | E26: Total | F26: =F23+F24+F25 -> 13 | G26: =G23+G24+G25 -> 100.00% | I26: قسم جراحة السمنة | J26: 1 | AJ26: تهاني عبدالله القرني | AO26: Total | AP26: =SUM(AP18:AP25) -> 10 | BD26: Satisfaction Rate | BE26: =(BE22/BE19)*100 ->  | BJ26: 24 Hours | BK26: 48 Hours | BL26: 72 Hours | BM26: More than 72 hours | BU26: Nursing | BW26: =BV26/BV27 -> 0.00% | CF26: ER | CG26: 0 | CH26: =CG26/CG27 -> 0.00% | CQ26: Admin | CR26: 0 | CS26: =CR26/CR29 -> 0.00%
A27: Total | B27: =B25+B26 -> 13 | E27: Medical | F27: 10 | G27: =F27/F31 -> 76.92% | I27: Total | J27: =SUM(J19:J26) -> 10 | BD27: Response Rate | BE27: =BE19/BE17 -> 0 | BJ27: =BM21 -> 0 | BK27: =BN21 -> 1 | BL27: =BO21 -> 0 | BM27: =BP21 -> 2 | BU27: Total | BV27: =BV24+BV25+BV26 -> 2 | BW27: =BW24+BW25++BW26 -> 100% | CF27: Total | CG27: =CG24+CG25+CG26 -> 6 | CH27: =SUM(CH24:CH26) -> 100% | CQ27: Nursing | CR27: 0 | CS27: =CR27/CR29 -> 0.00%
E28: Admin | F28: 3 | G28: =F28/F31 -> 23.08% | AO28: Non-Medical | AQ28: Average | BJ28: =BJ27/BK24 -> 0.00% | BK28: =BK27/BK24 -> 33.33% | BL28: =BL27/BK24 -> 0.00% | BM28: =BM27/BK24 -> 66.67% | CF28: Medical | CG28: 5 | CH28: =CG28/CG32 -> 83.33% | CQ28: Support Services | CR28: 0 | CS28: =CR28/CR29 -> 0.00%
E29: Nursing | F29: 0 | G29: =F29/F31 -> 0.00% | AF29: Total Escalated | AG29: 0 | AO29: قسم الموافقات الطبية | AP29: 2 | AQ29: =AVERAGE(AR29:AS29) -> 13.00 | AR29: 10 | AS29: 16 | CF29: Admin | CG29: 1 | CH29: =CG29/CG32 -> 16.67% | CQ29: Total | CR29: =CR25+CR26+CR27+CR28 -> 2 | CS29: =CS25+CS26+CS27+CS28 -> 100%
E30: Support Services | F30: 0 | G30: =F30/F31 -> 0.00% | I30: Non-Medical | AF30: Total Closed | AG30: 0 | AO30: عيادات جراحة الأنف وأذن وحنجرة | AP30: 1 | AQ30: =AVERAGE(AR30:AW30) -> 3.00 | AR30: 3 | BD30: The Rightful Side | BJ30: In-Patient | BK30: 1 | BL30: =BK30/BK33 -> 33.33% | CF30: Nursing | CG30: 0 | CH30: =CG30/CG32 -> 0.00%
E31: Total | F31: =F27+F28+F29+F30 -> 13 | G31: =G27+G28+G29+G30 -> 100.00% | I31: قسم الموافقات الطبية | J31: 2 | AO31: Total | AP31: =SUM(AP29:AP30) -> 3 | BJ31: Out-Patient | BK31: 2 | BL31: =BK31/BK33 -> 66.67% | CF31: Support Services | CG31: 0 | CH31: =CG31/CG32 -> 0.00%
I32: عيادات جراحة الأنف وأذن وحنجرة | J32: 1 | AF32: Reason For Escalation | AG32: Number | AH32: Percentage | BD32: Hospital Right | BF32: =BE32/BE34 -> 0 | BJ32: ER | BK32: 0 | BL32: =BK32/BK33 -> 0.00% | CF32: Total | CG32: =CG28+CG29+CG30+CG31 -> 6 | CH32: =CH28+CH29+CH30+CH31 -> 100%
I33: Total | J33: =SUM(J31:J32) -> 3 | AF33: عدم رضى المريض | AH33: =AG33/AG36 ->  | BD33: Patient Right | BE33: 13 | BF33: =BE33/BE34 -> 1 | BJ33: Total | BK33: =BK30+BK31+BK32 -> 3 | BL33: =SUM(BL30:BL32) -> 100%
AF34: تأخير الرد من قبل القسم | AH34: =AG34/AG36 ->  | AO34: Total | AP34: =AP26+AP31 -> 13 | BD34: Total | BE34: =BE33+BE32 -> 13 | BF34: =BF32+BF33 -> 1 | BJ34: Medical | BK34: 1 | BL34: =BK34/BK36 -> 33.33%
I35: Total | J35: =J33+J27 -> 13 | AF35: سبب آخر | AH35: =AG35/AG36 ->  | BJ35: Admin | BK35: 2 | BL35: =BK35/BK36 -> 66.67%
AF36: Total | AG36: =AG33+AG34+AF35 ->  | AH36: =AH33+AH35+AH34 ->  | BJ36: Total | BK36: =BK34+BK35+BJ103 -> 3 | BL36: =BL34+BL35+BK103 -> 100%
CQ50: Total | CR50: =CR25+CR26+CR27+CR29 -> 4 | CS50: =CS25+CS26+CS27+CS29 -> 200%

Sheet SEP 2022
B1: No. | C1: رقم الشكوى | D1: رقم الملف | E1: جهة الشكوى | F1: الموقع | G1: القسم الرئيس | H1: القسم الفرعي | I1: تاريخ إستلام الشكوى | J1: المدخل | K1: Time line | L1: إرسال نموذج الشكوى | N1: Employee | O1: تحرير الشكوى | Q1: تفعيل الشكوى | S1: Employee | T1: تم ارسال الشكوى | V1: Employee | W1: الوقت بين التحرير والارسال | X1: First Reminder Sent | Z1: Employee | AA1: الوقت بين اول ايميل والارسال | AB1: Second Reminder Sent | AD1: Employee | AE1: الوقت بين ثاني ايميل والاول | AF1: Escalated | AH1: Employee | AI1: Reason of Escalation | AJ1: الوقت بين التصعيد والارسال | AK1: Closed | AM1: Employee | AN1: الوقت بين الاغلاق والارسال | AO1: تاريخ الرد | AQ1: الوقت بين الرد والارسال | AR1: Resolved | AT1: Employee | AU1: الوقت بين المعالجة و الارسال | AV1: ID | AW1: اسم الشخص المشتكى عليه - ان وجد | AX1: Domain | AY1: Category | AZ1: Sub-Category | BA1: Classification | BB1: محتوى الشكوى (عربي) | BC1: محتوى الشكوى (English) | BD1: Satisfied/Dissatisfied | BE1: The Rightful Side | BF1: Recommendation/Action plan | BJ1: رقم الشكوى | BK1: رقم الملف | BL1: جهة الشكوى | BM1: الموقع | BN1: القسم الرئيس | BO1: القسم الفرعي | BP1: تاريخ إستلام الشكوى | BQ1: المدخل | BR1: Time line | BU1: رقم الشكوى | BV1: رقم الملف | BW1: جهة الشكوى | BX1: الموقع | BY1: القسم الرئيس | BZ1: القسم الفرعي | CA1: تاريخ إستلام الشكوى | CB1: المدخل | CC1: Time line | CF1: رقم الشكوى | CG1: رقم الملف | CH1: جهة الشكوى | CI1: الموقع | CJ1: القسم الرئيس | CK1: القسم الفرعي | CL1: تاريخ إستلام الشكوى | CM1: المدخل | CN1: Time line | CQ1: رقم الشكوى | CR1: رقم الملف | CS1: جهة الشكوى | CT1: الموقع | CU1: القسم الرئيس | CV1: القسم الفرعي | CW1: تاريخ إستلام الشكوى | CX1: المدخل | CY1: Time line
L2: Date | M2: Time | O2: Date | P2: Time | Q2: Date | R2: Time | T2: Date | U2: Time | X2: Date | Y2: Time | AB2: Date | AC2: Time | AF2: Date | AG2: Time | AK2: Date | AL2: Time | AO2: Date | AP2: Time | AR2: Date | AS2: Time
A3: 1 | B3: 1 | C3: 26 | D3: 30193325 | E3: مراجع | F3: التنويم | G3: الطبي | H3: تنويم النساء والولادة | I3: 2022-09-01T00:52:00 | J3: امال القحطاني | K3: More than 72 Hours | L3: 2022-08-28 | M3: 18:34:00 | N3: امال القحطاني | O3: 2022-09-01 | P3: 00:52:00 | Q3: 2022-09-01 | R3: 19:03:00 | S3: امال القحطاني | T3: 2022-09-01 | U3: 19:06:00 | V3: امال القحطاني | W3: =(U3+T3)-(P3+O3) -> 0.7597222222 | AA3: =(Y3+X3)-(U3+T3) -> -44805.79583 | AE3: =(AC3+AB3)-(Y3+X3) -> 0 | AJ3: =(AG3+AF3)-(U3+T3) -> -44805.79583 | AN3: =(AL3+AK3)-(U3+T3) -> -44805.79583 | AO3: 2022-09-07 | AP3: 15:42:00 | AQ3: =(AP3+AO3)-(U3+T3) -> 5.858333333 | AR3: 2022-09-07 | AS3: 15:42:00 | AT3: امال القحطاني | AU3: =(AS3+AR3)-(U3+T3) -> 5.858333333 | AV3: 90024 | AW3: DR. NIZAR BURHAN AHMED HAMDI | AX3: Clinical complaints | AY3: 1. Quality | AZ3: 1.3.Quality of Care | BA3: 1.3.3.Rough treatment | BB3: تم دخولي غرفه الولاده وكنت غير قادره على الولاده وتم معاملتي من قبل الدكتورة بطريقة غيرلائقه ولم تكن لطيفه معي وتم رفع نبرة الصوت من قبل الدكتورة وعند خروج الطفل كانت تقول (حسبي االله ونعم الوكيل) وحالتي النفسيه لم تكن جيده عند سماع ذلك وظننت ان طفلي ليس بخير وتم اخباري من قبلها انني سوف اخرج وطفلي سوف يبقى بطريقة غير مهنيه . | BC3: I was taken to the delivery room and I was unable to give birth. The doctor treated me inappropriately and was not kind to me. The doctor raised her voice and when the baby came out she was saying (God is sufficient for me and He is the best disposer of affairs). My psychological state was not good when I heard that and I thought that my baby was not well. She told me that I would leave and my baby would stay in an unprofessional manner. | BE3: Patient | BJ3: 64 | BK3: 30091161 | BL3: مجلس الضمان الصحي | BM3: العيادات الخارجية | BN3: الإداري | BO3: قسم الموافقات الطبية | BP3: 2022-09-04T17:39:00 | BQ3: تهاني عبدالله القرني | BR3: 24 Hours | BU3: 52 | BV3: 1489718 | BW3: وزارة الصحة | BX3: التنويم | BY3: الطبي | BZ3: قسم جراحة العظام | CA3: 2022-09-01T15:00:00 | CB3: تهاني عبدالله القرني | CC3: More than 72 Hours | CF3: 26 | CG3: 30193325 | CH3: مراجع | CI3: التنويم | CJ3: الطبي | CK3: تنويم النساء والولادة | CL3: 2022-09-01T00:52:00 | CM3: امال القحطاني | CN3: More than 72 Hours | CQ3: 46 | CR3: 30219229 | CS3: ذوي المراجع | CT3: العيادات الخارجية | CU3: الطبي | CV3: عيادات الطب النفسي | CW3: 2022-09-01T09:59:00 | CX3: تهاني عبدالله القرني | CY3: More than 72 Hours
B4: 2 | C4: 46 | D4: 30219229 | E4: ذوي المراجع | F4: العيادات الخارجية | G4: الطبي | H4: عيادات الطب النفسي | I4: 2022-09-01T09:59:00 | J4: تهاني عبدالله القرني | K4: More than 72 Hours | L4: 2022-09-01 | M4: 09:59:00 | N4: تهاني عبدالله القرني | O4: 2022-09-01 | P4: 13:43:00 | Q4: 2022-09-03 | R4: 19:48:00 | S4: تهاني عبدالله القرني | T4: 2022-09-03 | U4: 19:49:00 | V4: تهاني عبدالله القرني | W4: =(U4+T4)-(P4+O4) -> 2.254166667 | X4: 2022-09-05 | Y4: 19:04:00 | Z4: تهاني عبدالله القرني | AA4: 1.96875 | AB4: 2022-09-07 | AC4: 20:22:00 | AD4: تهاني عبدالله القرني | AE4: 2.054166667 | AJ4: -44807.82569 | AN4: -44807.82569 | AO4: 2022-09-12 | AP4: 15:19:00 | AQ4: 8.8125 | AR4: 2022-09-12 | AS4: 15:19:00 | AT4: تهاني عبدالله القرني | AU4: 8.8125 | AV4: 90247 | AW4: Dr. FAHAD ALDOSARY | AX4: Clinical complaints | AY4: 1. Quality | AZ4: 1.1. Examination | BA4: 1.1.2. Inadequate/incomplete assessment | BB4: تم الحضور بتاريخ 30-08-2022 الى عيادة الدكتور فهد الدوسري كموعد انتظار وتم سؤال المريض سؤالين وتم اخراجه و الجلوس مع ذوي المريض مدة خمس دقائق تقريبا وافاد الدكتور بان احتمال ان يكون لدى المريض توحد او تخلف . وقال الدكتور بأن ليس لدينا حجز وأنما دخلنا من ضمن قائمة الانتظار والوقت غير كافي للتشخيص وتم صرف دواء Risperdal قبل معرفة نتيجة تخطيط الاعصاب التي طلبها مما ادى الى استيائي لعدم اعطائنا الوقت الكافي علما بانه تم الموافقة على استقبالنا كانتظار منذ البداية ولم يكن تعامل الطبيب لائق . | BC4: On August 30, 2022, I went to Dr. Fahd Al-Dossari's clinic for a waiting appointment. The patient was asked two questions, then asked to leave. I sat with the patient's family for about five minutes. The doctor stated that the patient might have autism or a developmental delay. He said we didn't have an appointment; we were on the waiting list, and there wasn't enough time for a diagnosis. He prescribed Risperdal before the results of the nerve conduction study he had ordered were available, which upset me because we weren't given enough time, even though we had agreed to be on the waiting list from the beginning. The doctor's behavior was inappropriate. | BE4: Patient | BJ4: 241 | BK4: 30223147 | BL4: مجلس الضمان الصحي | BM4: العيادات الخارجية | BN4: الإداري | BO4: قسم الموافقات الطبية | BP4: 2022-09-21T12:43:00 | BQ4: امال القحطاني | BR4: 24 Hours | BU4: 53 | BV4: 20281028 | BW4: وزارة الصحة | BX4: العيادات الخارجية | BY4: الإداري | BZ4: قسم المواعيد | CA4: 2022-09-01T18:17:00 | CB4: امال القحطاني | CC4: More than 72 Hours | CF4: 48 | CG4: 1506045 | CH4: مراجع | CI4: العيادات الخارجية | CJ4: الطبي | CK4: قسم المختبر | CL4: 2022-09-01T12:09:00 | CM4: تهاني عبدالله القرني | CN4: More than 72 Hours | CQ4: 61 | CR4: 30218665 | CS4: ذوي المراجع | CT4: العيادات الخارجية | CU4: الطبي | CV4: عيادات الأطفال | CW4: 2022-09-04T10:27:00 | CX4: امال القحطاني | CY4: 48 Hours
B5: 3 | C5: 48 | D5: 1506045 | E5: مراجع | F5: العيادات الخارجية | G5: الطبي | H5: قسم المختبر | I5: 2022-09-01T12:09:00 | J5: تهاني عبدالله القرني | K5: More than 72 Hours | L5: 2022-09-01 | M5: 12:09:00 | N5: تهاني عبدالله القرني | O5: 2022-09-03 | P5: 18:14:00 | Q5: 2022-09-04 | R5: 18:12:00 | S5: تهاني عبدالله القرني | T5: 2022-09-04 | U5: 18:13:00 | V5: تهاني عبدالله القرني | W5: 0.9993055556 | X5: 2022-09-05 | Y5: 18:59:00 | Z5: تهاني عبدالله القرني | AA5: 1.031944444 | AE5: -44809.79097 | AJ5: -44808.75903 | AN5: -44808.75903 | AO5: 2022-09-07 | AP5: 20:20:00 | AQ5: 3.088194444 | AR5: 2022-09-07 | AS5: 20:20:00 | AT5: تهاني عبدالله القرني | AU5: 3.088194444 | AX5: Relationship complaints | AY5: 6. Humanness / Caring | AZ5: 6.2.Assault and Harassment | BA5: 6.2.1.Inappropriate/aggressive behavior | BB5: بتاريخ 1-9-2022 قمت بتقديم عينة للمختبر وتم اخباري بتقديمها لجهة تقديم العينات وقمت بتقديمها واخبارها انه تم اخذ هذه العينه من المنزل وليس في المستشفى ليتم اسراع تقديمها للمختبر وبعد نصف ساعة من تقديمي للعينة تفاجأت بان العينة لم يتم تقديمها للمختبر وقمت باخبار المشرف عنها وتم عمل اللازم وتقديمها للمختبر بسرعة، وبعد حوالي ٣ساعات كان لدى زوجي تحاليل ورفضت بان تعمل التحاليل لزوجي لسوء تعاملها وبدأت بالتحدث بنبرات صوت عاليه جدا قائلة " علم هاذي اللي برا الادب" واتهمتني بالتهجم عليها مما ادى الى استيائي الشديد من سوء التعامل . | BC5: On 1-9-2022, I submitted a sample to the laboratory and was told to submit it to the sample submission department. I submitted it and informed them that this sample was taken from home and not at the hospital so that it would be submitted to the laboratory quickly. After half an hour of submitting the sample, I was surprised that the sample had not been submitted to the laboratory. I informed the supervisor about it, and the necessary action was taken and it was submitted to the laboratory quickly. After about 3 hours, my husband had tests, and she refused to do the tests for my husband because of her bad treatment. She started speaking in very loud tones, saying, "Teach this one who is outside manners," and accused me of attacking her, which led to my extreme dissatisfaction with the bad treatment. | BE5: Patient | BJ5: 243 | BK5: 30000139 | BL5: مجلس الضمان الصحي | BM5: التنويم | BN5: الطبي | BO5: قسم الجهاز الهمضي و الكبد والمناظير | BP5: 2022-09-26T18:32:00 | BQ5: تهاني عبدالله القرني | BR5: More than 72 Hours | BU5: 70 | BV5: 30201615 | BW5: وزارة الصحة | BX5: العيادات الخارجية | BY5: الإداري | BZ5: قسم التقارير الطبية | CA5: 2022-09-05T19:48:00 | CB5: تهاني عبدالله القرني | CC5: 24 Hours | CF5: 60 | CG5: 30168144 | CH5: مراجع | CI5: العيادات الخارجية | CJ5: الطبي | CK5: عيادات جراحة المسالك البولية | CL5: 2022-09-03T20:57:00 | CM5: تهاني عبدالله القرني | CN5: More than 72 Hours | CQ5: 78 | CR5: 30101507 | CS5: ذوي المراجع | CT5: الطوارئ | CU5: التمريض | CV5: تمريض الطوارئ | CW5: 2022-09-06T19:15:00 | CX5: تهاني عبدالله القرني | CY5: 72 Hours
B6: 4 | C6: 52 | D6: 1489718 | E6: وزارة الصحة | F6: التنويم | G6: الطبي | H6: قسم جراحة العظام | I6: 2022-09-01T15:00:00 | J6: تهاني عبدالله القرني | K6: More than 72 Hours | L6: 2022-09-01 | M6: 15:00:00 | N6: تهاني عبدالله القرني | O6: 2022-09-01 | P6: 15:00:00 | T6: 2022-09-01 | U6: 15:36:00 | V6: تهاني عبدالله القرني | W6: 0.025 | X6: 2022-09-03 | Y6: 19:06:00 | Z6: تهاني عبدالله القرني | AA6: 2.145833333 | AB6: 2022-09-05 | AC6: 18:50:00 | AD6: تهاني عبدالله القرني | AE6: 1.988888889 | AJ6: -44805.65 | AN6: -44805.65 | AO6: 2022-09-10 | AP6: 18:24:00 | AQ6: 9.116666667 | AR6: 2022-09-10 | AS6: 18:24:00 | AT6: تهاني عبدالله القرني | AU6: 9.116666667 | AX6: Clinical complaints | AY6: 1. Quality | AZ6: 1.2.Patient journey | BA6: 1.2.1.Miscoordination | BB6: تم اجراء عملية لوالدتي بتاريخ 31/12/2021 ولم يتم الموافقة على خروجها من التنويم الى حين عودة الطبيب وكان الطبيب في اجازة مرضية بسبب اصابته بفايروس كورونا وتم تنويم والدتي لمده 16 يوم ولم يتم الموافقه من قبل التامين الا على 5 ايام . <br><div style="direction:ltr;">My mother did an operation at 31/12/2021 and her discharge was not approved till Dr. Nadeem come from his covide-19 sick leave. She was admitted for 16 days and the insurance approved only for 5 days . </div> | BC6: My mother underwent surgery on December 31, 2021, and her discharge was not approved until the doctor returned. The doctor was on sick leave due to contracting COVID-19. My mother was admitted for 16 days, but the insurance only approved coverage for 5 days. | BE6: Patient | BJ6: 274 | BK6: 30091161 | BL6: مجلس الضمان الصحي | BM6: العيادات الخارجية | BN6: الإداري | BO6: قسم الموافقات الطبية | BP6: 2022-09-27T16:27:00 | BQ6: امال القحطاني | BR6: 24 Hours | BU6: 71 | BV6: 30209054 | BW6: وزارة الصحة | BX6: العيادات الخارجية | BY6: الطبي | BZ6: عيادات القلب | CA6: 2022-09-06T10:39:00 | CB6: امال القحطاني | CC6: 24 Hours | CF6: 63 | CG6: 30041994 | CH6: مراجع | CI6: العيادات الخارجية | CJ6: الطبي | CK6: عيادات النساء والولادة | CL6: 2022-09-04T14:46:00 | CM6: تهاني عبدالله القرني | CN6: More than 72 Hours | CQ6: 79 | CR6: 20085008 | CS6: ذوي المراجع | CT6: التنويم | CU6: التمريض | CV6: تمريض وحدة طويلي الإقامة | CW6: 2022-09-06T20:46:00 | CX6: تهاني عبدالله القرني | CY6: More than 72 Hours
B7: 5 | C7: 53 | D7: 20281028 | E7: وزارة الصحة | F7: العيادات الخارجية | G7: الإداري | H7: قسم المواعيد | I7: 2022-09-01T18:17:00 | J7: امال القحطاني | K7: More than 72 Hours | L7: 2022-09-01 | M7: 18:17:00 | N7: امال القحطاني | O7: 2022-09-01 | P7: 18:17:00 | T7: 2022-09-01 | U7: 18:36:00 | V7: امال القحطاني | W7: 0.01319444444 | AA7: -44805.775 | AE7: 0 | AJ7: -44805.775 | AN7: -44805.775 | AO7: 2022-09-04 | AP7: 19:52:00 | AQ7: 3.052777778 | AR7: 2022-09-04 | AS7: 19:52:00 | AT7: تهاني عبدالله القرني | AU7: 3.052777778 | AX7: Management complaints | AY7: 4. Accessibility | AZ7: 4.1.Access | BA7: 4.1.2.Poor availability and scheduling | BB7: تم التواصل مع قسم المواعيد في اوقات مختلفة للتأكد من الموعد يتم اخبارنا في كل اتصال بوجود الدكتور وتم التواصل في نفس يوم الموعد قبل الحضور من منطقة بعيدة وتم اخبارنا بوجود الدكتور والحضور للموعد وعند القدوم تم ارسال رسالة بالغاء الموعد باقل من نص ساعه علما انه تم اخبارهم ان الدكتور تم خروجه من مستشفى الحمادي ولم يتم تاكيد ذلك لحين قدومي . | BC7: We contacted the appointments department at different times to confirm the appointment. We were informed in each call that the doctor was available. We contacted them on the day of the appointment before coming from a distant area and were informed that the doctor was available and that we should come for the appointment. Upon arrival, a message was sent canceling the appointment less than half an hour beforehand, even though they were informed that the doctor had left Al-Hammadi Hospital, and this was not confirmed until my arrival. | BE7: Patient | BJ7: 276 | BK7: 30223425 | BL7: مجلس الضمان الصحي | BM7: العيادات الخارجية | BN7: الطبي | BO7: عيادات الأطفال | BP7: 2022-09-27T19:02:00 | BQ7: امال القحطاني | BR7: 48 Hours | BU7: 76 | BV7: 30183641 | BW7: وزارة الصحة | BX7: العيادات الخارجية | BY7: الإداري | BZ7: قسم التقارير الطبية | CA7: 2022-09-06T16:26:00 | CB7: تهاني عبدالله القرني | CC7: 24 Hours | CF7: 68 | CG7: 30200135 | CH7: مراجع | CI7: العيادات الخارجية | CJ7: الطبي | CK7: عيادات الأسنان | CL7: 2022-09-05T14:34:00 | CM7: امال القحطاني | CN7: 48 Hours | CQ7: 89 | CR7: 30221014 | CS7: ذوي المراجع | CT7: العيادات الخارجية | CU7: الطبي | CV7: عيادات القلب | CW7: 2022-09-08T21:10:00 | CX7: امال القحطاني | CY7: More than 72 Hours
A8: 2 | B8: 6 | C8: 60 | D8: 30168144 | E8: مراجع | F8: العيادات الخارجية | G8: الطبي | H8: عيادات جراحة المسالك البولية | I8: 2022-09-03T20:57:00 | J8: تهاني عبدالله القرني | K8: More than 72 Hours | L8: 2022-09-03 | M8: 20:57:00 | N8: تهاني عبدالله القرني | O8: 2022-09-03 | P8: 21:43:00 | Q8: 2022-09-04 | R8: 18:24:00 | S8: تهاني عبدالله القرني | T8: 2022-09-04 | U8: 18:24:00 | V8: تهاني عبدالله القرني | W8: 0.8618055556 | X8: 2022-09-05 | Y8: 18:59:00 | Z8: تهاني عبدالله القرني | AA8: 1.024305556 | AB8: 2022-09-07 | AC8: 20:11:00 | AD8: تهاني عبدالله القرني | AE8: 2.05 | AJ8: -44808.76667 | AN8: -44808.76667 | AO8: 2022-09-14 | AP8: 17:51:00 | AQ8: 9.977083333 | AR8: 2022-09-14 | AS8: 17:51:00 | AT8: تهاني عبدالله القرني | AU8: 9.977083333 | AV8: 90288 | AW8: ABDELHAKIM ABDELAZIZ AL OTAY | AX8: Management complaints | AY8: 3. Institutional issues | AZ8: 3.4.Finance and Billing | BA8: 3.4.3.Calculate Additional amount | BB8: بتاريخ 29-12-2021 تم مراجعة د/ عبدالحكيم حيث ان المريض / فهد خليل يعاني من مشكلة الخصية المعلقة ، طهارة وتم الاتفاق مع د/ عبدالحكيم على ان يتم اجراء العمليتين بنفس الوقت ، ولكن فوجئنا بعد تخدير الطفل ودخوله غرفة العمليات بإتصال من الدكتور يفيد بأنه لم يتم رفق الموافقة الا بعملية تثبيت الخصيتين فقط وأفاد بانه ( سيتصرف بالموضوع وانه غير مقلق وان التأمين سيتكفل بها ) وعندما اردنا الخروج من المستشفى فوجئنا بأننا مجبرين على دفع مبلغ ٢٨٠٠ ريال بسبب عدم قبول التأمين لعملية الطهارة ( مع العلم بانه لم يتم افادتنا بوجوب دفعنا للمبلغ المذكور من قبل ) وبعد مراجعة الدكتور افاد بانه تم رفع الحالة للتأمين بعملية توسيع مجرى البول ( والعملية في الاصل طهارة ) وتم كتابة تقرير من قبل الدكتور / عبدالحكيم ورفعها للتأمين للاستعاضة وافاد التأمين بان مبلغ العملية من ضمن الموافقة. | BC8: On 29-12-2021, we consulted Dr. Abdulhakim, as the patient, Fahd Khalil, was suffering from an undescended testicle. Circumcision was agreed upon with Dr. Abdulhakim to perform both operations at the same time. However, after the child was anesthetized and entered the operating room, we were surprised to receive a call from the doctor stating that the approval was only for the testicular fixation operation. He stated that he would handle the matter, that it was not a cause for concern, and that the insurance would cover it. When we wanted to leave the hospital, we were surprised to find that we were obligated to pay 2800 riyals because the insurance did not accept the circumcision operation (knowing that we were not informed beforehand that we had to pay the aforementioned amount). After consulting with the doctor, he stated that the case was submitted to the insurance for a urethral dilation operation (which was originally a circumcision), and a report was written by Dr. Abdulhakim and submitted to the insurance for reimbursement. The insurance stated that the cost of the operation was included in the approval. | BE8: Patient | BJ8: 279 | BK8: 30222407 | BL8: مجلس الضمان الصحي | BM8: العيادات الخارجية | BN8: الإداري | BO8: قسم الموافقات الطبية | BP8: 2022-09-28T15:17:00 | BQ8: تهاني عبدالله القرني | BR8: 24 Hours | BU8: 81 | BV8: 30120197 | BW8: وزارة الصحة | BX8: العيادات الخارجية | BY8: الطبي | BZ8: قسم الصيدلية | CA8: 2022-09-07T10:57:00 | CB8: امال القحطاني | CC8: 24 Hours | CF8: 106 | CG8: 30198870 | CH8: مراجع | CI8: العيادات الخارجية | CJ8: الطبي | CK8: عيادات جراحة الأنف وأذن وحنجرة | CL8: 2022-09-12T19:10:00 | CM8: تهاني عبدالله القرني | CN8: More than 72 Hours | CQ8: 90 | CR8: 30217991 | CS8: ذوي المراجع | CT8: العيادات الخارجية | CU8: الإداري | CV8: قسم المواعيد | CW8: 2022-09-10T15:48:00 | CX8: امال القحطاني | CY8: More than 72 Hours
B9: 7 | C9: 61 | D9: 30218665 | E9: ذوي المراجع | F9: العيادات الخارجية | G9: الطبي | H9: عيادات الأطفال | I9: 2022-09-04T10:27:00 | J9: امال القحطاني | K9: 48 Hours | L9: 2022-09-04 | M9: 10:27:00 | N9: امال القحطاني | O9: 2022-09-04 | P9: 16:57:00 | Q9: 2022-09-05 | R9: 12:11:00 | S9: امال القحطاني | T9: 2022-09-05 | U9: 12:17:00 | V9: امال القحطاني | W9: 0.8055555556 | AA9: -44809.51181 | AE9: 0 | AJ9: -44809.51181 | AN9: -44809.51181 | AO9: 2022-09-06 | AP9: 12:35:00 | AQ9: 1.0125 | AR9: 2022-09-06 | AS9: 12:35:00 | AT9: امال القحطاني | AU9: 1.0125 | AW9: DR. ROLLA AHMED | AX9: Clinical complaints | AY9: 2. Safety | AZ9: 2.1.Medication & Vaccination | BA9: 2.1.1.Prescribing errors | BB9: تم وصف ادوية من قبل الدكتورة لا تناسب عمر الطفلة (٥ ايام)، حيث قامت بوصف دواء لا يعطى للاطفال دون سن ١٢ عام، وتم صرف دواء اخر لمعالجة اثر التسنين بالاضافه الى سوء المعامله وعدم الاستجابة على الاسئلة التي قمنا بطرحها . | BC9: The doctor prescribed medications that were not suitable for the child's age (5 days), as she prescribed a medication that is not given to children under 12 years old, and another medication was dispensed to treat the effects of teething, in addition to the mistreatment and lack of response to the questions we raised. | BE9: Patient | BJ9: 280 | BK9: 1574418 | BL9: مجلس الضمان الصحي | BM9: العيادات الخارجية | BN9: الإداري | BO9: استقبال العيادات الخارجية | BP9: 2022-09-28T15:29:00 | BQ9: تهاني عبدالله القرني | BR9: 24 Hours | BU9: 83 | BV9: 30136674 | BW9: وزارة الصحة | BX9: الطوارئ | BY9: الطبي | BZ9: أطباء الطوارئ | CA9: 2022-09-07T11:47:00 | CB9: امال القحطاني | CC9: 24 Hours | CF9: 105 | CG9: 30110297 | CH9: مراجع | CI9: العيادات الخارجية | CJ9: الطبي | CK9: عيادات جراحة الأنف وأذن وحنجرة | CL9: 2022-09-12T19:30:00 | CM9: تهاني عبدالله القرني | CN9: More than 72 Hours | CQ9: 96 | CR9: 30184466 | CS9: ذوي المراجع | CT9: الطوارئ | CU9: الطبي | CV9: أطباء الطوارئ | CW9: 2022-09-11T00:02:00 | CX9: تهاني عبدالله القرني | CY9: More than 72 Hours
B10: 8 | C10: 63 | D10: 30041994 | E10: مراجع | F10: العيادات الخارجية | G10: الطبي | H10: عيادات النساء والولادة | I10: 2022-09-04T14:46:00 | J10: تهاني عبدالله القرني | K10: More than 72 Hours | L10: 2022-09-04 | M10: 14:46:00 | N10: تهاني عبدالله القرني | O10: 2022-09-04 | P10: 15:59:00 | Q10: 2022-09-04 | R10: 18:45:00 | S10: تهاني عبدالله القرني | T10: 2022-09-04 | U10: 18:45:00 | V10: تهاني عبدالله القرني | W10: 0.1152777778 | X10: 2022-09-05 | Y10: 18:57:00 | Z10: تهاني عبدالله القرني | AA10: 1.008333333 | AE10: -44809.78958 | AJ10: -44808.78125 | AN10: -44808.78125 | AO10: 2022-09-07 | AP10: 20:10:00 | AQ10: 3.059027778 | AR10: 2022-09-07 | AS10: 20:10:00 | AT10: تهاني عبدالله القرني | AU10: 3.059027778 | AV10: 8829 | AW10: Dr.FATAT ARIF NABHA | AX10: Clinical complaints | AY10: 1. Quality | AZ10: 1.3.Quality of Care | BA10: 1.3.1.Substandard clinical/nursing care | BB10: بتاريخ 4-9-2022 تم دخولي على الطبيبة فتاة وكان اسلوبها غير لائق ومنشغلة بالجوال طوال وقت شرح الحالة.. ومع ذلك شرحت لها مشكلتي على عجل لأنها غاضبة من الاتصال الذي تلقته و لم ترغب بالكشف السريري وتم طلبت منها فحوصات للاطمئنان رفضت ذلك رغم اني اعاني من مشكلة مستمره معي. | BC10: On 4-9-2022, I went to the female doctor, and her manner was inappropriate and she was preoccupied with her mobile phone throughout the time of explaining the case. Nevertheless, I explained my problem to her in a hurry because she was angry about the call she received and did not want a clinical examination. I asked her for tests to make sure, but she refused, even though I have a continuous problem with me. | BE10: Patient | BU10: 88 | BV10: 1476015 | BW10: وزارة الصحة | BX10: العيادات الخارجية | BY10: الإداري | BZ10: قسم التقارير الطبية | CA10: 2022-09-08T19:24:00 | CB10: امال القحطاني | CC10: 24 Hours | CF10: 218 | CG10: 30169821 | CH10: مراجع | CI10: العيادات الخارجية | CJ10: الطبي | CK10: عيادات جراحة الأنف وأذن وحنجرة | CL10: 2022-09-18T18:30:00 | CM10: تهاني عبدالله القرني | CN10: More than 72 Hours | CQ10: 99 | CR10: 20084261 | CS10: ذوي المراجع | CT10: العيادات الخارجية | CU10: الطبي | CV10: عيادات النساء والولادة | CW10: 2022-09-11T11:28:00 | CX10: امال القحطاني | CY10: 48 Hours
B11: 9 | C11: 64 | D11: 30091161 | E11: مجلس الضمان الصحي | F11: العيادات الخارجية | G11: الإداري | H11: قسم الموافقات الطبية | I11: 2022-09-04T17:39:00 | J11: تهاني عبدالله القرني | K11: 24 Hours | L11: 2022-09-04 | M11: 17:39:00 | N11: تهاني عبدالله القرني | O11: 2022-09-04 | P11: 17:39:00 | T11: 2022-09-04 | U11: 17:45:00 | V11: تهاني عبدالله القرني | W11: 0.004166666666 | AA11: -44808.73958 | AE11: 0 | AJ11: -44808.73958 | AN11: -44808.73958 | AO11: 2022-09-04 | AP11: 17:50:00 | AQ11: 0.003472222219 | AR11: 2022-09-04 | AS11: 17:50:00 | AT11: تهاني عبدالله القرني | AU11: 0.003472222219 | AX11: Clinical complaints | AY11: 1. Quality | AZ11: 1.2.Patient journey | BA11: 1.2.1.Miscoordination | BB11: تممراجعتي بتاريخ 29-08-2022 وطلب الدكتور فحوصات مختبر رفعت طلب للتأمين ولم يتم التجاوب معنا دفعت المبلغ المطلوب كاش حيث لم يتم الرد من المستشفى على التأمين خلال أسبوع كامل. | BC11: I was examined on 29-08-2022 and the doctor requested lab tests. I submitted a request for insurance and there was no response. I paid the required amount in cash as the hospital did not respond to the insurance for a whole week. | BE11: Patient | BU11: 102 | BV11: 20193712 | BW11: وزارة الصحة | BX11: العيادات الخارجية | BY11: الطبي | BZ11: عيادات النساء والولادة | CA11: 2022-09-12T11:30:00 | CB11: امال القحطاني | CC11: 24 Hours | CF11: 101 | CG11: 30221334 | CH11: مراجع | CI11: العيادات الخارجية | CJ11: الطبي | CK11: عيادات النساء والولادة | CL11: 2022-09-19T18:46:00 | CM11: تهاني عبدالله القرني | CN11: More than 72 Hours | CQ11: 231 | CR11: 30208810 | CS11: ذوي المراجع | CT11: التنويم | CU11: الطبي | CV11: وحدة العناية المتوسطة | CW11: 2022-09-18T21:56:00 | CX11: امال القحطاني | CY11: 24 Hours
B12: 10 | C12: 68 | D12: 30200135 | E12: مراجع | F12: العيادات الخارجية | G12: الطبي | H12: عيادات الأسنان | I12: 2022-09-05T14:34:00 | J12: امال القحطاني | K12: 48 Hours | L12: 2022-09-05 | M12: 14:34:00 | N12: امال القحطاني | O12: 2022-09-05 | P12: 14:49:00 | Q12: 2022-09-06 | R12: 12:13:00 | S12: امال القحطاني | T12: 2022-09-06 | U12: 12:18:00 | V12: امال القحطاني | W12: 0.8951388889 | AA12: -44810.5125 | AE12: 0 | AJ12: -44810.5125 | AN12: -44810.5125 | AO12: 2022-09-07 | AP12: 14:02:00 | AQ12: 1.072222222 | AR12: 2022-09-07 | AS12: 14:02:00 | AT12: تهاني عبدالله القرني | AU12: 1.072222222 | AW12: DR. RANEEM AHMED | AX12: Clinical complaints | AY12: 1. Quality | AZ12: 1.2.Patient journey | BA12: 1.2.2.Patient flow issues | BB12: لدي موعد مع الدكتوره وتم الفحص حسب الموعد واثناء انتظار الموافقة لمدة دقائق تم دخول مريض اخر وتم طلب الانتظار مني بدون توضيح الاسباب . | BC12: I had an appointment with the doctor and the examination was done as scheduled. While waiting for approval for a few minutes, another patient entered and I was asked to wait without any explanation of the reasons. | BE12: Patient | BU12: 104 | BV12: 30219229 | BW12: وزارة الصحة | BX12: العيادات الخارجية | BY12: الطبي | BZ12: عيادات الطب النفسي | CA12: 2022-09-12T15:07:00 | CB12: تهاني عبدالله القرني | CC12: 24 Hours | CF12: 219 | CG12: 30222239 | CH12: مراجع | CI12: العيادات الخارجية | CJ12: الطبي | CK12: عيادات العيون | CL12: 2022-09-19T18:47:00 | CM12: تهاني عبدالله القرني | CN12: More than 72 Hours | CQ12: 235 | CR12: 30221582 | CS12: ذوي المراجع | CT12: العيادات الخارجية | CU12: الطبي | CV12: عيادات الصدرية (أطفال) | CW12: 2022-09-19T19:26:00 | CX12: تهاني عبدالله القرني | CY12: More than 72 Hours
B13: 11 | C13: 70 | D13: 30201615 | E13: وزارة الصحة | F13: العيادات الخارجية | G13: الإداري | H13: قسم التقارير الطبية | I13: 2022-09-05T19:48:00 | J13: تهاني عبدالله القرني | K13: 24 Hours | L13: 2022-09-05 | M13: 19:48:00 | N13: تهاني عبدالله القرني | O13: 2022-09-05 | P13: 19:48:00 | T13: 2022-09-05 | U13: 19:52:00 | V13: تهاني عبدالله القرني | W13: 0.00277777778 | AA13: -44809.82778 | AE13: 0 | AJ13: -44809.82778 | AN13: -44809.82778 | AO13: 2022-09-05 | AP13: 20:04:00 | AQ13: 0.008333333331 | AR13: 2022-09-05 | AS13: 20:04:00 | AT13: تهاني عبدالله القرني | AU13: 0.008333333331 | AX13: Management complaints | AY13: 3. Institutional issues | AZ13: 3.7.Medical records | BA13: 3.7.7.Sick leave issues | BB13: لم يتم رفع الاجازه على المنصه | BC13: The leave request has not been uploaded to the platform. | BE13: Patient | BU13: 108 | BV13: 30161165 | BW13: وزارة الصحة | BX13: الطوارئ | BY13: الطبي | BZ13: أطباء الطوارئ | CA13: 2022-09-13T16:04:00 | CB13: امال القحطاني | CC13: More than 72 Hours | CF13: 242 | CG13: 1577775 | CH13: مراجع | CI13: العيادات الخارجية | CJ13: الإداري | CK13: استقبال العيادات الخارجية | CL13: 2022-09-20T15:53:00 | CM13: تهاني عبدالله القرني | CN13: More than 72 Hours | CQ13: 234 | CR13: 30049243 | CS13: ذوي المراجع | CT13: التنويم | CU13: الطبي | CV13: قسم الجهاز الهمضي و الكبد والمناظير | CW13: 2022-09-20T19:46:00 | CX13: تهاني عبدالله القرني | CY13: More than 72 Hours
B14: 12 | C14: 71 | D14: 30209054 | E14: وزارة الصحة | F14: العيادات الخارجية | G14: الطبي | H14: عيادات القلب | I14: 2022-09-06T10:39:00 | J14: امال القحطاني | K14: 24 Hours | L14: 2022-09-06 | M14: 10:39:00 | N14: امال القحطاني | O14: 2022-09-06 | P14: 10:39:00 | T14: 2022-09-06 | U14: 10:41:00 | V14: امال القحطاني | W14: 0.001388888893 | AA14: -44810.44514 | AE14: 0 | AJ14: -44810.44514 | AN14: -44810.44514 | AO14: 2022-09-06 | AP14: 10:54:00 | AQ14: 0.009027777778 | AR14: 2022-09-06 | AS14: 10:54:00 | AT14: امال القحطاني | AU14: 0.009027777778 | AX14: Clinical complaints | AY14: 2. Safety | AZ14: 2.1.Medication & Vaccination | BA14: 2.1.8.Medication shortages | BB14: تم صرف دواء غير متوفر داخل وخارج مستشفى الحمادي | BC14: A medication that was unavailable inside and outside Al Hammadi Hospital was dispensed. | BE14: Patient | BU14: 109 | BV14: 920363 | BW14: وزارة الصحة | BX14: العيادات الخارجية | BY14: الإداري | BZ14: قسم الأمن | CA14: 2022-09-13T16:46:00 | CB14: تهاني عبدالله القرني | CC14: 24 Hours | CF14: 239 | CG14: 30219053 | CH14: مراجع | CI14: العيادات الخارجية | CJ14: الإداري | CK14: قسم علاقات المرضى | CL14: 2022-09-20T17:11:00 | CM14: تهاني عبدالله القرني | CN14: More than 72 Hours | CQ14: 228 | CR14: 30186552 | CS14: ذوي المراجع | CT14: العيادات الخارجية | CU14: الطبي | CV14: عيادات النساء والولادة | CW14: 2022-09-21T12:43:00 | CX14: امال القحطاني | CY14: 72 Hours
B15: 13 | C15: 76 | D15: 30183641 | E15: وزارة الصحة | F15: العيادات الخارجية | G15: الإداري | H15: قسم التقارير الطبية | I15: 2022-09-06T16:26:00 | J15: تهاني عبدالله القرني | K15: 24 Hours | L15: 2022-09-06 | M15: 16:26:00 | N15: تهاني عبدالله القرني | O15: 2022-09-06 | P15: 16:26:00 | T15: 2022-09-06 | U15: 16:32:00 | V15: تهاني عبدالله القرني | W15: 0.004166666666 | AA15: -44810.68889 | AE15: 0 | AJ15: -44810.68889 | AN15: -44810.68889 | AO15: 2022-09-06 | AP15: 16:33:00 | AQ15: 0.0006944444467 | AR15: 2022-09-06 | AS15: 16:33:00 | AT15: تهاني عبدالله القرني | AU15: 0.0006944444467 | AX15: Management complaints | AY15: 3. Institutional issues | AZ15: 3.7.Medical records | BA15: 3.7.7.Sick leave issues | BB15: لم يتم رفع الاجازه المريضة | BC15: The sick leave request was not processed. | BE15: Patient | BU15: 112 | BV15: 30220882 | BW15: وزارة الصحة | BX15: التنويم | BY15: الطبي | BZ15: وحدة العناية المركزة | CA15: 2022-09-14T12:45:00 | CB15: امال القحطاني | CC15: 24 Hours | CF15: 246 | CG15: 1365300 | CH15: مراجع | CI15: العيادات الخارجية | CJ15: الطبي | CK15: عيادات العيون | CL15: 2022-09-20T20:56:00 | CM15: تهاني عبدالله القرني | CN15: More than 72 Hours | CQ15: 250 | CR15: 30081570 | CS15: ذوي المراجع | CT15: العيادات الخارجية | CU15: الطبي | CV15: قسم المختبر | CW15: 2022-09-22T16:46:00 | CX15: امال القحطاني | CY15: More than 72 Hours
B16: 14 | C16: 78 | D16: 30101507 | E16: ذوي المراجع | F16: الطوارئ | G16: التمريض | H16: تمريض الطوارئ | I16: 2022-09-06T19:15:00 | J16: تهاني عبدالله القرني | K16: 72 Hours | L16: 2022-09-06 | M16: 19:15:00 | N16: تهاني عبدالله القرني | O16: 2022-09-06 | P16: 21:08:00 | Q16: 2022-09-08 | R16: 13:43:00 | S16: تهاني عبدالله القرني | T16: 2022-09-08 | U16: 13:44:00 | V16: تهاني عبدالله القرني | W16: 1.691666667 | AA16: -44812.57222 | AE16: 0 | AJ16: -44812.57222 | AN16: -44812.57222 | AO16: 2022-09-10 | AP16: 18:44:00 | AQ16: 2.208333333 | AR16: 2022-09-10 | AS16: 18:44:00 | AT16: تهاني عبدالله القرني | AU16: 2.208333333 | AX16: Clinical complaints | AY16: 1. Quality | AZ16: 1.2.Patient journey | BA16: 1.2.2.Patient flow issues | BB16: بتاريخ 6-09-2022 تم التحويل من قسم الأشعة الرنين المغناطيسي إلى الطوارئ لإعطاء دواء مخدر للطفلة، انتظرنا أكثر من ساعة فقط كي تحضر ممرضة لتعطيها الدواء ولكن كل شخص يرسلنا إلى الآخر دون معرفتهم أي شيء عن الحالة أو عن وجود الطلب مع العلم أنه تم تسليم أوراق الطلب باستقبال الطوارئ ودفع الرسوم وتم وضع الطلب في غرفة الأطباء واخبارهم عن الحالة وقت وصولنا وتم التأكيد من الأطباء على أنهم على علم عن الطلب من اليوم السابق بالاضافة ادى ذلك الى اشكالية في مواعيد الرنين المغناطيسي من ناحية عدم اتمام اشعة الرنين في الوقت المحدد لنا . | BC16: On 6-09-2022, the MRI department was transferred to the emergency room to administer an anesthetic to the child. We waited for more than an hour just for a nurse to come and administer the medication, but everyone sent us to another without them knowing anything about the case or the existence of the request, even though the request papers were submitted to the emergency reception, the fees were paid, and the request was placed in the doctors' room. We informed them about the case upon our arrival, and the doctors confirmed that they were aware of the request from the previous day. In addition, this led to a problem with the MRI appointments in terms of not completing the MRI scan at the time specified for us. | BE16: Patient | BU16: 113 | BV16: 30220889 | BW16: وزارة الصحة | BX16: التنويم | BY16: التمريض | BZ16: تمريض الحضانة | CA16: 2022-09-14T17:06:00 | CB16: تهاني عبدالله القرني | CC16: 24 Hours | CF16: 82 | CG16: 1532085 | CH16: مراجع | CI16: العيادات الخارجية | CJ16: الطبي | CK16: عيادات الصدرية | CL16: 2022-09-21T12:42:00 | CM16: امال القحطاني | CN16: More than 72 Hours | CQ16: 86 | CR16: 30220731 | CS16: ذوي المراجع | CT16: العيادات الخارجية | CU16: الطبي | CV16: عيادات الأطفال | CW16: 2022-09-25T17:59:00 | CX16: تهاني عبدالله القرني | CY16: More than 72 Hours
B17: 15 | C17: 79 | D17: 20085008 | E17: ذوي المراجع | F17: التنويم | G17: التمريض | H17: تمريض وحدة طويلي الإقامة | I17: 2022-09-06T20:46:00 | J17: تهاني عبدالله القرني | K17: More than 72 Hours | L17: 2022-09-06 | M17: 20:46:00 | N17: تهاني عبدالله القرني | O17: 2022-09-06 | P17: 20:46:00 | T17: 2022-09-06 | U17: 21:07:00 | V17: تهاني عبدالله القرني | W17: 0.01458333334 | X17: 2022-09-07 | Y17: 20:06:00 | Z17: تهاني عبدالله القرني | AA17: 0.9576388889 | AB17: 2022-09-10 | AC17: 18:45:00 | AD17: تهاني عبدالله القرني | AE17: 2.94375 | AJ17: -44810.87986 | AN17: -44810.87986 | AO17: 2022-09-12 | AP17: 16:03:00 | AQ17: 5.788888889 | AR17: 2022-09-12 | AS17: 16:03:00 | AT17: تهاني عبدالله القرني | AU17: 5.788888889 | AX17: Clinical complaints | AY17: 1. Quality | AZ17: 1.3.Quality of Care | BA17: 1.3.1.Substandard clinical/nursing care | BB17: لم تُبدِ الممرضات أي اهتمام بالمريض، ولم يُعطينه الدواء في الوقت المحدد، كما أن الحقنة أُعطيت من قِبل المرافق وليس الممرضة. ولم تُنظّف الممرضات المريض ولم يُحمّمنه. | BC17: the nurses did not care about the patent. and they did not give the patient the medicine on the time . also the inj given by the sitter not the nurse . the nurses did not wash and bath the patient . | BE17: Patient | BJ17: Employee Name | BK17: Number of complaints | BL17: Total Percentage | BM17: 24 Hours | BN17: 48 Hours | BO17: 72 Hours | BP17: More than 72 hours | BQ17: Total | BU17: 110 | BV17: 30134376 | BW17: وزارة الصحة | BX17: الطوارئ | BY17: الطبي | BZ17: أطباء الطوارئ | CA17: 2022-09-19T17:29:00 | CB17: تهاني عبدالله القرني | CC17: More than 72 Hours | CF17: 28 | CG17: 1735943 | CH17: مراجع | CI17: الطوارئ | CJ17: الطبي | CK17: أطباء الطوارئ | CL17: 2022-09-21T12:44:00 | CM17: امال القحطاني | CN17: More than 72 Hours | CQ17: 14 | CR17: 30206800 | CS17: ذوي المراجع | CT17: العيادات الخارجية | CU17: الطبي | CV17: عيادات جراحة العظام | CW17: 2022-09-25T20:51:00 | CX17: تهاني عبدالله القرني | CY17: More than 72 Hours
B18: 16 | C18: 81 | D18: 30120197 | E18: وزارة الصحة | F18: العيادات الخارجية | G18: الطبي | H18: قسم الصيدلية | I18: 2022-09-07T10:57:00 | J18: امال القحطاني | K18: 24 Hours | L18: 2022-09-07 | M18: 10:57:00 | N18: امال القحطاني | O18: 2022-09-07 | P18: 10:57:00 | T18: 2022-09-07 | U18: 11:08:00 | V18: امال القحطاني | W18: 0.007638888885 | AA18: -44811.46389 | AE18: 0 | AJ18: -44811.46389 | AN18: -44811.46389 | AO18: 2022-09-07 | AP18: 16:41:00 | AQ18: 0.23125 | AR18: 2022-09-07 | AS18: 16:41:00 | AT18: امال القحطاني | AU18: 0.23125 | AX18: Clinical complaints | AY18: 2. Safety | AZ18: 2.1.Medication & Vaccination | BA18: 2.1.8.Medication shortages | BB18: تم صرف الدواء الموضح ( Glucobay 100 ) ولم يتوفر داخل وخارج مستشفى الحمادي | BC18: The medication shown (Glucobay 100) was dispensed but was unavailable both inside and outside Al Hammadi Hospital. | BE18: Patient | BJ18: امل القحطاني | BK18: 3 | BL18: =BK18/BK20 -> 42.86% | BM18: 2 | BN18: 1 | BO18: 0 | BP18: 0 | BQ18: =BK18 -> 3 | BU18: 240 | BV18: 30029141 | BW18: وزارة الصحة | BX18: العيادات الخارجية | BY18: الطبي | BZ18: قسم الصيدلية | CA18: 2022-09-21T12:43:00 | CB18: امال القحطاني | CC18: 24 Hours | CF18: 35 | CG18: 30028641 | CH18: مراجع | CI18: العيادات الخارجية | CJ18: الإداري | CK18: قسم التقارير الطبية | CL18: 2022-09-21T12:44:00 | CM18: امال القحطاني | CN18: More than 72 Hours | CQ18: 256 | CR18: 30175411 | CS18: ذوي المراجع | CT18: العيادات الخارجية | CU18: الطبي | CV18: عيادات الصدرية (أطفال) | CW18: 2022-09-27T10:36:00 | CX18: تهاني عبدالله القرني | CY18: 48 Hours
B19: 17 | C19: 83 | D19: 30136674 | E19: وزارة الصحة | F19: الطوارئ | G19: الطبي | H19: أطباء الطوارئ | I19: 2022-09-07T11:47:00 | J19: امال القحطاني | K19: 24 Hours | L19: 2022-09-07 | M19: 11:47:00 | N19: امال القحطاني | O19: 2022-09-07 | P19: 11:47:00 | T19: 2022-09-10 | U19: 15:01:00 | V19: امال القحطاني | W19: 3.134722222 | AA19: -44814.62569 | AE19: 0 | AJ19: -44814.62569 | AN19: -44814.62569 | AO19: 2022-09-10 | AP19: 15:12:00 | AQ19: 0.007638888885 | AR19: 2022-09-10 | AS19: 15:12:00 | AT19: امال القحطاني | AU19: 0.007638888885 | AV19: 4873 | AW19: DR. ORWA MOHAMED HAMICH | AX19: Clinical complaints | AY19: 1. Quality | AZ19: 1.2.Patient journey | BA19: 1.2.2.Patient flow issues | BB19: تم دخول قسم الطوارئ ولم يتم خدمتي بشكل كامل هناك تأخير في اجراءات المريض وتم الانتظار لمدة طويلة لحضور الدكتور ولم يتم حضوره الا وقت خروجي ولم يتم توضيح من قبله عن حالتي قام بااعطائي خيار الخروج فقط او التنويم وتم اخباري له بأن الابره مكشوفه وقت وضع المغذي اخبرني بعدم وجود اشكالية في ذلك وقام بالخروج . | BC19: I was admitted to the emergency department and I was not fully served. There was a delay in the patient procedures and I waited a long time for the doctor to come, and he did not come until I was leaving. He did not explain my condition. He gave me the option of leaving only or being admitted. I told him that the needle was exposed when the IV was inserted. He told me that there was no problem with that and he left. | BE19: Patient | BJ19: تهاني عبدالله القرني | BK19: 4 | BL19: =BK19/BK20 -> 57.14% | BM19: 3 | BN19: 0 | BO19: 0 | BP19: 1 | BQ19: =BK19 -> 4 | BU19: 257 | BV19: 30209976 | BW19: وزارة الصحة | BX19: العيادات الخارجية | BY19: الطبي | BZ19: عيادات الباطنية | CA19: 2022-09-24T20:45:00 | CB19: تهاني عبدالله القرني | CC19: 24 Hours | CF19: 253 | CG19: 1784666 | CH19: مراجع | CI19: العيادات الخارجية | CJ19: الطبي | CK19: عيادات جراحة الأنف وأذن وحنجرة | CL19: 2022-09-22T22:07:00 | CM19: امال القحطاني | CN19: More than 72 Hours | CQ19: 264 | CR19: 30139032 | CS19: ذوي المراجع | CT19: العيادات الخارجية | CU19: الطبي | CV19: عيادات النساء والولادة | CW19: 2022-09-27T10:38:00 | CX19: تهاني عبدالله القرني | CY19: More than 72 Hours
B20: 18 | C20: 88 | D20: 1476015 | E20: وزارة الصحة | F20: العيادات الخارجية | G20: الإداري | H20: قسم التقارير الطبية | I20: 2022-09-08T19:24:00 | J20: امال القحطاني | K20: 24 Hours | L20: 2022-09-08 | M20: 19:24:00 | N20: امال القحطاني | O20: 2022-09-08 | P20: 19:24:00 | T20: 2022-09-08 | U20: 19:28:00 | V20: امال القحطاني | W20: 0.00277777778 | AA20: -44812.81111 | AE20: 0 | AJ20: -44812.81111 | AN20: -44812.81111 | AO20: 2022-09-08 | AP20: 20:18:00 | AQ20: 0.03472222222 | AR20: 2022-09-08 | AS20: 20:18:00 | AT20: امال القحطاني | AU20: 0.03472222222 | AX20: Management complaints | AY20: 3. Institutional issues | AZ20: 3.7.Medical records | BA20: 3.7.4.Birth registry issues | BB20: لم يتم رفع تبليغ الولاده لجهة الاحوال المدنية . | BC20: The birth notification was not submitted to the Civil Status Department. | BE20: Patient | BJ20: Total | BK20: =SUBTOTAL(9,BK18:BK19) -> 7 | BL20: 100% | BM20: 5 | BN20: 1 | BO20: 0 | BP20: 1 | BQ20: 7 | BU20: 237 | BV20: 20272371 | BW20: وزارة الصحة | BX20: التنويم | BY20: الطبي | BZ20: تنويم الباطنية | CA20: 2022-09-26T16:52:00 | CB20: تهاني عبدالله القرني | CC20: More than 72 Hours | CF20: 248 | CG20: 30207939 | CH20: مراجع | CI20: التنويم | CJ20: الطبي | CK20: تنويم النساء والولادة | CL20: 2022-09-25T09:44:00 | CM20: امال القحطاني | CN20: More than 72 Hours | CQ20: 263 | CR20: 30221493 | CS20: ذوي المراجع | CT20: العيادات الخارجية | CU20: الطبي | CV20: قسم المختبر | CW20: 2022-09-27T14:58:00 | CX20: تهاني عبدالله القرني | CY20: More than 72 Hours
B21: 19 | C21: 89 | D21: 30221014 | E21: ذوي المراجع | F21: العيادات الخارجية | G21: الطبي | H21: عيادات القلب | I21: 2022-09-08T21:10:00 | J21: امال القحطاني | K21: More than 72 Hours | L21: 2022-09-08 | M21: 20:55:00 | N21: امال القحطاني | O21: 2022-09-08 | P21: 21:10:00 | Q21: 2022-09-11 | R21: 10:21:00 | S21: امال القحطاني | T21: 2022-09-17 | U21: 11:39:00 | V21: امال القحطاني | W21: 8.603472222 | AA21: -44821.48542 | AE21: 0 | AJ21: -44821.48542 | AN21: -44821.48542 | AO21: 2022-09-22 | AP21: 09:36:00 | AQ21: 4.914583333 | AR21: 2022-09-22 | AS21: 09:36:00 | AT21: امال القحطاني | AU21: 4.914583333 | AW21: DR. KHALED JAMMAH | AX21: Management complaints | AY21: 3. Institutional issues | AZ21: 3.4.Finance and Billing | BA21: 3.4.4.Reimbursements issues | BB21: تم اخبار الدكتور عن حالته اخواني الاثنين وطلبت منه تقرير للحاله وتم رفض لكتابة التقرير واخبرني انه بامكاني ارجاع مبلغ الكشفيه لعدم عمل اي اجراء وعند الذهاب للاستقبال تم ارجاع مبلغ الطفل محمد فقط وتم اخباري ان السبب ان الدكتور قام بحفظ ملف الطفل فاطمه لديه لا يمكن ارجاع المبلغ وعند العوده للدكتور تم اخباري من قبله لم احفظ اي شي ولم يتم ارجاع المبلغ الى الان . | BC21: The doctor was informed about my two brothers’ condition and I asked him for a report on the case, but he refused to write the report and told me that I could get a refund for not doing any procedure. When I went to the reception, only the money for the child Muhammad was refunded, and I was told that the reason was that the doctor had saved the file for the child Fatima with him, so the money could not be refunded. When I went back to the doctor, he told me that he had not saved anything and the money has not been refunded yet. | BE21: Patient | BU21: 272 | BV21: 20041294 | BW21: وزارة الصحة | BX21: الطوارئ | BY21: التمريض | BZ21: تمريض الطوارئ | CA21: 2022-09-27T12:32:00 | CB21: تهاني عبدالله القرني | CC21: More than 72 Hours | CF21: 255 | CG21: 30125744 | CH21: مراجع | CI21: العيادات الخارجية | CJ21: الإداري | CK21: استقبال العيادات الخارجية | CL21: 2022-09-25T15:31:00 | CM21: امال القحطاني | CN21: More than 72 Hours
A22: 3 | B22: 20 | C22: 90 | D22: 30217991 | E22: ذوي المراجع | F22: العيادات الخارجية | G22: الإداري | H22: قسم المواعيد | I22: 2022-09-10T15:48:00 | J22: امال القحطاني | K22: More than 72 Hours | L22: 2022-09-10 | M22: 15:48:00 | N22: امال القحطاني | O22: 2022-09-10 | P22: 15:48:00 | T22: 2022-09-10 | U22: 16:06:00 | V22: تهاني عبدالله القرني | W22: 0.0125 | X22: 2022-09-12 | Y22: 16:06:00 | Z22: تهاني عبدالله القرني | AA22: 2 | AB22: 2022-09-13 | AC22: 14:30:00 | AD22: امال القحطاني | AE22: 0.9333333333 | AJ22: -44814.67083 | AN22: -44814.67083 | AO22: 2022-09-21 | AP22: 11:00:00 | AQ22: 10.7875 | AR22: 2022-09-21 | AS22: 11:00:00 | AT22: امال القحطاني | AU22: 10.7875 | AX22: Management complaints | AY22: 4. Accessibility | AZ22: 4.1.Access | BA22: 4.1.2.Poor availability and scheduling | BB22: تم حضوري لموعد ابني لدى الطبيب عبدالحكيم وتم مغادرة الطبيب لظرف طارئ وتم مغادرتي حيث تم التواصل معي بعد ذلك واعطائي موعد مع الطبيب مازن الشقير وتم التوضيح لي بان الطبيب يستقبل حالات الاطفال بعد سؤالها وعند حضوري للعيادة اعتذر مني الطبيب مازن لا يستطيع استقبال ابني لانه لايستقبل حالات الاطفال مما ادى الى استيائي الشديد ومغادرتي . | BC22: I attended my son's appointment with Dr. Abdul Hakim, but the doctor left due to an emergency, and I left as well. I was then contacted and given an appointment with Dr. Mazen Al-Shuqair, and it was explained to me that the doctor accepts children's cases after asking about them. When I arrived at the clinic, Dr. Mazen apologized to me, saying that he could not accept my son because he does not accept children's cases, which led to my extreme dissatisfaction and my leaving. | BE22: Patient | BU22: 272 | BV22: 20041294 | BW22: وزارة الصحة | BX22: العيادات الخارجية | BY22: الطبي | BZ22: عيادات النساء والولادة | CA22: 2022-09-27T13:27:00 | CB22: تهاني عبدالله القرني | CC22: 48 Hours | CF22: 98 | CG22: 1497820 | CH22: مراجع | CI22: العيادات الخارجية | CJ22: التمريض | CK22: تمريض غرفة تقديم الأدوية الوريدية (20) | CL22: 2022-09-25T20:51:00 | CM22: تهاني عبدالله القرني | CN22: More than 72 Hours
B23: 21 | C23: 96 | D23: 30184466 | E23: ذوي المراجع | F23: الطوارئ | G23: الطبي | H23: أطباء الطوارئ | I23: 2022-09-11T00:02:00 | J23: تهاني عبدالله القرني | K23: More than 72 Hours | L23: 2022-09-10 | M23: 17:15:00 | N23: تهاني عبدالله القرني | O23: 2022-09-11 | P23: 12:02:00 | Q23: 2022-09-14 | R23: 19:57:00 | S23: تهاني عبدالله القرني | T23: 2022-09-14 | U23: 19:57:00 | V23: تهاني عبدالله القرني | W23: 3.329861111 | X23: 2022-09-15 | Y23: 18:04:00 | Z23: تهاني عبدالله القرني | AA23: 0.9215277778 | AB23: 2022-09-17 | AC23: 15:30:00 | AD23: تهاني عبدالله القرني | AE23: 1.893055556 | AJ23: -44818.83125 | AN23: -44818.83125 | AO23: 2022-09-26 | AP23: 17:38:00 | AQ23: 11.90347222 | AR23: 2022-09-26 | AS23: 17:38:00 | AT23: تهاني عبدالله القرني | AU23: 11.90347222 | AW23: DR.MAHA ALBELALI | AX23: Clinical complaints | AY23: 1. Quality | AZ23: 1.5.Diagnosis | BA23: 1.5.1.Errors in diagnosis | BB23: تم حضوري للطوارئ بتاريخ 10-09-2022 بسبب ارتفاع درجة حرارة ابنتي التي تبلغ من العمر ٩ أشهر . استقبلتني الدكتورة و ذكرت بعد التشخيص ان الطفلة تعاني من التهاب اذن و حلق و انه يجب علينا عمل اشعة للبطن و تحليل دم. عندما سالت عن ضرورة اشعة البطن و تحليل الدم ذكرت ان الاشعة من اجل التاكد من عدم وجود التهاب في البطن علما بان الطفلة لا تعاني من اي ضرر في منطقة البطن وعمل التحليل للتاكد من وجود عدوى بكتيرية و في حال وجود عدوى بكتيرية ستصرف لنا المضاد. تم التوجهه الى قسم الاشعة ولم يتم عمل الا صورة واحدة لانزعاج الطفله وبعد ذلك ذهبت للطوارئ مرة اخرى من اجل تحليل الدم ولم يتم السحب لعدم وجود دم في المنطقة المراد السحب منها وتم رفضي لسحب الدم في اليد الاخرى ، تم صرف المضاد من قبل الطبيبة وذكرت لها ماقالته مسبقا بأنه رفضت صرف المضاد الا بعمل التحليل فتم الرد علي بان المضاد السابق كان سيعطى في الوريد وتسائلي في كيفية اعطاء طفلة بعمر 9 اشهر مضاد في الوريد ؟ وحينما ذكرت موضوع الاشعة ذكرت بوجود قليل من الغازات مع العلم بانه لم يتم عمل الاشعة كاملة ، مما ادى ذلك الى استيائي لعدم التشخيص من الطبيبة بشكل دقيق وصرف مضاد لابنتي وعدم اعادة مبلغ الاشعة لي حيث لم يتم عملها بشكل كامل . | BC23: I went to the emergency room on September 10, 2022, because my 9-month-old daughter had a high fever. The doctor saw me and, after examining her, said that the child had an ear and throat infection and that we needed to do an abdominal X-ray and blood tests. When I asked about the necessity of the abdominal X-ray and blood tests, she said that the X-ray was to ensure there was no inflammation in the abdomen, even though the child had no visible abdominal pain, and that the blood tests were to check for a bacterial infection. If a bacterial infection was found, she said she would prescribe antibiotics. We went to the radiology department, but only one X-ray was taken because the child was uncomfortable. After that, I went back to the emergency room for the blood test, but they couldn't draw blood because there was no blood in the area where it was to be drawn, and they refused to draw blood from my other arm. The doctor prescribed antibiotics, and I reminded her that she had previously refused to prescribe them without a blood test. She replied that the previous antibiotic was to be given intravenously. I wondered how a 9-month-old baby could be given intravenous antibiotics? When I mentioned the issue of the X-ray, she mentioned the presence of a few gases, knowing that the X-ray was not done completely. This led to my dissatisfaction with the doctor’s lack of accurate diagnosis, her prescription of an antibiotic for my daughter, and her failure to refund me the cost of the X-ray since it was not done completely. | BE23: Patient | BJ23: CCHI | BK23: 7 | BL23: =BK23/75 -> 9.33% | BU23: 272 | BV23: 20041294 | BW23: وزارة الصحة | BX23: العيادات الخارجية | BY23: الطبي | BZ23: عيادات النساء والولادة | CA23: 2022-09-27T14:17:00 | CB23: تهاني عبدالله القرني | CC23: More than 72 Hours | CF23: 266 | CG23: 30026284 | CH23: مراجع | CI23: العيادات الخارجية | CJ23: الطبي | CK23: عيادات الغدد الصماء | CL23: 2022-09-26T12:56:00 | CM23: امال القحطاني | CN23: More than 72 Hours
B24: 22 | C24: 99 | D24: 20084261 | E24: ذوي المراجع | F24: العيادات الخارجية | G24: الطبي | H24: عيادات النساء والولادة | I24: 2022-09-11T11:28:00 | J24: امال القحطاني | K24: 48 Hours | L24: 2022-09-11 | M24: 11:28:00 | N24: امال القحطاني | O24: 2022-09-11 | P24: 11:28:00 | T24: 2022-09-12 | U24: 11:47:00 | V24: امال القحطاني | W24: 1.013194444 | AA24: -44816.49097 | AE24: 0 | AJ24: -44816.49097 | AN24: -44816.49097 | AO24: 2022-09-13 | AP24: 14:27:00 | AQ24: 1.111111111 | AR24: 2022-09-13 | AS24: 14:27:00 | AT24: امال القحطاني | AU24: 1.111111111 | AW24: DR. SAHAR ABDULFATTAH | AX24: Relationship complaints | AY24: 6. Humanness / Caring | AZ24: 6.2.Assault and Harassment | BA24: 6.2.1.Inappropriate/aggressive behavior | BB24: تم اعطاء مجموعة من العناصر من قبل الدكتور ورقة طقم فيها بعد عمل الولاده للولاده الطبيعه وعدم وجود عناصر له سوف يتم عمل الولاده القيصرية ليلتمس الانتظار والتفكير لتوقيع التوقيع تم رفع الصوت من قبل الدكتورة على أدوية واجبارها على في الحال والتوقيع لا يوجد وقت للتفكير واسلوب دواءه غير مناسب مع أدوية . | BC24: A set of items was given by the doctor, and a paper was given stating that after the delivery, if there were no items for him, a cesarean section would be performed. He was asked to wait and think before signing. The doctor raised her voice regarding the medications and forced him to sign immediately. There was no time to think, and his method of treatment was not suitable with the medications. | BE24: Patient | BU24: 278 | BV24: 30056449 | BW24: وزارة الصحة | BX24: الطوارئ | BY24: الطبي | BZ24: أطباء الطوارئ | CA24: 2022-09-27T20:43:00 | CB24: امال القحطاني | CC24: 48 Hours | CF24: 238 | CG24: 20271448 | CH24: مراجع | CI24: العيادات الخارجية | CJ24: الطبي | CK24: عيادات الباطنية | CL24: 2022-09-26T19:30:00 | CM24: تهاني عبدالله القرني | CN24: More than 72 Hours
B25: 23 | C25: 102 | D25: 20193712 | E25: وزارة الصحة | F25: العيادات الخارجية | G25: الطبي | H25: عيادات النساء والولادة | I25: 2022-09-12T11:30:00 | J25: امال القحطاني | K25: 24 Hours | L25: 2022-09-12 | M25: 11:30:00 | N25: امال القحطاني | O25: 2022-09-12 | P25: 11:30:00 | T25: 2022-09-12 | U25: 11:44:00 | V25: امال القحطاني | W25: 0.009722222225 | AA25: -44816.48889 | AE25: 0 | AJ25: -44816.48889 | AN25: -44816.48889 | AO25: 2022-09-13 | AP25: 11:11:00 | AQ25: 0.9770833333 | AR25: 2022-09-13 | AS25: 11:11:00 | AT25: امال القحطاني | AU25: 0.9770833333 | AW25: DR. SAHAR ABDULFATTAH | AX25: Clinical complaints | AY25: 1. Quality | AZ25: 1.3.Quality of Care | BA25: 1.3.1.Substandard clinical/nursing care | BB25: تم معاملة زوجتي بطريقة غير مهنيه وتم رفع الصوت عليها من قبل الدكتورة سحر وتم الاتفاق على الولادة الطبيعيه وبعد اعطاء ابرة الظهر ومن غير سابق انذار تم تحويل زوجتي الى الولادة القيصرية ولم يتم توضيح اسباب اتخاذ هذا الاجراء من قبل الدكتورة . | BC25: It was found in a way that was incompatible with it, and the voice was raised on it by Dr. Sahar, and it was agreed to have a natural birth. After giving the epidural, and without prior warning, the breastfeeding was changed to a cesarean section, and this procedure was not invented by the doctor. | BE25: Patient | BJ25: 24 Hours | BK25: 48 Hours | BL25: 72 Hours | BM25: More than 72 hours | BU25: 278 | BV25: 30056449 | BW25: وزارة الصحة | BX25: العيادات الخارجية | BY25: الطبي | BZ25: عيادات الباطنية | CA25: 2022-09-27T20:43:00 | CB25: امال القحطاني | CC25: 48 Hours | CF25: 262 | CG25: 1777681 | CH25: مراجع | CI25: العيادات الخارجية | CJ25: الطبي | CK25: عيادات الصدرية (أطفال) | CL25: 2022-09-27T10:39:00 | CM25: تهاني عبدالله القرني | CN25: More than 72 Hours
B26: 24 | C26: 104 | D26: 30219229 | E26: وزارة الصحة | F26: العيادات الخارجية | G26: الطبي | H26: عيادات الطب النفسي | I26: 2022-09-12T15:07:00 | J26: تهاني عبدالله القرني | K26: 24 Hours | L26: 2022-09-12 | M26: 15:07:00 | N26: تهاني عبدالله القرني | O26: 2022-09-12 | P26: 15:07:00 | T26: 2022-09-12 | U26: 15:15:00 | V26: تهاني عبدالله القرني | W26: 0.005555555552 | AA26: -44816.63542 | AE26: 0 | AJ26: -44816.63542 | AN26: -44816.63542 | AO26: 2022-09-12 | AP26: 15:22:00 | AQ26: 0.004861111112 | AR26: 2022-09-12 | AS26: 15:22:00 | AT26: تهاني عبدالله القرني | AU26: 0.004861111112 | AV26: 90247 | AW26: Dr. FAHAD ALDOSARY | AX26: Clinical complaints | AY26: 1. Quality | AZ26: 1.1. Examination | BA26: 1.1.2. Inadequate/incomplete assessment | BB26: تم الحضور بتاريخ 2022-08-30 الى عيادة الدكتور فهد الدوسري كموعد انتظار وتم سؤال المريض سؤالين وتم اخراجه و الجلوس مع ذوي المريض مدة خمس دقائق تقريبا وافاد الدكتور بان احتمال ان يكون لدى المريض توحد او تخلف . وقال الدكتور بأن ليس لدينا حجز وأنما دخلنا من ضمن قائمة الانتظار والوقت غير كافي للتشخيص وتم صرف دواء Risperdal قبل معرفة نتيجة تخطيط الاعصاب التي طلبها مما ادى الى استيائي لعدم اعطائنا الوقت الكافي علما بانه تم الموافقة على استقبالنا كانتظار منذ البداية ولم يكن تعامل الطبيب لائق . | BC26: On August 30, 2022, I went to Dr. Fahd Al-Dossari's clinic for a waiting appointment. The patient was asked two questions and then asked to leave. I sat with the patient's family for about five minutes. The doctor stated that the patient might have autism or a developmental delay. He said we didn't have an appointment but were on the waiting list, and that there wasn't enough time for a diagnosis. He prescribed Risperdal before the results of the nerve conduction study he had ordered were available, which upset me because we weren't given enough time, even though we had agreed to be seen on the waiting list from the beginning. The doctor's behavior was inappropriate. | BE26: Patient | BJ26: =BM20 -> 5 | BK26: =BN20 -> 1 | BL26: =BO20 -> 0 | BM26: =BP20 -> 1 | BU26: 285 | BV26: 1182431 | BW26: وزارة الصحة | BX26: العيادات الخارجية | BY26: الطبي | BZ26: قسم الصيدلية - السويدي | CA26: 2022-09-28T19:41:00 | CB26: تهاني عبدالله القرني | CC26: 24 Hours | CF26: 259 | CG26: 30100164 | CH26: مراجع | CI26: العيادات الخارجية | CJ26: الطبي | CK26: عيادات الطب النفسي | CL26: 2022-09-27T10:41:00 | CM26: تهاني عبدالله القرني | CN26: More than 72 Hours
B27: 25 | C27: 106 | D27: 30198870 | E27: مراجع | F27: العيادات الخارجية | G27: الطبي | H27: عيادات جراحة الأنف وأذن وحنجرة | I27: 2022-09-12T19:10:00 | J27: تهاني عبدالله القرني | K27: More than 72 Hours | L27: 2022-09-12 | M27: 18:54:00 | N27: تهاني عبدالله القرني | O27: 2022-09-12 | P27: 19:10:00 | Q27: 2022-09-13 | R27: 18:10:00 | S27: تهاني عبدالله القرني | T27: 2022-09-13 | U27: 18:10:00 | V27: تهاني عبدالله القرني | W27: 0.9583333333 | AA27: -44817.75694 | AE27: 0 | AJ27: -44817.75694 | AN27: -44817.75694 | AO27: 2022-09-20 | AP27: 18:06:00 | AQ27: 6.997222222 | AR27: 2022-09-20 | AS27: 18:06:00 | AT27: تهاني عبدالله القرني | AU27: 6.997222222 | AV27: 11043 | AW27: DR. MOHAMMED SAMEER AL RAHHAL | AX27: Clinical complaints | AY27: 2. Safety | AZ27: 2.2.Safety Incidents | BA27: 2.2.13.Surgical complications | BB27: تم عمل اجراء عملية كوي خشم بتاريخ 18-5-2022م لدى الطبيب محمد الرحال وواجهت مشكله ثقب في الغضروف بعد اجراء العملية مع العلم بأنه تم عمل اشعة قبل العملية بعدم وجود الثقب . | BC27: A nose cauterization procedure was performed on 18-5-2022 by Dr. Muhammad Al-Rahal, and I encountered a problem of a cartilage perforation after the procedure, knowing that an X-ray was performed before the procedure showing that there was no perforation. | BE27: Patient | BJ27: =BJ26/BK23 -> 71.43% | BK27: =BK26/BK23 -> 14.29% | BL27: =BL26/BK23 -> 0.00% | BM27: =BM26/BK23 -> 14.29% | CF27: 91 | CG27: 30041845 | CH27: مراجع | CI27: العيادات الخارجية | CJ27: الطبي | CK27: عيادات العيون | CL27: 2022-09-27T15:39:00 | CM27: تهاني عبدالله القرني | CN27: More than 72 Hours
B28: 26 | C28: 105 | D28: 30110297 | E28: مراجع | F28: العيادات الخارجية | G28: الطبي | H28: عيادات جراحة الأنف وأذن وحنجرة | I28: 2022-09-12T19:30:00 | J28: تهاني عبدالله القرني | K28: More than 72 Hours | L28: 2022-09-12 | M28: 18:53:00 | N28: تهاني عبدالله القرني | O28: 2022-09-12 | P28: 19:30:00 | Q28: 2022-09-13 | R28: 17:48:00 | S28: تهاني عبدالله القرني | T28: 2022-09-13 | U28: 17:49:00 | V28: تهاني عبدالله القرني | W28: 0.9298611111 | AA28: -44817.74236 | AE28: 0 | AJ28: -44817.74236 | AN28: -44817.74236 | AO28: 2022-09-15 | AP28: 18:00:00 | AQ28: 2.007638889 | AR28: 2022-09-15 | AS28: 18:00:00 | AT28: تهاني عبدالله القرني | AU28: 2.007638889 | AV28: 11043 | AW28: DR. MOHAMMED SAMEER AL RAHHAL | AX28: Clinical complaints | AY28: 1. Quality | AZ28: 1.2.Patient journey | BA28: 1.2.2.Patient flow issues | BB28: تم حضوري بموعد انتظار بتاريخ 12-09-2022 م لدى الطبيب محمد سمير و حينما سالته عن عدد الحالات المتبقية قبلي تم الرد علي بانه 42 حالة و اكثر و بطريقة غير لائقة و ذلك بعد انتظار قرابة الساعة كما ان الممرضة حينما سالتها نفس السؤال قبل الدكتور اجابتني بانها لا تعلم . | BC28: I had an appointment on 12-09-2022 with Dr. Muhammad Samir, and when I asked him about the number of cases remaining before me, he replied that there were 42 cases or more, in an inappropriate manner, after waiting for about an hour. Also, when I asked the nurse the same question before the doctor, she replied that she did not know. | BE28: Patient | CF28: 267 | CG28: 1755324 | CH28: مراجع | CI28: العيادات الخارجية | CJ28: الطبي | CK28: عيادات النساء والولادة | CL28: 2022-09-28T09:45:00 | CM28: امال القحطاني | CN28: More than 72 Hours
B29: 27 | C29: 108 | D29: 30161165 | E29: وزارة الصحة | F29: الطوارئ | G29: الطبي | H29: أطباء الطوارئ | I29: 2022-09-13T16:04:00 | J29: امال القحطاني | K29: More than 72 Hours | L29: 2022-09-13 | M29: 16:04:00 | N29: امال القحطاني | O29: 2022-09-13 | P29: 16:04:00 | Q29: 2022-09-14 | R29: 09:42:00 | S29: امال القحطاني | T29: 2022-09-14 | U29: 09:42:00 | V29: امال القحطاني | W29: 0.7347222222 | X29: 2022-09-15 | Y29: 11:54:00 | Z29: امال القحطاني | AA29: 1.091666667 | AB29: 2022-09-17 | AC29: 11:35:00 | AD29: امال القحطاني | AE29: 1.986805556 | AJ29: -44818.40417 | AN29: -44818.40417 | AO29: 2022-09-18 | AP29: 09:47:00 | AQ29: 4.003472222 | AR29: 2022-09-18 | AS29: 09:47:00 | AT29: امال القحطاني | AU29: 4.003472222 | AX29: Clinical complaints | AY29: 1. Quality | AZ29: 1.2.Patient journey | BA29: 1.2.2.Patient flow issues | BB29: تم الدخول لقسم الطوارئ وهناك تاخير في الاجراءات وعند الدخول تم طلب كرسي مع الحواجز للطفل ولم يتم توفيره وعند حضور الدكتور لم يتم التوضيح من قبله عن حالة الطفل تم اخبارنا بتحويله للعمليات فقط | BC29: We were taken to the emergency room, but there was a delay in the procedures. Upon arrival, a chair with barriers was requested for the child, but it was not provided. When the doctor arrived, he did not explain the child's condition; we were simply told that he was being transferred to surgery. | BE29: Patient | BJ29: In-Patient | BK29: 1 | BL29: =BK29/BK32 -> 14.29% | CQ29: Employee Name | CR29: Number of complaints | CS29: Total Percentage | CT29: 24 Hours | CU29: 48 Hours | CV29: 72 Hours | CW29: More than 72 hours | CX29: Total
B30: 28 | C30: 109 | D30: 920363 | E30: وزارة الصحة | F30: العيادات الخارجية | G30: الإداري | H30: قسم الأمن | I30: 2022-09-13T16:46:00 | J30: تهاني عبدالله القرني | K30: 24 Hours | L30: 2022-09-13 | M30: 16:46:00 | N30: تهاني عبدالله القرني | O30: 2022-09-13 | P30: 16:46:00 | T30: 2022-09-13 | U30: 20:16:00 | V30: تهاني عبدالله القرني | W30: 0.1458333333 | AA30: -44817.84444 | AE30: 0 | AJ30: -44817.84444 | AN30: -44817.84444 | AO30: 2022-09-14 | AP30: 18:54:00 | AQ30: 0.9430555556 | AR30: 2022-09-14 | AS30: 18:54:00 | AT30: تهاني عبدالله القرني | AU30: 0.9430555556 | AX30: Management complaints | AY30: 3. Institutional issues | AZ30: 3.6.Resources | BA30: 3.6.1.Medical supply shortage | BB30: والدتي تعاني من الفشل الكلوي ويتم حظورها بشكل مستمر لعمل غسيل الكلى وتم استيائنا بعدم وجود كراسي متحركه جيده حيث تم ابلاغي للاداره عدة مرات ولكن دون جدوى ولا زلنا نعاني من نفس الاشكالية حتى الان ، الكراسي المتحركة غير صالحة للاستخدام . | BC30: My mother suffers from kidney failure and is constantly attending dialysis. We are upset that there are no good wheelchairs available. I have informed the administration several times, but to no avail. We are still suffering from the same problem. The wheelchairs are unusable. | BE30: Patient | BJ30: Out-Patient | BK30: 6 | BL30: =BK30/BK32 -> 85.71% | CQ30: امال القحطاني | CR30: 7 | CS30: =CR30/CR32 -> 38.89% | CT30: 1 | CU30: 2 | CV30: 1 | CW30: 3 | CX30: =SUM(CT30:CW30) -> 7
B31: 29 | C31: 112 | D31: 30220882 | E31: وزارة الصحة | F31: التنويم | G31: الطبي | H31: وحدة العناية المركزة | I31: 2022-09-14T12:45:00 | J31: امال القحطاني | K31: 24 Hours | L31: 2022-09-14 | M31: 12:45:00 | N31: امال القحطاني | O31: 2022-09-14 | P31: 12:45:00 | T31: 2022-09-15 | U31: 11:33:00 | V31: امال القحطاني | W31: 0.95 | AA31: -44819.48125 | AE31: 0 | AJ31: -44819.48125 | AN31: -44819.48125 | AO31: 2022-09-15 | AP31: 11:49:00 | AQ31: 0.01111111111 | AR31: 2022-09-15 | AS31: 11:49:00 | AT31: امال القحطاني | AU31: 0.01111111111 | AX31: Relationship complaints | AY31: 6. Humanness / Caring | AZ31: 6.1.Emotional Support | BA31: 6.1.2.Neglect | BB31: المريضه تعاني من جروج في المنطقة السفليه لعدم التغير السريع من قبل طاقم التمريض يتم تركها لساعات طويله لتغير والاهتمام بنظافة المريضه ، تم اختيار قائمة الطعام ايضا من قبل المريضه حيث ان المريضة لاتاكل (الدجاج، سمك والبيض) ويتم احضار نفس الوجبات باستمرار لا يوجد رعاية كافية للمريضه . | BC31: The patient suffers from wounds in the lower region due to the lack of quick changing by the nursing staff. She is left for long hours to be changed and to attend to the patient's hygiene. The food menu was also chosen by the patient, as the patient does not eat (chicken, fish and eggs), and the same meals are brought continuously. There is no adequate care for the patient. | BE31: Patient | BJ31: ER | BK31: 0 | BL31: =BK31/BK32 -> 0.00% | BU31: Employee Name | BV31: Number of complaints | BW31: Total Percentage | BX31: 24 Hours | BY31: 48 Hours | BZ31: 72 Hours | CA31: More than 72 hours | CB31: Total | CQ31: تهاني عبدالله القرني | CR31: 11 | CS31: =CR31/CR32 -> 61.11% | CT31: 0 | CU31: 1 | CV31: 1 | CW31: 9 | CX31: =SUM(CT31:CW31) -> 11
B32: 30 | C32: 113 | D32: 30220889 | E32: وزارة الصحة | F32: التنويم | G32: التمريض | H32: تمريض الحضانة | I32: 2022-09-14T17:06:00 | J32: تهاني عبدالله القرني | K32: 24 Hours | L32: 2022-09-14 | M32: 17:06:00 | N32: تهاني عبدالله القرني | O32: 2022-09-14 | P32: 17:06:00 | T32: 2022-09-14 | U32: 17:48:00 | V32: تهاني عبدالله القرني | W32: 0.02916666667 | AA32: -44818.74167 | AE32: 0 | AJ32: -44818.74167 | AN32: -44818.74167 | AO32: 2022-09-14 | AP32: 20:38:00 | AQ32: 0.1180555556 | AR32: 2022-09-14 | AS32: 20:38:00 | AT32: تهاني عبدالله القرني | AU32: 0.1180555556 | AX32: Management complaints | AY32: 3. Institutional issues | AZ32: 3.4.Finance and Billing | BA32: 3.4.3.Calculate Additional amount | BB32: بتاريخ 9-9-2022م لم يتم اعطائي طفلتي من قبل الحضانه لعدم دفعي للمبلغ المستحق حيث تم طلب طفلتي من الاخصائية للخروج فأخبرتني بدفع المبلغ وانهاء كافة الاجراءات والخروج . | BC32: On September 9, 2022, the nursery refused to release my baby because I hadn't paid the outstanding fees. The caregiver asked me to pay the fees and complete all the necessary procedures before releasing my baby. | BE32: Patient | BJ32: Total | BK32: =BK29+BK30+BK31 -> 7 | BL32: =SUM(BL29:BL31) -> 100% | BU32: امال القحطاني | BV32: 11 | BW32: =BV32/BV34 -> 45.83% | BX32: 7 | BY32: 2 | CA32: 2 | CB32: =BV32 -> 11 | CQ32: Total | CR32: =SUBTOTAL(9,CR30:CR31) -> 18 | CS32: =CS30+CS31 -> 100% | CT32: =SUBTOTAL(9,CT30:CT31) -> 1 | CU32: =SUBTOTAL(9,CU30:CU31) -> 3 | CV32: =SUBTOTAL(9,CV30:CV31) -> 2 | CW32: =SUBTOTAL(9,CW30:CW31) -> 12 | CX32: =SUM(CT32:CW32) -> 18
A33: 4 | B33: 31 | C33: 218 | D33: 30169821 | E33: مراجع | F33: العيادات الخارجية | G33: الطبي | H33: عيادات جراحة الأنف وأذن وحنجرة | I33: 2022-09-18T18:30:00 | J33: تهاني عبدالله القرني | K33: More than 72 Hours | L33: 2022-09-14 | M33: 20:06:00 | N33: تهاني عبدالله القرني | O33: 2022-09-18 | P33: 18:30:00 | Q33: 2022-09-15 | R33: 19:43:00 | S33: تهاني عبدالله القرني | T33: 2022-09-15 | U33: 19:48:00 | V33: تهاني عبدالله القرني | W33: -2.945833333 | X33: 2022-09-20 | Y33: 18:09:00 | Z33: تهاني عبدالله القرني | AA33: 4.93125 | AE33: -44824.75625 | AJ33: -44819.825 | AN33: -44819.825 | AO33: 2022-09-24 | AP33: 10:48:00 | AQ33: 8.625 | AR33: 2022-09-24 | AS33: 10:48:00 | AT33: تهاني عبدالله القرني | AU33: 8.625 | AW33: DR. MAJED ALTHUBAITI | AX33: Management complaints | AY33: 4. Accessibility | AZ33: 4.1.Access | BA33: 4.1.2.Poor availability and scheduling | BB33: بتاريخ 14-09-2022م لدينا موعد الساعه السابعة والنصف لدى الطبيب ماجد وقبل الموعد بساعتين تم الاتصال بنا واخبارنا بان الموعد سوف يلغى وعليكم الحضور من الساعة ٥ الى الساعة 6:30 حسب توجيه الدكتور تم الحضور قبل الساعه السادسة والنصف ولم يتم دخولنا على الدكتور وبعد مضي ساعه ونصف من الانتظار ذهبت الى الاستقبال واخبرني بان الدكتور يرفض دخولنا له ثم ذهبت الى العياده ومحاوله الفهم من الممرضه هل هناك امكانيه بالدخول فقامت بسؤالي عن وقت الموعد فقلت الموعد كان في 7:30 فما كان منها الا محاوله اغلاق الباب في وجهي واشارتها لي بوضع اصابعها على فمها بان لا اتكلم. <br><div style="direction:rtl;"> On 14-09-2022 I went to the Dr.Majed althobaiti clinic to ask the nurse about the appointment she asked me “what time is your appointment ‘’ when I start to told her about the appointment she tried to close the door on my face and trying to silence me. </div> | BC33: On September 14, 2022, we had an appointment at 7:30 with Dr. Majid. Two hours before the appointment, we received a call informing us that it was canceled and that we should arrive between 5:00 and 6:30, as instructed by the doctor. We arrived before 6:30, but we were not allowed to see the doctor. After waiting for an hour and a half, I went to reception, where I was told that the doctor refused to let us in. I then went to the clinic and tried to ask the nurse if we could be seen. She asked me what time the appointment was, and I said it was at 7:30. She then tried to close the door in my face and gestured to me by putting her fingers over her mouth to stop me from speaking. <br><div style="direction:rtl;"> On 14-09-2022 I went to the Dr.Majed althobaiti clinic to ask the nurse about the appointment she asked me “what time is your appointment ‘’ when I started to tell her about the appointment she tried to close the door on my face and trying to silence me. </div> | BE33: Patient | BJ33: Medical | BK33: 2 | BL33: =BK33/BK35 -> 28.57% | BU33: تهاني عبدالله القرني | BV33: 13 | BW33: =BV33/BV34 -> 54.17% | BX33: 7 | BY33: 1 | CA33: 5 | CB33: =BV33 -> 13
B34: 32 | C34: 231 | D34: 30208810 | E34: ذوي المراجع | F34: التنويم | G34: الطبي | H34: وحدة العناية المتوسطة | I34: 2022-09-18T21:56:00 | J34: امال القحطاني | K34: 24 Hours | L34: 2022-09-18 | M34: 15:23:00 | N34: امال القحطاني | O34: 2022-09-18 | P34: 21:56:00 | Q34: 2022-09-19 | R34: 14:15:00 | S34: امال القحطاني | T34: 2022-09-19 | U34: 14:16:00 | V34: امال القحطاني | W34: 0.6805555556 | AA34: -44823.59444 | AE34: 0 | AJ34: -44823.59444 | AN34: -44823.59444 | AO34: 2022-09-20 | AP34: 12:46:00 | AQ34: 0.9375 | AR34: 2022-09-20 | AS34: 12:46:00 | AT34: امال القحطاني | AU34: 0.9375 | AX34: Clinical complaints | AY34: 1. Quality | AZ34: 1.3.Quality of Care | BA34: 1.3.1.Substandard clinical/nursing care | BB34: عند سحب البلغم من الحق يتم تجريح المريض داخلياً مما يؤدي إلى خروج الدم والذي يتسبب في الام المريض . برودة الغرفه وعدم تغطيه المريض بشكل كاف . عدم دهن المريض بالكريمات حيث أن بشرة المريض جداً جافه . عدم قياس حرارة المريض كل ساعه حيث أنه بالعنايه المركزة ويحتاج إلى قياس الحرارة كل ساعه حسب إجراءات العنايه المركزه . | BC34: When phlegm is suctioned from the throat, the patient is internally injured, leading to bleeding and pain. The room is cold, and the patient is not adequately covered. The patient's skin is very dry, and no creams are being applied. The patient's temperature is not being taken hourly, as he is in the intensive care unit and requires hourly temperature monitoring according to ICU protocols. | BE34: Patient | BJ34: Admin | BK34: 5 | BL34: =BK34/BK35 -> 71.43% | BU34: Total | BV34: =SUBTOTAL(9,BV32:BV33) -> 24 | BW34: =SUBTOTAL(9,BW32:BW33) -> 100% | BX34: =SUM(BX32:BX33) -> 14 | BY34: =SUM(BY32:BY33) -> 3 | BZ34: =SUM(BZ32:BZ33) -> 0 | CA34: =SUM(CA32:CA33) -> 7 | CB34: =SUBTOTAL(9,CB32:CB33) -> 24
B35: 33 | C35: 110 | D35: 30134376 | E35: وزارة الصحة | F35: الطوارئ | G35: الطبي | H35: أطباء الطوارئ | I35: 2022-09-19T17:29:00 | J35: تهاني عبدالله القرني | K35: More than 72 Hours | L35: 2022-09-13 | M35: 16:53:00 | N35: تهاني عبدالله القرني | O35: 2022-09-13 | P35: 17:29:00 | T35: 2022-09-13 | U35: 20:16:00 | V35: تهاني عبدالله القرني | W35: 0.1159722222 | X35: 2022-09-14 | Y35: 18:17:00 | Z35: تهاني عبدالله القرني | AA35: =(Y35+X35)-(U35+T35) -> 0.9173611111 | AB35: 2022-09-17 | AC35: 15:28:00 | AD35: تهاني عبدالله القرني | AE35: =(AC35+AB35)-(Y35+X35) -> 2.882638889 | AJ35: =(AG35+AF35)-(U35+T35) -> -44817.84444 | AN35: =(AL35+AK35)-(U35+T35) -> -44817.84444 | AO35: 2022-09-18 | AP35: 20:55:00 | AQ35: =(AP35+AO35)-(U35+T35) -> 5.027083333 | AR35: 2022-09-18 | AS35: 20:55:00 | AT35: تهاني عبدالله القرني | AU35: =(AS35+AR35)-(U35+T35) -> 5.027083333 | AX35: Clinical complaints | AY35: 1. Quality | AZ35: 1.3.Quality of Care | BA35: 1.3.1.Substandard clinical/nursing care | BB35: تم حضوري للطوارئ بتاريخ 8-9-2022م تم اخذ علاماتي الحيويه وتم انتظاري في الغرفة من الساعه 2 الى الساعة 3 ولم يتم مباشرة حالتي ولم يتم توضيح حالتي الصحيه من قبل الطبيبة بشكل مفصل تم الاكتفاء باعطائي مغذي فقط . | BC35: I was admitted to the emergency room on 8-9-2022. My vital signs were taken and I waited in the room from 2 o'clock to 3 o'clock. My case was not attended to and my health condition was not explained in detail by the doctor. I was only given an IV drip. | BE35: Patient | BJ35: Total | BK35: =BK33+BK34+BJ102 -> 7 | BL35: =BL33+BL34+BK102 -> 100% | CQ35: Patient Relatives | CR35: 18 | CS35: =CR35/75 -> 24.00%
B36: 34 | C36: 101 | D36: 30221334 | E36: مراجع | F36: العيادات الخارجية | G36: الطبي | H36: عيادات النساء والولادة | I36: 2022-09-19T18:46:00 | J36: تهاني عبدالله القرني | K36: More than 72 Hours | L36: 2022-09-11 | M36: 19:25:00 | N36: تهاني عبدالله القرني | O36: 2022-09-19 | P36: 18:46:00 | Q36: 2022-09-13 | R36: 20:03:00 | S36: تهاني عبدالله القرني | T36: 2022-09-13 | U36: 20:03:00 | V36: تهاني عبدالله القرني | W36: -5.946527778 | X36: 2022-09-14 | Y36: 18:02:00 | Z36: تهاني عبدالله القرني | AA36: 0.9159722222 | AB36: 2022-09-15 | AC36: 18:07:00 | AD36: تهاني عبدالله القرني | AE36: 1.003472222 | AJ36: -44817.83542 | AN36: -44817.83542 | AO36: 2022-09-18 | AP36: 20:47:00 | AQ36: 5.030555556 | AR36: 2022-09-18 | AS36: 20:47:00 | AT36: تهاني عبدالله القرني | AU36: 5.030555556 | AW36: DR .ANELLA | AX36: Relationship complaints | AY36: 6. Humanness / Caring | AZ36: 6.2.Assault and Harassment | BA36: 6.2.1.Inappropriate/aggressive behavior | BB36: في 10-09-2022 كنت مع الدكتورة أنيلا. لم تكن الدكتورة والممرضة لطيفتين معي، وعندما طلبت من الدكتورة أنيلا أن تطلب لي فحص الموجات فوق الصوتية، رفضت، وضحكت الممرضة وقالت للدكتورة: "النساء السعوديات دائماً ما يفعلن ذلك". كان أسلوبهما في الحديث معي غير لائق. | BC36: On 10-09-2022 I was with Dr.Anila. the Dr and the nurse were not nice with me also when I asked the Dr. Anila to request the U/S for me she didn’t approved for that and the nurse laughed and she said for the Dr “the Saudi women always like that “ There way when they were talked with me was inappropriate behavior. | BE36: Patient | BU36: MOH | BV36: =BV34 -> 24 | BW36: =BV36/75 -> 32.00% | CF36: Employee Name | CG36: Number of complaints | CH36: Total Percentage | CI36: 24 Hours | CJ36: 48 Hours | CK36: 72 Hours | CL36: More than 72 hours | CM36: Total
B37: 35 | C37: 219 | D37: 30222239 | E37: مراجع | F37: العيادات الخارجية | G37: الطبي | H37: عيادات العيون | I37: 2022-09-19T18:47:00 | J37: تهاني عبدالله القرني | K37: More than 72 Hours | L37: 2022-09-14 | M37: 20:54:00 | N37: تهاني عبدالله القرني | O37: 2022-09-19 | P37: 18:47:00 | Q37: 2022-09-15 | R37: 18:56:00 | S37: تهاني عبدالله القرني | T37: 2022-09-15 | U37: 19:48:00 | V37: تهاني عبدالله القرني | W37: -3.957638889 | AA37: -44819.825 | AE37: 0 | AJ37: -44819.825 | AN37: -44819.825 | AO37: 2022-09-19 | AP37: 17:48:00 | AQ37: 3.916666667 | AR37: 2022-09-19 | AS37: 17:48:00 | AT37: تهاني عبدالله القرني | AU37: 3.916666667 | AW37: DR. FAHAD ALRWAILI | AX37: Management complaints | AY37: 4. Accessibility | AZ37: 4.1.Access | BA37: 4.1.2.Poor availability and scheduling | BB37: لدي موعد الساعه 7:40 مساءً في عيادة العيون عند الدكتور فهد الرويلي تم الحضور للعيادة عند الساعه 7:20 ودفع رسوم الكشف وفتح الملف وبقيت في الانتظار حتى الساعه 9:50 دون اي اهتمام او ابلاغي بسبب التأخير سألت ممرضتين ولم يتم افادتي بمدة الانتظار . | BC37: I have an appointment at 7:40 PM at the eye clinic with Dr. Fahd Al-Ruwaili. I arrived at the clinic at 7:20 PM, paid the consultation fee and opened my file, and waited until 9:50 PM without any attention or explanation for the delay. I asked two nurses, but they didn't tell me how long I had to wait. | BE37: Patient | CF37: امال القحطاني | CG37: 10 | CH37: =CG37/CG39 -> 38.46% | CI37: 0 | CJ37: 1 | CK37: 0 | CL37: 9 | CM37: =CG37 -> 10 | CQ37: 24 Hours | CR37: 48 Hours | CS37: 72 Hours | CT37: More than 72 hours
B38: 36 | C38: 235 | D38: 30221582 | E38: ذوي المراجع | F38: العيادات الخارجية | G38: الطبي | H38: عيادات الصدرية (أطفال) | I38: 2022-09-19T19:26:00 | J38: تهاني عبدالله القرني | K38: More than 72 Hours | L38: 2022-09-18 | M38: 21:02:00 | N38: تهاني عبدالله القرني | O38: 2022-09-19 | P38: 19:26:00 | Q38: 2022-09-19 | R38: 19:18:00 | S38: تهاني عبدالله القرني | T38: 2022-09-19 | U38: 19:27:00 | V38: تهاني عبدالله القرني | W38: 0.0006944444467 | X38: 2022-09-20 | Y38: 18:17:00 | Z38: تهاني عبدالله القرني | AA38: 0.9513888889 | AB38: 2022-09-24 | AC38: 10:50:00 | AD38: تهاني عبدالله القرني | AE38: 3.689583333 | AF38: 2022-09-25 | AG38: 19:51:00 | AH38: تهاني عبدالله القرني | AI38: No Response | AJ38: 6.016666667 | AN38: -44823.81042 | AO38: 2022-10-02 | AP38: 11:36:00 | AQ38: 12.67291667 | AR38: 2022-10-02 | AS38: 11:36:00 | AT38: تهاني عبدالله القرني | AU38: 12.67291667 | AX38: Clinical complaints | AY38: 1. Quality | AZ38: 1.2.Patient journey | BA38: 1.2.2.Patient flow issues | BB38: لدى ابنتي موعد بتاريخ 18-9-2022م الى عيادة الطبيب عبدالله الشمراني و موعد اخر بنفس اليوم مع طبيب اخر ولكن حدث تاخير في الموعد الاول مما ادى الى عدم حضوري لعيادة الطبيب عبدالله عند مناداتنا وبعد الانتهاء من الموعد الاول تم حضورنا الى العيادة ولكن لم يتم استقبالنا من قبل الطبيب وتم التعامل معنا من قبل الطبيب بأسلوب غير لائق حيث تم طلب خروجي من العياده . | BC38: My daughter has an appointment on 9/18/2022 at Dr. Abdullah Al-Shamrani’s clinic and another appointment on the same day with another doctor, but there was a delay in the first appointment, which led to me not attending Dr. Abdullah’s clinic when we were called. After the first appointment ended, we went to the clinic, but we were not received by the doctor, and the doctor treated us in an inappropriate manner, as he asked me to leave the clinic. | BE38: Patient | BU38: 24 Hours | BV38: 48 Hours | BW38: 72 Hours | BX38: More than 72 hours | CF38: تهاني عبدالله القرني | CG38: 16 | CH38: =CG38/CG39 -> 61.54% | CI38: 0 | CJ38: 0 | CK38: 0 | CL38: 16 | CM38: =CG38 -> 16 | CQ38: =CT32 -> 1 | CR38: =CU32 -> 3 | CS38: =CV32 -> 2 | CT38: =CW32 -> 12
B39: 37 | C39: 242 | D39: 1577775 | E39: مراجع | F39: العيادات الخارجية | G39: الإداري | H39: استقبال العيادات الخارجية | I39: 2022-09-20T15:53:00 | J39: تهاني عبدالله القرني | K39: More than 72 Hours | L39: 2022-09-20 | M39: 15:44:00 | N39: تهاني عبدالله القرني | O39: 2022-09-20 | P39: 15:53:00 | Q39: 2022-09-20 | R39: 20:40:00 | S39: تهاني عبدالله القرني | T39: 2022-09-20 | U39: 20:41:00 | V39: تهاني عبدالله القرني | W39: 0.2 | X39: 2022-09-24 | Y39: 10:40:00 | Z39: تهاني عبدالله القرني | AA39: 3.582638889 | AB39: 2022-09-25 | AC39: 19:54:00 | AD39: تهاني عبدالله القرني | AE39: 1.384722222 | AJ39: -44824.86181 | AN39: -44824.86181 | AO39: 2022-10-03 | AP39: 09:36:00 | AQ39: 12.53819444 | AR39: 2022-10-03 | AS39: 09:36:00 | AT39: تهاني عبدالله القرني | AU39: 12.53819444 | AX39: Relationship complaints | AY39: 6. Humanness / Caring | AZ39: 6.2.Assault and Harassment | BA39: 6.2.1.Inappropriate/aggressive behavior | BB39: تم حضوري المستشفى20-9-2022 وتوجهت الى استقبال النساء والولادة لاخذ موعد انتظار مع الطبيبة عزة و عند سوالي لموظفة الاستقبال باخذ موعد انتظار تم الرد علي باسلوب غير لائق جدا ولم يتم انزعاجي لعدم قبول الطبيبةلي كموعد انتظار ولكن تم انزعاجي من طريقة تعامل الموظفة لي . | BC39: I came to the hospital on 20-9-2022 and went to the women’s and maternity reception to take a waiting appointment with Dr. Azza. When I asked the receptionist to take a waiting appointment, she responded to me in a very inappropriate manner. I was not upset that the doctor did not accept me as a waiting appointment, but I was upset by the way the receptionist treated me. | BE39: Patient | BU39: =BX34 -> 14 | BV39: =BY34 -> 3 | BW39: =BZ34 -> 0 | BX39: =CA34 -> 7 | CF39: Total | CG39: =SUBTOTAL(9,CG37:CG38) -> 26 | CH39: =CH37+CH38 -> 100% | CI39: =SUBTOTAL(9,CI37:CI38) -> 0 | CJ39: =SUBTOTAL(9,CJ37:CJ38) -> 1 | CK39: =SUBTOTAL(9,CK37:CK38) -> 0 | CL39: =SUBTOTAL(9,CL37:CL38) -> 25 | CM39: =SUM(CI39:CL39) -> 26 | CQ39: =CQ38/CR35 -> 5.56% | CR39: =CR38/CR35 -> 16.67% | CS39: =CS38/CR35 -> 11.11% | CT39: =CT38/CR35 -> 66.67%
B40: 38 | C40: 239 | D40: 30219053 | E40: مراجع | F40: العيادات الخارجية | G40: الإداري | H40: قسم علاقات المرضى | I40: 2022-09-20T17:11:00 | J40: تهاني عبدالله القرني | K40: More than 72 Hours | L40: 2022-09-19 | M40: 21:39:00 | N40: تهاني عبدالله القرني | O40: 2022-09-20 | P40: 17:11:00 | Q40: 2022-09-20 | R40: 16:57:00 | S40: تهاني عبدالله القرني | T40: 2022-09-20 | U40: 17:06:00 | V40: تهاني عبدالله القرني | W40: -0.003472222219 | AA40: -44824.7125 | AE40: 0 | AJ40: -44824.7125 | AN40: -44824.7125 | AO40: 2022-09-28 | AP40: 14:36:00 | AQ40: 7.895833333 | AR40: 2022-09-28 | AS40: 14:36:00 | AT40: تهاني عبدالله القرني | AU40: 7.895833333 | AX40: Management complaints | AY40: 3. Institutional issues | AZ40: 3.7.Medical records | BA40: 3.7.1.Patient file issues | BB40: لا يعطي النظام (أون لاين) رقم فوري للشكوى، ما يحول بين المراجع وبين ضمان تقديمه للشكوى ووصولها للمسؤول. | BC40: The online system does not provide an immediate complaint number, which prevents the complainant from ensuring that their complaint is submitted and reaches the responsible party. | BE40: Patient | BU40: =BU39/BV36 -> 58.33% | BV40: =BV39/BV36 -> 12.50% | BW40: =BW39/BV36 -> 0.00% | BX40: =BX39/BV36 -> 29.17%
B41: 39 | C41: 234 | D41: 30049243 | E41: ذوي المراجع | F41: التنويم | G41: الطبي | H41: قسم الجهاز الهمضي و الكبد والمناظير | I41: 2022-09-20T19:46:00 | J41: تهاني عبدالله القرني | K41: More than 72 Hours | L41: 2022-09-20 | M41: 19:24:00 | N41: تهاني عبدالله القرني | O41: 2022-09-20 | P41: 19:46:00 | T41: 2022-09-20 | U41: 19:50:00 | V41: تهاني عبدالله القرني | W41: 0.00277777778 | X41: 2022-09-21 | Y41: 20:10:00 | Z41: تهاني عبدالله القرني | AA41: 1.013888889 | AB41: 2022-09-24 | AC41: 10:37:00 | AD41: تهاني عبدالله القرني | AE41: 2.602083333 | AF41: 2022-10-05 | AG41: 16:21:00 | AH41: تهاني عبدالله القرني | AI41: No Response | AJ41: 14.85486111 | AN41: -44824.82639 | AO41: 2022-10-10 | AP41: 11:29:00 | AQ41: 19.65208333 | AR41: 2022-10-10 | AS41: 11:29:00 | AT41: تهاني عبدالله القرني | AU41: 19.65208333 | AV41: 8728 | AW41: Dr. ABED HOUMOUD AL LEHIBI | AX41: Management complaints | AY41: 4. Accessibility | AZ41: 4.3.Delays | BA41: 4.3.6.Treatment delay | BB41: تنم تنويم والدتي بتاريخ 2022-9-14 حيث انها تعاني من ارتفاع في انزيمات الكبد والصفراء ومقرر لها منظار لفتح القنوات. في البداية تقرر المنظار يوم السبت ١٧/٩ الساعة ١٢ ظهرا وزارها طبيب التخدير يوم الجمعة مساء وطلب منها الصيام ابتداء من الساعة ١٢ ليلا اي قبل ١٢ ساعة من المنظار وعند الساعة ١٠ صباحا نتفاجئ أن المنظار تم تأجيله بسبب طلب طبيب التخدير رأي استشاري القلب واستشاري الباطنية. تأجل المنظار الى يوم الاحد ١٨/٩ الساعة ٥ مساء وتم ابلاغنا بالصيام اعتبارا من الساعة ٥ صباحا . جاءت الساعة ٥ مساء لكن لم يكن هناك اي خبر عن المنظار وعند سؤالنا في قسم التنويم أخبرونا أن المنظار سيكون الساعة السادسة ثم تأجل الى الساعة السابعة وبعد شكوانا على خدمات المرضى انزلوا الوالدة الى الدور الاول الساعة السابعة وربع ولم تدخل لاجراء المنظار الا الساعة الثامنة والنصف. بالاضافة الى خلال مدة اقامتنا من يوم الاربعاء مساء الى موعد اجراء المنظار لم ياتي أي استشاري الى المريض في الغرفة وكان الطبيب المناوب في الجناح فقط هو من يتواصل معنا. | BC41: My mother was admitted on September 14, 2022, due to elevated liver enzymes and bilirubin levels. She was scheduled for an endoscopy to open her bile ducts. Initially, the endoscopy was scheduled for Saturday, September 17, at 12:00 PM. The anesthesiologist saw her on Friday evening and advised her to fast starting at midnight, 12 hours before the procedure. At 10:00 AM, we were surprised to learn that the endoscopy had been postponed because the anesthesiologist requested consultations from a cardiology consultant and an internist. The endoscopy was rescheduled for Sunday, September 18, at 5:00 PM, and we were again informed that she should fast starting at 5:00 AM. At 5:00 PM, there was still no word about the endoscopy. When we inquired at the inpatient department, we were told it would be at 6:00 PM, then it was postponed again to 7:00 PM. After complaining to the patient services department, my mother was taken to the first floor at 7:15 PM, but she wasn't admitted for the endoscopy until 8:30 PM. In addition, during our stay from Wednesday evening until the endoscopy appointment, no consultant came to the patient in the room, and only the on-call doctor in the ward communicated with us. | BE41: Patient
B42: 40 | C42: 246 | D42: 1365300 | E42: مراجع | F42: العيادات الخارجية | G42: الطبي | H42: عيادات العيون | I42: 2022-09-20T20:56:00 | J42: تهاني عبدالله القرني | K42: More than 72 Hours | L42: 2022-09-20 | M42: 20:50:00 | N42: تهاني عبدالله القرني | O42: 2022-09-20 | P42: 20:56:00 | T42: 2022-09-20 | U42: 21:04:00 | V42: تهاني عبدالله القرني | W42: 0.005555555559 | X42: 2022-09-21 | Y42: 20:15:00 | Z42: تهاني عبدالله القرني | AA42: 0.9659722222 | AB42: 2022-09-27 | AC42: 15:44:00 | AD42: تهاني عبدالله القرني | AE42: 5.811805556 | AJ42: -44824.87778 | AN42: -44824.87778 | AO42: 2022-09-26 | AP42: 13:46:00 | AQ42: 5.695833333 | AU42: -44824.87778 | AV42: 11866 | AW42: DR. MOHAMMED NADER ELSAYED | AX42: Management complaints | AY42: 4. Accessibility | AZ42: 4.1.Access | BA42: 4.1.2.Poor availability and scheduling | BB42: لدي موعد بتاريخ 15-9-2022 الساعه 8:50 دقيقة مع الدكتور وحضرت الى قسم الاستقبال واجرت الموظفة الاجراءات الساعه 8:55 دقيقة وقالت لي ان الدكتور غادر ثم سالتها كيف غادر وانا لدي موعد الان، وعند تواصل الموظفة مع الطبيب رفض ادخالي ومعاينتي بالرغم من وجوده في العيادة وحضوري على الموعد بالوقت المحدد، | BC42: I have an appointment with the doctor on September 15, 2022, at 8:50 AM. I arrived at the reception desk, and the receptionist processed my paperwork. At 8:55 AM, she told me the doctor had left. I asked her how he could have left when I still had an appointment. When the receptionist contacted the doctor, he refused to see me, even though he was in the clinic and I arrived on time for my appointment. | BE42: Patient | BU42: In-Patient | BV42: 4 | BW42: =BV42/BV45 -> 16.67% | CF42: Patient | CG42: 26 | CH42: =CG42/75 -> 34.67% | CQ42: In-Patient | CR42: 3 | CS42: =CR42/CR45 -> 16.67%
B43: 41 | C43: 82 | D43: 1532085 | E43: مراجع | F43: العيادات الخارجية | G43: الطبي | H43: عيادات الصدرية | I43: 2022-09-21T12:42:00 | J43: امال القحطاني | K43: More than 72 Hours | L43: 2022-09-07 | M43: 11:26:00 | N43: امال القحطاني | O43: 2022-09-21 | P43: 12:42:00 | Q43: 2022-09-12 | R43: 11:54:00 | S43: امال القحطاني | T43: 2022-09-12 | U43: 12:22:00 | V43: امال القحطاني | W43: -9.013888889 | X43: 2022-09-18 | Y43: 16:40:00 | Z43: امال القحطاني | AA43: 6.179166667 | AE43: -44822.69444 | AJ43: -44816.51528 | AN43: -44816.51528 | AO43: 2022-09-20 | AP43: 14:37:00 | AQ43: 8.09375 | AR43: 2022-09-20 | AS43: 14:37:00 | AT43: امال القحطاني | AU43: 8.09375 | AW43: DR. AHMED JAMAL | AX43: Management complaints | AY43: 4. Accessibility | AZ43: 4.3.Delays | BA43: 4.3.3.Examination delay | BB43: مدة طويله في التشخيص من قبل الاطباء والمشكله لازلت اعاني منها ولم يتم حلها . | BC43: The diagnosis by doctors took a long time, and the problem is still not solved. | BE43: Patient | BU43: Out-Patient | BV43: 15 | BW43: =BV43/BV45 -> 62.50% | CQ43: Out-Patient | CR43: 13 | CS43: =CR43/CR45 -> 72.22%
B44: 42 | C44: 228 | D44: 30186552 | E44: ذوي المراجع | F44: العيادات الخارجية | G44: الطبي | H44: عيادات النساء والولادة | I44: 2022-09-21T12:43:00 | J44: امال القحطاني | K44: 72 Hours | L44: 2022-09-18 | M44: 12:25:00 | N44: امال القحطاني | O44: 2022-09-21 | P44: 12:43:00 | Q44: 2022-09-19 | R44: 13:34:00 | S44: امال القحطاني | T44: 2022-09-19 | U44: 13:37:00 | V44: امال القحطاني | W44: -1.9625 | AA44: -44823.56736 | AE44: 0 | AJ44: -44823.56736 | AN44: -44823.56736 | AO44: 2022-09-22 | AP44: 11:55:00 | AQ44: 2.929166667 | AR44: 2022-09-22 | AS44: 11:55:00 | AT44: امال القحطاني | AU44: 2.929166667 | AV44: 8829 | AW44: Dr.FATAT ARIF NABHA | AX44: Relationship complaints | AY44: 5. Communication | AZ44: 5.1.Patient-staff Communication | BA44: 5.1.2.Poor provider-patient communication | BB44: تم الولاده القيصريه من قبل الدكتورة فتاه وتم اخبارنا بحصول نزيف لابنتي بعد الولاده ولم يتم توضيح الاسباب من قبل الدكتورة للمريضه . | BC44: The cesarean section was performed by Dr. Fatah, and we were informed that my daughter experienced bleeding after birth, but the reasons were not explained by the doctor to the patient. | BE44: Patient | BU44: ER | BV44: 5 | BW44: =BV44/BV45 -> 20.83% | CF44: 24 Hours | CG44: 48 Hours | CH44: 72 Hours | CI44: More than 72 hours | CQ44: ER | CR44: 2 | CS44: =CR44/CR45 -> 11.11%
B45: 43 | C45: 240 | D45: 30029141 | E45: وزارة الصحة | F45: العيادات الخارجية | G45: الطبي | H45: قسم الصيدلية | I45: 2022-09-21T12:43:00 | J45: امال القحطاني | K45: 24 Hours | L45: 2022-09-20 | M45: 10:00:00 | N45: امال القحطاني | O45: 2022-09-21 | P45: 12:43:00 | T45: 2022-09-20 | U45: 10:34:00 | V45: امال القحطاني | W45: -1.089583333 | AA45: -44824.44028 | AE45: 0 | AJ45: -44824.44028 | AN45: -44824.44028 | AO45: 2022-09-21 | AP45: 17:39:00 | AQ45: 1.295138889 | AR45: 2022-09-21 | AS45: 17:39:00 | AT45: امال القحطاني | AU45: 1.295138889 | AX45: Clinical complaints | AY45: 2. Safety | AZ45: 2.1.Medication & Vaccination | BA45: 2.1.8.Medication shortages | BB45: تم اخذ وصفه من الدكتور لمدة ثلاث اشهر وعند الذهاب للصيدليه تم اعطائي وصفه لشهر واحد فقط ولم يكن لدي علم الا عند انتهاء الوصفه وزيارة صيدليه خارجيه تم اخباري من قبلهم ان الدواء مصروف لمدة ثلاث اشهر ولا يمكن اعطائي وصفه بعد شهر حيث تم الرجوع للصيدليه لدى مستشفى الحمادي وتم اخباري بعدم توفر الدواء وحالتي تستلزم اخذ العلاج باقرب وقت . | BC45: I received a prescription from the doctor for three months, and when I went to the pharmacy, I was given a prescription for only one month. I was unaware of this until the prescription expired and I visited an external pharmacy. They informed me that the medication was dispensed for three months and that I could not be given a prescription after one month. I then went back to the pharmacy at Al-Hammadi Hospital and was told that the medication was unavailable and that my condition required me to take the medication as soon as possible. | BE45: Patient | BU45: Total | BV45: =BV42+BV43+BV44 -> 24 | BW45: =SUM(BW42:BW44) -> 100% | CF45: =CI39 -> 0 | CG45: =CJ39 -> 1 | CH45: =CK39 -> 0 | CI45: =CL39 -> 25 | CQ45: Total | CR45: =CR42+CR43+CR44 -> 18 | CS45: =SUM(CS42:CS44) -> 100%
B46: 44 | C46: 241 | D46: 30223147 | E46: مجلس الضمان الصحي | F46: العيادات الخارجية | G46: الإداري | H46: قسم الموافقات الطبية | I46: 2022-09-21T12:43:00 | J46: امال القحطاني | K46: 24 Hours | L46: 2022-09-20 | M46: 14:02:00 | N46: امال القحطاني | O46: 2022-09-21 | P46: 12:43:00 | T46: 2022-09-21 | U46: 14:08:00 | V46: امال القحطاني | W46: 0.05902777777 | AA46: -44825.58889 | AE46: 0 | AJ46: -44825.58889 | AN46: -44825.58889 | AO46: 2022-09-21 | AP46: 12:29:00 | AQ46: -0.06875 | AR46: 2022-09-21 | AS46: 12:29:00 | AT46: امال القحطاني | AU46: -0.06875 | AX46: Relationship complaints | AY46: 5. Communication | AZ46: 5.2.Incorrect Information | BA46: 5.2.2.Communication of wrong information | BB46: رفض استقبال المؤمن له بسبب التأمين غير الفعال علما ان التأمين ظاهر في موقع الضمان | BC46: The insured was refused admission due to ineffective insurance, even though the insurance is visible on the social security website. | BE46: Patient | BU46: Medical | BV46: 17 | BW46: =BV46/BV49 -> 70.83% | CF46: =CF45/CG42 -> 0.00% | CG46: =CG45/CG42 -> 3.85% | CH46: =CH45/CG42 -> 0.00% | CI46: =CI45/CG42 -> 96.15% | CQ46: Medical | CR46: 15 | CS46: =CR46/CR49 -> 83.33%
B47: 45 | C47: 28 | D47: 1735943 | E47: مراجع | F47: الطوارئ | G47: الطبي | H47: أطباء الطوارئ | I47: 2022-09-21T12:44:00 | J47: امال القحطاني | K47: More than 72 Hours | L47: 2022-09-21 | M47: 12:44:00 | N47: امال القحطاني | O47: 2022-09-21 | P47: 12:44:00 | Q47: 2022-09-01 | R47: 19:14:00 | S47: امال القحطاني | T47: 2022-09-01 | U47: 19:17:00 | V47: امال القحطاني | W47: -19.72708333 | X47: 2022-09-07 | Y47: 15:32:00 | Z47: تهاني عبدالله القرني | AA47: 5.84375 | AB47: 2022-09-08 | AC47: 19:44:00 | AD47: امال القحطاني | AE47: 1.175 | AF47: 2022-09-20 | AG47: 12:50:00 | AH47: امال القحطاني | AI47: No Response | AJ47: 18.73125 | AK47: 2022-10-10 | AL47: 11:34:00 | AM47: تهاني عبدالله القرني | AN47: 38.67847222 | AQ47: -44805.80347 | AU47: -44805.80347 | AW47: DR. RAZETHA MOHAMMED | AX47: Clinical complaints | AY47: 1. Quality | AZ47: 1.3.Quality of Care | BA47: 1.3.3.Rough treatment | BB47: تم معاملة زوجتي بطريقة قاسيه من قبل الدكتورة وتم التعامل مع زوجتي بطريقة غير مهنيه عند طلب باعطاء مسكن حيث تم رفع الصوت على زوجتي ولم يكن هناك تعاون معها اثناء وقت الولاده . | BC47: My wife was treated harshly by the doctor, and she was treated unprofessionally when she asked for pain medication. The doctor raised her voice and there was no cooperation with her during childbirth. | BE47: Patient | BU47: Admin | BV47: 5 | BW47: =BV47/BV49 -> 20.83% | CQ47: Admin | CR47: 1 | CS47: =CR47/CR49 -> 5.56%
B48: 46 | C48: 35 | D48: 30028641 | E48: مراجع | F48: العيادات الخارجية | G48: الإداري | H48: قسم التقارير الطبية | I48: 2022-09-21T12:44:00 | J48: امال القحطاني | K48: More than 72 Hours | L48: 2022-08-31 | M48: 19:58:00 | N48: امال القحطاني | O48: 2022-09-21 | P48: 12:44:00 | Q48: 2022-08-31 | R48: 19:51:00 | S48: امال القحطاني | T48: 2022-08-31 | U48: 19:58:00 | V48: امال القحطاني | W48: -20.69861111 | X48: 2022-09-03 | Y48: 20:20:00 | Z48: تهاني عبدالله القرني | AA48: 3.015277778 | AB48: 2022-09-05 | AC48: 12:43:00 | AD48: امال القحطاني | AE48: 1.682638889 | AF48: 2022-10-02 | AG48: 17:51:00 | AH48: امال القحطاني | AI48: No Response | AJ48: 31.91180556 | AK48: 2022-10-10 | AL48: 11:32:00 | AM48: تهاني عبدالله القرني | AN48: 39.64861111 | AQ48: -44804.83194 | AU48: -44804.83194 | AX48: Relationship complaints | AY48: 6. Humanness / Caring | AZ48: 6.3.Confidentiality | BA48: 6.3.1.Breach of confidentiality | BB48: تم التهاون واعطاء احد ابناء المريض تقارير لا يحق اعطائها الا لمن له الصلاحيه كالمريض نفسه او زوجته ولم يتم الرجوع للطبيب المعالج حيث انه على علم بحالة المريض , علما ان الابن لم يظهر سواء صورة من كرت العائله وتم اعطائه تقارير كامله تخص حالة المريض وذلك فيه انتهاك لخصوصية المريض ولم يتم الرجوع للطبيب المعالج حيث انه على علم بحالة المريض . | BC48: The patient’s son was given reports that should only be given to those with the authority, such as the patient himself or his wife, and the treating physician was not consulted, even though he was aware of the patient’s condition. Note that the son only showed a copy of the family card, and he was given complete reports concerning the patient’s condition, which is a violation of the patient’s privacy, and the treating physician was not consulted, even though he was aware of the patient’s condition. | BE48: Patient | BU48: Nursing | BV48: 2 | BW48: =BV48/BV49 -> 8.33% | CF48: In-Patient | CG48: 2 | CH48: =CG48/CG51 -> 7.69% | CQ48: Nursing | CR48: 2 | CS48: =CR48/CR49 -> 11.11%
B49: 47 | C49: 250 | D49: 30081570 | E49: ذوي المراجع | F49: العيادات الخارجية | G49: الطبي | H49: قسم المختبر | I49: 2022-09-22T16:46:00 | J49: امال القحطاني | K49: More than 72 Hours | L49: 2022-09-22 | M49: 11:04:00 | N49: امال القحطاني | O49: 2022-09-22 | P49: 16:46:00 | Q49: 2022-09-25 | R49: 10:01:00 | S49: امال القحطاني | T49: 2022-09-25 | U49: 10:02:00 | V49: امال القحطاني | W49: 2.719444444 | X49: 2022-09-26 | Y49: 13:06:00 | Z49: امال القحطاني | AA49: 1.127777778 | AE49: -44830.54583 | AJ49: -44829.41806 | AN49: -44829.41806 | AO49: 2022-09-28 | AP49: 12:04:00 | AQ49: 3.084722222 | AR49: 2022-09-28 | AS49: 12:04:00 | AT49: امال القحطاني | AU49: 3.084722222 | AX49: Relationship complaints | AY49: 5. Communication | AZ49: 5.1.Patient-staff Communication | BA49: 5.1.2.Poor provider-patient communication | BB49: اثناء مراجعه المختبر لعمل فحص تم سوال الفاحص والمشرفه عن المده التي يحتاجها الفحص ليتم ظهور النتيجه ويتم اجابتي من قبلهم تابع تطبيق الحمادي وتم اعادة السوال لضرورة معرفة الوقت لحضوري من مكان بعيد ويتم اخباري بطريقة غير مهنية خلال اليوم سوف تظهر النتيجه وعدم تحديد الساعات حيث قمت بالذهاب الي المدير المناوب وبعد مراجعه الملف الخاص تبين ان التحليل يحتاج ساعه ونص كحد اقصى ليتم صدور وفعلا صدرت خلال ساعه وانا كمراجع لدي الحق بان اعرف جميع المعلومات التي تخص مراجعتي . | BC49: During my visit to the lab for a test, I asked the examiner and the supervisor about the time it takes for the test results to appear. They told me to follow the Al-Hammadi application. I repeated the question because I needed to know the time since I was coming from a distant location. I was told unprofessionally that the result would appear during the day, without specifying the hours. I went to the on-duty manager, and after reviewing my file, it became clear that the analysis needed a maximum of one and a half hours to be issued. Indeed, it was issued within an hour. As a patient, I have the right to know all the information related to my visit. | BE49: Patient | BU49: Total | BV49: =BV46+BV47+BV48 -> 24 | BW49: =BW46+BW47++BW48 -> 100% | CF49: Out-Patient | CG49: 23 | CH49: =CG49/CG51 -> 88.46% | CQ49: Total | CR49: =CR46+CR47+CR48 -> 18 | CS49: =CS46+CS47+CS48 -> 100%
B50: 48 | C50: 253 | D50: 1784666 | E50: مراجع | F50: العيادات الخارجية | G50: الطبي | H50: عيادات جراحة الأنف وأذن وحنجرة | I50: 2022-09-22T22:07:00 | J50: امال القحطاني | K50: More than 72 Hours | L50: 2022-09-22 | M50: 12:42:00 | N50: امال القحطاني | O50: 2022-09-22 | P50: 10:07:00 | Q50: 2022-09-25 | R50: 15:03:00 | S50: امال القحطاني | T50: 2022-09-25 | U50: 15:29:00 | V50: امال القحطاني | W50: 3.223611111 | X50: 2022-09-26 | Y50: 13:07:00 | Z50: امال القحطاني | AA50: 0.9013888889 | AE50: -44830.54653 | AJ50: -44829.64514 | AN50: -44829.64514 | AO50: 2022-10-01 | AP50: 17:43:00 | AQ50: 6.093055556 | AR50: 2022-10-01 | AS50: 17:43:00 | AT50: تهاني عبدالله القرني | AU50: 6.093055556 | AV50: 2892 | AW50: DR. MAHMOUD ABUGANAYA | AX50: Relationship complaints | AY50: 5. Communication | AZ50: 5.1.Patient-staff Communication | BA50: 5.1.2.Poor provider-patient communication | BB50: تم الحضور الى المستشفى يوم الخميس ظهرا لدى اختي موعد عند دكتور محمود ابو جنابا ، عند وصولي الى العياده وجدت باب العياده مفتوح ولديه شخص ولا اعرف اذا كان مريض او موظف ، تم فتح الكشفيه من قسم الاستقبال وتم الانتظار لمدة 10 ولم يخرج الشخص من عند الدكتور ولان حالة اختي لا تحتمل الانتظار اكثر ذهبت وطرقت الباب وتم الاعتذار على المقاطعه واخبرته لدى اختي موعد وهي مريضه قام الدكتور بفتح الجهاز وقال ( كل شي عندي بالسستم والشخص الي عندي مريض وليس مواطن اذا خلصت دخلتكم ) ودخلنا للدكتور وتم رفع الصوت علينا من قبله والتحدث معنا بطريقة غير مهنية وعند سواله ماهو الاجراء الذي قام فيه للمريض قال (انتي وش شفتيني اسوي ) كان يتعامل معنا بطريقة سيئة والمريض فقط يحتاج توضيح من الطبيب المعالج . | BC50: I went to the hospital on Thursday afternoon because my sister had an appointment with Dr. Mahmoud Abu Janaba. When I arrived at the clinic, I found the clinic door open and there was someone there, and I don't know if he was a patient or an employee. The consultation was opened at the reception, and we waited for 10 minutes, but the person did not come out of the doctor's office. Because my sister's condition could not bear to wait any longer, I went and knocked on the door and apologized for interrupting and told him that my sister had an appointment and that she was a patient. The doctor opened the computer and said, "Everything is in my system, and the person I have is a patient, not a citizen. When you are finished, you can come in." We went in to the doctor, and he raised his voice at us and spoke to us in an unprofessional manner. When we asked him what procedure he had performed for the patient, he said, "What did you see me doing?" He was treating us badly, and the patient only needs an explanation from the treating doctor. | BE50: Patient | CF50: ER | CG50: 1 | CH50: =CG50/CG51 -> 3.85%
A51: 5 | B51: 49 | C51: 257 | D51: 30209976 | E51: وزارة الصحة | F51: العيادات الخارجية | G51: الطبي | H51: عيادات الباطنية | I51: 2022-09-24T20:45:00 | J51: تهاني عبدالله القرني | K51: 24 Hours | L51: 2022-09-24 | M51: 20:40:00 | N51: تهاني عبدالله القرني | O51: 2022-09-24 | P51: 20:45:00 | T51: 2022-09-24 | U51: 20:44:00 | V51: تهاني عبدالله القرني | W51: -0.0006944444467 | AA51: -44828.86389 | AE51: 0 | AJ51: -44828.86389 | AN51: -44828.86389 | AO51: 2022-09-24 | AP51: 20:53:00 | AQ51: 0.006249999999 | AR51: 2022-09-24 | AS51: 20:53:00 | AT51: تهاني عبدالله القرني | AU51: 0.006249999999 | AX51: Management complaints | AY51: 3. Institutional issues | AZ51: 3.4.Finance and Billing | BA51: 3.4.3.Calculate Additional amount | BB51: جئت لأخذ لقاح الحج، وكان عليّ دفع رسوم استشارة الطبيب. | BC51: I came to get the Hajj vaccination and I was obliged to pay a doctor's consultation fee. | BE51: Patient | CF51: Total | CG51: =CG48+CG49+CG50 -> 26 | CH51: =SUM(CH48:CH50) -> 100%
B52: 50 | C52: 248 | D52: 30207939 | E52: مراجع | F52: التنويم | G52: الطبي | H52: تنويم النساء والولادة | I52: 2022-09-25T09:44:00 | J52: امال القحطاني | K52: More than 72 Hours | L52: 2022-09-21 | M52: 12:39:00 | N52: امال القحطاني | O52: 2022-09-25 | P52: 09:44:00 | Q52: 2022-09-25 | R52: 09:32:00 | S52: امال القحطاني | T52: 2022-09-25 | U52: 09:32:00 | V52: امال القحطاني | W52: -0.008333333331 | X52: 2022-09-26 | Y52: 13:13:00 | Z52: امال القحطاني | AA52: 1.153472222 | AB52: 2022-09-28 | AC52: 12:06:00 | AD52: امال القحطاني | AE52: 1.953472222 | AF52: 2022-10-02 | AG52: 17:47:00 | AH52: امال القحطاني | AI52: No Response | AJ52: 7.34375 | AN52: -44829.39722 | AQ52: -44829.39722 | AU52: -44829.39722 | AV52: 11087 | AW52: DR. MARWA ABDUALRHMAN HUSINEI | AX52: Relationship complaints | AY52: 6. Humanness / Caring | AZ52: 6.2.Assault and Harassment | BA52: 6.2.1.Inappropriate/aggressive behavior | BB52: تم التعامل مع زوجتي بطريقة سئية وتم رفع الصوت عليها من قبل الدكتورة مروه حسني وتم حدوث جرح عميق اثناء الولاده وعند سوال الدكتوره تم اخبارانا يمكن ان يكون راس الطفل المتسبب لم يكن هناك توضيح من قبلها بشكل دقيق وكامل عن الاسباب وتم حضور الدكتور معتز علما اني لم اطلب منه وتم الفحص من قبله على المريضه قبل خروجها . | BC52: My wife was treated badly and Dr. Marwa Hosni raised her voice at her. A deep wound occurred during childbirth, and when we asked the doctor, she told us that the baby's head might have been the cause. There was no accurate and complete explanation from her about the reasons. Dr. Moataz came, even though I did not ask him, and he examined the patient before she left. | BE52: Patient | CF52: Medical | CG52: 21 | CH52: =CG52/CG55 -> 80.77%
B53: 51 | C53: 255 | D53: 30125744 | E53: مراجع | F53: العيادات الخارجية | G53: الإداري | H53: استقبال العيادات الخارجية | I53: 2022-09-25T15:31:00 | J53: امال القحطاني | K53: More than 72 Hours | L53: 2022-09-22 | M53: 19:31:00 | N53: امال القحطاني | O53: 2022-09-25 | P53: 15:31:00 | Q53: 2022-09-25 | R53: 15:28:00 | S53: امال القحطاني | T53: 2022-09-25 | U53: 15:29:00 | V53: امال القحطاني | W53: -0.001388888886 | AA53: -44829.64514 | AE53: 0 | AJ53: -44829.64514 | AN53: -44829.64514 | AO53: 2022-10-02 | AP53: 17:41:00 | AQ53: 7.091666667 | AR53: 2022-10-02 | AS53: 17:41:00 | AT53: امال القحطاني | AU53: 7.091666667 | AX53: Relationship complaints | AY53: 5. Communication | AZ53: 5.1.Patient-staff Communication | BA53: 5.1.1.Miscommunication with Patient | BB53: تم الحضور لعمل سونار تكيسات وعند وصولي تم اخباري من قبل موظفة الاستقبال بضرورة دفع كشفيه 250 ريال للدخول على الدكتوره وبعد الانتهاء من السونار تم الذهاب لموظفة اخرى وعند سوالها تم اخباري من قبلها بامكاني دفع قيمة السونار فقط بدون مبلغ الكشفيه . | BC53: I came to have a cyst ultrasound done, and upon my arrival, the receptionist told me that I needed to pay a consultation fee of 250 riyals to see the doctor. After the ultrasound was finished, I went to another employee, and when I asked her, she told me that I could pay for the ultrasound only, without the consultation fee. | BE53: Patient | CF53: Admin | CG53: 4 | CH53: =CG53/CG55 -> 15.38%
B54: 52 | C54: 86 | D54: 30220731 | E54: ذوي المراجع | F54: العيادات الخارجية | G54: الطبي | H54: عيادات الأطفال | I54: 2022-09-25T17:59:00 | J54: تهاني عبدالله القرني | K54: More than 72 Hours | L54: 2022-09-08 | M54: 18:00:00 | N54: تهاني عبدالله القرني | O54: 2022-09-25 | P54: 17:04:00 | Q54: 2022-09-24 | R54: 20:32:00 | S54: تهاني عبدالله القرني | T54: 2022-09-25 | U54: 17:59:00 | V54: تهاني عبدالله القرني | W54: 0.03819444445 | AA54: -44829.74931 | AE54: 0 | AJ54: -44829.74931 | AN54: -44829.74931 | AO54: 2022-10-01 | AP54: 11:18:00 | AQ54: 5.721527778 | AR54: 2022-10-01 | AS54: 11:18:00 | AT54: تهاني عبدالله القرني | AU54: 5.721527778 | AV54: 6824 | AW54: DR. MOHAMMED MAISARA ABDULHAMID | AX54: Clinical complaints | AY54: 2. Safety | AZ54: 2.1.Medication & Vaccination | BA54: 2.1.1.Prescribing errors | BB54: بتاريخ 7-09-2022 عند الحضور لدى الدكتور محمد كانت المريضة امل بعمر ال٧ سنوات تشتكي من سعال ورشح وتم وصف علاج لايتناسب مع عمرها تم اعطائها بخاخات جداً قوية وبعدما عادت الى المنزل وبعد استخدام العلاج اشتكت الطفلة من وجع في القلب واعراض جديدة وفي اليوم الثاني تمت المراجعة عند دكتور اخر واتضح بان الدكتور الاول قد وصف علاجات جدأ قوية ولاتناسب الاطفال. | BC54: On 7-09-2022, when attending to Dr. Muhammad, the patient Amal, aged 7 years, complained of a cough and runny nose. A treatment was prescribed that was not suitable for her age. She was given very strong inhalers. After she returned home and after using the treatment, the child complained of heart pain and new symptoms. On the second day, she was seen by another doctor, and it became clear that the first doctor had prescribed very strong treatments that were not suitable for children. | BE54: Patient | CF54: Nursing | CG54: 1 | CH54: =CG54/CG55 -> 3.85%
B55: 53 | C55: 14 | D55: 30206800 | E55: ذوي المراجع | F55: العيادات الخارجية | G55: الطبي | H55: عيادات جراحة العظام | I55: 2022-09-25T20:51:00 | J55: تهاني عبدالله القرني | K55: More than 72 Hours | L55: 2022-08-27 | M55: 10:09:00 | N55: تهاني عبدالله القرني | O55: 2022-09-25 | P55: 20:51:00 | Q55: 2022-08-27 | R55: 10:08:00 | S55: تهاني عبدالله القرني | T55: 2022-08-27 | U55: 10:09:00 | V55: تهاني عبدالله القرني | W55: -29.44583333 | X55: 2022-08-30 | Y55: 09:45:00 | Z55: تهاني عبدالله القرني | AA55: 2.983333333 | AE55: -44803.40625 | AF55: 2022-09-24 | AG55: 10:42:00 | AH55: تهاني عبدالله القرني | AI55: No Response | AJ55: 28.02291667 | AN55: -44800.42292 | AO55: 2022-12-29 | AP55: 12:47:00 | AQ55: 124.1097222 | AR55: 2022-12-29 | AS55: 12:47:00 | AT55: تهاني عبدالله القرني | AU55: 124.1097222 | AW55: DR. SAHAR ABDULFATTAH | AX55: Management complaints | AY55: 4. Accessibility | AZ55: 4.1.Access | BA55: 4.1.2.Poor availability and scheduling | BB55: بتارخ 24-08-2022م حظرت الى المستشفى قبل موعد ابني المحدد الساعه 8:30 وتم انتظاري لفترة طويلة من الوقت ولم يتم مناداتي للدخول وعند الذهاب للممرضه افادت بدخولي بعد المريض الموجود ولكن لم تتم مناداتي وذهبت للاستقبال وافدتهم ان الدكتور لم يناديني للدخول بعد ذلك افادني موظف الاستقبال ان موعد ابني 7:30 وليس 8:30 وان الدكتور لن يقوم باستقبال ابني ولم يتم اخباري بذلك مسبقا من قبل الاستقبال او من قبل عيادة الطبيب. | BC55: On August 24, 2022, I arrived at the hospital before my son's scheduled appointment at 8:30. I waited for a long time and was not called to enter. When I went to the nurse, she said I was going in after the patient already there, but I still wasn't called. I went to reception and told them that the doctor hadn't called me in. Then the receptionist told me that my son's appointment was at 7:30, not 8:30, and that the doctor wouldn't be seeing my son. I hadn't been informed of this beforehand by reception or the doctor's office. | BE55: Patient | CF55: Total | CG55: =CG52+CG53+CG54 -> 26 | CH55: =CH52+CH53+CH54 -> 100%
B56: 54 | C56: 98 | D56: 1497820 | E56: مراجع | F56: العيادات الخارجية | G56: التمريض | H56: تمريض غرفة تقديم الأدوية الوريدية (20) | I56: 2022-09-25T20:51:00 | J56: تهاني عبدالله القرني | K56: More than 72 Hours | L56: 2022-09-10 | M56: 18:51:00 | N56: تهاني عبدالله القرني | O56: 2022-09-25 | P56: 20:51:00 | Q56: 2022-09-13 | R56: 20:37:00 | S56: تهاني عبدالله القرني | T56: 2022-09-13 | U56: 20:37:00 | V56: تهاني عبدالله القرني | W56: -12.00972222 | X56: 2022-09-15 | Y56: 18:02:00 | Z56: تهاني عبدالله القرني | AA56: 1.892361111 | AB56: 2022-09-17 | AC56: 15:29:00 | AD56: تهاني عبدالله القرني | AE56: 1.89375 | AF56: 2022-09-18 | AG56: 18:52:00 | AH56: تهاني عبدالله القرني | AI56: No Response | AJ56: 4.927083333 | AN56: -44817.85903 | AO56: 2022-09-26 | AP56: 15:47:00 | AQ56: 12.79861111 | AR56: 2022-09-26 | AS56: 15:47:00 | AT56: امال القحطاني | AU56: 12.79861111 | AX56: Clinical complaints | AY56: 2. Safety | AZ56: 2.2.Safety Incidents | BA56: 2.2.5.Complications resulting from treatment | BB56: في 3 أبريل 2022، تلقيت حقنة فيرينجكت، وقامت ممرضة فلبينية بتركيب القنية. لاحظتُ بقعة على جلدي، وعندما سألتُ الممرضة، قالت إنها ستختفي، لكن البقعة لا تزال موجودة على يدي حتى الآن. | BC56: On 03-04-2022 I took FERINJECT INJ and the Filipino nurse she put the cannula for me , I saw spot on my skin and when I asked the nurse there she said this is will going disappear but the spot still on my hand until now | BE56: Patient
B57: 55 | C57: 266 | D57: 30026284 | E57: مراجع | F57: العيادات الخارجية | G57: الطبي | H57: عيادات الغدد الصماء | I57: 2022-09-26T12:56:00 | J57: امال القحطاني | K57: More than 72 Hours | L57: 2022-09-26 | M57: 12:43:00 | N57: امال القحطاني | O57: 2022-09-26 | P57: 12:56:00 | T57: 2022-09-26 | U57: 12:55:00 | V57: امال القحطاني | W57: -0.0006944444467 | X57: 2022-09-28 | Y57: 10:20:00 | Z57: امال القحطاني | AA57: 1.892361111 | AB57: 2022-10-02 | AC57: 17:44:00 | AD57: امال القحطاني | AE57: 4.308333333 | AJ57: -44830.53819 | AN57: -44830.53819 | AO57: 2022-10-06 | AP57: 16:25:00 | AQ57: 10.14583333 | AR57: 2022-10-06 | AS57: 16:25:00 | AT57: امال القحطاني | AU57: 10.14583333 | AX57: Management complaints | AY57: 4. Accessibility | AZ57: 4.1.Access | BA57: 4.1.2.Poor availability and scheduling | BB57: لدي موعد الساعه 11:45 صباحا لدى الدكتور عطا الله وتم الانتظار لمدة من الوقت علما اني دخلت العياده الساعه 12:15 . | BC57: I have an appointment at 11:45 AM with Dr. Attallah and I have been waiting for some time, even though I entered the clinic at 12:15. | BE57: Patient
B58: 56 | C58: 237 | D58: 20272371 | E58: وزارة الصحة | F58: التنويم | G58: الطبي | H58: تنويم الباطنية | I58: 2022-09-26T16:52:00 | J58: تهاني عبدالله القرني | K58: More than 72 Hours | L58: 2022-09-19 | M58: 17:30:00 | N58: تهاني عبدالله القرني | O58: 2022-09-26 | P58: 16:52:00 | T58: 2022-09-20 | U58: 17:06:00 | V58: تهاني عبدالله القرني | W58: -5.990277778 | X58: 2022-09-20 | Y58: 19:01:00 | Z58: تهاني عبدالله القرني | AA58: 0.07986111111 | AE58: -44824.79236 | AJ58: -44824.7125 | AN58: -44824.7125 | AO58: 2022-09-25 | AP58: 15:58:00 | AQ58: 4.952777778 | AR58: 2022-09-25 | AS58: 15:58:00 | AT58: تهاني عبدالله القرني | AU58: 4.952777778 | AX58: Management complaints | AY58: 3. Institutional issues | AZ58: 3.7.Medical records | BA58: 3.7.7.Sick leave issues | BB58: تم دخول المريضة بتاريخ 7-9-2022م وتم عمل عملية لها حيث تم تركيب انبوب للتغذية بالاضافة الى انها تعاني من شلل رباعي وتم اعطائها اجازة خلال فتره التنويم فقط ولم يتم اعطائها اجازه بعد الخروج .. | BC58: The patient was admitted on September 7, 2022, and underwent surgery to insert a feeding tube. She also suffers from quadriplegia. She was granted sick leave only during her hospitalization and not after discharge. | BE58: Patient
B59: 57 | C59: 243 | D59: 30000139 | E59: مجلس الضمان الصحي | F59: التنويم | G59: الطبي | H59: قسم الجهاز الهمضي و الكبد والمناظير | I59: 2022-09-26T18:32:00 | J59: تهاني عبدالله القرني | K59: More than 72 Hours | L59: 2022-09-20 | M59: 17:49:00 | N59: تهاني عبدالله القرني | O59: 2022-09-26 | P59: 18:32:00 | T59: 2022-09-20 | U59: 17:57:00 | V59: تهاني عبدالله القرني | W59: -6.024305556 | X59: 2022-09-21 | Y59: 20:14:00 | Z59: تهاني عبدالله القرني | AA59: 1.095138889 | AB59: 2022-09-24 | AC59: 11:37:00 | AD59: تهاني عبدالله القرني | AE59: 2.640972222 | AJ59: -44824.74792 | AN59: -44824.74792 | AO59: 2022-09-27 | AP59: 10:43:00 | AQ59: 6.698611111 | AR59: 2022-09-27 | AS59: 15:19:00 | AT59: تهاني عبدالله القرني | AU59: 6.890277778 | AW59: DR. AMEER GHANEM | AX59: Management complaints | AY59: 4. Accessibility | AZ59: 4.3.Delays | BA59: 4.3.6.Treatment delay | BB59: تم دخول زوجتي يوم الخميس بتاريخ 16-9-2022 عن طريق الطوارئ بسبب انسداد القناة المرارية بحصوة.. وبناء على الكشف تقرر تنويم المريضة لاجراء منظار عاجل ولكن لم يتم مباشرة الطبيب الا يوم السبت وعمل العملية . | BC59: My wife was admitted on Thursday, September 16, 2022, through the emergency room due to a blockage of the bile duct by a gallstone. Based on the examination, it was decided to admit the patient for an urgent endoscopy, but the doctor did not come until Saturday and performed the operation. | BE59: Patient
B60: 58 | C60: 238 | D60: 20271448 | E60: مراجع | F60: العيادات الخارجية | G60: الطبي | H60: عيادات الباطنية | I60: 2022-09-26T19:30:00 | J60: تهاني عبدالله القرني | K60: More than 72 Hours | L60: 2022-09-19 | M60: 17:55:00 | N60: تهاني عبدالله القرني | O60: 2022-09-26 | P60: 19:30:00 | Q60: 2022-09-20 | R60: 20:26:00 | S60: تهاني عبدالله القرني | T60: 2022-09-20 | U60: 20:28:00 | V60: تهاني عبدالله القرني | W60: -5.959722222 | X60: 2022-09-21 | Y60: 20:13:00 | Z60: تهاني عبدالله القرني | AA60: 0.9895833333 | AB60: 2022-09-24 | AC60: 23:38:00 | AD60: تهاني عبدالله القرني | AE60: 3.142361111 | AJ60: -44824.85278 | AN60: -44824.85278 | AO60: 2022-09-28 | AP60: 17:05:00 | AQ60: 7.859027778 | AR60: 2022-09-28 | AS60: 17:05:00 | AT60: تهاني عبدالله القرني | AU60: 7.859027778 | AV60: 2869 | AW60: DR. MUHAMMAD ASLAM KHUSHK | AX60: Management complaints | AY60: 3. Institutional issues | AZ60: 3.7.Medical records | BA60: 3.7.7.Sick leave issues | BB60: تم حضوي للعيادة بتاريخ 19-9-2022 لدى الطبيب محمد اسلم وتم طلب اجازة يومين وتم الموافقه على ذلك وحين ذهابي للتقارير تم اخباري انها اجازة يوم واحد فقط وليس كما اتفق عليه سابقا في العياده . | BC60: I went to the clinic on 19-9-2022 to see Dr. Muhammad Aslam and requested a two-day leave, which was approved. When I went to the reports, I was told that it was only one day's leave and not as previously agreed at the clinic. | BE60: Patient
B61: 59 | C61: 256 | D61: 30175411 | E61: ذوي المراجع | F61: العيادات الخارجية | G61: الطبي | H61: عيادات الصدرية (أطفال) | I61: 2022-09-27T10:36:00 | J61: تهاني عبدالله القرني | K61: 48 Hours | L61: 2022-09-24 | M61: 17:13:00 | N61: تهاني عبدالله القرني | O61: 2022-09-27 | P61: 10:36:00 | Q61: 2022-09-27 | R61: 10:24:00 | S61: تهاني عبدالله القرني | T61: 2022-10-02 | U61: 11:24:00 | V61: تهاني عبدالله القرني | W61: 5.033333333 | AA61: -44836.475 | AE61: 0 | AJ61: -44836.475 | AN61: -44836.475 | AO61: 2022-10-03 | AP61: 15:15:00 | AQ61: 1.160416667 | AR61: 2022-10-03 | AS61: 15:15:00 | AT61: تهاني عبدالله القرني | AU61: 1.160416667 | AV61: 4963 | AW61: DR. ABDULLAH AL SHAMRANI | AX61: Relationship complaints | AY61: 5. Communication | AZ61: 5.1.Patient-staff Communication | BA61: 5.1.2.Poor provider-patient communication | BB61: حجزت موعد الساعه 3:23م وعند حضوري وتسجيلي من موضف الاستقبال الساعه 3:25م تم تاخري دقيقتان حظرت لدى عيادة الدكتور وتم دخول حالتان او ثلاثه قبل موعدنا وتم الانتظار ما يقارب ساعة حيث تم دخولنا للعيادة وتم النقاش مع د عبداالله بسبب التاخير لكن تم الرد علينا بطريقة غير لائقة من قبل الطبيب. | BC61: I booked an appointment for 3:23 PM, and when I arrived and was registered by the receptionist at 3:25 PM, I was two minutes late. I arrived at the doctor's clinic, and two or three patients had entered before our appointment. We waited for about an hour. We entered the clinic and discussed the delay with Dr. Abdullah, but the doctor responded to us in an inappropriate manner. | BE61: Patient
B62: 60 | C62: 264 | D62: 30139032 | E62: ذوي المراجع | F62: العيادات الخارجية | G62: الطبي | H62: عيادات النساء والولادة | I62: 2022-09-27T10:38:00 | J62: تهاني عبدالله القرني | K62: More than 72 Hours | L62: 2022-09-25 | M62: 20:49:00 | N62: تهاني عبدالله القرني | O62: 2022-09-27 | P62: 10:38:00 | Q62: 2022-09-27 | R62: 10:07:00 | S62: تهاني عبدالله القرني | T62: 2022-09-27 | U62: 10:39:00 | V62: تهاني عبدالله القرني | W62: 0.0006944444394 | X62: 2022-09-27 | Y62: 10:39:00 | Z62: تهاني عبدالله القرني | AA62: 0 | AB62: 2022-10-01 | AC62: 11:11:00 | AD62: تهاني عبدالله القرني | AE62: 4.022222222 | AJ62: -44831.44375 | AN62: -44831.44375 | AO62: 2022-10-03 | AP62: 15:35:00 | AQ62: 6.205555556 | AR62: 2022-10-03 | AS62: 15:35:00 | AT62: تهاني عبدالله القرني | AU62: 6.205555556 | AV62: 13454 | AW62: DR. HAGIR ASIM HUSSEIN | AX62: Clinical complaints | AY62: 1. Quality | AZ62: 1.3.Quality of Care | BA62: 1.3.1.Substandard clinical/nursing care | BB62: تم مراجعه زوجتي العياده بتاريخ 20 سبتمبر 2022م وهي بحاله صعبه جدا وتعاني من نزيف حاد دام ١٤ يوم منذ بدايه الدوره الشهريه طلبت منها الدكتوره عمل تحاليل واخذ ابره حديد عن طريق الوريد قبل الاطلاع على نتيجه التحاليل ولم يتم عمل فحص الحساسية لاخذ ابرة الحديد مما ادى الى تحسس جسم المريضه وظهور حبوب وحكه قويه بكامل الجسم وضيق بالتنفس وذهبت المريضه الى الطوارى وتم اعطاؤها ابره لتخيف الحساسية بالاضافة لم يتم تزويد التامين بالمعلومات الكافية للموافقة على الاجراءات مما أدى الى عدم الموافقه من شركة التامين، علما بان زوجتي عند مراجعه قسم الاشعه لم يتمكنوا من فحصها بسبب النزيف . | BC62: My wife was seen at the clinic on September 20, 2022, in a very difficult condition and suffering from severe bleeding that lasted 14 days since the beginning of her menstrual cycle. The doctor asked her to do tests and take an iron injection intravenously before seeing the results of the tests. No allergy test was done for taking the iron injection, which led to the patient's body becoming allergic and the appearance of pimples and severe itching all over her body and shortness of breath. The patient went to the emergency room and was given an injection to relieve the allergy. In addition, the insurance was not provided with enough information to approve the procedures, which led to the insurance company not approving. Note that when my wife went to the radiology department, they were unable to examine her because of the bleeding. | BE62: Patient
B63: 61 | C63: 262 | D63: 1777681 | E63: مراجع | F63: العيادات الخارجية | G63: الطبي | H63: عيادات الصدرية (أطفال) | I63: 2022-09-27T10:39:00 | J63: تهاني عبدالله القرني | K63: More than 72 Hours | L63: 2022-09-25 | M63: 20:40:00 | N63: تهاني عبدالله القرني | O63: 2022-09-27 | P63: 10:39:00 | Q63: 2022-09-27 | R63: 09:49:00 | S63: تهاني عبدالله القرني | T63: 2022-09-27 | U63: 10:40:00 | V63: تهاني عبدالله القرني | W63: 0.0006944444467 | X63: 2022-10-02 | Y63: 11:47:00 | Z63: تهاني عبدالله القرني | AA63: 5.046527778 | AB63: 2022-10-02 | AC63: 11:51:00 | AD63: تهاني عبدالله القرني | AE63: 0.00277777778 | AF63: 2022-10-04 | AG63: 14:41:00 | AH63: تهاني عبدالله القرني | AI63: No Response | AJ63: 7.167361111 | AN63: -44831.44444 | AO63: 2022-10-01 | AP63: 17:28:00 | AQ63: 4.283333333 | AR63: 2022-10-05 | AS63: 16:12:00 | AT63: تهاني عبدالله القرني | AU63: 8.230555556 | AV63: 4963 | AW63: DR. ABDULLAH AL SHAMRANI | AX63: Relationship complaints | AY63: 5. Communication | AZ63: 5.1.Patient-staff Communication | BA63: 5.1.2.Poor provider-patient communication | BB63: تم الحضور بتاريخ 25 سبتمبر 2022م اردت الاستفسار من الدكتور هل سيتم اخذ وقت اطول مع المريض حيث انه تاخر بسبب وجود مريض لفتره طويله رغم انتظاري لاكثر من ساعه وقال وهو رافع يده وبغضب اذا ارت الغي فاتورتك. | BC63: The appointment was held on September 25, 2022. The doctor inquired whether he would postpone the appointment for a longer period with the patient, as he was delayed due to an illness that lasted for a long time, despite his expectation of more than one patient. He said, raising his hand angrily, “If you want, cancel your bill.” | BE63: Patient
B64: 62 | C64: 259 | D64: 30100164 | E64: مراجع | F64: العيادات الخارجية | G64: الطبي | H64: عيادات الطب النفسي | I64: 2022-09-27T10:41:00 | J64: تهاني عبدالله القرني | K64: More than 72 Hours | L64: 2022-09-25 | M64: 19:34:00 | N64: تهاني عبدالله القرني | O64: 2022-09-27 | P64: 10:41:00 | Q64: 2022-09-27 | R64: 09:42:00 | S64: تهاني عبدالله القرني | T64: 2022-09-27 | U64: 10:41:00 | V64: تهاني عبدالله القرني | W64: 0 | X64: 2022-10-01 | Y64: 11:19:00 | Z64: تهاني عبدالله القرني | AA64: 4.026388889 | AB64: 2022-10-02 | AC64: 11:44:00 | AD64: تهاني عبدالله القرني | AE64: 1.017361111 | AF64: 2022-10-03 | AG64: 15:24:00 | AH64: تهاني عبدالله القرني | AI64: No Response | AJ64: 6.196527778 | AK64: 2022-10-10 | AL64: 11:36:00 | AM64: تهاني عبدالله القرني | AN64: 13.03819444 | AQ64: -44831.44514 | AU64: -44831.44514 | AV64: 90247 | AW64: Dr. FAHAD ALDOSARY | AX64: Clinical complaints | AY64: 1. Quality | AZ64: 1.2.Patient journey | BA64: 1.2.2.Patient flow issues | BB64: تم حضوري بتاريخ 25 سبتمبر 2022م الى عيادة الطبيب فهد الدوسري وكان موعدي الساعة 7 مساء تم فتح باب العياده فاخبرت الطبيب بأن موعدي الان فتم تجاهلي تماما ولم يتم الرد علي وتم مناداة مريضة اخرى وتم اغلاق الباب دون الرد علي . | BC64: On September 25, 2022, I went to Dr. Fahd Al-Dossari’s clinic. My appointment was at 7 pm. The clinic door was opened, and I told the doctor that my appointment was now, but I was completely ignored and no one responded to me. Another patient was called, and the door was closed without responding to me. | BE64: Patient
B65: 63 | C65: 272 | D65: 20041294 | E65: وزارة الصحة | F65: الطوارئ | G65: التمريض | H65: تمريض الطوارئ | I65: 2022-09-27T12:32:00 | J65: تهاني عبدالله القرني | K65: More than 72 Hours | L65: 2022-09-27 | M65: 14:19:00 | N65: تهاني عبدالله القرني | O65: 2022-09-27 | P65: 12:32:00 | T65: 2022-09-27 | U65: 14:19:00 | V65: تهاني عبدالله القرني | W65: 0.07430555556 | X65: 2022-09-28 | Y65: 15:10:00 | Z65: تهاني عبدالله القرني | AA65: 1.035416667 | AB65: 2022-09-29 | AC65: 17:22:00 | AD65: تهاني عبدالله القرني | AE65: 1.091666667 | AJ65: -44831.59653 | AN65: -44831.59653 | AO65: 2022-09-29 | AP65: 19:45:00 | AQ65: 2.226388889 | AR65: 2022-10-01 | AS65: 11:08:00 | AT65: تهاني عبدالله القرني | AU65: 3.867361111 | AX65: Clinical complaints | AY65: 1. Quality | AZ65: 1.3.Quality of Care | BA65: 1.3.1.Substandard clinical/nursing care | BB65: لم تضع الممرضة في قسم الطوارئ الكانيولا في مكانها الصحيح، وعندما ذهبت إلى طبيب التخدير في غرفة العمليات، قالت إنهم وضعوها بشكل خاطئ وأنهم سيغيرونها إلى الجهة الأخرى. | BC65: the nurse in the ER department did not put the cannula in correct place then when I went to the OR anesthesiologist she said they put it the wrong way and they are change it to the other hand | BE65: Patient
B66: 64 | C66: 272 | D66: 20041294 | E66: وزارة الصحة | F66: العيادات الخارجية | G66: الطبي | H66: عيادات النساء والولادة | I66: 2022-09-27T13:27:00 | J66: تهاني عبدالله القرني | K66: 48 Hours | L66: 2022-09-27 | M66: 13:27:00 | N66: تهاني عبدالله القرني | O66: 2022-09-27 | P66: 13:27:00 | T66: 2022-09-27 | U66: 14:21:00 | V66: تهاني عبدالله القرني | W66: 0.0375 | X66: 2022-09-28 | Y66: 15:12:00 | Z66: تهاني عبدالله القرني | AA66: 1.035416667 | AE66: -44832.63333 | AJ66: -44831.59792 | AN66: -44831.59792 | AO66: 2022-09-27 | AP66: 14:33:00 | AQ66: 0.008333333331 | AR66: 2022-09-28 | AS66: 15:17:00 | AT66: تهاني عبدالله القرني | AU66: 1.038888889 | AW66: DR.MUTAZ JAMAL | AX66: Management complaints | AY66: 4. Accessibility | AZ66: 4.1.Access | BA66: 4.1.2.Poor availability and scheduling | BB66: تم الحضور الى عيادة الطبيب معتز وقرر لي عملية غدة بارثولين . حيث تم ابلاغي بالحضور الساعة 7 صباحا والعملية ستكون الساعة 11 صباحا وعند حضوري وانتظاري تم ابلاغي بان العملية ستكون الساعه 5 مساء مما ادى الى استيائي وعمل العملية من قبل الطبيبة مروى حسني . | BC66: I went to Dr. Moataz's clinic and he decided to examine my Bartholin's gland. I was told to come at 7 AM, but it will be 11 PM, and I will be waiting until 5 PM, which will be a great relief to me. I appreciate the good work done by Dr. Marwa Hosni. | BE66: Patient
B67: 65 | C67: 272 | D67: 20041294 | E67: وزارة الصحة | F67: العيادات الخارجية | G67: الطبي | H67: عيادات النساء والولادة | I67: 2022-09-27T14:17:00 | J67: تهاني عبدالله القرني | K67: More than 72 Hours | L67: 2022-09-27 | M67: 12:09:00 | N67: تهاني عبدالله القرني | O67: 2022-09-27 | P67: 14:17:00 | T67: 2022-09-27 | U67: 14:18:00 | V67: تهاني عبدالله القرني | W67: 0.0006944444467 | X67: 2022-09-28 | Y67: 15:04:00 | Z67: تهاني عبدالله القرني | AA67: =(Y67+X67)-(U67+T67) -> 1.031944444 | AB67: 2022-09-29 | AC67: 17:19:00 | AD67: تهاني عبدالله القرني | AE67: =(AC67+AB67)-(Y67+X67) -> 1.09375 | AF67: 2022-10-01 | AG67: 10:39:00 | AH67: تهاني عبدالله القرني | AI67: No Response | AJ67: =(AG67+AF67)-(U67+T67) -> 3.847916667 | AN67: =(AL67+AK67)-(U67+T67) -> -44831.59583 | AO67: 2022-10-01 | AP67: 12:53:00 | AQ67: =(AP67+AO67)-(U67+T67) -> 3.940972222 | AR67: 2022-10-01 | AS67: 15:46:00 | AT67: تهاني عبدالله القرني | AU67: =(AS67+AR67)-(U67+T67) -> 4.061111111 | AV67: 6884 | AW67: DR. MAJIDA MALAK KESILIA | AX67: Clinical complaints | AY67: 1. Quality | AZ67: 1.5.Diagnosis | BA67: 1.5.1.Errors in diagnosis | BB67: تم حضوري بتاريخ 10 سبتمبر 2022م الى الطبيبه هناء وتم عمل مسحة حيث تم ابلاغي بان المسحة سليمة رغم وجود الآم لدي وتم توجهي الى الطوارئ بتاريخ 16سبتمبر 2022 بسبب اللآم وتم ابلاغي بالحضور بالعيادات الخارجية، في اليوم التالي تم الحضور الى عيادة الطبيب معتز وقرر لي عملية غدة بارثولين . | BC67: On September 10, 2022, I went to Dr. Hanaa and a swab was taken. I was informed that the swab was normal despite having pains. I went to the emergency room on September 16, 2022, because of the pains, and I was told to come to the outpatient clinics. The next day, I went to Dr. Moataz’s clinic, and he decided that I needed a Bartholin gland operation. | BE67: Patient
B68: 66 | C68: 263 | D68: 30221493 | E68: ذوي المراجع | F68: العيادات الخارجية | G68: الطبي | H68: قسم المختبر | I68: 2022-09-27T14:58:00 | J68: تهاني عبدالله القرني | K68: More than 72 Hours | L68: 2022-09-25 | M68: 20:49:00 | N68: تهاني عبدالله القرني | O68: 2022-09-27 | P68: 14:58:00 | Q68: 2022-09-27 | R68: 09:55:00 | S68: تهاني عبدالله القرني | T68: 2022-09-27 | U68: 14:58:00 | V68: تهاني عبدالله القرني | W68: =(U68+T68)-(P68+O68) -> 0 | X68: 2022-09-28 | Y68: 17:01:00 | Z68: تهاني عبدالله القرني | AA68: 1.085416667 | AB68: 2022-10-02 | AC68: 11:45:00 | AD68: تهاني عبدالله القرني | AE68: 3.780555556 | AJ68: -44831.62361 | AN68: -44831.62361 | AO68: 2022-10-02 | AP68: 14:35:00 | AQ68: 4.984027778 | AR68: 2022-10-02 | AS68: 14:35:00 | AT68: تهاني عبدالله القرني | AU68: 4.984027778 | AX68: Management complaints | AY68: 3. Institutional issues | AZ68: 3.4.Finance and Billing | BA68: 3.4.3.Calculate Additional amount | BB68: تم عمل تحليل بول وتم اخباري من قبل المختبر بان العينة لم تعمل بالشكل الصحيح حيث تم طلب اعادة عمل التحليل وتم دفع مبلغ التحليل المعاد على الرغم من انني من المرضى المحولين من مستشفى قوى الامن ولا يجب علي الدفع . | BC68: A urine analysis was performed, and I was informed by the laboratory that the sample was not processed correctly. The analysis was requested to be repeated, and I paid the fee for the repeated analysis, even though I am a patient referred from the Security Forces Hospital and I should not have to pay. | BE68: Patient
B69: 67 | C69: 91 | D69: 30041845 | E69: مراجع | F69: العيادات الخارجية | G69: الطبي | H69: عيادات العيون | I69: 2022-09-27T15:39:00 | J69: تهاني عبدالله القرني | K69: More than 72 Hours | L69: 2022-09-10 | M69: 16:27:00 | N69: تهاني عبدالله القرني | O69: 2022-09-27 | P69: 15:39:00 | T69: 2022-09-10 | U69: 16:58:00 | V69: تهاني عبدالله القرني | W69: =(U69+T69)-(P69+O69) -> -16.94513889 | X69: 2022-09-11 | Y69: 20:04:00 | Z69: تهاني عبدالله القرني | AA69: 1.129166667 | AE69: -44815.83611 | AJ69: -44814.70694 | AN69: -44814.70694 | AO69: 2022-09-27 | AP69: 15:44:00 | AQ69: 16.94861111 | AR69: 2022-09-27 | AS69: 15:44:00 | AT69: تهاني عبدالله القرني | AU69: 16.94861111 | AV69: 90512 | AW69: DR. HASSAN FALLAJ ALKWIKBI | AX69: Clinical complaints | AY69: 1. Quality | AZ69: 1.3.Quality of Care | BA69: 1.3.1.Substandard clinical/nursing care | BB69: بتاريخ 6-9-2022 تم زيارتي للطبيب حسن الكويكبي لم يتم الفحص علي جيدا من قبل الطبيب حيث تم استقبالي في العياده لمدة دقيقتان ولم يتم عمل اي فحوصات لي وتم الاكتفاء باعطائي ادوية. | BC69: On 6-9-2022, I visited Dr. Hassan Al-Kwikbi. I was not examined properly by the doctor, as I was received in the clinic for two minutes, and no tests were done for me. I was simply given medication. | BE69: Patient
B70: 68 | C70: 274 | D70: 30091161 | E70: مجلس الضمان الصحي | F70: العيادات الخارجية | G70: الإداري | H70: قسم الموافقات الطبية | I70: 2022-09-27T16:27:00 | J70: امال القحطاني | K70: 24 Hours | L70: 2022-09-27 | M70: 16:27:00 | N70: امال القحطاني | O70: 2022-09-27 | P70: 16:27:00 | T70: 2022-09-27 | U70: 16:28:00 | V70: امال القحطاني | W70: 0.0006944444467 | AA70: -44831.68611 | AE70: 0 | AJ70: -44831.68611 | AN70: -44831.68611 | AO70: 2022-09-27 | AP70: 16:46:00 | AQ70: 0.0125 | AR70: 2022-09-27 | AS70: 16:46:00 | AT70: تهاني عبدالله القرني | AU70: 0.0125 | AX70: Clinical complaints | AY70: 1. Quality | AZ70: 1.2.Patient journey | BA70: 1.2.1.Miscoordination | BB70: تممراجعتي بتاريخ 29-08-2022 وطلب الدكتور فحوصات مختبر رفعت طلب للتأمين ولم يتم التجاوب معنا دفعت المبلغ المطلوب كاش حيث لم يتم الرد من المستشفى على التأمين خلال أسبوع كامل | BC70: I was seen on 29-08-2022 and the doctor ordered lab tests. I submitted a request for insurance, but there was no response. I paid the required amount in cash, as the hospital did not reply to the insurance claim for a full week. | BE70: Patient
B71: 69 | C71: . | D71: 30223425 | E71: مجلس الضمان الصحي | F71: العيادات الخارجية | G71: الطبي | H71: عيادات الأطفال | I71: 2022-09-27T19:02:00 | J71: امال القحطاني | K71: 48 Hours | L71: 2022-09-27 | M71: 19:02:00 | N71: امال القحطاني | O71: 2022-09-27 | P71: 19:02:00 | T71: 2022-09-27 | U71: 20:41:00 | V71: امال القحطاني | W71: 0.06875 | X71: 2022-09-28 | Y71: 10:11:00 | Z71: امال القحطاني | AA71: 0.5625 | AE71: -44832.42431 | AJ71: -44831.86181 | AN71: -44831.86181 | AO71: 2022-09-28 | AP71: 19:02:00 | AQ71: 0.93125 | AR71: 2022-09-29 | AS71: 13:56:00 | AT71: امال القحطاني | AU71: 1.71875 | AV71: 13667 | AW71: DR. IKRAM RABEH AYED | AX71: Relationship complaints | AY71: 5. Communication | AZ71: 5.1.Patient-staff Communication | BA71: 5.1.2.Poor provider-patient communication | BB71: تم الحضور للمراجعه بعد اسبوع من خروج الطفل لدى الدكتوره اكرام وتم تشخيص الطفل وتم اخباري من قبلها انها المسؤله عن حالته وتم اخبارانا ان الطفل لديه مشكله ويوجد ثقب في القلب ويجب مراجعة الدكتوره بعد ثلاث اسابيع حيث لم يكن هناك توضيح كامل عن الاسباب علما انه في اخر زياره لم يكن يعاني من اي مشكله كما تم اخبارنا من قبل طبيبة الاطفال . | BC71: We came for a follow-up appointment a week after the child was discharged from Dr. Ikram's clinic. The child was diagnosed, and she informed me that she was responsible for his case. We were told that the child had a problem and that there was a hole in his heart, and that we should see the doctor again after three weeks. There was no full explanation of the reasons, although at the last visit he did not have any problems, as we were told by the pediatrician. | BE71: Patient
B72: 70 | C72: 278 | D72: 30056449 | E72: وزارة الصحة | F72: الطوارئ | G72: الطبي | H72: أطباء الطوارئ | I72: 2022-09-27T20:43:00 | J72: امال القحطاني | K72: 48 Hours | L72: 2022-09-27 | M72: 20:43:00 | N72: امال القحطاني | O72: 2022-09-27 | P72: 20:43:00 | T72: 2022-09-27 | U72: 21:55:00 | V72: امال القحطاني | W72: 0.05 | X72: 2022-09-28 | Y72: 10:13:00 | Z72: امال القحطاني | AA72: 0.5125 | AB72: 2022-09-29 | AC72: 12:14:00 | AD72: امال القحطاني | AE72: 1.084027778 | AJ72: -44831.91319 | AN72: -44831.91319 | AO72: 2022-09-29 | AP72: 13:19:00 | AQ72: 1.641666667 | AR72: 2022-09-29 | AS72: 13:19:00 | AT72: امال القحطاني | AU72: 1.641666667 | AV72: 10524 | AW72: DR. MOHAMMED MAHMOUD ABDELWAHED | AX72: Clinical complaints | AY72: 1. Quality | AZ72: 1.5.Diagnosis | BA72: 1.5.1.Errors in diagnosis | BB72: تم زيارة الدكتور محمد عبد الواحد وتم اعطائي ابرة حديد وتم اخباري من قبله في الموعد التالي يتم اخذ الجرعه الثانيه حيث لم تتحسن حالتي الصحيه وقمت بزيارة قسم الطوارئ وتم اخباري من قبل طبيب الطوارئ ان جرعة الحديد زائده ولم تستدعي حالتي اخذ ذلك لا يوجد تشخيص واضح من قبل الاطباء . | BC72: I visited Dr. Muhammad Abdul Wahid and was given an iron injection. He told me that at the next appointment I would take the second dose, as my health condition had not improved. I visited the emergency department and was told by the emergency doctor that the iron dose was excessive and my condition did not warrant it. There is no clear diagnosis from the doctors. | BE72: Patient
B73: 71 | C73: 278 | D73: 30056449 | E73: وزارة الصحة | F73: العيادات الخارجية | G73: الطبي | H73: عيادات الباطنية | I73: 2022-09-27T20:43:00 | J73: امال القحطاني | K73: 48 Hours | L73: 2022-09-27 | M73: 20:43:00 | N73: امال القحطاني | O73: 2022-09-27 | P73: 20:43:00 | T73: 2022-09-27 | U73: 21:54:00 | V73: امال القحطاني | W73: =(U73+T73)-(P73+O73) -> 0.04930555556 | X73: 2022-09-28 | Y73: 10:13:00 | Z73: امال القحطاني | AA73: 0.5131944444 | AE73: -44832.42569 | AJ73: -44831.9125 | AN73: -44831.9125 | AO73: 2022-09-28 | AP73: 19:29:00 | AQ73: 0.8993055556 | AR73: 2022-09-29 | AS73: 12:07:00 | AT73: امال القحطاني | AU73: 1.592361111 | AV73: 4873 | AW73: DR. ORWA MOHAMED HAMICH | AX73: Clinical complaints | AY73: 1. Quality | AZ73: 1.5.Diagnosis | BA73: 1.5.1.Errors in diagnosis | BB73: تم زيارة الدكتور محمد عبد الواحد وتم اعطائي ابرة حديد وتم اخباري من قبله في الموعد التالي يتم اخذ الجرعه الثانيه حيث لم تتحسن حالتي الصحيه وقمت بزيارة قسم الطوارئ وتم اخباري من قبل طبيب الطوارئ ان جرعة الحديد زائده ولم تستدعي حالتي اخذ ذلك لا يوجد تشخيص واضح من قبل الاطباء . | BC73: I visited Dr. Muhammad Abdul Wahid and was given an iron injection. He told me that at the next appointment I would take the second dose, as my health condition had not improved. I visited the emergency department and was told by the emergency doctor that the iron dose was excessive and my condition did not warrant it. There is no clear diagnosis from the doctors. | BE73: Patient
B74: 72 | C74: 267 | D74: 1755324 | E74: مراجع | F74: العيادات الخارجية | G74: الطبي | H74: عيادات النساء والولادة | I74: 2022-09-28T09:45:00 | J74: امال القحطاني | K74: More than 72 Hours | L74: 2022-09-26 | M74: 16:31:00 | N74: امال القحطاني | O74: 2022-09-28 | P74: 09:45:00 | Q74: 2022-09-28 | R74: 09:38:00 | S74: امال القحطاني | T74: 2022-09-28 | U74: 09:45:00 | V74: امال القحطاني | W74: 0 | X74: 2022-09-29 | Y74: 15:20:00 | Z74: امال القحطاني | AA74: 1.232638889 | AE74: -44833.63889 | AJ74: -44832.40625 | AN74: -44832.40625 | AO74: 2022-10-06 | AP74: 16:23:00 | AQ74: 8.276388889 | AR74: 2022-10-06 | AS74: 16:23:00 | AT74: امال القحطاني | AU74: 8.276388889 | AV74: 6884 | AW74: DR. MAJIDA MALAK KESILIA | AX74: Clinical complaints | AY74: 1. Quality | AZ74: 1.3.Quality of Care | BA74: 1.3.1.Substandard clinical/nursing care | BB74: يوجد تأخير واضح عن حضور عملية الولادة وعند حضورها تم تحويلي واتخاذ قرار الولاده القيصري في مده قصيره ولا يوجد سبب واضح حيث انه تم اخباري مسبقا ان حالتي جيده وسوف تتم الولاده طبيعيه . وبعد عملية الولاده تم الانتظار لمده طويله جدا مايقارب الاربع ساعات وعند حضور الدكتوره تم اخباري بوجود نزيف ولم يتم توضيح الاسباب ايضا هناك اهمال ولا يوجد متابعه للمريضه قبل وبعد الولاده. | BC74: There was a clear delay in my arrival for the delivery. When I finally arrived, I was referred for a cesarean section, and the decision was made shortly afterward without any clear reason, as I had been told beforehand that my condition was good and that I would have a natural birth. After the delivery, I waited for an extremely long time, approximately four hours. When the doctor finally arrived, she informed me of bleeding, but the reasons were not explained. There was also negligence and no follow-up care for the patient before and after delivery. | BE74: Patient
B75: 73 | C75: 279 | D75: 30222407 | E75: مجلس الضمان الصحي | F75: العيادات الخارجية | G75: الإداري | H75: قسم الموافقات الطبية | I75: 2022-09-28T15:17:00 | J75: تهاني عبدالله القرني | K75: 24 Hours | L75: 2022-09-28 | M75: 15:17:00 | N75: تهاني عبدالله القرني | O75: 2022-09-28 | P75: 15:17:00 | T75: 2022-09-28 | U75: 15:17:00 | V75: تهاني عبدالله القرني | W75: 0 | AA75: -44832.63681 | AE75: 0 | AJ75: -44832.63681 | AN75: -44832.63681 | AO75: 2022-09-28 | AP75: 15:29:00 | AQ75: 0.008333333331 | AR75: 2022-09-28 | AS75: 15:29:00 | AT75: تهاني عبدالله القرني | AU75: 0.008333333331 | AX75: Clinical complaints | AY75: 1. Quality | AZ75: 1.2.Patient journey | BA75: 1.2.1.Miscoordination | BB75: تاخر الرد على استفسارات شركة التامين بتاريخ : 16/9 لايوجد لدي موافقة طبية حيث ان شركة التامين ارسلت بعض الاستفسارات لارسال الموافقة الطبية ولكن لا يوجد اي تعاون او رد من قبل مستشفى الحمادي ١٢ يوم ولا يوجد اي تجاوب. | BC75: The insurance company's response to inquiries was delayed until 9/16. I do not have medical approval, as the insurance company sent some inquiries to send the medical approval, but there has been no cooperation or response from Al Hammadi Hospital for 12 days and there is no response. | BE75: Patient
B76: 74 | C76: 280 | D76: 1574418 | E76: مجلس الضمان الصحي | F76: العيادات الخارجية | G76: الإداري | H76: استقبال العيادات الخارجية | I76: 2022-09-28T15:29:00 | J76: تهاني عبدالله القرني | K76: 24 Hours | L76: 2022-09-28 | M76: 15:29:00 | N76: تهاني عبدالله القرني | O76: 2022-09-28 | P76: 15:29:00 | T76: 2022-09-28 | U76: 15:37:00 | V76: تهاني عبدالله القرني | W76: 0.005555555552 | AA76: -44832.65069 | AE76: 0 | AJ76: -44832.65069 | AN76: -44832.65069 | AO76: 2022-09-28 | AP76: 15:44:00 | AQ76: 0.004861111112 | AR76: 2022-09-28 | AS76: 15:44:00 | AT76: تهاني عبدالله القرني | AU76: 0.004861111112 | AX76: Management complaints | AY76: 3. Institutional issues | AZ76: 3.4.Finance and Billing | BA76: 3.4.3.Calculate Additional amount | BB76: المستشفى طلب مبلغ كشفيه والمريضه مراجعه | BC76: The hospital requested a consultation fee and the patient went for a follow-up appointment. | BE76: Patient
B77: 75 | C77: 285 | D77: 1182431 | E77: وزارة الصحة | F77: العيادات الخارجية | G77: الطبي | H77: قسم الصيدلية - السويدي | I77: 2022-09-28T19:41:00 | J77: تهاني عبدالله القرني | K77: 24 Hours | L77: 2022-09-28 | M77: 19:41:00 | N77: تهاني عبدالله القرني | O77: 2022-09-28 | P77: 19:41:00 | T77: 2022-09-28 | U77: 19:44:00 | V77: تهاني عبدالله القرني | W77: 0.002083333333 | AA77: -44832.82222 | AE77: 0 | AJ77: -44832.82222 | AN77: -44832.82222 | AO77: 2022-09-28 | AP77: 19:49:00 | AQ77: 0.003472222219 | AR77: 2022-09-28 | AS77: 19:49:00 | AT77: تهاني عبدالله القرني | AU77: 0.003472222219 | AX77: Management complaints | AY77: 4. Accessibility | AZ77: 4.1.Access | BA77: 4.1.2.Poor availability and scheduling | BB77: عدم تواجد موظف الصيدلية المسؤول عن الوصفات المقيدة وتم انتظار المريض مايقارب الساعتين حتى حضور الموظف . | BC77: The pharmacy employee responsible for restricted prescriptions was not present, and the patient waited for approximately two hours until the employee arrived. | BE77: Patient
L79: Employee Name | M79: Number of complaints | N79: Total Percentage | O79: 24 Hours | P79: 48 Hours | Q79: 72 Hours | R79: More than 72 hours | S79: Total | U79: Number of delays in sending the complaint (delay in activation) | W79: Percentage | X79: Activated within two hours | Y79: Percentage | Z79: Total | AF79: الشكاوي المصعدة | AG79: خلال 72 | AH79: مبكرة | AI79: متأخرة | AJ79: الموظف المسؤول | AO79: Medical | AQ79: Average | BD79: Total Complaints | BE79: =B89 -> 75
A80: Week 1 | B80: 5 | E80: MOH | F80: 24 | G80: =F80/F84 -> 32.00% | I80: Medical | L80: امال القحطاني | M80: 31 | N80: =M80/M84 -> 41.33% | O80: 10 | P80: 6 | Q80: 1 | R80: 14 | S80: =O81+P81+Q81+R81 -> 100.00% | U80: امال القحطاني | V80: 11 | W80: =V80/V82 -> 47.83% | X80: 11 | Y80: =X80/X82 -> 25.00% | Z80: =X80+V80 -> 22 | AF80: 10 | AJ80: امال القحطاني | AO80: عيادات النساء والولادة | AP80: 9 | AQ80: =AVERAGE(AR80:BB80) -> 3.48 | AR80: 3 | AS80: 1.1 | AT80: 0.96 | AU80: 5 | AW80: 2.9 | AX80: 6.19 | AY80: 0.005 | AZ80: 3.9 | BA80: 8.26 | BD80: Satisfaction Table
A81: Week 2 | B81: 14 | E81: CCHI | F81: 7 | G81: =F81/F84 -> 9.33% | I81: عيادات النساء والولادة | J81: 9 | L81: Percentage | O81: =O80/M80 -> 32.26% | P81: =P80/M80 -> 19.35% | Q81: =Q80/M80 -> 3.23% | R81: =R80/M80 -> 45.16% | U81: تهاني القرني | V81: 12 | W81: =V81/V82 -> 52.17% | X81: 33 | Y81: =X81/X82 -> 75.00% | Z81: =V81+X81 -> 45 | AJ81: تهاني عبدالله القرني | AO81: أطباء الطوارئ | AP81: 6 | AQ81: =AVERAGE(AR81:AX81) -> 4.38 | AR81: 0.004 | AS81: 11.9 | AT81: 4 | AU81: Closed | AV81: 1.6 | BD81: Total Responces
A82: Week 3 | B82: 11 | E82: Patients | F82: 26 | G82: =F82/F84 -> 34.67% | I82: أطباء الطوارئ | J82: 6 | L82: تهاني القرني | M82: 44 | N82: =M82/M84 -> 58.67% | O82: 10 | P82: 2 | Q82: 1 | R82: 31 | S82: =O83+P83+Q83+R83 -> 100.00% | U82: Total | V82: =SUM(V80:V81) -> 23 | W82: =W80+W81 -> 100.00% | X82: =X80+X81 -> 44 | Y82: =Y80+Y81 -> 100.00% | Z82: =Z80+Z81 -> 67 | AO82: عيادات جراحة الأنف وأذن وحنجرة | AP82: 4 | AQ82: =AVERAGE(AR82:AX82) -> 6.00 | AR82: 7 | AS82: 2 | AT82: 9 | AU82: 6 | BD82: Escalated Without Response
A83: Week 4 | B83: 18 | E83: Patient relatives | F83: 18 | G83: =F83/F84 -> 24.00% | I83: عيادات جراحة الأنف وأذن وحنجرة | J83: 4 | L83: Percentage | O83: =O82/M82 -> 22.73% | P83: =P82/M82 -> 4.55% | Q83: =Q82/M82 -> 2.27% | R83: =R82/M82 -> 70.45% | Z83: =W82+Y82 -> 200.00% | AO83: عيادات الأطفال | AP83: 3 | AQ83: 2.67 | AR83: 1 | AS83: 6 | AT83: 1 | BD83: Closed Without Response
A84: Week 5 | B84: 27 | E84: Total | F84: =F80+F81+F82+F83 -> 75 | G84: =G80+G81+G82+G83 -> 100.00% | I84: عيادات الأطفال | J84: 3 | L84: Total | M84: =SUM(M80:M83) -> 75 | N84: =N80+N82 -> 100.00% | O84: =O80+O82 -> 20 | P84: =P80+P82 -> 8 | Q84: =Q80+Q82 -> 2 | R84: =R80+R82 -> 45 | S84: =O85+P85+Q85+R85 -> 100.00% | AO84: عيادات الباطنية | AP84: 3 | AQ84: 2.96 | AR84: 0.003 | AS84: 8 | AT84: 0.88 | BD84: Satisfied
A85: Total | B85: =SUM(B80:B84) -> 75 | E85: In-Patient | F85: 10 | G85: =F85/F88 -> 13.33% | I85: عيادات الباطنية | J85: 3 | O85: =O84/M84 -> 26.67% | P85: =P84/M84 -> 10.67% | Q85: =Q84/M84 -> 2.67% | R85: =R84/M84 -> 60.00% | AO85: عيادات الصدرية (أطفال) | AP85: 3 | AQ85: 6.05 | AR85: 13 | AS85: 1.14 | AT85: 4 | BD85: Neutral
E86: Out-Patient | F86: 57 | G86: =F86/F88 -> 76.00% | I86: عيادات الصدرية (أطفال) | J86: 3 | AF86: الشكاوي المغلقة | AG86: خلال 72 | AH86: مبكرة | AI86: متأخرة | AJ86: الموظف المسؤول | AO86: عيادات الطب النفسي | AP86: 3 | AQ86: 4.50 | AR86: 9 | AS86: 0.002 | AT86: Closed | BD86: Dissatisfied
A87: 1st Half | B87: 25 | E87: ER | F87: 8 | G87: =F87/F88 -> 10.67% | I87: عيادات الطب النفسي | J87: 3 | AF87: 3 | AJ87: امال القحطاني | AO87: عيادات العيون | AP87: 3 | AQ87: 9.00 | AR87: 4 | AS87: 6 | AT87: 17 | BD87: No Response
A88: 2nd Half | B88: 50 | E88: Total | F88: =F85+F86+F87 -> 75 | G88: =G85+G86+G87 -> 100.00% | I88: عيادات العيون | J88: 3 | AJ88: تهاني عبدالله القرني | AO88: قسم المختبر | AP88: 3 | AQ88: 3.67 | AR88: 3 | AS88: 3 | AT88: 5 | BD88: Satisfaction Rate | BE88: =(BE84/BE81)*100 -> 
A89: Total | B89: =B87+B88 -> 75 | E89: Medical | F89: 55 | G89: =F89/F92 -> 73.33% | I89: قسم المختبر | J89: 3 | AO89: تنويم النساء والولادة | AP89: 2 | AQ89: 6.00 | AR89: 6 | AS89: Closed | BD89: Response Rate | BE89: =BE81/BE79 -> 0
E90: Admin | F90: 15 | G90: =F90/F92 -> 20.00% | I90: تنويم النساء والولادة | J90: 2 | AO90: عيادات القلب | AP90: 2 | AQ90: 2.50 | AR90: 0.005 | AS90: 5
E91: Nursing | F91: 5 | G91: =F91/F92 -> 6.67% | I91: عيادات القلب | J91: 2 | AF91: Total Escalated | AG91: 10 | AO91: قسم الجهاز الهمضي و الكبد والمناظير | AP91: 2 | AQ91: 13.50 | AR91: 20 | AS91: 7
E92: Total | F92: =F89+F90+F91 -> 75 | G92: =G89+G90+G91 -> 100.00% | I92: قسم الجهاز الهمضي و الكبد والمناظير | J92: 2 | AF92: Total Closed | AG92: 3 | AO92: قسم الصيدلية | AP92: 2 | AQ92: =AVERAGE(AR92:AX92) -> 0.76 | AR92: 0.22 | AS92: 1.3 | BD92: The Rightful Side
I93: قسم الصيدلية | J93: 2 | AO93: تنويم الباطنية | AP93: 1 | AQ93: 5.00 | AR93: 5
I94: تنويم الباطنية | J94: 1 | AF94: Reason For Escalation | AG94: Number | AH94: Percentage | AO94: عيادات الأسنان | AP94: 1 | AQ94: 1.06 | AR94: 1.06 | BD94: Hospital Right | BF94: =BE94/BE96 -> 
I95: عيادات الأسنان | J95: 1 | AF95: عدم رضى المريض | AH95: =AG95/AG98 ->  | AO95: عيادات الصدرية | AP95: 1 | AQ95: 8.00 | AR95: 8 | BD95: Patient Right | BF95: =BE95/BE96 -> 
I96: عيادات الصدرية | J96: 1 | AF96: تأخير الرد من قبل القسم | AH96: =AG96/AG98 ->  | AO96: عيادات الغدد الصماء | AP96: 1 | AQ96: 10.00 | AR96: 10 | BD96: Total | BE96: =BE95+BE94 -> 0 | BF96: =BF94+BF95 -> 
I97: عيادات الغدد الصماء | J97: 1 | AF97: سبب آخر | AH97: =AG97/AG98 ->  | AO97: عيادات جراحة العظام | AP97: 1 | AQ97: 9.00 | AR97: 9
I98: عيادات جراحة العظام | J98: 1 | AF98: Total | AG98: =AG95+AG96+AF97 ->  | AH98: =AH95+AH97+AH96 ->  | AO98: عيادات جراحة المسالك البولية | AP98: 1 | AQ98: 10.00 | AR98: 10
I99: عيادات جراحة المسالك البولية | J99: 1 | AO99: قسم الصيدلية - السويدي | AP99: 1 | AQ99: 0.00 | AR99: 0.002
I100: قسم الصيدلية - السويدي | J100: 1 | AO100: قسم جراحة العظام | AP100: 1 | AQ100: 124.00 | AR100: 124
I101: قسم جراحة العظام | J101: 1 | AO101: وحدة العناية المتوسطة | AP101: 1 | AQ101: 1.00 | AR101: 1
I102: وحدة العناية المتوسطة | J102: 1 | AO102: وحدة العناية المركزة | AP102: 1 | AQ102: 0.01 | AR102: 0.006
I103: وحدة العناية المركزة | J103: 1 | AO103: Total | AP103: =SUM(AP80:AP102) -> 55
I104: Total | J104: =SUM(J81:J103) -> 55
AO105: Non-Medical | AQ105: Average
AO106: قسم التقارير الطبية | AP106: 4 | AQ106: =AVERAGE(AR106:AW106) -> 0.01 | AR106: 0.005 | AS106: 0.0004 | AT106: 0.02 | AU106: Closed
I107: Non-Medical | AO107: قسم الموافقات الطبية | AP107: 4 | AQ107: =AVERAGE(AR107:AW107) -> 0.00 | AR107: 0.002 | AS107: Closed | AT107: 0.007 | AU107: 0.005
I108: قسم التقارير الطبية | J108: 4 | AO108: استقبال العيادات الخارجية | AP108: 3 | AQ108: =AVERAGE(AR108:AW108) -> 6.50 | AR108: 12.5 | AS108: 7 | AT108: 0.002
I109: قسم الموافقات الطبية | J109: 4 | AO109: قسم المواعيد | AP109: 2 | AQ109: =AVERAGE(AR109:AW109) -> 7.00 | AR109: 3 | AS109: 11
I110: استقبال العيادات الخارجية | J110: 3 | AO110: قسم الأمن | AP110: 1 | AQ110: =AVERAGE(AR110:AW110) -> 0.90 | AR110: 0.9
I111: قسم المواعيد | J111: 2 | AO111: قسم علاقات المرضى | AP111: 1 | AQ111: =AVERAGE(AR111:BB111) -> 8.00 | AR111: 8
I112: قسم الأمن | J112: 1 | AO112: Total | AP112: =SUM(AP106:AP111) -> 15
I113: قسم علاقات المرضى | J113: 1
I114: Total | J114: =SUM(J108:J113) -> 15 | AO114: Nursing | AQ114: Average
AO115: تمريض الطوارئ | AP115: 2 | AQ115: =AVERAGE(AR115:AT115) -> 2.20 | AR115: 2.2 | AS115: 2.2
AO116: تمريض الحضانة | AP116: 1 | AQ116: 0.10 | AR116: 0.1
I117: Nursing | AO117: تمريض غرفة تقديم الأدوية الوريدية (20) | AP117: 1 | AQ117: 13.00 | AR117: 13
I118: تمريض الطوارئ | J118: 2 | AO118: تمريض وحدة طويلي الإقامة | AP118: 1 | AQ118: 6.00 | AR118: 6
I119: تمريض الحضانة | J119: 1 | AO119: Total | AP119: =SUM(AP115:AP118) -> 5
I120: تمريض غرفة تقديم الأدوية الوريدية (20) | J120: 1
I121: تمريض وحدة طويلي الإقامة | J121: 1 | AO121: Total | AP121: =AP103+AP112+AP119 -> 75
I122: Total | J122: =SUM(J118:J121) -> 5
I124: Total | J124: =J122+J104+J114 -> 75

Sheet OCT 2022
A1: Week | B1: No. | C1: رقم الشكوى | D1: رقم الملف | E1: جهة الشكوى | F1: الموقع | G1: القسم الرئيس | H1: القسم الفرعي | I1: تاريخ إستلام الشكوى | J1: المدخل | K1: Time line | L1: إرسال نموذج الشكوى | N1: Employee | O1: تحرير الشكوى | Q1: تفعيل الشكوى | S1: Employee | T1: تم ارسال الشكوى | V1: Employee | W1: الوقت بين التحرير والارسال | X1: First Reminder Sent | Z1: Employee | AA1: الوقت بين اول ايميل والارسال | AB1: Second Reminder Sent | AD1: Employee | AE1: الوقت بين ثاني ايميل والاول | AF1: Escalated | AH1: Employee | AI1: Reason of Escalation | AJ1: الوقت بين التصعيد والارسال | AK1: Closed | AM1: Employee | AN1: الوقت بين الاغلاق والارسال | AO1: تاريخ الرد | AQ1: الوقت بين الرد والارسال | AR1: Resolved | AT1: Employee | AU1: الوقت بين المعالجة و الارسال | AV1: ID | AW1: اسم الشخص المشتكى عليه - ان وجد | AX1: Domain | AY1: Category | AZ1: Sub-Category | BA1: Classification | BB1: محتوى الشكوى (عربي) | BC1: محتوى الشكوى (English) | BD1: Satisfied/Dissatisfied | BE1: The Rightful Side | BF1: Recommendation/Action plan | BJ1: رقم الشكوى | BK1: رقم الملف | BL1: جهة الشكوى | BM1: الموقع | BN1: القسم الرئيس | BO1: القسم الفرعي | BP1: تاريخ إستلام الشكوى | BQ1: المدخل | BR1: Time line | BU1: رقم الشكوى | BV1: رقم الملف | BW1: جهة الشكوى | BX1: الموقع | BY1: القسم الرئيس | BZ1: القسم الفرعي | CA1: تاريخ إستلام الشكوى | CB1: المدخل | CC1: Time line | CF1: رقم الشكوى | CG1: رقم الملف | CH1: جهة الشكوى | CI1: الموقع | CJ1: القسم الرئيس | CK1: القسم الفرعي | CL1: تاريخ إستلام الشكوى | CM1: المدخل | CN1: Time line | CQ1: رقم الشكوى | CR1: رقم الملف | CS1: جهة الشكوى | CT1: الموقع | CU1: القسم الرئيس | CV1: القسم الفرعي | CW1: تاريخ إستلام الشكوى | CX1: المدخل | CY1: Time line
L2: Date | M2: Time | O2: Date | P2: Time | Q2: Date | R2: Time | T2: Date | U2: Time | X2: Date | Y2: Time | AB2: Date | AC2: Time | AF2: Date | AG2: Time | AK2: Date | AL2: Time | AO2: Date | AP2: Time | AR2: Date | AS2: Time
A3: 1 | B3: 1 | C3: 286 | D3: 30038792 | E3: مراجع | F3: العيادات الخارجية | G3: الطبي | H3: قسم الصيدلية | I3: 2022-10-02T11:56:00 | J3: تهاني عبدالله القرني | K3: More than 72 Hours | L3: 2022-09-28 | M3: 21:19:00 | N3: تهاني عبدالله القرني | O3: 2022-10-02 | P3: 11:56:00 | T3: 2022-10-01 | U3: 09:58:00 | V3: تهاني عبدالله القرني | W3: =(U3+T3)-(P3+O3) -> -1.081944444 | X3: 2022-10-02 | Y3: 11:57:00 | Z3: تهاني عبدالله القرني | AA3: =(Y3+X3)-(U3+T3) -> 1.082638889 | AB3: 2022-10-03 | AC3: 15:41:00 | AD3: تهاني عبدالله القرني | AE3: =(AC3+AB3)-(Y3+X3) -> 1.155555556 | AF3: 2022-10-04 | AG3: 14:42:00 | AH3: تهاني عبدالله القرني | AI3: No Response | AJ3: =(AG3+AF3)-(U3+T3) -> 3.197222222 | AN3: =(AL3+AK3)-(U3+T3) -> -44835.41528 | AO3: 2022-10-04 | AP3: 12:00:00 | AQ3: =(AP3+AO3)-(U3+T3) -> 3.084722222 | AR3: 2022-10-05 | AS3: 16:13:00 | AT3: تهاني عبدالله القرني | AU3: =(AS3+AR3)-(U3+T3) -> 4.260416667 | AX3: Relationship complaints | AY3: 5. Communication | AZ3: 5.1.Patient-staff Communication | BA3: 5.1.1.Miscommunication with Patient | BB3: بتاريخ 28-09-2022 تم توجهي في الفتره المسائية الى قسم الصيدلية حيث ان الصيدلي كان يرغب في تقليل الكمية المصروفة من الطبيب و شركة التامين من ١٠ حبات الى ٦ حبات وقام بالقاء الكيس في وجهي لرفضه اعطائي كيس لملأ الادوية و قال قم بتعبئتها بنفسك. | BC3: On 28-09-2022, I went to the pharmacy in the evening because the pharmacist wanted to reduce the quantity dispensed by the doctor and the insurance company from 10 pills to 6 pills. He threw the bag in my face because he refused to give me a bag to fill with the medicines and said, “Fill it yourself.” | BE3: Patient | BJ3: 381 | BK3: 2526007451 | BL3: مجلس الضمان الصحي | BM3: الطوارئ | BN3: الإداري | BO3: استقبال الطوارئ | BP3: 2022-10-16T17:53:00 | BQ3: امال القحطاني | BR3: More than 72 Hours | BU3: 364 | BV3: 30225282 | BW3: وزارة الصحة | BX3: العيادات الخارجية | BY3: الطبي | BZ3: قسم التغذية | CA3: 2022-10-02T12:02:00 | CB3: تهاني عبدالله القرني | CC3: More than 72 Hours | CF3: 286 | CG3: 30038792 | CH3: مراجع | CI3: العيادات الخارجية | CJ3: الطبي | CK3: قسم الصيدلية | CL3: 2022-10-02T11:56:00 | CM3: تهاني عبدالله القرني | CN3: More than 72 Hours | CQ3: 217 | CR3: 30214986 | CS3: ذوي المراجع | CT3: العيادات الخارجية | CU3: الطبي | CV3: عيادات جراحة عظام (أطفال) | CW3: 2022-10-05T16:31:00 | CX3: تهاني عبدالله القرني | CY3: More than 72 Hours
B4: 2 | C4: 364 | D4: 30225282 | E4: وزارة الصحة | F4: العيادات الخارجية | G4: الطبي | H4: قسم التغذية | I4: 2022-10-02T12:02:00 | J4: تهاني عبدالله القرني | K4: More than 72 Hours | L4: 2022-10-02 | M4: 12:02:00 | N4: تهاني عبدالله القرني | O4: 2022-10-02 | P4: 12:02:00 | T4: 2022-10-10 | U4: 14:54:00 | V4: امال القحطاني | W4: 8.119444444 | AA4: -44844.62083 | AE4: 0 | AJ4: -44844.62083 | AN4: -44844.62083 | AO4: 2022-10-10 | AP4: 14:54:00 | AQ4: 0 | AR4: 2022-10-10 | AS4: 14:54:00 | AT4: امال القحطاني | AU4: 0 | AW4: DR. MUNEERAH ALHAMMADI | AX4: Management complaints | AY4: 4. Accessibility | AZ4: 4.1.Access | BA4: 4.1.2.Poor availability and scheduling | BB4: لدي موعد حيث تم رفض استقبالي من قبل الاخصائية وذلك بسبب انتهاء فترة دوامها | BC4: I had an appointment, but the specialist refused to see me because her working hours had ended. | BE4: Hospital | BJ4: 426 | BK4: 30214165 | BL4: مجلس الضمان الصحي | BM4: العيادات الخارجية | BN4: الإداري | BO4: قسم التقارير الطبية | BP4: 2022-10-19T10:52:00 | BQ4: تهاني عبدالله القرني | BR4: 48 Hours | BU4: 325 | BV4: 30201834 | BW4: وزارة الصحة | BX4: العيادات الخارجية | BY4: الإداري | BZ4: قسم الإدارة | CA4: 2022-10-03T16:28:00 | CB4: امال القحطاني | CC4: 24 Hours | CF4: 337 | CG4: 30046786 | CH4: مراجع | CI4: التنويم | CJ4: الخدمات المساندة | CK4: قسم النظافة | CL4: 2022-10-05T18:37:00 | CM4: تهاني عبدالله القرني | CN4: More than 72 Hours | CQ4: 328 | CR4: 30189786 | CS4: ذوي المراجع | CT4: العيادات الخارجية | CU4: الطبي | CV4: عيادات النساء والولادة | CW4: 2022-10-05T20:29:00 | CX4: امال القحطاني | CY4: More than 72 Hours
B5: 3 | C5: 325 | D5: 30201834 | E5: وزارة الصحة | F5: العيادات الخارجية | G5: الإداري | H5: قسم الإدارة | I5: 2022-10-03T16:28:00 | J5: امال القحطاني | K5: 24 Hours | L5: 2022-10-03 | M5: 16:28:00 | N5: امال القحطاني | O5: 2022-10-03 | P5: 16:28:00 | T5: 2022-10-03 | U5: 17:04:00 | V5: امال القحطاني | W5: 0.02499999999 | AA5: -44837.71111 | AE5: 0 | AJ5: -44837.71111 | AN5: -44837.71111 | AO5: 2022-10-03 | AP5: 17:04:00 | AQ5: 0 | AR5: 2022-10-03 | AS5: 17:04:00 | AT5: امال القحطاني | AU5: 0 | AX5: Relationship complaints | AY5: 5. Communication | AZ5: 5.1.Patient-staff Communication | BA5: 5.1.1.Miscommunication with Patient | BB5: تم الحضور لعمل فحوصات عند الدكتوره عزه وتم اخبارنا بالرجوع لقوى الامن للموافقه من قبل الدكتور. | BC5: I attended my second appointment with the doctor and was told I had to pay a new consultation fee. | BE5: Hospital | BU5: 326 | BV5: 30224287 | BW5: وزارة الصحة | BX5: العيادات الخارجية | BY5: الإداري | BZ5: قسم الإدارة | CA5: 2022-10-03T17:33:00 | CB5: امال القحطاني | CC5: 24 Hours | CF5: 45 | CG5: 30009475 | CH5: مراجع | CI5: العيادات الخارجية | CJ5: الطبي | CK5: عيادات القلب | CL5: 2022-10-06T12:39:00 | CM5: امال القحطاني | CN5: More than 72 Hours | CQ5: 332 | CR5: 30142453 | CS5: ذوي المراجع | CT5: العيادات الخارجية | CU5: الطبي | CV5: عيادات الأطفال | CW5: 2022-10-05T20:45:00 | CX5: امال القحطاني | CY5: 72 Hours
B6: 4 | C6: 326 | D6: 30224287 | E6: وزارة الصحة | F6: العيادات الخارجية | G6: الإداري | H6: قسم الإدارة | I6: 2022-10-03T17:33:00 | J6: امال القحطاني | K6: 24 Hours | L6: 2022-10-03 | M6: 05:33:00 | N6: امال القحطاني | O6: 2022-10-03 | P6: 17:33:00 | T6: 2022-10-03 | U6: 17:44:00 | V6: امال القحطاني | W6: 0.007638888892 | AA6: -44837.73889 | AE6: 0 | AJ6: -44837.73889 | AN6: -44837.73889 | AO6: 2022-10-03 | AP6: 17:44:00 | AQ6: 0 | AR6: 2022-10-03 | AS6: 17:44:00 | AT6: امال القحطاني | AU6: 0 | AX6: Management complaints | AY6: 3. Institutional issues | AZ6: 3.4.Finance and Billing | BA6: 3.4.3.Calculate Additional amount | BB6: تم الحضور للمراجعه الثانيه للدكتور وتم اخباري بدفع مبلغ كشفيه جديد | BC6: I attended my second appointment with the doctor and was told I had to pay a new consultation fee. | BE6: Patient | BU6: 334 | BV6: 30216560 | BW6: وزارة الصحة | BX6: العيادات الخارجية | BY6: الطبي | BZ6: عيادات النساء والولادة | CA6: 2022-10-05T11:04:00 | CB6: تهاني عبدالله القرني | CC6: More than 72 Hours | CF6: 220 | CG6: 30095856 | CH6: مراجع | CI6: العيادات الخارجية | CJ6: الطبي | CK6: عيادات جراحة العظام | CL6: 2022-10-06T13:06:00 | CM6: امال القحطاني | CN6: 24 Hours | CQ6: 345 | CR6: 30079070 | CS6: ذوي المراجع | CT6: الطوارئ | CU6: التمريض | CV6: تمريض الطوارئ | CW6: 2022-10-08T14:53:00 | CX6: تهاني عبدالله القرني | CY6: More than 72 Hours
B7: 5 | C7: 334 | D7: 30216560 | E7: وزارة الصحة | F7: العيادات الخارجية | G7: الطبي | H7: عيادات النساء والولادة | I7: 2022-10-05T11:04:00 | J7: تهاني عبدالله القرني | K7: More than 72 Hours | L7: 2022-10-05 | M7: 10:57:00 | N7: تهاني عبدالله القرني | O7: 2022-10-05 | P7: 11:04:00 | T7: 2022-10-05 | U7: 11:04:00 | V7: تهاني عبدالله القرني | W7: 0 | X7: 2022-10-06 | Y7: 13:05:00 | Z7: تهاني عبدالله القرني | AA7: 1.084027778 | AB7: 2022-10-08 | AC7: 11:11:00 | AD7: تهاني عبدالله القرني | AE7: 1.920833333 | AF7: 2022-10-08 | AG7: 15:16:00 | AH7: تهاني عبدالله القرني | AI7: No Response | AJ7: 3.175 | AN7: -44839.46111 | AO7: 2022-10-08 | AP7: 18:09:00 | AQ7: 3.295138889 | AR7: 2022-10-09 | AS7: 09:53:00 | AT7: تهاني عبدالله القرني | AU7: 3.950694444 | AV7: 11087 | AW7: DR. MARWA ABDUALRHMAN HUSINEI | AX7: Clinical complaints | AY7: 1. Quality | AZ7: 1.1. Examination | BA7: 1.1.2. Inadequate/incomplete assessment | BB7: تم الحضور بتاريخ 20-08-2022 لموعد المراجعة بعد العملية بعشر ايام لم يتم الكشف علي جيدا حيث لم يتم ازالة خيوط العملية من قبل الطبيبة او ابلاغي بزيارة العيادة مرة اخرى مما ادى الى التهاب الجرح بعد شهر و تم ازالة الخيوط بعد شهر . | BC7: I attended on 20-08-2022 for a follow-up appointment ten days after the operation. I was not examined properly as the doctor did not remove the surgical threads or inform me to visit the clinic again, which led to an infection of the wound after a month, and the threads were removed after a month. | BE7: Patient | BU7: 335 | BV7: 30209922 | BW7: وزارة الصحة | BX7: التنويم | BY7: التمريض | BZ7: تمريض الحضانة | CA7: 2022-10-05T11:04:00 | CB7: تهاني عبدالله القرني | CC7: 24 Hours | CF7: 337 | CG7: 30046786 | CH7: مراجع | CI7: التنويم | CJ7: التمريض | CK7: تمريض قسم عمليات الولادة | CL7: 2022-10-08T14:39:00 | CM7: تهاني عبدالله القرني | CN7: 24 Hours | CQ7: 342 | CR7: 30224231 | CS7: ذوي المراجع | CT7: العيادات الخارجية | CU7: الطبي | CV7: عيادات التخدير | CW7: 2022-10-08T15:30:00 | CX7: امال القحطاني | CY7: More than 72 Hours
B8: 6 | C8: 335 | D8: 30209922 | E8: وزارة الصحة | F8: التنويم | G8: التمريض | H8: تمريض الحضانة | I8: 2022-10-05T11:04:00 | J8: تهاني عبدالله القرني | K8: 24 Hours | L8: 2022-10-05 | M8: 11:04:00 | N8: تهاني عبدالله القرني | O8: 2022-10-05 | P8: 11:04:00 | T8: 2022-10-05 | U8: 11:22:00 | V8: تهاني عبدالله القرني | W8: 0.0125 | AA8: -44839.47361 | AE8: 0 | AJ8: -44839.47361 | AN8: -44839.47361 | AO8: 2022-10-05 | AP8: 11:22:00 | AQ8: 0 | AR8: 2022-10-05 | AS8: 11:22:00 | AT8: تهاني عبدالله القرني | AU8: 0 | AX8: Relationship complaints | AY8: 5. Communication | AZ8: 5.1.Patient-staff Communication | BA8: 5.1.2.Poor provider-patient communication | BB8: تم اعطاء الطفله حليب صناعي ولم يتم الموافقه على ذلك من قبل الام . | BC8: The baby was given formula milk, but this was not approved by the mother. | BE8: Patient | BU8: 336 | BV8: 1841087 | BW8: وزارة الصحة | BX8: التنويم | BY8: التمريض | BZ8: تمريض تنويم الأطفال | CA8: 2022-10-05T11:35:00 | CB8: تهاني عبدالله القرني | CC8: 48 Hours | CF8: 351 | CG8: 1841370 | CH8: مراجع | CI8: العيادات الخارجية | CJ8: الطبي | CK8: عيادات الجهاز الهضمي والمناظير | CL8: 2022-10-08T15:23:00 | CM8: امال القحطاني | CN8: More than 72 Hours | CQ8: 360 | CR8: 30219377 | CS8: ذوي المراجع | CT8: التنويم | CU8: التمريض | CV8: تمريض تنويم الأطفال | CW8: 2022-10-10T13:35:00 | CX8: تهاني عبدالله القرني | CY8: 24 Hours
B9: 7 | C9: 336 | D9: 1841087 | E9: وزارة الصحة | F9: التنويم | G9: التمريض | H9: تمريض تنويم الأطفال | I9: 2022-10-05T11:35:00 | J9: تهاني عبدالله القرني | K9: 48 Hours | L9: 2022-10-05 | M9: 11:35:00 | N9: تهاني عبدالله القرني | O9: 2022-10-05 | P9: 11:35:00 | T9: 2022-10-05 | U9: 12:51:00 | V9: تهاني عبدالله القرني | W9: 0.05277777778 | AA9: -44839.53542 | AE9: 0 | AJ9: -44839.53542 | AN9: -44839.53542 | AO9: 2022-10-06 | AP9: 13:20:00 | AQ9: 1.020138889 | AR9: 2022-10-06 | AS9: 13:20:00 | AT9: تهاني عبدالله القرني | AU9: 1.020138889 | AX9: Relationship complaints | AY9: 5. Communication | AZ9: 5.1.Patient-staff Communication | BA9: 5.1.2.Poor provider-patient communication | BB9: في 27 أكتوبر 2022، قامت الممرضة بإزالة القنية من الطفل في الساعة 12:00 ولم تعيدها إلا في الساعة 4:00، وكان الطفل بحاجة إلى الرضاعة من خلالها وتناول دوائه، وقد سألت الأم الممرضات عدة مرات لكنهن لم يستجبن لها. | BC9: On 27 OCT 2022, the nurse removed the cannula from the baby at 12:00 and they didn’t put back until 4:00 and the baby need to feed through it and take his medicine and the mother asked the nurses many time but they did not responded to her. | BE9: Patient | BU9: 375 | BV9: 30219377 | BW9: وزارة الصحة | BX9: التنويم | BY9: الطبي | BZ9: تنويم الأطفال | CA9: 2022-10-09T12:40:00 | CB9: تهاني عبدالله القرني | CC9: More than 72 Hours | CF9: 347 | CG9: 30017325 | CH9: مراجع | CI9: العيادات الخارجية | CJ9: الطبي | CK9: عيادات الأسنان | CL9: 2022-10-09T13:04:00 | CM9: تهاني عبدالله القرني | CN9: 24 Hours | CQ9: 360 | CR9: 30219377 | CS9: ذوي المراجع | CT9: التنويم | CU9: الطبي | CV9: تنويم الأطفال | CW9: 2022-10-10T13:39:00 | CX9: تهاني عبدالله القرني | CY9: More than 72 Hours
B10: 8 | C10: 217 | D10: 30214986 | E10: ذوي المراجع | F10: العيادات الخارجية | G10: الطبي | H10: عيادات جراحة عظام (أطفال) | I10: 2022-10-05T16:31:00 | J10: تهاني عبدالله القرني | K10: More than 72 Hours | L10: 2022-09-13 | M10: 18:32:00 | N10: تهاني عبدالله القرني | O10: 2022-10-05 | P10: 16:31:00 | Q10: 2022-09-17 | R10: 19:53:00 | S10: تهاني عبدالله القرني | T10: 2022-09-17 | U10: 19:53:00 | V10: تهاني عبدالله القرني | W10: -17.85972222 | X10: 2022-10-05 | Y10: 16:30:00 | Z10: تهاني عبدالله القرني | AA10: 17.85902778 | AB10: 2022-10-05 | AC10: 16:31:00 | AD10: تهاني عبدالله القرني | AE10: 0.0006944444467 | AF10: 2022-10-08 | AG10: 11:03:00 | AH10: تهاني عبدالله القرني | AI10: No Response | AJ10: 20.63194444 | AN10: -44821.82847 | AO10: 2022-12-29 | AP10: 12:47:00 | AQ10: 102.7041667 | AR10: 2022-12-29 | AS10: 12:47:00 | AT10: تهاني عبدالله القرني | AU10: 102.7041667 | AV10: 90024 | AW10: DR. NIZAR BURHAN AHMED HAMDI | AX10: Management complaints | AY10: 4. Accessibility | AZ10: 4.1.Access | BA10: 4.1.2.Poor availability and scheduling | BB10: قمنا بزيارة المستشفى بتاريخ ٩/١٣ لعيادة د.نزار قبل بداية موعد العيادة بنصف ساعة وعند الاستقبال سألنا الموظف اذا كان لدينا موعد فأجبنا بعدم وجود موعد ونريد موعد انتظار وتم قبولنا كموعد انتظار وطلب منا الانتظار لدى العيادة . وبعد مجيء الدكتور للعيادة خرجت الممرضة وقامت بالنداء على ٣ أسماء من بينهم اسمنا وتوجهنا الى الاستقبال ، وتم اخبارنا من قبل موظف الاستقبال بان الطبيب لا يريد أن يستقبلنا وأن نذهب لإسترجاع قيمتها .. | BC10: We visited the hospital on September 13th for Dr. Nizar's clinic, arriving half an hour before our scheduled appointment. At reception, the receptionist asked if we had an appointment, and we replied that we didn't and wanted a waiting list. We were accepted and asked to wait at the clinic. After the doctor arrived, a nurse called out three names, including ours, and we went back to reception. The receptionist informed us that the doctor didn't want to see us and that we should go and get a refund. | BE10: Patient | BU10: 358 | BV10: 30168358 | BW10: وزارة الصحة | BX10: العيادات الخارجية | BY10: الطبي | BZ10: قسم العلاج الطبيعي | CA10: 2022-10-09T15:46:00 | CB10: امال القحطاني | CC10: 24 Hours | CF10: 341 | CG10: 3534 | CH10: مراجع | CI10: العيادات الخارجية | CJ10: الطبي | CK10: عيادات الأسنان | CL10: 2022-10-09T15:29:00 | CM10: امال القحطاني | CN10: More than 72 Hours | CQ10: 333 | CR10: 30163241 | CS10: ذوي المراجع | CT10: التنويم | CU10: التمريض | CV10: تمريض تنويم الأطفال | CW10: 2022-10-11T22:12:00 | CX10: امال القحطاني | CY10: More than 72 Hours
B11: 9 | C11: 337 | D11: 30046786 | E11: مراجع | F11: التنويم | G11: الخدمات المساندة | H11: قسم النظافة | I11: 2022-10-05T18:37:00 | J11: تهاني عبدالله القرني | K11: More than 72 Hours | L11: 2022-10-05 | M11: 12:56:00 | N11: تهاني عبدالله القرني | O11: 2022-10-08 | P11: 14:39:00 | Q11: 2022-10-08 | R11: 14:38:00 | S11: تهاني عبدالله القرني | T11: 2022-10-08 | U11: 14:43:00 | V11: تهاني عبدالله القرني | W11: 0.002777777772 | X11: 2022-10-09 | Y11: 11:16:00 | Z11: تهاني عبدالله القرني | AA11: 0.85625 | AE11: -44843.46944 | AJ11: -44842.61319 | AN11: -44842.61319 | AO11: 2022-10-11 | AP11: 08:41:00 | AQ11: 2.748611111 | AR11: 2022-10-31 | AS11: 12:05:00 | AT11: تهاني عبدالله القرني | AU11: 22.89027778 | AX11: Management complaints | AY11: 3. Institutional issues | AZ11: 3.2.Environment | BA11: 3.2.2.Poor cleanliness/sanitizing | BB11: تم حضوري بتاريخ 3 اكتوبر 2022م للولادة حيث حيث تم انعدام النظافة في غرفة الولادة ، تم وجود اغراض المريضة السابقة في الغرفة بالاضافة الى وجود دم في ارضية الغرفة . تم حضور العاملة لتنظيف غرفة 4161 ولم يكن التنظيف جيدا من قبلها . | BC11: I was admitted on October 3, 2022, for childbirth. The delivery room was unsanitary; the previous patient's belongings were still there, and there was blood on the floor. The cleaning staff member came to clean room 4161, but the cleaning was inadequate. | BE11: Patient | BU11: 359 | BV11: 30070250 | BW11: وزارة الصحة | BX11: العيادات الخارجية | BY11: الطبي | BZ11: قسم الصيدلية | CA11: 2022-10-09T16:19:00 | CB11: تهاني عبدالله القرني | CC11: 24 Hours | CF11: 372 | CG11: 30214852 | CH11: مراجع | CI11: التنويم | CJ11: التمريض | CK11: تمريض الحضانة | CL11: 2022-10-11T18:56:00 | CM11: تهاني عبدالله القرني | CN11: More than 72 Hours | CQ11: 380 | CR11: 30175825 | CS11: ذوي المراجع | CT11: العيادات الخارجية | CU11: الطبي | CV11: قسم المختبر | CW11: 2022-10-13T17:26:00 | CX11: امال القحطاني | CY11: More than 72 Hours
B12: 10 | C12: 328 | D12: 30189786 | E12: ذوي المراجع | F12: العيادات الخارجية | G12: الطبي | H12: عيادات النساء والولادة | I12: 2022-10-05T20:29:00 | J12: امال القحطاني | K12: More than 72 Hours | L12: 2022-10-03 | M12: 20:43:00 | N12: امال القحطاني | O12: 2022-10-05 | P12: 20:29:00 | Q12: 2022-10-04 | R12: 17:32:00 | S12: امال القحطاني | T12: 2022-10-05 | U12: 20:05:00 | V12: امال القحطاني | W12: -0.01666666667 | X12: 2022-10-06 | Y12: 16:36:00 | Z12: امال القحطاني | AA12: 0.8548611111 | AE12: -44840.69167 | AJ12: -44839.83681 | AN12: -44839.83681 | AO12: 2022-10-09 | AP12: 13:04:00 | AQ12: 3.707638889 | AR12: 2022-10-23 | AS12: 16:31:00 | AT12: امال القحطاني | AU12: 17.85138889 | AV12: 14768 | AW12: DR. HANA MOHAMED SONBOL | AX12: Clinical complaints | AY12: 1. Quality | AZ12: 1.3.Quality of Care | BA12: 1.3.1.Substandard clinical/nursing care | BB12: تم تركيب جهاز اللولب بطريقة خاطئة وبدون استخدام السونار وتم الرجوع للطبيبة وقامت بتركيبه للمره الثانيه بطريقة خاطئة وتم انتظارها للمره الثالثة لتاتي وتقوم بالتركيب وتم الانتظار لمدة طويلة وتم دخول عدد من المرضى قبلي وطلبت وتم التواصل مع الممرضه لتحدث مع الطبيبه ولم يت الرد من قبل الطبيبه المعالجه . | BC12: The IUD was inserted incorrectly and without using ultrasound. I went back to the doctor and she inserted it a second time incorrectly. I waited for her to come a third time and insert it. I waited for a long time and a number of patients entered before me. I asked and contacted the nurse to talk to the doctor, but there was no response from the treating doctor. | BE12: Patient | BJ12: Employee Name | BK12: Number of complaints | BL12: Total Percentage | BM12: 24 Hours | BN12: 48 Hours | BO12: 72 Hours | BP12: More than 72 hours | BQ12: Total | BU12: 373 | BV12: 1362357 | BW12: وزارة الصحة | BX12: التنويم | BY12: التمريض | BZ12: تمريض تنويم الأطفال | CA12: 2022-10-11T14:51:00 | CB12: تهاني عبدالله القرني | CC12: 24 Hours | CF12: 377 | CG12: 30056493 | CH12: مراجع | CI12: العيادات الخارجية | CJ12: الطبي | CK12: عيادات النساء والولادة | CL12: 2022-10-12T20:39:00 | CM12: امال القحطاني | CN12: 72 Hours | CQ12: 396 | CR12: 30226880 | CS12: ذوي المراجع | CT12: العيادات الخارجية | CU12: الطبي | CV12: عيادات النساء والولادة | CW12: 2022-10-15T20:31:00 | CX12: امال القحطاني | CY12: More than 72 Hours
B13: 11 | C13: 332 | D13: 30142453 | E13: ذوي المراجع | F13: العيادات الخارجية | G13: الطبي | H13: عيادات الأطفال | I13: 2022-10-05T20:45:00 | J13: امال القحطاني | K13: 72 Hours | L13: 2022-10-05 | M13: 20:46:00 | N13: امال القحطاني | O13: 2022-10-04 | P13: 20:13:00 | Q13: 2022-10-05 | R13: 20:46:00 | S13: امال القحطاني | T13: 2022-10-05 | U13: 20:46:00 | V13: امال القحطاني | W13: 1.022916667 | AA13: -44839.86528 | AE13: 0 | AJ13: -44839.86528 | AN13: -44839.86528 | AO13: 2022-10-06 | AP13: 12:01:00 | AQ13: 0.6354166667 | AR13: 2022-10-08 | AS13: 18:36:00 | AT13: امال القحطاني | AU13: 2.909722222 | AV13: 13667 | AW13: DR. IKRAM RABEH AYED | AX13: Clinical complaints | AY13: 1. Quality | AZ13: 1.4.Treatment | BA13: 1.5.1.Errors in diagnosis | BB13: تم الكشف في اخر زياره عند دكتور خارج مستشفى الحمادي وتبين وجود خلع من وقت الولاده لدى الطفله وتم الحضور لمستشفى الحمادي للتاكد وزيارة دكتور من داخل المستشفى وتبين نفس التشخيص بوجود خلع ويتوجب للتدخل الجراحي علما انه تم الكشف من قبل الطبيبه المعالجه بعد الولاده وتم خروج الطفله بدون اي ملاحظات تذكر وتم مراجعة المستشفى مره اخرى عندما تبين ان هناك شد بالرجل اليسرى للطفله وتم اخبارانا لا يوجد مايستدعي القلق ولكن بعد فتره وعند مشي الطفل تبين بوجود مشكله بالرجل اليسرى . | BC13: The last visit was to a doctor outside Al-Hammadi Hospital, and it was found that the child had a dislocation from the time of birth. We went to Al-Hammadi Hospital to confirm and visit a doctor from inside the hospital, and the same diagnosis was found, that there was a dislocation and that surgical intervention was required. Note that the treating doctor had examined the child after birth, and the child was discharged without any remarks. We went back to the hospital when it was found that there was a pull in the child’s left leg, and we were told that there was nothing to worry about. But after a while, when the child started walking, it became clear that there was a problem with the left leg. | BE13: Patient | BJ13: امل القحطاني | BK13: 1 | BL13: =BK13/BK15 -> 50.00% | BP13: 1 | BQ13: =BK13 -> 1 | BU13: 374 | BV13: 30152460 | BW13: وزارة الصحة | BX13: العيادات الخارجية | BY13: الإداري | BZ13: قسم التقارير الطبية | CA13: 2022-10-12T10:47:00 | CB13: تهاني عبدالله القرني | CC13: 24 Hours | CF13: 382 | CG13: 30227199 | CH13: مراجع | CI13: العيادات الخارجية | CJ13: الطبي | CK13: عيادات النساء والولادة | CL13: 2022-10-13T17:22:00 | CM13: امال القحطاني | CN13: 48 Hours | CQ13: 396 | CR13: 30226880 | CS13: ذوي المراجع | CT13: العيادات الخارجية | CU13: الطبي | CV13: عيادات الأطفال | CW13: 2022-10-15T20:31:00 | CX13: امال القحطاني | CY13: More than 72 Hours
B14: 12 | C14: 45 | D14: 30009475 | E14: مراجع | F14: العيادات الخارجية | G14: الطبي | H14: عيادات القلب | I14: 2022-10-06T12:39:00 | J14: امال القحطاني | K14: More than 72 Hours | L14: 2022-08-31 | M14: 19:37:00 | N14: امال القحطاني | O14: 2022-10-06 | P14: 12:39:00 | Q14: 2022-09-07 | R14: 16:04:00 | S14: امال القحطاني | T14: 2022-09-10 | U14: 12:51:00 | V14: امال القحطاني | W14: -25.99166667 | X14: 2022-10-01 | Y14: 16:37:00 | Z14: تهاني عبدالله القرني | AA14: 21.15694444 | AB14: 2022-10-01 | AC14: 16:38:00 | AD14: تهاني عبدالله القرني | AE14: 0.0006944444467 | AF14: 2022-10-02 | AG14: 17:50:00 | AH14: امال القحطاني | AI14: No Response | AJ14: 22.20763889 | AK14: 2022-10-10 | AL14: 11:33:00 | AM14: تهاني عبدالله القرني | AN14: 29.94583333 | AQ14: -44814.53542 | AU14: -44814.53542 | AW14: DR.SAAD ALZAHRANI | AX14: Clinical complaints | AY14: 1. Quality | AZ14: 1.2.Patient journey | BA14: 1.2.2.Patient flow issues | BB14: تم الحضور على الموعد من قبلي ولم يتم الدخول الا بعد انتظار طويل امام العياده علما انه يتم دخول المرضى للعياده ولم يتم دخولي الا بعد التحدث واخبارهم ان موعدي اوشك على الانتهاء . | BC14: I arrived on time for my appointment, but I was only allowed in after a long wait in front of the clinic. Patients were already being admitted, but I was only allowed in after speaking and informing them that my appointment was about to end. | BE14: Patient | BJ14: تهاني عبدالله القرني | BK14: 1 | BL14: =BK14/BK15 -> 50.00% | BN14: 1 | BQ14: 1 | BU14: 378 | BV14: 30053430 | BW14: وزارة الصحة | BX14: الطوارئ | BY14: الطبي | BZ14: أطباء الطوارئ | CA14: 2022-10-12T19:24:00 | CB14: امال القحطاني | CC14: More than 72 Hours | CF14: 385 | CG14: 671821 | CH14: مراجع | CI14: العيادات الخارجية | CJ14: الطبي | CK14: عيادات جراحة العظام | CL14: 2022-10-15T17:34:00 | CM14: امال القحطاني | CN14: 48 Hours | CQ14: 388 | CR14: 30121269 | CS14: ذوي المراجع | CT14: العيادات الخارجية | CU14: التمريض | CV14: تمريض العيادات الخارجية | CW14: 2022-10-16T10:11:00 | CX14: امال القحطاني | CY14: 24 Hours
B15: 13 | C15: 220 | D15: 30095856 | E15: مراجع | F15: العيادات الخارجية | G15: الطبي | H15: عيادات جراحة العظام | I15: 2022-10-06T13:06:00 | J15: امال القحطاني | K15: 24 Hours | L15: 2022-09-15 | M15: 11:21:00 | N15: امال القحطاني | O15: 2022-10-06 | P15: 13:06:00 | Q15: 2022-10-15 | R15: 11:32:00 | S15: امال القحطاني | T15: 2022-10-15 | U15: 11:38:00 | V15: امال القحطاني | W15: 8.938888889 | AA15: -44849.48472 | AE15: 0 | AJ15: -44849.48472 | AN15: -44849.48472 | AO15: 2022-10-15 | AP15: 12:37:00 | AQ15: 0.04097222222 | AR15: 2022-10-15 | AS15: 17:33:00 | AT15: امال القحطاني | AU15: 0.2465277778 | AV15: 13131 | AW15: DR. MOATH SAMI ALAHMAD | AX15: Clinical complaints | AY15: 1. Quality | AZ15: 1.4.Treatment | BA15: 1.4.1.Treatment plan issues | BB15: حصل لي حادث سيارة وعند وصول الإسعاف طلبت الذهاب الى مستشفى الحمادي فرع النزهة دخلت الطوارئ وتم عمل اشعة وتحاليل وتم ربط يدي اليمين حيث ان كلتا العظمتين قد كسروا. وبعد موافقة التأمينات وتشخيص الاطباء . تم عمل جراحه لتركيب شرائح فى العظمتين. قام الدكتور معاذ سامي الأحمد بفتح اليد وتركيب شريحتين فى الساعد والزند وخرجت من المستشفى بعدها . وتابعت مع نفس الدكتور وظهر ان الجرح من جهة الزند لم يغلق ثم اخذ عينه من الجرح ليظهر ان الجرح ملتهب جداً وطلب منى ان اتي الى المستشفى ليتم الغيار عليه يوم بعد الآخر ثم طلبت منه الذهاب الى أجازة فوافق . وطلب مني أن اواصل الغيار على الجرح يوم تلو الآخر. وبعد ذهابي الى اكثر من طبيب قالوا انت عندك مشكلة فى الجرح وهذا خطأ وكتب تقرير بهذا ومع متابعة دكتور عظام اخر طلب مني التحليل بعد العملية فاعطيته . وقرر ان يجرى لي عملية تطهير بعد إرتفاع درجة الحرارة الى ٥:٣٩. واجريت العملية ورفع الشريحة قال انت عندك التهاب بكتيري فى عظمة الزند واستأصل الجزء الملتهب وطلب ان يجري عملية لتركيب الشريحة مره اخرى. وأرسل الى التأمين بالموافقة على ذلك بعد ان تم الرفض من قبل التأمين أكثر من مره.. ثم تم اخذ عينات لتحليلها وقال بانه لايوجد شئ. وأجرى لي الدكتور معاذ ومعه الدكتور الاستشاري العملية باخذ خمسة سم من عظمة الحوض لوصل عظمة الزند بعد ان استاصل الجزء الملتهب. ثم خرجت وتابعتهم وتم فك السلك من الجرح. وبعد عدة ايام ظهر التهاب خارج الجرح وطلب الدكتور تحاليل وظهر ان الالتهاب داخل الجرح وسيتم إجراء عملية جراحية اخرى وقد تم بالفعل مع دكتور استشاري آخر من قبل المستشفى ومع المتابعة ظهر صديد وطلب منى اخذ عينه منه واتضح بأنه التهاب. وبعد مواصلة اخذ المضاد الحيوي تحسن الالتهاب الى ان إللتأم الجرح . وبعد إجراء العلاج الطبيعي طلب منى الدكتور إجراء فحص الدم والنتيجة ارتفاع نسبة الالتهاب واثناء مراجعة المستشفى لديكم وكثرة الاجراءات تواصلت مع الشركة التي اعمل بها ثم قيل انه تم إنهاء العقد بسبب تأخير العمل . | BC15: I was in a car accident, and when the ambulance arrived, I asked to go to Al-Hammadi Hospital, Al-Nuzha branch. I went to the emergency room, where they did X-rays and blood tests. My right hand was then bandaged because both bones were broken. After the insurance company approved the surgery and the doctors diagnosed the fractures, surgery was performed to insert plates in both bones. Dr. Muath Sami Al-Ahmad opened my hand and inserted two plates in my forearm and ulna. I was discharged from the hospital afterward. I followed up with the same doctor, and it turned out that the wound on my ulna hadn't closed. He took a sample from the wound and found it was very infected. He asked me to come to the hospital for daily dressing changes. I asked him to take leave, and he agreed. He told me to continue dressing the wound daily. After seeing several doctors, they said I had a problem with the wound, which was a mistake, and they wrote a report to that effect. Another orthopedic doctor followed up and asked me for blood tests after the surgery, which I gave him. He decided to perform a debridement procedure after my temperature rose to 39°C. The operation was performed, and the plate was removed. The doctor diagnosed a bacterial infection in the ulna bone and removed the infected part. He requested another operation to reinsert the plate. He sent a letter of approval to the insurance company after they had rejected the request multiple times. Samples were taken for analysis, and the results showed no abnormalities. Dr. Muath and the consultant performed the operation, taking five centimeters from the pelvic bone to reconnect the ulna bone after removing the infected part. I was discharged and followed up with them. The sutures were removed from the wound. Several days later, an infection appeared outside the wound. The doctor ordered tests, which revealed an infection inside the wound. Another surgery was required, which was performed by a different consultant at the hospital. During follow-up, pus appeared, and a sample was taken, confirming an infection. After continuing antibiotic treatment, the infection improved until the wound healed. Following physical therapy, the doctor ordered a blood test, which showed a high level of infection. While I was visiting your hospital and dealing with the numerous procedures, I contacted my employer. I was then informed that my contract had been terminated due to work delays. | BE15: Hospital | BJ15: Total | BK15: =SUBTOTAL(9,BK13:BK14) -> 2 | BL15: 100% | BM15: 0 | BN15: 1 | BO15: 0 | BP15: 1 | BQ15: 2 | BU15: 387 | BV15: 48841 | BW15: وزارة الصحة | BX15: العيادات الخارجية | BY15: الإداري | BZ15: قسم الإدارة | CA15: 2022-10-13T18:52:00 | CB15: امال القحطاني | CC15: 24 Hours | CF15: 397 | CG15: 30121269 | CH15: مراجع | CI15: العيادات الخارجية | CJ15: الطبي | CK15: فني تخطيط المخ والأعصاب | CL15: 2022-10-16T19:47:00 | CM15: امال القحطاني | CN15: More than 72 Hours | CQ15: 391 | CR15: 30091692 | CS15: ذوي المراجع | CT15: العيادات الخارجية | CU15: الطبي | CV15: عيادات جراحة الأنف وأذن وحنجرة | CW15: 2022-10-16T11:17:00 | CX15: امال القحطاني | CY15: 72 Hours
A16: 2 | B16: 14 | C16: 337 | D16: 30046786 | E16: مراجع | F16: التنويم | G16: التمريض | H16: تمريض قسم عمليات الولادة | I16: 2022-10-08T14:39:00 | J16: تهاني عبدالله القرني | K16: 24 Hours | L16: 2022-10-05 | M16: 12:56:00 | N16: تهاني عبدالله القرني | O16: 2022-10-05 | P16: 18:37:00 | Q16: 2022-10-08 | R16: 02:38:00 | S16: تهاني عبدالله القرني | T16: 2022-10-08 | U16: 14:42:00 | V16: تهاني عبدالله القرني | W16: 2.836805556 | X16: 2022-10-10 | Y16: 10:25:00 | Z16: تهاني عبدالله القرني | AA16: 1.821527778 | AE16: -44844.43403 | AJ16: -44842.6125 | AN16: -44842.6125 | AO16: 2022-10-09 | AP16: 10:47:00 | AQ16: 0.8368055556 | AR16: 2022-10-09 | AS16: 11:17:00 | AT16: تهاني عبدالله القرني | AU16: 0.8576388889 | AX16: Clinical complaints | AY16: 1. Quality | AZ16: 1.3.Quality of Care | BA16: 1.3.1.Substandard clinical/nursing care | BB16: في 3 أكتوبر 2022، لم تستجب الممرضات لنداء المريضة، ولم يتعاونّ معها. عند ولادة المريضة، بدأ الطفل بالخروج، فجاءت الممرضة إليها، وأغلقت ساقيها، ودفعت الطفل إلى داخلها، ثم صرخت الممرضة مطالبةً باستدعاء الطبيب قائلةً: "إنها حالة طارئة". كما أن جهاز التخدير (إنتونوكس) لم يكن فعالاً، وتم استبداله مرتين. | BC16: On 3 OCT 2022 the nurses didn’t responded to the patient when she called them and they are not cooperative. When the patient was delivered the baby start to come out then the nurse came to the patient and close her legs and push the baby inside her and the nurse screamed to call the Dr. “emergency situation”. Also, the ENTONOX was not work and they are change it twice. | BE16: Patient | BU16: 400 | BV16: 1827709 | BW16: وزارة الصحة | BX16: الطوارئ | BY16: الإداري | BZ16: المدير المناوب | CA16: 2022-10-17T18:52:00 | CB16: امال القحطاني | CC16: 24 Hours | CF16: 398 | CG16: 671821 | CH16: مراجع | CI16: العيادات الخارجية | CJ16: الطبي | CK16: عيادات جراحة العظام | CL16: 2022-10-16T20:24:00 | CM16: امال القحطاني | CN16: More than 72 Hours | CQ16: 396 | CR16: 30226880 | CS16: ذوي المراجع | CT16: التنويم | CU16: التمريض | CV16: تمريض الحضانة | CW16: 2022-10-16T17:24:00 | CX16: امال القحطاني | CY16: More than 72 Hours
B17: 15 | C17: 345 | D17: 30079070 | E17: ذوي المراجع | F17: الطوارئ | G17: التمريض | H17: تمريض الطوارئ | I17: 2022-10-08T14:53:00 | J17: تهاني عبدالله القرني | K17: More than 72 Hours | L17: 2022-10-06 | M17: 09:36:00 | N17: تهاني عبدالله القرني | O17: 2022-10-08 | P17: 14:53:00 | Q17: 2022-10-08 | R17: 11:31:00 | S17: تهاني عبدالله القرني | T17: 2022-10-08 | U17: 14:55:00 | V17: تهاني عبدالله القرني | W17: 0.001388888893 | X17: 2022-10-09 | Y17: 11:13:00 | Z17: تهاني عبدالله القرني | AA17: 0.8458333333 | AB17: 2022-10-10 | AC17: 10:24:00 | AD17: تهاني عبدالله القرني | AE17: 0.9659722222 | AF17: 2022-10-11 | AG17: 10:42:00 | AH17: تهاني عبدالله القرني | AI17: No Response | AJ17: 2.824305556 | AN17: -44842.62153 | AO17: 2022-10-12 | AP17: 17:24:00 | AQ17: 4.103472222 | AR17: 2022-10-29 | AS17: 13:54:00 | AT17: تهاني عبدالله القرني | AU17: 20.95763889 | AX17: Management complaints | AY17: 3. Institutional issues | AZ17: 3.7.Medical records | BA17: 3.7.6.Lab results issues | BB17: في 3 أكتوبر 2022، أخذت الممرضة مسحة من طفلي في قسم الطوارئ، وأخبروني أن النتيجة ستظهر بعد يومين. عدتُ بعد يومين، لكنهم لم يرسلوا المسحة إلى المختبر، وطلبوا مني إعادة المسحة لطفلي مرة أخرى. | BC17: On 3 Oct 2022 in the emergency department the nurse took a swab from my baby and they told the result will appear after two days. I came after two days but they didn’t send the swap to the lab and they let me to payed again and do it for my baby again . | BE17: Patient | BU17: 404 | BV17: 30161565 | BW17: وزارة الصحة | BX17: العيادات الخارجية | BY17: الإداري | BZ17: قسم الموافقات الطبية | CA17: 2022-10-17T19:55:00 | CB17: امال القحطاني | CC17: 24 Hours | CF17: 407 | CG17: 30011418 | CH17: مراجع | CI17: العيادات الخارجية | CJ17: الطبي | CK17: عيادات النساء والولادة | CL17: 2022-10-18T18:29:00 | CM17: امال القحطاني | CN17: More than 72 Hours | CQ17: 371 | CR17: 30226819 | CS17: ذوي المراجع | CT17: التنويم | CU17: الطبي | CV17: تنويم الأطفال | CW17: 2022-10-18T12:22:00 | CX17: تهاني عبدالله القرني | CY17: More than 72 Hours
B18: 16 | C18: 351 | D18: 1841370 | E18: مراجع | F18: العيادات الخارجية | G18: الطبي | H18: عيادات الجهاز الهضمي والمناظير | I18: 2022-10-08T15:23:00 | J18: امال القحطاني | K18: More than 72 Hours | L18: 2022-10-06 | M18: 14:23:00 | N18: تهاني عبدالله القرني | O18: 2022-10-08 | P18: 15:23:00 | Q18: 2022-10-06 | R18: 15:00:00 | S18: تهاني عبدالله القرني | T18: 2022-10-06 | U18: 15:36:00 | V18: امال القحطاني | W18: -1.990972222 | X18: 2022-10-08 | Y18: 15:24:00 | Z18: تهاني عبدالله القرني | AA18: 1.991666667 | AB18: 2022-10-09 | AC18: 20:12:00 | AD18: امال القحطاني | AE18: 1.2 | AF18: 2022-10-23 | AG18: 16:38:00 | AH18: امال القحطاني | AI18: No Response | AJ18: 17.04305556 | AK18: 2023-02-05 | AL18: 19:08:00 | AM18: امال القحطاني | AN18: 122.1472222 | AQ18: -44840.65 | AU18: -44840.65 | AW18: DR.ABED ALLUHAIBI | AX18: Relationship complaints | AY18: 5. Communication | AZ18: 5.1.Patient-staff Communication | BA18: 5.1.2.Poor provider-patient communication | BB18: يتم حضوري لعيادة الدكتور عابد اللهيبي أعالج ابني من القولون التقرحي وتم طلب عمل منظار بعد معالجة دامت سنة ودائمًا نأتي إليه واسلوبه في كل زياره غير مقبول وتعامله غير لائق جدًا معنا وفي كل زياره الى عيادة الدكتور يسأل المريض ونخرج وعند سواله عن حالة ابني لا يتم التوضيح الكامل والواضح لحالته المرضيه ونطلب استشارة منه في بعض الامور المتعلقة بالمرض دائما يرد بأجابات غير واضحه وفي اخر فحص منظار تم عمله لابني خرج مباشرة دون ان يعطينا اي نصائح او ارشادات . | BC18: I attend Dr. Abed Al-Lahibi’s clinic to treat my son for ulcerative colitis. An endoscopy was requested after a year of treatment. We always come to him, and his manner in every visit is unacceptable and his treatment of us is very inappropriate. In every visit to the doctor’s clinic, he asks the patient questions and we leave. When he asks about my son’s condition, there is no full and clear explanation of his medical condition. We ask him for advice on some matters related to the disease, and he always gives unclear answers. In the last endoscopy examination that was done for my son, he left immediately without giving us any advice or instructions. | BE18: Patient | BJ18: CCHI | BK18: =BK15 -> 2 | BL18: =BK18/92 -> 2.17% | BU18: 409 | BV18: 30097503 | BW18: وزارة الصحة | BX18: العيادات الخارجية | BY18: الطبي | BZ18: عيادات الأطفال | CA18: 2022-10-18T19:04:00 | CB18: امال القحطاني | CC18: 24 Hours | CF18: 418 | CG18: 1593638 | CH18: مراجع | CI18: العيادات الخارجية | CJ18: الطبي | CK18: عيادات الأسنان | CL18: 2022-10-19T17:29:00 | CM18: تهاني عبدالله القرني | CN18: 72 Hours | CQ18: 371 | CR18: 30226819 | CS18: ذوي المراجع | CT18: التنويم | CU18: التمريض | CV18: تمريض تنويم الأطفال | CW18: 2022-10-18T12:24:00 | CX18: تهاني عبدالله القرني | CY18: 48 Hours
B19: 17 | C19: 342 | D19: 30224231 | E19: ذوي المراجع | F19: العيادات الخارجية | G19: الطبي | H19: عيادات التخدير | I19: 2022-10-08T15:30:00 | J19: امال القحطاني | K19: More than 72 Hours | L19: 2022-10-05 | M19: 18:02:00 | N19: امال القحطاني | O19: 2022-10-08 | P19: 15:30:00 | Q19: 2022-10-06 | R19: 20:25:00 | S19: امال القحطاني | T19: 2022-10-06 | U19: 20:27:00 | V19: امال القحطاني | W19: -1.79375 | AA19: -44840.85208 | AE19: 0 | AJ19: -44840.85208 | AK19: 2022-10-22 | AL19: 17:57:00 | AM19: امال القحطاني | AN19: 15.89583333 | AO19: 2022-10-06 | AP19: 22:23:00 | AQ19: 0.08055555556 | AU19: -44840.85208 | AV19: 12889 | AW19: DR. YASSER MAHMOUD HUSSEIN | AX19: Relationship complaints | AY19: 5. Communication | AZ19: 5.1.Patient-staff Communication | BA19: 5.1.2.Poor provider-patient communication | BB19: لدى والدتي عمليه وتم الحضور لدكتور التخدير لحين وصول الدكتور مصعب وتم التحدث معي ومع والدتي بطريقة غير مهنيه ، حيث تم تكرار الاسئله على والدتي من قبل الدكتور ياسر (من الشخض الذي قام بتوجيهكم لي ؟ عملية المريض الساعه كم ؟ لماذا تم الحضور اليوم ولم يكن امس ؟ لماذا تم ارسالك من قبل التمريض الي وليس من قبل الدكتور اسئله لا تهم المريض ووتخص اجراءات من داخل المستشفى يجب ان تكون واضحه قبل وصول المريض . لم يكن هناك شرح كافي وواضح يخص مشكلة تخطيط القلب وعند سواله عن المشكلة تم اخباري من قبله لن تفهمي المكتوب بالورق ويتم الانشغال بالاتصال بالدكتور وبالتمريض ويتم تكرار نفس الاسئله والانتظار لوقت اطول وتم خروجي من المستشفى مع والدتي لما واجهته من اسلوب غير لائق من قبل الدكتور وعدم اعطاء المريض وذويه اي اهميه . | BC19: My mother had surgery, and we went to the anesthesiologist while waiting for Dr. Musab to arrive. Dr. Yasser spoke to me and my mother in an unprofessional manner, repeatedly asking my mother questions like, "Who referred you to me?", "What time is the patient's surgery?", "Why did you come today and not yesterday?", and "Why were you sent to me by the nurses and not by the doctor?" These questions were irrelevant to the patient and concerned internal hospital procedures that should be clear before the patient's arrival. There was no clear explanation regarding the ECG issue, and when I asked about it, he told me I wouldn't understand what was written on the paper. He kept calling the doctor and the nurses, repeating the same questions and making me wait even longer. I left the hospital with my mother because of the doctor's inappropriate behavior and his complete disregard for the patient and her family. | BE19: Patient | BU19: 416 | BV19: 30157078 | BW19: وزارة الصحة | BX19: العيادات الخارجية | BY19: الطبي | BZ19: قسم الصيدلية | CA19: 2022-10-19T14:07:00 | CB19: تهاني عبدالله القرني | CC19: 24 Hours | CF19: 403 | CG19: 537722668 | CH19: مراجع | CI19: العيادات الخارجية | CJ19: الطبي | CK19: عيادات الباطنية | CL19: 2022-10-20T18:12:00 | CM19: امال القحطاني | CN19: More than 72 Hours | CQ19: 410 | CR19: 30017415 | CS19: ذوي المراجع | CT19: العيادات الخارجية | CU19: التمريض | CV19: تمريض العيادات الخارجية | CW19: 2022-10-20T19:15:00 | CX19: امال القحطاني | CY19: More than 72 Hours
B20: 18 | C20: 375 | D20: 30219377 | E20: وزارة الصحة | F20: التنويم | G20: الطبي | H20: تنويم الأطفال | I20: 2022-10-09T12:40:00 | J20: تهاني عبدالله القرني | K20: More than 72 Hours | L20: 2022-10-09 | M20: 12:40:00 | N20: تهاني عبدالله القرني | O20: 2022-10-09 | P20: 12:40:00 | Q20: 2022-10-12 | R20: 17:23:00 | S20: تهاني عبدالله القرني | T20: 2022-10-12 | U20: 17:23:00 | V20: تهاني عبدالله القرني | W20: 3.196527778 | AA20: -44846.72431 | AE20: 0 | AJ20: -44846.72431 | AN20: -44846.72431 | AO20: 2022-10-18 | AP20: 13:06:00 | AQ20: 5.821527778 | AR20: 2022-10-18 | AS20: 13:06:00 | AT20: تهاني عبدالله القرني | AU20: 5.821527778 | AW20: DR.MOHAMMED ALMANASEER | AX20: Relationship complaints | AY20: 5. Communication | AZ20: 5.1.Patient-staff Communication | BA20: 5.1.4.Failure to clarify patient case to his family | BB20: عدم شرح الخطة العلاجية لوالدة الطفل وتوضيح حالة الطفل . | BC20: Failure to explain the treatment plan to the child's mother and clarify the child's condition. | BE20: Patient | BJ20: 24 Hours | BK20: 48 Hours | BL20: 72 Hours | BM20: More than 72 hours | BU20: 417 | BV20: 1086180948 | BW20: وزارة الصحة | BX20: العيادات الخارجية | BY20: الطبي | BZ20: عيادات الأطفال | CA20: 2022-10-19T15:10:00 | CB20: تهاني عبدالله القرني | CC20: 24 Hours | CF20: 423 | CG20: 1571840 | CH20: مراجع | CI20: التنويم | CJ20: التمريض | CK20: تمريض قسم العمليات | CL20: 2022-10-23T14:35:00 | CM20: تهاني عبدالله القرني | CN20: More than 72 Hours | CQ20: 419 | CR20: 30120044 | CS20: ذوي المراجع | CT20: العيادات الخارجية | CU20: الطبي | CV20: قسم الصيدلية | CW20: 2022-10-22T09:37:00 | CX20: امال القحطاني | CY20: 48 Hours
B21: 19 | C21: 347 | D21: 30017325 | E21: مراجع | F21: العيادات الخارجية | G21: الطبي | H21: عيادات الأسنان | I21: 2022-10-09T13:04:00 | J21: تهاني عبدالله القرني | K21: 24 Hours | L21: 2022-10-06 | M21: 13:00:00 | N21: تهاني عبدالله القرني | O21: 2022-10-09 | P21: 13:04:00 | Q21: 2022-10-09 | R21: 13:04:00 | S21: تهاني عبدالله القرني | T21: 2022-10-09 | U21: 13:04:00 | V21: تهاني عبدالله القرني | W21: 0 | AA21: -44843.54444 | AE21: 0 | AJ21: -44843.54444 | AK21: 2022-10-09 | AL21: 13:05:00 | AM21: تهاني عبدالله القرني | AN21: 0.0006944444467 | AQ21: -44843.54444 | AU21: -44843.54444 | AX21: Management complaints | AY21: 4. Accessibility | AZ21: 4.1.Access | BA21: 4.1.2.Poor availability and scheduling | BB21: كان عندي موعد في النزهة مع الدكتور ايمن زهير الساعه ١١ وعشرة دقائق وبعد الوصول تم التأخير من قبل الاستقبال بتحديث البيانات لا أدري المهم بعد الانتهاء وتحويل للدكتور انتظرت أمام الباب ١٠ دقائق والممرضه تقول لي انتظر بعد خروج المريض و أتفاجأ بعدم وجود مريض والدكتور غير موجود والساعة كانت بحدود ١١ و٤٥ دقيقة وطلبت إلغاء الموعد وذهبت إلى الإدارة على اساس يجهزولي موعد مع دكتو عمر رئيس القسم الأسنان ويرسلولي اياه لكن للأسف لليوم ماجاني تحديث للموعد او اي اهتمام. هذا رقمي 0560056360 للتواصل. | BC21: I had an appointment at Al-Nuzha Clinic with Dr. Ayman Zuhair at 11:10 AM. Upon arrival, I was delayed by reception staff who were updating my information (I don't know why). After they finished and I was referred to the doctor, I waited outside the door for 10 minutes. The nurse told me to wait until the patient left, but I was surprised to find there was no patient and the doctor wasn't there. It was around 11:45 AM. I asked to cancel the appointment and went to the administration to arrange an appointment for me with Dr. Omar, the head of the dental department, and send it to me. Unfortunately, I haven't received any update or any attention to this day. This is my number: 0560056360. | BE21: Patient | BJ21: =BM15 -> 0 | BK21: =BN15 -> 1 | BL21: =BO15 -> 0 | BM21: =BP15 -> 1 | BU21: 478 | BV21: 1718885 | BW21: وزارة الصحة | BX21: الطوارئ | BY21: الطبي | BZ21: الأشعة | CA21: 2022-10-22T14:42:00 | CB21: تهاني عبدالله القرني | CC21: More than 72 Hours | CF21: 449 | CG21: 30015792 | CH21: مراجع | CI21: العيادات الخارجية | CJ21: الطبي | CK21: قسم الأشعة | CL21: 2022-10-25T15:13:00 | CM21: تهاني عبدالله القرني | CN21: 24 Hours | CQ21: 432 | CR21: 1833685 | CS21: ذوي المراجع | CT21: التنويم | CU21: الطبي | CV21: تنويم الأطفال | CW21: 2022-10-22T15:34:00 | CX21: امال القحطاني | CY21: 24 Hours
B22: 20 | C22: 341 | D22: 3534 | E22: مراجع | F22: العيادات الخارجية | G22: الطبي | H22: عيادات الأسنان | I22: 2022-10-09T15:29:00 | J22: امال القحطاني | K22: More than 72 Hours | L22: 2022-10-05 | M22: 17:48:00 | N22: امال القحطاني | O22: 2022-10-09 | P22: 15:29:00 | Q22: 2022-10-08 | R22: 16:22:00 | S22: تهاني عبدالله القرني | T22: 2022-10-08 | U22: 16:23:00 | V22: تهاني عبدالله القرني | W22: -0.9625 | AA22: -44842.68264 | AE22: 0 | AJ22: -44842.68264 | AN22: -44842.68264 | AO22: 2022-10-09 | AP22: 09:43:00 | AQ22: 9 | AR22: 2023-01-12 | AS22: 10:09:00 | AT22: امال القحطاني | AU22: 95.74027778 | AV22: 10864 | AW22: DR. OMAR MAHMOUD ALHEYASAT | AX22: Clinical complaints | AY22: 1. Quality | AZ22: 1.3.Quality of Care | BA22: 1.3.1.Substandard clinical/nursing care | BB22: تم عمل تركيبات اسنان عند الدكتور صالح فرع العليا ولم تكن المقاسات مضبوطه ويوجد فراغات بين التركيبات سببت لي التهابات باللثه حيث اثرت على الاسنان الاخرى ومشاكل باللثة بسبب دخول الاكل داخل الفجوات حاولت كثير انها تتعالج وتم مراجعة بين الدكتور فراس الحلبي والدكتور صالح ولم تتغيرالنتيجه.. وتم اخباري من قبل اخر زيارة لدى الدكتور عمر ان التلبيسات لابد من تغيرها وعمل تركيبات جديده. | BC22: I had dental prosthetics done at Dr. Saleh's Al-Ulya branch, but the measurements were not accurate and there are gaps between the prosthetics that caused me gum inflammation, which affected my other teeth and caused gum problems due to food getting into the gaps. I tried many times to treat it and consulted between Dr. Firas Al-Halabi and Dr. Saleh, but the result did not change. I was told before my last visit to Dr. Omar that the crowns must be changed and new prosthetics made. | BE22: Hospital | BJ22: =BJ21/BK18 -> 0.00% | BK22: =BK21/BK18 -> 50.00% | BL22: =BL21/BK18 -> 0.00% | BM22: =BM21/BK18 -> 50.00% | BU22: 440 | BV22: 2491864464 | BW22: وزارة الصحة | BX22: العيادات الخارجية | BY22: الطبي | BZ22: عيادات الأطفال | CA22: 2022-10-24T11:55:00 | CB22: تهاني عبدالله القرني | CC22: More than 72 Hours | CF22: 442 | CG22: 30229207 | CH22: مراجع | CI22: العيادات الخارجية | CJ22: الطبي | CK22: عيادات جراحة العظام | CL22: 2022-10-26T15:28:00 | CM22: تهاني عبدالله القرني | CN22: More than 72 Hours | CQ22: 389 | CR22: 30227949 | CS22: ذوي المراجع | CT22: العيادات الخارجية | CU22: الإداري | CV22: استقبال العيادات الخارجية | CW22: 2022-10-22T18:22:00 | CX22: امال القحطاني | CY22: 48 Hours
B23: 21 | C23: 358 | D23: 30168358 | E23: وزارة الصحة | F23: العيادات الخارجية | G23: الطبي | H23: قسم العلاج الطبيعي | I23: 2022-10-09T15:46:00 | J23: امال القحطاني | K23: 24 Hours | L23: 2022-10-09 | M23: 15:46:00 | N23: امال القحطاني | O23: 2022-10-09 | P23: 15:46:00 | T23: 2022-10-09 | U23: 15:46:00 | V23: امال القحطاني | W23: 0 | AA23: -44843.65694 | AE23: 0 | AJ23: -44843.65694 | AN23: -44843.65694 | AO23: 2022-10-10 | AP23: 13:53:00 | AQ23: 0.9215277778 | AR23: 2022-10-10 | AS23: 13:53:00 | AT23: تهاني عبدالله القرني | AU23: 0.9215277778 | AX23: Management complaints | AY23: 4. Accessibility | AZ23: 4.1.Access | BA23: 4.1.2.Poor availability and scheduling | BB23: لم يتم اعطائي موعد علاج طبيعي الابعد ثلاث اسابيع . | BC23: I was not given a physical therapy appointment until three weeks later. | BE23: Hospital | BU23: 441 | BV23: 30228438 | BW23: وزارة الصحة | BX23: العيادات الخارجية | BY23: الإداري | BZ23: قسم التقارير الطبية | CA23: 2022-10-24T13:38:00 | CB23: تهاني عبدالله القرني | CC23: More than 72 Hours | CF23: 453 | CG23: 635025 | CH23: مراجع | CI23: التنويم | CJ23: التمريض | CK23: تمريض تنويم النساء والولادة | CL23: 2022-10-27T13:41:00 | CM23: تهاني عبدالله القرني | CN23: More than 72 Hours | CQ23: 429 | CR23: 30012704 | CS23: ذوي المراجع | CT23: العيادات الخارجية | CU23: الطبي | CV23: عيادات الأطفال | CW23: 2022-10-23T14:40:00 | CX23: تهاني عبدالله القرني | CY23: 72 Hours
B24: 22 | C24: 359 | D24: 30070250 | E24: وزارة الصحة | F24: العيادات الخارجية | G24: الطبي | H24: قسم الصيدلية | I24: 2022-10-09T16:19:00 | J24: تهاني عبدالله القرني | K24: 24 Hours | L24: 2022-10-09 | M24: 16:19:00 | N24: تهاني عبدالله القرني | O24: 2022-10-09 | P24: 16:19:00 | T24: 2022-10-09 | U24: 16:19:00 | V24: تهاني عبدالله القرني | W24: 0 | AA24: -44843.67986 | AE24: 0 | AJ24: -44843.67986 | AN24: -44843.67986 | AO24: 2022-10-09 | AP24: 16:35:00 | AQ24: 0.01111111111 | AR24: 2022-10-09 | AS24: 16:35:00 | AT24: تهاني عبدالله القرني | AU24: 0.01111111111 | AX24: Clinical complaints | AY24: 2. Safety | AZ24: 2.1.Medication & Vaccination | BA24: 2.1.8.Medication shortages | BB24: عدم توفر الدواء في الصيدلية . | BC24: The medication is unavailable at the pharmacy. | BE24: Patient | BJ24: In-Patient | BL24: =BK24/BK27 -> 0.00% | BU24: 457 | BV24: 30085957 | BW24: وزارة الصحة | BX24: الطوارئ | BY24: الإداري | BZ24: الموافقات الطبية | CA24: 2022-10-25T11:34:00 | CB24: تهاني عبدالله القرني | CC24: More than 72 Hours | CF24: 408 | CG24: 30166401 | CH24: مراجع | CI24: العيادات الخارجية | CJ24: الطبي | CK24: عيادات الأسنان | CL24: 2022-10-27T17:18:00 | CM24: امال القحطاني | CN24: More than 72 Hours | CQ24: 443 | CR24: 1718885 | CS24: ذوي المراجع | CT24: التنويم | CU24: التمريض | CV24: تمريض وحدة العناية المركزة - أطفال | CW24: 2022-10-24T16:36:00 | CX24: تهاني عبدالله القرني | CY24: More than 72 Hours
B25: 23 | C25: 360 | D25: 30219377 | E25: ذوي المراجع | F25: التنويم | G25: التمريض | H25: تمريض تنويم الأطفال | I25: 2022-10-10T13:35:00 | J25: تهاني عبدالله القرني | K25: 24 Hours | L25: 2022-10-09 | M25: 16:51:00 | N25: تهاني عبدالله القرني | O25: 2022-10-10 | P25: 13:35:00 | Q25: 2022-10-10 | R25: 13:31:00 | S25: تهاني عبدالله القرني | T25: 2022-10-10 | U25: 13:38:00 | V25: تهاني عبدالله القرني | W25: 0.00208333334 | AA25: -44844.56806 | AE25: 0 | AJ25: -44844.56806 | AN25: -44844.56806 | AO25: 2022-10-11 | AP25: 08:14:00 | AQ25: 0.775 | AR25: 2022-10-11 | AS25: 10:59:00 | AT25: تهاني عبدالله القرني | AU25: 0.8895833333 | AX25: Clinical complaints | AY25: 1. Quality | AZ25: 1.3.Quality of Care | BA25: 1.3.1.Substandard clinical/nursing care | BB25: في 9 أكتوبر 2022، تأخرت الممرضات كثيراً ولم يستجبن عندما اتصلت بهن، كما تركن الباب مفتوحاً، فهن لسن محترفات عند وضع القنية لطفلي. | BC25: On 9 Oct 2022 the nurses very delay and they didn’t reposed when I called them and they left the door open , they are not professionals when they are put the cannula for my baby . | BE25: Patient | BJ25: Out-Patient | BK25: 1 | BL25: =BK25/BK27 -> 50.00% | BU25: 448 | BV25: 30148976 | BW25: وزارة الصحة | BX25: العيادات الخارجية | BY25: الطبي | BZ25: عيادات الباطنية | CA25: 2022-10-25T14:40:00 | CB25: تهاني عبدالله القرني | CC25: 48 Hours | CF25: 421 | CG25: 30219053 | CH25: مراجع | CI25: العيادات الخارجية | CJ25: الطبي | CK25: عيادات الصدرية | CL25: 2022-10-27T18:17:00 | CM25: امال القحطاني | CN25: 72 Hours | CQ25: 439 | CR25: 1292868 | CS25: ذوي المراجع | CT25: الطوارئ | CU25: الطبي | CV25: أطباء الطوارئ | CW25: 2022-10-24T17:28:00 | CX25: امال القحطاني | CY25: 72 Hours
B26: 24 | C26: 360 | D26: 30219377 | E26: ذوي المراجع | F26: التنويم | G26: الطبي | H26: تنويم الأطفال | I26: 2022-10-10T13:39:00 | J26: تهاني عبدالله القرني | K26: More than 72 Hours | L26: 2022-10-09 | M26: 16:51:00 | N26: تهاني عبدالله القرني | O26: 2022-10-10 | P26: 13:39:00 | Q26: 2022-10-10 | R26: 13:31:00 | S26: تهاني عبدالله القرني | T26: 2022-10-10 | U26: 13:40:00 | V26: تهاني عبدالله القرني | W26: 0.0006944444467 | X26: 2022-10-11 | Y26: 10:56:00 | Z26: تهاني عبدالله القرني | AA26: 0.8861111111 | AB26: 2022-10-12 | AC26: 10:20:00 | AD26: تهاني عبدالله القرني | AE26: 0.975 | AJ26: -44844.56944 | AN26: -44844.56944 | AO26: 2022-10-18 | AP26: 12:53:00 | AQ26: 7.967361111 | AR26: 2022-10-18 | AS26: 12:53:00 | AT26: تهاني عبدالله القرني | AU26: 7.967361111 | AW26: DR.MOHAMMED ALMANASEER | AX26: Relationship complaints | AY26: 5. Communication | AZ26: 5.1.Patient-staff Communication | BA26: 5.1.4.Failure to clarify patient case to his family | BB26: لم يتم توضيح حالة طفلي بشكل كامل من قبل الطبيب حيث اخبرني بالبحث والقراءة عن مرضه بالاضافة الى عدم توضيح الخطة العلاجيه من قبله | BC26: My child's condition was not fully explained by the doctor, who told me to research and read about his illness, and also did not clarify the treatment plan. | BE26: Patient | BJ26: ER | BK26: 1 | BL26: =BK26/BK27 -> 50.00% | BU26: 457 | BV26: 30085957 | BW26: وزارة الصحة | BX26: التنويم | BY26: الإداري | BZ26: إدارة التنويم | CA26: 2022-10-26T12:45:00 | CB26: تهاني عبدالله القرني | CC26: 48 Hours | CF26: 444 | CG26: 30051980 | CH26: مراجع | CI26: الطوارئ | CJ26: الطبي | CK26: أطباء الطوارئ | CL26: 2022-10-27T19:24:00 | CM26: امال القحطاني | CN26: More than 72 Hours | CQ26: 443 | CR26: 1718885 | CS26: ذوي المراجع | CT26: الطوارئ | CU26: الطبي | CV26: الأشعة | CW26: 2022-10-25T14:11:00 | CX26: تهاني عبدالله القرني | CY26: 48 Hours
B27: 25 | C27: 373 | D27: 1362357 | E27: وزارة الصحة | F27: التنويم | G27: التمريض | H27: تمريض تنويم الأطفال | I27: 2022-10-11T14:51:00 | J27: تهاني عبدالله القرني | K27: 24 Hours | L27: 2022-10-11 | M27: 14:51:00 | N27: تهاني عبدالله القرني | O27: 2022-10-11 | P27: 14:51:00 | T27: 2022-10-11 | U27: 14:51:00 | V27: تهاني عبدالله القرني | W27: 0 | AA27: -44845.61875 | AE27: 0 | AJ27: -44845.61875 | AN27: -44845.61875 | AO27: 2022-10-11 | AP27: 14:57:00 | AQ27: 0.004166666666 | AR27: 2022-10-11 | AS27: 14:57:00 | AT27: تهاني عبدالله القرني | AU27: 0.004166666666 | AX27: Clinical complaints | AY27: 1. Quality | AZ27: 1.3.Quality of Care | BA27: 1.3.1.Substandard clinical/nursing care | BB27: لا يتم الاعتناء بالاطفال ومتابعتهم من قبل التمريض غرفة رقم 3158 | BC27: The children are not being cared for or monitored by the nurses in room 3158. | BE27: Patient | BJ27: Total | BK27: =BK24+BK25+BK26 -> 2 | BL27: =SUM(BL24:BL26) -> 100% | CF27: 461 | CG27: 30207758 | CH27: مراجع | CI27: العيادات الخارجية | CJ27: الطبي | CK27: عيادات الجراحة العامة | CL27: 2022-10-29T10:45:00 | CM27: تهاني عبدالله القرني | CN27: More than 72 Hours | CQ27: 447 | CR27: 30227912 | CS27: ذوي المراجع | CT27: التنويم | CU27: التمريض | CV27: تمريض تنويم الأطفال | CW27: 2022-10-25T16:35:00 | CX27: تهاني عبدالله القرني | CY27: More than 72 Hours
B28: 26 | C28: 372 | D28: 30214852 | E28: مراجع | F28: التنويم | G28: التمريض | H28: تمريض الحضانة | I28: 2022-10-11T18:56:00 | J28: تهاني عبدالله القرني | K28: More than 72 Hours | L28: 2022-10-11 | M28: 12:29:00 | N28: تهاني عبدالله القرني | O28: 2022-10-11 | P28: 18:56:00 | Q28: 2022-10-12 | R28: 13:51:00 | S28: تهاني عبدالله القرني | T28: 2022-10-12 | U28: 13:53:00 | V28: تهاني عبدالله القرني | W28: 0.7895833333 | X28: 2022-10-18 | Y28: 10:44:00 | Z28: تهاني عبدالله القرني | AA28: 5.86875 | AB28: 2022-10-18 | AC28: 10:54:00 | AD28: تهاني عبدالله القرني | AE28: 0.006944444445 | AJ28: -44846.57847 | AN28: -44846.57847 | AO28: 2022-10-18 | AP28: 14:28:00 | AQ28: 6.024305556 | AR28: 2022-10-18 | AS28: 16:08:00 | AT28: تهاني عبدالله القرني | AU28: 6.09375 | AX28: Clinical complaints | AY28: 1. Quality | AZ28: 1.3.Quality of Care | BA28: 1.3.4.Insensitive to patient needs | BB28: في ١٠ أكتوبر ٢٠٢٢، اتصلت الأم بالحضانة لإحضار طفلها، وانتظرت لمدة ساعة كاملة دون أن يُسلّمها أحد طفلها. ثم ذهبت إلى الحضانة، وعندما سألت عن طفلها، لم تُجبها الممرضة حتى اشتكت للمدير. وعندما أحضروا لها طفلها، وجدته يخدش وجهه بأظافره. | BC28: On 10 Oct 2022 the mother called the nursery to bring her baby and she waiting for one hour and no one give the mother her baby. Then she went to the nursery and when she asked for her baby the nurse did not responded to the mother until she complained to the manger. Then when they are bring her baby she found he scratched his face with his fingernails. | BE28: Hospital | BJ28: Medical | BL28: =BK28/BK30 -> 0.00% | CF28: 461 | CG28: 30207758 | CH28: مراجع | CI28: العيادات الخارجية | CJ28: الإداري | CK28: مكتب التنويم | CL28: 2022-10-29T10:45:00 | CM28: تهاني عبدالله القرني | CN28: 72 Hours | CQ28: 446 | CR28: 30198146 | CS28: ذوي المراجع | CT28: العيادات الخارجية | CU28: الطبي | CV28: عيادات الأسنان | CW28: 2022-10-25T16:44:00 | CX28: تهاني عبدالله القرني | CY28: 48 Hours
B29: 27 | C29: 333 | D29: 30163241 | E29: ذوي المراجع | F29: التنويم | G29: التمريض | H29: تمريض تنويم الأطفال | I29: 2022-10-11T22:12:00 | J29: امال القحطاني | K29: More than 72 Hours | L29: 2022-10-04 | M29: 09:10:00 | N29: امال القحطاني | O29: 2022-10-11 | P29: 10:12:00 | Q29: 2022-10-13 | R29: 10:05:00 | S29: امال القحطاني | T29: 2022-10-13 | U29: 10:08:00 | V29: امال القحطاني | W29: 1.997222222 | AA29: -44847.42222 | AE29: 0 | AJ29: -44847.42222 | AN29: -44847.42222 | AO29: 2022-10-13 | AP29: 20:07:00 | AQ29: 0.4159722222 | AR29: 2022-10-17 | AS29: 10:04:00 | AT29: امال القحطاني | AU29: 3.997222222 | AX29: Clinical complaints | AY29: 1. Quality | AZ29: 1.3.Quality of Care | BA29: 1.3.1.Substandard clinical/nursing care | BB29: لم يكن هناك أي رد من طاقم التمريض، ولم تكن لديهم أي خبرة في التعامل مع الطفل. طاقم التمريض غير متعاون ومهمل. | BC29: There was no response from the nursing staff and there was no experience of the nursing staff in dealing with the child . The nursing staff is unhelpful and careless | BE29: Patient | BJ29: Admin | BK29: 2 | BL29: =BK29/BK30 -> 100.00% | CF29: 463 | CG29: 30059882 | CH29: مراجع | CI29: العيادات الخارجية | CJ29: التمريض | CK29: تمريض العيادات الخارجية | CL29: 2022-10-29T18:15:00 | CM29: امال القحطاني | CN29: More than 72 Hours | CQ29: 437 | CR29: 30128507 | CS29: ذوي المراجع | CT29: التنويم | CU29: الخدمات المساندة | CV29: قسم النظافة | CW29: 2022-10-26T18:17:00 | CX29: امال القحطاني | CY29: More than 72 Hours
B30: 28 | C30: 374 | D30: 30152460 | E30: وزارة الصحة | F30: العيادات الخارجية | G30: الإداري | H30: قسم التقارير الطبية | I30: 2022-10-12T10:47:00 | J30: تهاني عبدالله القرني | K30: 24 Hours | L30: 2022-10-12 | M30: 10:47:00 | N30: تهاني عبدالله القرني | O30: 2022-10-12 | P30: 10:47:00 | T30: 2022-10-12 | U30: 10:47:00 | V30: تهاني عبدالله القرني | W30: 0 | AA30: -44846.44931 | AE30: 0 | AJ30: -44846.44931 | AN30: -44846.44931 | AO30: 2022-10-12 | AP30: 11:46:00 | AQ30: 0.04097222222 | AR30: 2022-10-12 | AS30: 11:46:00 | AT30: تهاني عبدالله القرني | AU30: 0.04097222222 | AX30: Management complaints | AY30: 3. Institutional issues | AZ30: 3.7.Medical records | BA30: 3.7.3.Medical report issues | BB30: تم عمل فحص الزوج قبل سنه ومازال الطلب معلق حيث لا استطيع ادخال الطلب الجديد الا بالغاء الطلب السابق . | BC30: The husband's medical examination was done a year ago and the application is still pending as I cannot submit the new application unless the previous application is cancelled. | BE30: Hospital | BJ30: Total | BK30: =BK28+BK29+BJ97 -> 2 | BL30: =BL28+BL29+BK97 -> 100% | CF30: 487 | CG30: 30228588 | CH30: مراجع | CI30: العيادات الخارجية | CJ30: الطبي | CK30: عيادات جراحة الأنف وأذن وحنجرة | CL30: 2022-10-31T14:41:00 | CM30: تهاني عبدالله القرني | CN30: 72 Hours | CQ30: 466 | CR30: 30226179 | CS30: ذوي المراجع | CT30: التنويم | CU30: التمريض | CV30: تمريض وحدة العناية المركزة | CW30: 2022-10-26T19:00:00 | CX30: امال القحطاني | CY30: 24 Hours
B31: 29 | C31: 378 | D31: 30053430 | E31: وزارة الصحة | F31: الطوارئ | G31: الطبي | H31: أطباء الطوارئ | I31: 2022-10-12T19:24:00 | J31: امال القحطاني | K31: More than 72 Hours | L31: 2022-10-12 | M31: 19:12:00 | N31: امال القحطاني | O31: 2022-10-12 | P31: 19:24:00 | Q31: 2022-10-12 | R31: 19:24:00 | S31: امال القحطاني | T31: 2022-10-12 | U31: 19:24:00 | V31: امال القحطاني | W31: 0 | X31: 2020-10-13 | Y31: 10:10:00 | Z31: امال القحطاني | AA31: -729.3847222 | AE31: -44117.42361 | AJ31: -44846.80833 | AN31: -44846.80833 | AO31: 2022-10-15 | AP31: 19:57:00 | AQ31: 3.022916667 | AR31: 2022-10-17 | AS31: 11:14:00 | AT31: امال القحطاني | AU31: 4.659722222 | AV31: 11088 | AW31: DR. HAZEM AHMED ALI | AX31: Clinical complaints | AY31: 1. Quality | AZ31: 1.3.Quality of Care | BA31: 1.3.1.Substandard clinical/nursing care | BB31: تم الحضور لقسم الطوارئ ولدى ابنتي ارتفاع في درجة الحراره وتم الانتظار مايقارب الساعه والنصف لحين وصول الطبيب المعالج حيث تم عمل الاسعافات الاوليه من قبلي لاخفاض درجة الحراره لم يكن هناك ايضا التزام بارتداء الكمام حيث ان الانتظار لمختلف اقسام المرضى مما يعرضهم لاحتمالية انتقال الامراض بينهم . | BC31: I went to the emergency department and my daughter had a high fever. I waited for about an hour and a half until the attending physician arrived. I administered first aid to lower her fever. There was also no adherence to wearing a mask, as the waiting was for different patient departments, which exposed them to the possibility of disease transmission among them. | BE31: Patient | BU31: Employee Name | BV31: Number of complaints | BW31: Total Percentage | BX31: 24 Hours | BY31: 48 Hours | BZ31: 72 Hours | CA31: More than 72 hours | CB31: Total | CF31: 462 | CG31: 30052322 | CH31: مراجع | CI31: التنويم | CJ31: الإداري | CK31: قسم الأمن | CL31: 2022-10-31T15:59:00 | CM31: تهاني عبدالله القرني | CN31: 72 Hours | CQ31: 465 | CR31: 30226179 | CS31: ذوي المراجع | CT31: التنويم | CU31: الطبي | CV31: وحدة العناية المركزة | CW31: 2022-10-26T19:02:00 | CX31: امال القحطاني | CY31: 24 Hours
B32: 30 | C32: 377 | D32: 30056493 | E32: مراجع | F32: العيادات الخارجية | G32: الطبي | H32: عيادات النساء والولادة | I32: 2022-10-12T20:39:00 | J32: امال القحطاني | K32: 72 Hours | L32: 2022-10-12 | M32: 17:42:00 | N32: امال القحطاني | O32: 2022-10-12 | P32: 20:39:00 | Q32: 2022-10-12 | R32: 08:39:00 | S32: امال القحطاني | T32: 2022-10-12 | U32: 20:39:00 | V32: امال القحطاني | W32: 0 | AA32: -44846.86042 | AE32: 0 | AJ32: -44846.86042 | AN32: -44846.86042 | AO32: 2022-10-15 | AP32: 17:22:00 | AQ32: 2.863194444 | AR32: 2022-10-15 | AS32: 17:22:00 | AT32: امال القحطاني | AU32: 2.863194444 | AV32: 8829 | AW32: DR. FATAT ARIF NABHA | AX32: Relationship complaints | AY32: 5. Communication | AZ32: 5.1.Patient-staff Communication | BA32: 5.1.1.Miscommunication with Patient | BB32: طلبت مني الدكتورة عمل اشعة وتحليل دم ثم ارجع لها.. لما رجعت طرقت الباب واستأذنت وقالت تفضلي سألتها عن النتيجة وبدأت برفع صوتها ان النتيجة ما طلعت، قلت لها ممرضة الاشعة قالت مافيه شي الحمد الله قالت ايوه لكن تحاليل الدم ما طلعت وبدأت ترفع صوتها اكثر وتقول انتم ما تفهمون عشوائيين تدخلون وبس "تسببون لي مرض نفسي" قلت طيب هي تطلع بكرا صحيح؟ ممكن تتصلين علي تعلميني النتيجة قالت:لا طبعاً تعالي انا موفاضية لكم ما عندي الا انت عشان اتصل عليك شوفي الزحمة | BC32: The doctor asked me to get an X-ray and blood test, then come back. When I returned, I knocked on the door, asked permission to enter, and she said, "Come in." I asked her about the results, and she started raising her voice, saying they weren't ready yet. I told her the X-ray nurse said everything was fine, thank God. She said, "Yes, but the blood test results aren't back," and she started raising her voice even more, saying, "You people don't understand! You just barge in and do nothing! You're giving me a mental breakdown!" I said, "Okay, they'll be ready tomorrow, right? Could you call me and tell me the results?" She said, "No, of course not. Come over. I'm busy. You're the only one I can call. Look how busy I am!" | BE32: Patient | BU32: امال القحطاني | BV32: 8 | BW32: =BV32/BV34 -> 33.33% | BX32: 7 | CA32: 1 | CB32: =BV32 -> 8 | CF32: 493 | CG32: 30078882 | CH32: مراجع | CI32: العيادات الخارجية | CJ32: الطبي | CK32: عيادات العيون | CL32: 2022-10-31T18:30:00 | CM32: تهاني عبدالله القرني | CN32: More than 72 Hours | CQ32: 458 | CR32: 30221945 | CS32: ذوي المراجع | CT32: التنويم | CU32: التمريض | CV32: تمريض وحدة العناية المركزة | CW32: 2022-10-27T13:48:00 | CX32: تهاني عبدالله القرني | CY32: 48 Hours
B33: 31 | C33: 382 | D33: 30227199 | E33: مراجع | F33: العيادات الخارجية | G33: الطبي | H33: عيادات النساء والولادة | I33: 2022-10-13T17:22:00 | J33: امال القحطاني | K33: 48 Hours | L33: 2022-10-13 | M33: 17:03:00 | N33: امال القحطاني | O33: 2022-10-13 | P33: 17:22:00 | Q33: 2022-10-16 | R33: 17:30:00 | S33: امال القحطاني | T33: 2022-10-16 | U33: 17:33:00 | V33: امال القحطاني | W33: 3.007638889 | AA33: -44850.73125 | AE33: 0 | AJ33: -44850.73125 | AN33: -44850.73125 | AO33: 2022-10-16 | AP33: 19:24:00 | AQ33: 0.07708333334 | AR33: 2022-10-17 | AS33: 18:24:00 | AT33: امال القحطاني | AU33: 1.035416667 | AW33: DR.TENA SOHEL | AX33: Relationship complaints | AY33: 5. Communication | AZ33: 5.1.Patient-staff Communication | BA33: 5.1.2.Poor provider-patient communication | BB33: تم عمل تحاليل للوباء الكبدي مرتين ولم يتم اخبارنا بوجود اشتباه الا بعد الولاده وبسبب هذا الاهمال ممكن ان يترتب اصابه الاطفال بعد الولاده | BC33: Hepatitis tests were performed twice, but we were not informed of the suspected infection until after the birth. Due to this negligence, the children may have contracted the virus after birth. | BE33: Patient | BU33: تهاني عبدالله القرني | BV33: 16 | BW33: =BV33/BV34 -> 66.67% | BX33: 6 | BY33: 3 | CA33: 7 | CB33: =BV33 -> 16 | CF33: 491 | CG33: 1212395 | CH33: مراجع | CI33: العيادات الخارجية | CJ33: الإداري | CK33: استقبال الأشعة | CL33: 2022-10-31T19:03:00 | CM33: تهاني عبدالله القرني | CN33: More than 72 Hours | CQ33: 470 | CR33: 30229625 | CS33: ذوي المراجع | CT33: الطوارئ | CU33: الإداري | CV33: المدير المناوب | CW33: 2022-10-27T18:29:00 | CX33: امال القحطاني | CY33: More than 72 Hours
B34: 32 | C34: 380 | D34: 30175825 | E34: ذوي المراجع | F34: العيادات الخارجية | G34: الطبي | H34: قسم المختبر | I34: 2022-10-13T17:26:00 | J34: امال القحطاني | K34: More than 72 Hours | L34: 2022-10-13 | M34: 09:25:00 | N34: امال القحطاني | O34: 2022-10-13 | P34: 17:26:00 | Q34: 2022-10-13 | R34: 17:26:00 | S34: امال القحطاني | T34: 2022-10-13 | U34: 17:27:00 | V34: امال القحطاني | W34: 0.0006944444394 | X34: 2022-10-15 | Y34: 17:19:00 | Z34: امال القحطاني | AA34: 1.994444444 | AB34: 2022-10-16 | AC34: 17:38:00 | AD34: امال القحطاني | AE34: 1.013194444 | AJ34: -44847.72708 | AN34: -44847.72708 | AO34: 2022-10-17 | AP34: 13:16:00 | AQ34: 3.825694444 | AR34: 2022-10-17 | AS34: 18:34:00 | AT34: امال القحطاني | AU34: 4.046527778 | AX34: Management complaints | AY34: 3. Institutional issues | AZ34: 3.7.Medical records | BA34: 3.7.6.Lab results issues | BB34: في احد مراجعات الحمل مع دكتورة النساء والولادة عزة جعفر بشير طلبت مننا عمل مجموعة من التحاليل ومنها سكر الدم وبعد التوجه الى المختبر وسحب عينة الدم صدرت النتيجة وقامت الدكتورة بالاتصال بالمريضه وطلبت اعادة التحليل او مراجعة اخصائي باطنه وذلك يعود لنتيجة التحليل الخاطئه التي اشارة ان المراجع نسبة السكر التراكمي لديه اكثر من ٪١١؜ وهذي مرحله متقدمة لمرضى السكر وذات خطورة عالية، اصيبة المراجعه بصدمة نفسيه وانهارت بالبكاء بسبب ظنها ان النتيجة صحيحه وبعد التوجة في نفس اليوم لاحد المراكز الطبي الاخرى تم عمل تحليل سكر الدم مره اخرى وبعد صدور النتيجة تبين ان السكر التراكمي لديها ٪٤.٦؜ وهذا يعني ان نتيجة التحليل التي تم عملها لديكم خاطئه | BC34: During a prenatal appointment with Dr. Azza Jaafar Bashir, an obstetrician-gynecologist, we were asked to undergo a series of tests, including a blood glucose test. After going to the lab and having the blood sample drawn, the results were released. The doctor contacted the patient and requested a retest or a consultation with an internist due to an incorrect result indicating that her HbA1c level was over 11%, a high-risk and advanced stage of diabetes. The patient was shocked and broke down in tears, believing the result to be correct. Later that same day, she went to another medical center where her blood glucose was tested again. The results showed her HbA1c was 4.6%, indicating that the initial test result was incorrect. | BE34: Patient | BU34: Total | BV34: =SUBTOTAL(9,BV32:BV33) -> 24 | BW34: =SUBTOTAL(9,BW32:BW33) -> 100% | BX34: =SUM(BX32:BX33) -> 13 | BY34: =SUM(BY32:BY33) -> 3 | BZ34: =SUM(BZ32:BZ33) -> 0 | CA34: =SUM(CA32:CA33) -> 8 | CB34: =SUBTOTAL(9,CB32:CB33) -> 24 | CQ34: 470 | CR34: 30229625 | CS34: ذوي المراجع | CT34: الطوارئ | CU34: الطبي | CV34: أطباء الطوارئ | CW34: 2022-10-27T18:30:00 | CX34: امال القحطاني | CY34: More than 72 Hours
B35: 33 | C35: 387 | D35: 48841 | E35: وزارة الصحة | F35: العيادات الخارجية | G35: الإداري | H35: قسم الإدارة | I35: 2022-10-13T18:52:00 | J35: امال القحطاني | K35: 24 Hours | L35: 2022-10-13 | M35: 18:52:00 | N35: امال القحطاني | O35: 2022-10-13 | P35: 44847 | T35: 2022-10-13 | U35: 18:52:00 | V35: امال القحطاني | W35: -44846.21389 | AA35: -44847.78611 | AE35: 0 | AJ35: -44847.78611 | AN35: -44847.78611 | AO35: 2022-10-13 | AP35: 19:28:00 | AQ35: 0.025 | AR35: 2022-10-13 | AS35: 19:28:00 | AT35: امال القحطاني | AU35: 0.025 | AX35: Management complaints | AY35: 3. Institutional issues | AZ35: 3.7.Medical records | BA35: 3.7.3.Medical report issues | BB35: تم اضافة تشخيص لدكتور العياده النفسية الى الاجازه المرضية الصادره للمريض | BC35: A diagnosis from the psychiatrist was added to the patient's sick leave and diagnostic report. | BE35: Patient | CQ35: 482 | CR35: 30230747 | CS35: ذوي المراجع | CT35: التنويم | CU35: الطبي | CV35: وحدة العناية المركزة لحديثي الولادة | CW35: 2022-10-29T20:39:00 | CX35: امال القحطاني | CY35: More than 72 Hours
A36: 3 | B36: 34 | C36: 385 | D36: 671821 | E36: مراجع | F36: العيادات الخارجية | G36: الطبي | H36: عيادات جراحة العظام | I36: 2022-10-15T17:34:00 | J36: امال القحطاني | K36: 48 Hours | L36: 2022-10-13 | M36: 18:24:00 | N36: امال القحطاني | O36: 2022-10-15 | P36: 17:34:00 | Q36: 2022-10-15 | R36: 17:23:00 | S36: امال القحطاني | T36: 2022-10-15 | U36: 17:34:00 | V36: امال القحطاني | W36: 0 | X36: 2022-10-16 | Y36: 17:37:00 | Z36: امال القحطاني | AA36: 1.002083333 | AE36: -44850.73403 | AJ36: -44849.73194 | AK36: 2022-10-17 | AL36: 11:17:00 | AM36: امال القحطاني | AN36: 1.738194444 | AQ36: -44849.73194 | AU36: -44849.73194 | AW36: DR.NADEEM AHMAD | AX36: Relationship complaints | AY36: 5. Communication | AZ36: 5.1.Patient-staff Communication | BA36: 5.1.1.Miscommunication with Patient | BB36: تم دخولي للدكتور وتم تشخيصي وطلب مني عمل اشعه وتم عمل الاشعه المطلوبه وعند العوده تم رفض استقبالي من قبل الدكتور وتم اخباري بوجود حالات مرضيه واخبرت الدكتور لا يمكنني الحضور غدا اريد فقط ان تتم قراءة التقرير وكتابة الوصفه تم الرفض وتم طلب الحضور في يوم اخر بعد مضي 14 يوم للمراجعه ودفع كشفيه جديده لقراءه التقارير فقط . | BC36: I went to the doctor and was diagnosed. He asked me to have an X-ray done, and the required X-ray was done. Upon returning, the doctor refused to see me and told me that there were other patients. I told the doctor that I could not come tomorrow and that I just wanted the report to be read and the prescription written. This was refused, and I was asked to come back on another day after 14 days for a follow-up and to pay a new consultation fee just to read the reports. | BE36: Patient | BU36: MOH | BV36: =BV34 -> 24 | BW36: =BV36/92 -> 26.09% | CQ36: 443 | CR36: 1718885 | CS36: ذوي المراجع | CT36: الطوارئ | CU36: التمريض | CV36: تمريض الطوارئ | CW36: 2022-10-31T12:00:00 | CX36: تهاني عبدالله القرني | CY36: More than 72 Hours
B37: 35 | C37: 396 | D37: 30226880 | E37: ذوي المراجع | F37: العيادات الخارجية | G37: الطبي | H37: عيادات النساء والولادة | I37: 2022-10-15T20:31:00 | J37: امال القحطاني | K37: More than 72 Hours | L37: 2022-10-15 | M37: 20:19:00 | N37: امال القحطاني | O37: 2022-10-15 | P37: 20:31:00 | Q37: 2022-10-16 | R37: 17:23:00 | S37: امال القحطاني | T37: 2022-10-16 | U37: 17:25:00 | V37: امال القحطاني | W37: 0.8708333333 | AA37: -44850.72569 | AE37: 0 | AJ37: -44850.72569 | AN37: -44850.72569 | AO37: 2022-10-27 | AP37: 17:25:00 | AQ37: 11 | AR37: 2022-10-27 | AS37: 17:25:00 | AT37: امال القحطاني | AU37: 11 | AV37: 11087 | AW37: DR. MARWA ABDUALRHMAN HUSINEI | AX37: Relationship complaints | AY37: 5. Communication | AZ37: 5.1.Patient-staff Communication | BA37: 5.1.2.Poor provider-patient communication | BB37: تم تشخيص طفلي بعد الولاده بوجود كسر في عظمة الترقوه وتم عمل اشعه تؤكد ذلك ولم يتم توضيح وقت واسباب حصول ذلك . | BC37: My child was diagnosed with a fracture in his collarbone, and an X-ray confirmed this, but the time and reasons for this were not explained. | BE37: Patient | CQ37: 475 | CR37: 30029973 | CS37: ذوي المراجع | CT37: العيادات الخارجية | CU37: الطبي | CV37: عيادات الباطنية | CW37: 2022-10-31T12:11:00 | CX37: تهاني عبدالله القرني | CY37: More than 72 Hours
B38: 36 | C38: 396 | D38: 30226880 | E38: ذوي المراجع | F38: العيادات الخارجية | G38: الطبي | H38: عيادات الأطفال | I38: 2022-10-15T20:31:00 | J38: امال القحطاني | K38: More than 72 Hours | L38: 2022-10-15 | M38: 20:19:00 | N38: امال القحطاني | O38: 2022-10-15 | P38: 20:31:00 | Q38: 2022-10-16 | R38: 17:23:00 | S38: امال القحطاني | T38: 2022-10-16 | U38: 17:26:00 | V38: امال القحطاني | W38: 0.8715277778 | X38: 2022-10-23 | Y38: 17:18:00 | Z38: امال القحطاني | AA38: 6.994444444 | AE38: -44857.72083 | AJ38: -44850.72639 | AN38: -44850.72639 | AO38: 2022-10-24 | AP38: 11:48:00 | AQ38: 7.765277778 | AR38: 2022-10-27 | AS38: 17:16:00 | AT38: امال القحطاني | AU38: 10.99305556 | AV38: 4843 | AW38: DR. YAMINE ABDUALQADER KERARMA | AX38: Relationship complaints | AY38: 5. Communication | AZ38: 5.1.Patient-staff Communication | BA38: 5.1.2.Poor provider-patient communication | BB38: تم تشخيص طفلي بوجود كسر في عظمة الترقوه وتم عمل اشعه تؤكد ذلك ولم يتم توضيح وقت واسباب حصول ذلك . | BC38: My child was diagnosed with a fracture in his collarbone, and an X-ray confirmed this, but the time and reasons for this were not explained. | BE38: Patient | BU38: 24 Hours | BV38: 48 Hours | BW38: 72 Hours | BX38: More than 72 hours | CQ38: 486 | CR38: 1553861 | CS38: ذوي المراجع | CT38: التنويم | CU38: الطبي | CV38: تنويم الباطنية | CW38: 2022-10-31T14:13:00 | CX38: تهاني عبدالله القرني | CY38: More than 72 Hours
B39: 37 | C39: 388 | D39: 30121269 | E39: ذوي المراجع | F39: العيادات الخارجية | G39: التمريض | H39: تمريض العيادات الخارجية | I39: 2022-10-16T10:11:00 | J39: امال القحطاني | K39: 24 Hours | L39: 2022-10-13 | M39: 19:04:00 | N39: امال القحطاني | O39: 2022-10-16 | P39: 10:11:00 | Q39: 2022-10-16 | R39: 10:11:00 | S39: امال القحطاني | T39: 2022-10-16 | U39: 10:13:00 | V39: امال القحطاني | W39: 0.001388888886 | AA39: -44850.42569 | AE39: 0 | AJ39: -44850.42569 | AK39: 2022-10-16 | AL39: 20:20:00 | AM39: امال القحطاني | AN39: 0.4215277778 | AQ39: -44850.42569 | AU39: -44850.42569 | AX39: Clinical complaints | AY39: 1. Quality | AZ39: 1.3.Quality of Care | BA39: 1.3.1.Substandard clinical/nursing care | BB39: أثناء خضوع زوجتي لفحص تخطيط الدماغ الكهربائي، لم تغلق الممرضة الباب ولم تُطفئ الأنوار. كما كانت تتحدث معها بطريقة غير لائقة وغير مهنية. | BC39: During my wife was doing an EEG. The door was not closed and the lights were not turned off by the nurse. The nurse was talking to my wife in an inappropriate and unprofessional manner. | BE39: Patient | BU39: =BX34 -> 13 | BV39: =BY34 -> 3 | BW39: =BZ34 -> 0 | BX39: =CA34 -> 8 | CQ39: 483 | CR39: 30231147 | CS39: ذوي المراجع | CT39: التنويم | CU39: التمريض | CV39: تمريض تنويم الأطفال | CW39: 2022-10-31T14:14:00 | CX39: تهاني عبدالله القرني | CY39: 72 Hours
B40: 38 | C40: 391 | D40: 30091692 | E40: ذوي المراجع | F40: العيادات الخارجية | G40: الطبي | H40: عيادات جراحة الأنف وأذن وحنجرة | I40: 2022-10-16T11:17:00 | J40: امال القحطاني | K40: 72 Hours | L40: 2022-10-15 | M40: 19:55:00 | N40: امال القحطاني | O40: 2020-10-16 | P40: 11:17:00 | Q40: 2022-10-16 | R40: 11:16:00 | S40: امال القحطاني | T40: 2022-10-16 | U40: 11:17:00 | V40: امال القحطاني | W40: 730 | X40: 2022-10-17 | Y40: 10:54:00 | Z40: امال القحطاني | AA40: 0.9840277778 | AE40: -44851.45417 | AJ40: -44850.47014 | AN40: -44850.47014 | AO40: 2022-10-18 | AP40: 09:17:00 | AQ40: 1.916666667 | AR40: 2022-10-18 | AS40: 18:31:00 | AT40: امال القحطاني | AU40: 2.301388889 | AV40: 2892 | AW40: DR. MAHMOUD ABUGANAYA | AX40: Clinical complaints | AY40: 1. Quality | AZ40: 1.2.Patient journey | BA40: 1.2.2.Patient flow issues | BB40: بعد انتظار لمده مايقارب الساعه تم النداء على اسم طفلي وعند الدخول للعياده تم اخباري انه تم النداء علي بالخطأ ولا يمكنني الدخول وهناك سبع مرضى قبلي وتم رفض الكشف على الطفل لم يكن هناك حسن تعامل من قبل الطبيب وعدم الاهتمام لكثرة عدد المرضى خارج العياده . | BC40: After waiting for about now, my child’s name was called and I entered the clinic. I was told that I was called by mistake. Is it possible to enter there? Seven people before me refused to examine the child. There was no good participation from the doctor and no concern for the large number of patients outside the clinic. | BE40: Patient | BU40: =BU39/BV36 -> 54.17% | BV40: =BV39/BV36 -> 12.50% | BW40: =BW39/BV36 -> 0.00% | BX40: =BX39/BV36 -> 33.33%
B41: 39 | C41: 396 | D41: 30226880 | E41: ذوي المراجع | F41: التنويم | G41: التمريض | H41: تمريض الحضانة | I41: 2022-10-16T17:24:00 | J41: امال القحطاني | K41: More than 72 Hours | L41: 2022-10-15 | M41: 20:19:00 | N41: امال القحطاني | O41: 2022-10-15 | P41: 20:31:00 | Q41: 2022-10-16 | R41: 17:23:00 | S41: امال القحطاني | T41: 2022-10-16 | U41: 17:25:00 | V41: امال القحطاني | W41: 0.8708333333 | AA41: -44850.72569 | AE41: 0 | AJ41: -44850.72569 | AN41: -44850.72569 | AO41: 2022-10-27 | AP41: 17:26:00 | AQ41: 11.00069444 | AR41: 2022-10-27 | AS41: 17:26:00 | AT41: امال القحطاني | AU41: 11.00069444 | AX41: Clinical complaints | AY41: 1. Quality | AZ41: 1.3.Quality of Care | BA41: 1.3.1.Substandard clinical/nursing care | BB41: تم تشخيص طفلي بوجود كسر في عظمة الترقوه وتم عمل اشعه تؤكد ذلك ولم يتم توضيح وقت واسباب حصول ذلك . | BC41: My child was diagnosed with a fracture in his collarbone, and an X-ray confirmed this, but the time and reasons for this were not explained. | BE41: Patient | CF41: Employee Name | CG41: Number of complaints | CH41: Total Percentage | CI41: 24 Hours | CJ41: 48 Hours | CK41: 72 Hours | CL41: More than 72 hours | CM41: Total
B42: 40 | C42: 381 | D42: 2526007451 | E42: مجلس الضمان الصحي | F42: الطوارئ | G42: الإداري | H42: استقبال الطوارئ | I42: 2022-10-16T17:53:00 | J42: امال القحطاني | K42: More than 72 Hours | L42: 2022-10-13 | M42: 16:33:00 | N42: امال القحطاني | O42: 2022-10-16 | P42: 17:53:00 | T42: 2022-10-13 | U42: 17:09:00 | V42: امال القحطاني | W42: -3.030555556 | X42: 2022-10-15 | Y42: 17:17:00 | Z42: امال القحطاني | AA42: 2.005555556 | AE42: -44849.72014 | AJ42: -44847.71458 | AN42: -44847.71458 | AO42: 2022-10-16 | AP42: 10:04:00 | AQ42: 2.704861111 | AR42: 2022-10-16 | AS42: 17:50:00 | AT42: امال القحطاني | AU42: 3.028472222 | AX42: Clinical complaints | AY42: 1. Quality | AZ42: 1.2.Patient journey | BA42: 1.2.2.Patient flow issues | BB42: تم دخول قسم الطوارئ وقت الزياره هو يوم١٠/١٠/٢٠٢٢ الساعه ٨.٣٠ مساء يوم الاثنين اول زياره لدى مستشفى الحمادي وتم الحضور لدى طفلتي حساسية شديدة على الصدر وتعاني من سعال حاد وارتفاع في درجة الحرارة حيث تم رفض استقبال طفلتي في قسم الطورائ وتم التعامل معي بطريقة سيئه من قبل استقبال الطوارئ والمدير المناوب وتم ارسالي لعيادات الاطفال وعند الذهاب تم اخباري ان حالة طفلتي طارئه ويجب الرجوع لقسم الطوارئ وتم المحاوله لادخال طفلتي لعدم قدرتها على التنفس ولكن يتم الرفض من قبلهم لفتح الكشفيه لحين تواجد ممرضه علما انه تم دخول اكثر من مريض في نفس الوقت وتم اخباري بالذهاب لمستشفى حيث تم خروجي مع الطفله وهي بحاله غير جيده . | BC42: The emergency department was visited on 10/10/2022 at 8:30 pm on Monday, the first visit to Al-Hammadi Hospital. My daughter had a severe chest allergy and was suffering from a severe cough and high fever. My daughter was refused admission to the emergency department, and I was treated badly by the emergency reception and the on-duty manager. I was sent to the pediatric clinics, and when I went, I was told that my daughter's case was an emergency and that I should return to the emergency department. I tried to admit my daughter because she was unable to breathe, but they refused to open the examination room until a nurse was present, knowing that more than one patient was admitted at the same time. I was told to go to the hospital, and I left with my daughter, who was in a bad condition. | BE42: Patient | BU42: In-Patient | BV42: 5 | BW42: =BV42/BV45 -> 20.83% | CF42: امال القحطاني | CG42: 15 | CH42: =CG42/CG44 -> 48.39% | CI42: 1 | CJ42: 2 | CK42: 2 | CL42: 10 | CM42: =CG42 -> 15
B43: 41 | C43: 397 | D43: 30121269 | E43: مراجع | F43: العيادات الخارجية | G43: الطبي | H43: فني تخطيط المخ والأعصاب | I43: 2022-10-16T19:47:00 | J43: امال القحطاني | K43: More than 72 Hours | L43: 2022-10-16 | M43: 19:33:00 | N43: امال القحطاني | O43: 2022-10-16 | P43: 19:47:00 | T43: 2022-10-16 | U43: 19:48:00 | V43: امال القحطاني | W43: 0.0006944444394 | X43: 2022-10-17 | Y43: 10:07:00 | Z43: امال القحطاني | AA43: 0.5965277778 | AB43: 2022-10-18 | AC43: 18:30:00 | AD43: امال القحطاني | AE43: 1.349305556 | AF43: 2022-10-23 | AG43: 16:39:00 | AH43: امال القحطاني | AI43: No Response | AJ43: 6.86875 | AN43: -44850.825 | AQ43: -44850.825 | AU43: -44850.825 | AX43: Relationship complaints | AY43: 5. Communication | AZ43: 5.1.Patient-staff Communication | BA43: 5.1.1.Miscommunication with Patient | BB43: أثناء قيام زوجتي بعمل تخطيط الاعصاب. لم يتم إغلاق الباب ولم تقوم الممرضه باطفاء الاضاءه . كانت الممرضة تتحدث مع زوجتي بطريقة غير لائقة وغير مهنية | BC43: While my wife was having an EEG, the door wasn't closed and the nurse didn't turn off the light. The nurse was speaking to my wife in an inappropriate and unprofessional manner. | BE43: Patient | BU43: Out-Patient | BV43: 15 | BW43: =BV43/BV45 -> 62.50% | CF43: تهاني عبدالله القرني | CG43: 16 | CH43: =CG43/CG44 -> 51.61% | CI43: 3 | CK43: 4 | CL43: 9 | CM43: =CG43 -> 16
B44: 42 | C44: 398 | D44: 671821 | E44: مراجع | F44: العيادات الخارجية | G44: الطبي | H44: عيادات جراحة العظام | I44: 2022-10-16T20:24:00 | J44: امال القحطاني | K44: More than 72 Hours | L44: 2022-10-16 | M44: 20:32:00 | N44: امال القحطاني | O44: 2022-10-17 | P44: 20:24:00 | T44: 2022-10-16 | U44: 20:32:00 | V44: امال القحطاني | W44: -0.9944444444 | AA44: -44850.85556 | AE44: 0 | AJ44: -44850.85556 | AN44: -44850.85556 | AO44: 2022-10-18 | AP44: 18:57:00 | AQ44: 1.934027778 | AR44: 2022-10-27 | AS44: 17:23:00 | AT44: امال القحطاني | AU44: 10.86875 | AW44: DR.NADEEM AHMAD | AX44: Relationship complaints | AY44: 5. Communication | AZ44: 5.1.Patient-staff Communication | BA44: 5.1.2.Poor provider-patient communication | BB44: زرتُ الدكتور نديم وطلب مني إجراء صورة أشعة. عندما عدتُ إلى العيادة، رفض الطبيب استقبالي. أخبرته أنني لا أستطيع الحضور غدًا، لكنه رفض قراءة صور الأشعة وطلب مني الحضور في يوم آخر. | BC44: I visited Dr. Nadeem and he asked me to get an x-ray. When I got back to the clinic, the doctor refused to receive me. I told the doctor that I can't come tomorrow, but he refused to read the x-rays and told me to come on another day | BE44: Patient | BU44: ER | BV44: 4 | BW44: =BV44/BV45 -> 16.67% | CF44: Total | CG44: =SUBTOTAL(9,CG42:CG43) -> 31 | CH44: =CH42+CH43 -> 100% | CI44: =SUBTOTAL(9,CI42:CI43) -> 4 | CJ44: =SUBTOTAL(9,CJ42:CJ43) -> 2 | CK44: =SUBTOTAL(9,CK42:CK43) -> 6 | CL44: =SUBTOTAL(9,CL42:CL43) -> 19 | CM44: =SUM(CI44:CL44) -> 31
B45: 43 | C45: 400 | D45: 1827709 | E45: وزارة الصحة | F45: الطوارئ | G45: الإداري | H45: المدير المناوب | I45: 2022-10-17T18:52:00 | J45: امال القحطاني | K45: 24 Hours | L45: 2022-10-17 | M45: 18:34:00 | N45: امال القحطاني | O45: 2022-10-17 | P45: 18:25:00 | T45: 2022-10-17 | U45: 18:53:00 | V45: امال القحطاني | W45: 0.01944444445 | AA45: -44851.78681 | AE45: 0 | AJ45: -44851.78681 | AN45: -44851.78681 | AO45: 2022-10-17 | AP45: 21:05:00 | AQ45: 0.09166666666 | AR45: 2022-10-18 | AS45: 18:34:00 | AT45: امال القحطاني | AU45: 0.9868055555 | AX45: Clinical complaints | AY45: 1. Quality | AZ45: 1.2.Patient journey | BA45: 1.2.3.Lack of follow up | BB45: تم الدخول لقسم الطوارئ وتم الانتظار لمدة طويله ولم يتم ادخال واخذ العلامات الحيويه الا عند الذهاب للمدير المناوب حيث لم يكن متعاون معي وتم اخذ العلامات الحيويه بعد ذلك وتم سحب عينه من الدم وعند الانتهاء تم اخباري بان التامين رفض ويجب علي دفع المبلغ وتم الرفض من قبلي وطلبت استرجاع مبلغ الكشفيه لعدم الاستفاده من الاجراءات وتم رفض ذلك من قبل المدير المناوب . | BC45: I entered the emergency department and waited for a long time. I was not admitted and my vital signs were not taken until I went to the on-duty manager, who was not cooperative with me. My vital signs were taken after that, and a blood sample was taken. When it was finished, I was told that the insurance had refused and I had to pay the amount. I refused and asked for a refund of the consultation fee because I did not benefit from the procedures, but this was refused by the on-duty manager. | BE45: Patient | BU45: Total | BV45: =BV42+BV43+BV44 -> 24 | BW45: =SUM(BW42:BW44) -> 100%
B46: 44 | C46: 404 | D46: 30161565 | E46: وزارة الصحة | F46: العيادات الخارجية | G46: الإداري | H46: قسم الموافقات الطبية | I46: 2022-10-17T19:55:00 | J46: امال القحطاني | K46: 24 Hours | L46: 2022-10-17 | M46: 19:55:00 | N46: امال القحطاني | O46: 2022-10-17 | P46: 19:55:00 | T46: 2022-10-17 | U46: 19:55:00 | V46: امال القحطاني | W46: 0 | AA46: -44851.82986 | AE46: 0 | AJ46: -44851.82986 | AN46: -44851.82986 | AO46: 2022-10-17 | AP46: 20:03:00 | AQ46: 0.005555555559 | AR46: 2022-10-17 | AS46: 20:03:00 | AT46: امال القحطاني | AU46: 0.005555555559 | AX46: Management complaints | AY46: 3. Institutional issues | AZ46: 3.7.Medical records | BA46: 3.7.1.Patient file issues | BB46: لم يتم تحديث بياناتي من قبل قسم الموافقات | BC46: My data has not been updated by the approvals department. | BE46: Patient | BU46: Medical | BV46: 12 | BW46: =BV46/BV49 -> 50.00%
B47: 45 | C47: 371 | D47: 30226819 | E47: ذوي المراجع | F47: التنويم | G47: الطبي | H47: تنويم الأطفال | I47: 2022-10-18T12:22:00 | J47: تهاني عبدالله القرني | K47: More than 72 Hours | L47: 2022-10-11 | M47: 21:32:00 | N47: تهاني عبدالله القرني | O47: 2022-10-18 | P47: 12:22:00 | Q47: 2022-10-18 | R47: 12:21:00 | S47: تهاني عبدالله القرني | T47: 2022-10-18 | U47: 12:23:00 | V47: تهاني عبدالله القرني | W47: 0.0006944444467 | X47: 2022-10-19 | Y47: 14:49:00 | Z47: تهاني عبدالله القرني | AA47: 1.101388889 | AB47: 2022-10-20 | AC47: 11:56:00 | AD47: تهاني عبدالله القرني | AE47: 0.8798611111 | AF47: 2022-10-22 | AG47: 09:07:00 | AH47: تهاني عبدالله القرني | AI47: No Response | AJ47: 3.863888889 | AN47: -44852.51597 | AO47: 2022-10-28 | AP47: 21:12:00 | AQ47: 10.36736111 | AR47: 2022-10-29 | AS47: 12:08:00 | AT47: تهاني عبدالله القرني | AU47: 10.98958333 | AW47: DR.SHAIMAA SALEH | AX47: Clinical complaints | AY47: 1. Quality | AZ47: 1.3.Quality of Care | BA47: 1.3.1.Substandard clinical/nursing care | BB47: تم تنويم طفلي بتاريخ 8 اكتوبر 2022م ولم يكن تعامل الطبيبة لائق معي اخبرتني ان الدكتور ادرج جرعات المضاد بالنظام وانه لم يعطى اي جرعة من المضاد لطفلي من قبل التمريض حيث كانت الطبيبة غير متعاونه واخبرتني انها غير مسؤوله وانها الان بدات المناوبة وان المستشفى يعاني من نقص كادر التمريض في قسم التنويم وان الممرضات غير مسؤولات عن وضع الكمادات وانهم فقط يضعون الدواء وغير مسؤولين عن المساعدة لقل العدد وانه لايوجد احد مسؤول عن الخطا. | BC47: My child was admitted on October 8, 2022, and the doctor's treatment of me was not appropriate. She told me that the doctor had included the antibiotic doses in the system and that no dose of antibiotic had been given to my child by the nurses. The doctor was uncooperative and told me that she was not responsible, that she had just started her shift, that the hospital was suffering from a shortage of nursing staff in the inpatient department, that the nurses were not responsible for applying compresses, that they only applied the medication and were not responsible for providing assistance due to the small number, and that no one was responsible for the mistake. | BE47: Patient | BU47: Admin | BV47: 9 | BW47: =BV47/BV49 -> 37.50% | CF47: Patient | CG47: =CG44 -> 31 | CH47: =CG47/92 -> 33.70%
B48: 46 | C48: 371 | D48: 30226819 | E48: ذوي المراجع | F48: التنويم | G48: التمريض | H48: تمريض تنويم الأطفال | I48: 2022-10-18T12:24:00 | J48: تهاني عبدالله القرني | K48: 48 Hours | L48: 2022-10-11 | M48: 09:32:00 | N48: تهاني عبدالله القرني | O48: 2022-10-18 | P48: 12:24:00 | Q48: 2022-10-18 | R48: 12:21:00 | S48: تهاني عبدالله القرني | T48: 2022-10-18 | U48: 12:25:00 | V48: تهاني عبدالله القرني | W48: 0.0006944444394 | AA48: -44852.51736 | AE48: 0 | AJ48: -44852.51736 | AN48: -44852.51736 | AO48: 2022-10-18 | AP48: 15:41:00 | AQ48: 0.1361111111 | AR48: 2022-10-19 | AS48: 14:48:00 | AT48: تهاني عبدالله القرني | AU48: 1.099305556 | AX48: Clinical complaints | AY48: 1. Quality | AZ48: 1.3.Quality of Care | BA48: 1.3.1.Substandard clinical/nursing care | BB48: في ٨ أكتوبر ٢٠٢٢، تم إدخال طفلي إلى المستشفى. لم أتلقَ أي رد من الممرضة، ولم يتعاونوا معي عندما طلبت المساعدة. طلب ​​الدكتور محمد مضادًا حيويًا لطفلي ثلاث مرات يوميًا، لكن الممرضات لم يُعطوه إياه. أخذتُ الملف، فوجدتُه خاليًا من أي ملاحظة بخصوص المضاد الحيوي. ثم سألتُ الممرضة، فأخذت الملف وملأته بملاحظة خاطئة عن المضاد الحيوي. | BC48: On 8 Oct 2022 my baby admitted in the hospital. no responded from the nurse and they are not cooperative when I asking for help, and the Dr. MOHAMMED request the anti- biotic for my baby 3 times per a day but the nurses didn’t give him .I took the file I found it without any note about the anti-biotic. Then I asked the nurses after that she took the file and filled it with incorrectly note about the anti-biotic. | BE48: Patient | BU48: Nursing | BV48: 3 | BW48: =BV48/BV49 -> 12.50% | CQ48: Employee Name | CR48: Number of complaints | CS48: Total Percentage | CT48: 24 Hours | CU48: 48 Hours | CV48: 72 Hours | CW48: More than 72 hours | CX48: Total
B49: 47 | C49: 407 | D49: 30011418 | E49: مراجع | F49: العيادات الخارجية | G49: الطبي | H49: عيادات النساء والولادة | I49: 2022-10-18T18:29:00 | J49: امال القحطاني | K49: More than 72 Hours | L49: 2022-10-18 | M49: 17:00:00 | N49: امال القحطاني | O49: 2022-10-18 | P49: 18:26:00 | Q49: 2022-10-18 | R49: 18:29:00 | S49: امال القحطاني | T49: 2022-10-18 | U49: 18:29:00 | V49: امال القحطاني | W49: 0.002083333333 | X49: 2022-10-27 | Y49: 17:20:00 | Z49: امال القحطاني | AA49: 8.952083333 | AB49: 2022-10-30 | AC49: 19:04:00 | AD49: امال القحطاني | AE49: 3.072222222 | AF49: 2022-11-01 | AG49: 18:36:00 | AH49: امال القحطاني | AI49: No Response | AJ49: 14.00486111 | AN49: -44852.77014 | AQ49: -44852.77014 | AU49: -44852.77014 | AV49: 12978 | AW49: DR. MARWA OSMAN ZAKI | AX49: Relationship complaints | AY49: 5. Communication | AZ49: 5.1.Patient-staff Communication | BA49: 5.1.1.Miscommunication with Patient | BB49: تم رفض عمل السونار من قبل الدكتوره مروه ولم يكن هنام استجابه للمريض حيث كان سلوب الدكتوره غير لائق مع المريضه وتم اخبارها بالذهاب للطبيب اخر . | BC49: The ultrasound was refused by Dr. Marwa, and there was no response to the patient, as the doctor's attitude towards the patient was inappropriate, and she was told to go to another doctor. | BE49: Patient | BU49: Total | BV49: =BV46+BV47+BV48 -> 24 | BW49: =BW46+BW47++BW48 -> 100% | CF49: 24 Hours | CG49: 48 Hours | CH49: 72 Hours | CI49: More than 72 hours | CQ49: امال القحطاني | CR49: 21 | CS49: =CR49/CR51 -> 56.76% | CT49: 4 | CU49: 2 | CV49: 3 | CW49: 12 | CX49: =CR49 -> 21
B50: 48 | C50: 409 | D50: 30097503 | E50: وزارة الصحة | F50: العيادات الخارجية | G50: الطبي | H50: عيادات الأطفال | I50: 2022-10-18T19:04:00 | J50: امال القحطاني | K50: 24 Hours | L50: 2022-10-18 | M50: 19:04:00 | N50: امال القحطاني | O50: 2022-10-18 | P50: 19:04:00 | T50: 2022-10-18 | U50: 19:04:00 | V50: امال القحطاني | W50: 0 | AA50: -44852.79444 | AE50: 0 | AJ50: -44852.79444 | AN50: -44852.79444 | AO50: 2022-10-18 | AP50: 19:11:00 | AQ50: 0.004861111112 | AR50: 2022-10-18 | AS50: 19:11:00 | AT50: امال القحطاني | AU50: 0.004861111112 | AX50: Clinical complaints | AY50: 2. Safety | AZ50: 2.1.Medication & Vaccination | BA50: 2.1.10.Vaccination shortages | BB50: عدم توفر تطعيم شلل الاطفال لعمر سنه ونص . | BC50: Polio vaccination is not available for children aged one and a half years. | BE50: Patient | CF50: =CI44 -> 4 | CG50: =CJ44 -> 2 | CH50: =CK44 -> 6 | CI50: =CL44 -> 19 | CQ50: تهاني عبدالله القرني | CR50: 16 | CS50: =CR50/CR51 -> 43.24% | CT50: 1 | CU50: 4 | CV50: 2 | CW50: 9 | CX50: =CR50 -> 16
B51: 49 | C51: 426 | D51: 30214165 | E51: مجلس الضمان الصحي | F51: العيادات الخارجية | G51: الإداري | H51: قسم التقارير الطبية | I51: 2022-10-19T10:52:00 | J51: تهاني عبدالله القرني | K51: 48 Hours | L51: 2022-10-19 | M51: 10:52:00 | N51: تهاني عبدالله القرني | O51: 2022-10-19 | P51: 10:52:00 | T51: 2022-10-19 | U51: 10:52:00 | V51: تهاني عبدالله القرني | W51: 0 | AA51: -44853.45278 | AE51: 0 | AJ51: -44853.45278 | AN51: -44853.45278 | AO51: 2022-10-20 | AP51: 10:58:00 | AQ51: 1.004166667 | AR51: 2022-10-20 | AS51: 10:58:00 | AT51: تهاني عبدالله القرني | AU51: 1.004166667 | AX51: Management complaints | AY51: 3. Institutional issues | AZ51: 3.7.Medical records | BA51: 3.7.3.Medical report issues | BB51: قدمت طلب المستشفى بتقرير مفصل من الجراح الدكتور محمد ابو رحمه ، و النتائج المختبرية و الأشعة التابعة لها لم يتم الاجابة من قبلهم | BC51: I submitted a request to the hospital with a detailed report from surgeon Dr. Muhammad Abu Rahma, along with the laboratory results and related X-rays, but they have not responded. | BE51: Patient | CF51: =CF50/CG47 -> 12.90% | CG51: =CG50/CG47 -> 6.45% | CH51: =CH50/CG47 -> 19.35% | CI51: =CI50/CG47 -> 61.29% | CQ51: Total | CR51: =SUBTOTAL(9,CR49:CR50) -> 37 | CS51: =CS49+CS50 -> 100% | CT51: =SUBTOTAL(9,CT49:CT50) -> 5 | CU51: =SUBTOTAL(9,CU49:CU50) -> 6 | CV51: =SUBTOTAL(9,CV49:CV50) -> 5 | CW51: =SUBTOTAL(9,CW49:CW50) -> 21 | CX51: =SUM(CT51:CW51) -> 37
B52: 50 | C52: 416 | D52: 30157078 | E52: وزارة الصحة | F52: العيادات الخارجية | G52: الطبي | H52: قسم الصيدلية | I52: 2022-10-19T14:07:00 | J52: تهاني عبدالله القرني | K52: 24 Hours | L52: 2022-10-19 | M52: 14:04:00 | N52: تهاني عبدالله القرني | O52: 2022-10-19 | P52: 14:07:00 | T52: 2022-10-19 | U52: 14:07:00 | V52: تهاني عبدالله القرني | W52: 0 | AA52: -44853.58819 | AE52: 0 | AJ52: -44853.58819 | AN52: -44853.58819 | AO52: 2022-10-19 | AP52: 14:17:00 | AQ52: 0.006944444445 | AR52: 2022-10-19 | AS52: 14:17:00 | AT52: تهاني عبدالله القرني | AU52: 0.006944444445 | AX52: Management complaints | AY52: 3. Institutional issues | AZ52: 3.5.Staffing | BA52: 3.5.1.Insufficient staffing | BB52: لدى المريض وصفة طبية ولكن لم يتم صرف الدواء لعدم تواجد الصيدلي | BC52: The patient has a prescription, but the medication was not dispensed because the pharmacist was not present. | BE52: Patient
B53: 51 | C53: 417 | D53: 1086180948 | E53: وزارة الصحة | F53: العيادات الخارجية | G53: الطبي | H53: عيادات الأطفال | I53: 2022-10-19T15:10:00 | J53: تهاني عبدالله القرني | K53: 24 Hours | L53: 2022-10-19 | M53: 15:10:00 | N53: تهاني عبدالله القرني | O53: 2022-10-19 | P53: 15:10:00 | T53: 2022-10-19 | U53: 15:10:00 | V53: تهاني عبدالله القرني | W53: 0 | AA53: -44853.63194 | AE53: 0 | AJ53: -44853.63194 | AN53: -44853.63194 | AO53: 2022-10-19 | AP53: 15:48:00 | AQ53: 0.02638888889 | AR53: 2022-10-19 | AS53: 15:48:00 | AT53: تهاني عبدالله القرني | AU53: 0.02638888889 | AX53: Clinical complaints | AY53: 2. Safety | AZ53: 2.1.Medication & Vaccination | BA53: 2.1.10.Vaccination shortages | BB53: عدم توفر تطعيمة الدرن للاطفال | BC53: Lack of BCG vaccination for children | BE53: Patient | CF53: In-Patient | CG53: 3 | CH53: =CG53/CG56 -> 10.71%
B54: 52 | C54: 418 | D54: 1593638 | E54: مراجع | F54: العيادات الخارجية | G54: الطبي | H54: عيادات الأسنان | I54: 2022-10-19T17:29:00 | J54: تهاني عبدالله القرني | K54: 72 Hours | L54: 2022-10-19 | M54: 16:55:00 | N54: تهاني عبدالله القرني | O54: 2022-10-19 | P54: 17:19:00 | Q54: 2022-10-19 | R54: 17:28:00 | S54: تهاني عبدالله القرني | T54: 2022-10-19 | U54: 17:29:00 | V54: تهاني عبدالله القرني | W54: 0.006944444445 | AA54: -44853.72847 | AE54: 0 | AJ54: -44853.72847 | AK54: 2022-10-22 | AL54: 09:24:00 | AM54: تهاني عبدالله القرني | AN54: 2.663194444 | AQ54: -44853.72847 | AU54: -44853.72847 | AW54: Dr. azzah Almatt | AX54: Clinical complaints | AY54: 1. Quality | AZ54: 1.4.Treatment | BA54: 1.4.3.Ineffective treatment | BB54: تم مراجعة الدكتوره عزه لعدة زيارات وتم اخذ اشعه قبل وبعد المعالجه للاسنان حيث تم ارسال الاشعه لطبيب اخر وتم اخباري بعدم تغير حالة الاسنان ولازلت اشعر بالالم ولا يوجد تحسن من اول زياره الى الان . | BC54: I consulted Dr. Azza several times and X-rays were taken before and after the dental treatment. The X-rays were sent to another doctor and I was told that the condition of the teeth had not changed and I still feel pain and there has been no improvement from the first visit until now. | BE54: Patient | CF54: Out-Patient | CG54: 24 | CH54: =CG54/CG56 -> 85.71% | CQ54: Patient Relatives | CR54: =CR51 -> 37 | CS54: =CR54/92 -> 40.22%
B55: 53 | C55: 403 | D55: 537722668 | E55: مراجع | F55: العيادات الخارجية | G55: الطبي | H55: عيادات الباطنية | I55: 2022-10-20T18:12:00 | J55: امال القحطاني | K55: More than 72 Hours | L55: 2022-10-17 | M55: 19:20:00 | N55: امال القحطاني | O55: 2022-10-20 | P55: 18:12:00 | Q55: 2022-10-20 | R55: 18:11:00 | S55: امال القحطاني | T55: 2022-10-20 | U55: 18:12:00 | V55: امال القحطاني | W55: 0 | AA55: -44854.75833 | AE55: 0 | AJ55: -44854.75833 | AN55: -44854.75833 | AO55: 2022-10-22 | AP55: 09:44:00 | AQ55: 1.647222222 | AR55: 2022-10-27 | AS55: 17:22:00 | AT55: امال القحطاني | AU55: 6.965277778 | AV55: 6853 | AW55: DR. MOHAMMAD TAHA CHAMSI BACHA | AX55: Relationship complaints | AY55: 5. Communication | AZ55: 5.1.Patient-staff Communication | BA55: 5.1.1.Miscommunication with Patient | BB55: قام الدكتور محمد طه بقياس درجة حرارتي وهي ٣٩ مئويه وقام باخباري " انها درجة حراره طبيعيه " وعلى اثرها عانيت اكثر من يومين من الحراره ولم تفيد الادويه وكذلك عندما سألته عن سبب نزلة البرد وتكرارها قام بالرد بطريقه غير مهنيه " هيك من الله " كذلك قمت بالبحث عن الصيدليه ولكني لم اجدها بعد عناء طويل ف رجعت لعيادة الدكتور لكي يخبرني مكان الصيدليه فلم يعجبه ذلك ورد علي " انا اليوم قمت باإرسال٢٠ مريض للصيدليه لم يعد اي منهم الي " | BC55: Dr. Muhammad Taha measured my temperature, which was 39 degrees Celsius, and told me, "This is a normal temperature." As a result, I suffered from fever for more than two days, and the medicines did not help. Also, when I asked him about the reason for the cold and its recurrence, he replied unprofessionally, "It's from God." I also searched for the pharmacy, but I did not find it after a long struggle, so I returned to the doctor's clinic to ask him to tell me where the pharmacy was. He did not like that and replied to me, "Today I sent 20 patients to the pharmacy, and none of them returned to me." | BE55: Patient | CF55: ER | CG55: 1 | CH55: =CG55/CG56 -> 3.57%
B56: 54 | C56: 410 | D56: 30017415 | E56: ذوي المراجع | F56: العيادات الخارجية | G56: التمريض | H56: تمريض العيادات الخارجية | I56: 2022-10-20T19:15:00 | J56: امال القحطاني | K56: More than 72 Hours | L56: 2022-10-18 | M56: 7:17PM | N56: امال القحطاني | O56: 2022-10-20 | P56: 19:15:00 | Q56: 2022-10-20 | R56: 18:15:00 | S56: امال القحطاني | T56: 2022-10-20 | U56: 19:17:00 | V56: امال القحطاني | W56: 0.001388888886 | X56: 2022-10-22 | Y56: 18:24:00 | Z56: امال القحطاني | AA56: 1.963194444 | AB56: 2022-10-27 | AC56: 17:14:00 | AD56: امال القحطاني | AE56: 4.951388889 | AF56: 2022-11-01 | AG56: 18:06:00 | AH56: امال القحطاني | AI56: No Response | AJ56: 11.95069444 | AK56: 2023-02-05 | AL56: 19:03:00 | AM56: امال القحطاني | AN56: 107.9902778 | AQ56: -44854.80347 | AU56: -44854.80347 | AX56: Relationship complaints | AY56: 5. Communication | AZ56: 5.1.Patient-staff Communication | BA56: 5.1.1.Miscommunication with Patient | BB56: تعاملت ممرضة الدكتورة عزة بشير مع زوجي بطريقة غير مهنية. رفعت الممرضة صوتها وقالت: "إذا كنت لا تريد الانتظار، فاذهب إلى طبيب آخر". لم تكن الممرضة متعاونة مع المرضى. | BC56: Dr. Azza Bashirs nurse was dealing with my husband in an unprofessional manner. The nurse raised her voice and said, If you dont want to wait, go to another doctor. . The nurse was not cooperative with patients . | BE56: Patient | CF56: Total | CG56: =CG53+CG54+CG55 -> 28 | CH56: =SUM(CH53:CH55) -> 100% | CQ56: 24 Hours | CR56: 48 Hours | CS56: 72 Hours | CT56: More than 72 hours
A57: 4 | B57: 55 | C57: 419 | D57: 30120044 | E57: ذوي المراجع | F57: العيادات الخارجية | G57: الطبي | H57: قسم الصيدلية | I57: 2022-10-22T09:37:00 | J57: امال القحطاني | K57: 48 Hours | L57: 2022-10-19 | M57: 17:56:00 | N57: امال القحطاني | O57: 2022-10-22 | P57: 09:37:00 | Q57: 2022-10-20 | R57: 17:34:00 | S57: امال القحطاني | T57: 2022-10-20 | U57: 18:06:00 | V57: امال القحطاني | W57: -1.646527778 | AA57: -44854.75417 | AE57: 0 | AJ57: -44854.75417 | AN57: -44854.75417 | AO57: 2022-10-22 | AP57: 16:55:00 | AQ57: 1.950694444 | AR57: 2022-10-22 | AS57: 17:50:00 | AT57: امال القحطاني | AU57: 1.988888889 | AW57: DR. FAREDAH ABDULLAH | AX57: Clinical complaints | AY57: 1. Quality | AZ57: 1.2.Patient journey | BA57: 1.2.2.Patient flow issues | BB57: تم وصول الرقم 160 ووعند الذهاب تم تغير الرقم في الشاشه وتم الرجوع لرقم 159 وتم الذهاب الى شباك 2 للسؤال وتم التوضيح من قبلها يجب علي الانتظار لحين ظهور رقمي مره اخرى . | BC57: Number 160 arrived, and when I went there the number changed on the screen and went back to number 159. I went to window 2 to ask, and it was explained by her that I have to wait until my number appears again. | BE57: Patient | CF57: Medical | CG57: 22 | CH57: =CG57/CG61 -> 70.97% | CQ57: =CT51 -> 5 | CR57: =CU51 -> 6 | CS57: =CV51 -> 5 | CT57: =CW51 -> 21
B58: 56 | C58: 478 | D58: 1718885 | E58: وزارة الصحة | F58: الطوارئ | G58: الطبي | H58: قسم الأشعة | I58: 2022-10-22T14:42:00 | J58: تهاني عبدالله القرني | K58: More than 72 Hours | L58: 2022-10-22 | M58: 14:42:00 | N58: تهاني عبدالله القرني | O58: 2022-10-22 | P58: 14:42:00 | T58: 2022-10-22 | U58: 14:42:00 | V58: امال القحطاني | W58: 0 | AA58: -44856.6125 | AE58: 0 | AJ58: -44856.6125 | AN58: -44856.6125 | AO58: 2022-10-27 | AP58: 15:00:00 | AQ58: 5.0125 | AR58: 2022-10-27 | AS58: 15:00:00 | AT58: تهاني عبدالله القرني | AU58: 5.0125 | AX58: Clinical complaints | AY58: 2. Safety | AZ58: 2.3.Skills and Conduct | BA58: 2.3.3.Inappropriate attendance | BB58: لم يتم اخراج ابنتي عند عمل اشعه لمريض في نفس الغرفة على الرغم من طلبهم بمغادرة الغرفة في قسم الطوارئ | BC58: My daughter was not taken out when an X-ray was being done for a patient in the same room, despite being asked to leave the room in the emergency department. | BE58: Patient | CF58: Admin | CG58: 3 | CH58: =CG58/CG61 -> 9.68% | CQ58: =CQ57/CR54 -> 13.51% | CR58: =CR57/CR54 -> 16.22% | CS58: =CS57/CR54 -> 13.51% | CT58: =CT57/CR54 -> 56.76%
B59: 57 | C59: 432 | D59: 1833685 | E59: ذوي المراجع | F59: التنويم | G59: الطبي | H59: تنويم الأطفال | I59: 2022-10-22T15:34:00 | J59: امال القحطاني | K59: 24 Hours | L59: 2022-10-23 | M59: 15:10:00 | N59: امال القحطاني | O59: 2022-10-23 | P59: 15:34:00 | Q59: 2022-10-24 | R59: 17:35:00 | S59: امال القحطاني | T59: 2022-10-24 | U59: 17:35:00 | V59: امال القحطاني | W59: 1.084027778 | AA59: -44858.73264 | AE59: 0 | AJ59: -44858.73264 | AN59: -44858.73264 | AO59: 2022-10-24 | AP59: 17:37:00 | AQ59: 0.001388888886 | AR59: 2022-10-24 | AS59: 17:37:00 | AT59: امال القحطاني | AU59: 0.001388888886 | AX59: Management complaints | AY59: 4. Accessibility | AZ59: 4.3.Delays | BA59: 4.3.9.Delay in discharging patient | BB59: تم تأخير خروج بنتي من المستشفى . | BC59: My daughter's discharge from the hospital has been delayed. | BE59: Patient | CF59: Nursing | CG59: 5 | CH59: =CG59/CG61 -> 16.13%
